Workbook

Sheet Budowa
A1: ! | B1: UWAGA: | AE1: INSTRUKCJA WYPEŁNIANIA WNIOSKU | AY1: OK
B2: WNIOSEK NALEŻY ZŁOŻYĆ ZA PISMEM PRZEWODNIM. | AE2: szare pola - NIE ZMIENIAJ | AY2: Wprowadzono błędną daną - proszę wprowadzić poprawną daną wybierając ją z listy rozwijanej
B3: PRZED WYPEŁNIENIEM WNIOSKU NALEŻY ZAPOZNAĆ SIĘ Z INSTRUKCJĄ
B4: WYPEŁNIAJĄC WNIOSEK NALEŻY KIEROWAĆ SIĘ INSTRUKCJĄ POMOCNICZĄ I WSKAZÓWKAMI - (pola po prawej stronie wniosku oraz żółte pola pojawiające się po zaznaczeniu komórki). | AE4: żółte pola - WYBIERZ Z LISTY ROZWIJANEJ
B5: PLIK ZOSTAŁ ZABEZPIECZONY PRZED EDYTOWANIEM. PROSZĘ NIE USUWAĆ ZABEZPIECZEŃ I SAMODZIELNIE NIE EDYTOWAĆ PLIKU. | AE5: białe pola - WPISZ
A6: WNIOSEK O DOFINANSOWANIE W RAMACH RZĄDOWEGO FUNDUSZU ROZWOJU DRÓG | AE6: czerwone pola - błąd lub brak danych
A7: BUDOWA / PRZEBUDOWA
A8: PIECZĘĆ WPŁYWU DO URZĘDU WOJEWÓDZKIEGO | N8: NR EWIDENCYJNY WNIOSKU | AA8: POLA POMOCNICZE - liczniki znaków użytych w komórkach | AE8: PIECZĘĆ WPŁYWU DO URZĘDU WOJEWÓDZKIEGO oraz NR EWIDENCYJNY WNIOSKU uzupełniają pracownicy Świętokrzyskiego Urzędu Wojewódzkiego.
N9: /A /2026
N10: 1. JEDNOSTKA SAMORZĄDU TERYTORIALNEGO | AE10: =N10 -> 1. JEDNOSTKA SAMORZĄDU TERYTORIALNEGO
N11: JST | AE11: =IF(Q11="","Wybierz z listy rozwijanej jaka jednostka ubiega się o dofinansowanie (POWIAT / GMINA)",IF(AND(Q11<>"",AZ11<>"B"),"OK","Błąd danej - wprowadź poprawną daną wybierając ją z listy rozwijanej")) -> Wybierz z listy rozwijanej jaka jednostka ubiega się o dofinansowanie (POWIAT / GMINA) | AY11: =IF(Q11="","W",IF(AND(Q11<>"",AZ11<>"B"),"OK",IF(AZ11="B","B",""))) -> W | AZ11: =IFERROR(IF(Q11="","",VLOOKUP(Q11,DANE!B8:B9,1,0)),"B") ->  | BA11: =IF(AND(Q11="",OR(Q12<>"",Q13<>"")),"b","ok") -> ok
N12: POWIAT | AE12: =IF(AND(Q11="",Q12=""),"",IF(AND(Q11="POWIAT",Q12=""),"Wybierz z listy rozwijanej powiat",IF(AND(Q11="",Q12<>""),"Wybierz z listy rozwijanej JST (pole powyżej)",IF(AND(Q11="GMINA",Q12=""),"Wybierz z listy rozwijanej powiat, w którym znajduje się gmina",IF(AZ12="b","Błąd danej - wprowadź poprawną daną wybierając ją z listy rozwijanej","OK"))))) ->  | AY12: =IF(AND(Q11="",Q12=""),"",IF(AND(Q11="POWIAT",Q12=""),"W",IF(AND(Q11="",Q12<>""),"W",IF(AND(Q11="GMINA",Q12=""),"W",IF(AZ12="b","B","OK"))))) ->  | AZ12: =IFERROR(IF(Q12="","",VLOOKUP(Q12,POWIAT[POWIAT],1,FALSE)),"B") -> 
N13: =IF(Q11="powiat","","GMINA ") -> GMINA | AE13: =IF(AND(Q11="POWIAT",Q13=""),"",IF(AND(Q11="POWIAT",Q13<>""),"Błąd danej - błędnie wskazana JST lub błędnie wskazana GMINA",IF(AND(Q11="GMINA",Q12=""),"",IF(AND(Q11="GMINA",Q12<>"",Q13=""),"Wybierz z listy rozwijanej gminę",IF(AND(Q11="",Q12<>"",Q13<>""),"Wybierz z listy rozwijanej JST (dwa pola powyżej)",IF(AND(Q11="",Q12="",Q13<>""),"Wybierz z listy rozwijanej JST (dwa pola powyżej) oraz POWIAT (pole powyżej)",IF(AND(Q11="",Q12="",Q13=""),"",IF(AND(Q11<>"",AY11="b"),"",IF(AZ13="b","Błąd danej - wybrana gmina nie znajduje się w powiecie wskazanym powyżej","OK"))))))))) ->  | AY13: =IF(AND(Q11="POWIAT",Q13=""),"",IF(AND(Q11="POWIAT",Q13<>""),"B",IF(AND(Q11="GMINA",Q12=""),"",IF(AND(Q11="GMINA",Q12<>"",Q13=""),"W",IF(AND(Q11="",Q12<>"",Q13<>""),"W",IF(AND(Q11="",Q12="",Q13<>""),"W",IF(AND(Q11="",Q12="",Q13=""),"",IF(AND(Q11<>"",AY11="b"),"","OK")))))))) ->  | AZ13: =IF(AND(Q11="powiat",Q13<>""),"b",IF(VLOOKUP(Q13,DANE!$E$59:$Q$159,13,0)<>Q12,"b","ok")) -> 
N14: NR TERC | Q14: =IFERROR(IF(Q11="powiat",VLOOKUP(Q12,DANE!$D$46:$H$58,4,0),IF(Q11="gmina",VLOOKUP(Q13,DANE!$E$59:$H$159,3,0),"")),"") ->  | W14: =IFERROR(IF(Q11="powiat",VLOOKUP(Q12,DANE!$D$46:$H$58,5,0),IF(Q11="gmina",VLOOKUP(Q13,DANE!$E$59:$H$159,4,0),"")),"") ->  | AB14: ↓ | AE14: =IF(Q14="","NR TERC ładuje się automatycznie po uzupełnieniu powyższych danych dotyczących jst",IF(AND(Q11="POWIAT",AZ14=4),"OK - Załadowano NR TERC dla powiatu",IF(AND(Q11="GMINA",AZ14=7),"OK - Załadowano NR TERC dla gminy",IF(AND(Q11="POWIAT",AZ14=7),"Błąd danej - Załadowano NR TERC dla gminy, a w JST wybrano powiat",IF(AND(Q11="GMINA",AZ14=4),"Błąd danej - Załadowano NR TERC dla powiatu, a w JST wybrano gminę",""))))) -> NR TERC ładuje się automatycznie po uzupełnieniu powyższych danych dotyczących jst | AY14: =IF(Q14="","W",IF(AND(Q11="powiat",AZ14=4),"ok",IF(AND(Q11="gmina",AZ14=7),"ok","b"))) -> W | AZ14: =LEN(Q14) -> 0
N15: ADRES | AA15: =LEN(Q15) -> 0 | AB15: z | AC15: 120 | AE15: =IF(AA15=0,"Wpisz adres jednostki samorządu terytorialnego ubiegającej się o dofinansowanie - [można użyć do 120 znaków]",IF(AA15>120,"błąd danej - Wprowadzono zbyt dużą ilość znków. Zmniejsz ilość wprowadzonych znaków","Wprowadzono dane dotyczące adresu jednostki samorządu terytorialnego")) -> Wpisz adres jednostki samorządu terytorialnego ubiegającej się o dofinansowanie - [można użyć do 120 znaków] | AY15: =IF(AA15=0,"W",IF(AA15>0,"OK",IF(AA15>120,"b",""))) -> W
A16: 2. | B16: TYTUŁ ZADANIA (nazwa zadania) | AE16: =_xlfn.CONCAT(A16,B16) -> 2. TYTUŁ ZADANIA (nazwa zadania)
AA17: =LEN(A17) -> 0 | AB17: z | AC17: 300 | AE17: Wpisz tytuł zadania (nazwę zadania) - [można użyć do 300 wszystkich znaków] WAŻNE: Tytuł powinien identyfikować zadanie (rodzaj robót i ich lokalizację: nazwa ulicy, nr drogi i lokalizacja drogi) oraz sugerować klasyfikację środków (remont / budowa / rozbudowa / przebudowa)
A18: 3. | B18: LOKALIZACJA ZADANIA (kategoria, numer i lokalizacja drogi, na której znajduje się realizowane zadanie) | AE18: =_xlfn.CONCAT(A18,B18) -> 3. LOKALIZACJA ZADANIA (kategoria, numer i lokalizacja drogi, na której znajduje się realizowane zadanie)
A19: L.p. | B19: KATEGORIA | E19: NR DROGI | H19: POWIAT | L19: GMINA | S19: MIEJSCOWOŚĆ | AE19: Wybierz z list rozwijanych kategorię drogi oraz powiat i gminę
A20: 1 | H20: =Q12 -> 0 | L20: =Q13 -> 0 | AE20: Wpisz nr drogi, na której znajduje się zgłoszone zadanie oraz miejscowość | AY20: =IF(VLOOKUP(L20,DANE!$E$59:$Q$159,13,0)<>H20,"b","ok") -> 
AA21: =LEN(A21) -> 0 | AB21: z | AC21: 400 | AE21: (miejsce na dodatkowe informacje dotyczące rodzaju i lokalizacji zadania np., gdy droga biegnie przez więcej niż jedną gminę lub więcej niż jedną miejscowość)
A22: 4. | B22: PRZEWIDYWANY OKRES REALIZACJI ZADANIA (rozpoczęcie i zakończenie realizacji zadania) | AE22: =_xlfn.CONCAT(A22,B22) -> 4. PRZEWIDYWANY OKRES REALIZACJI ZADANIA (rozpoczęcie i zakończenie realizacji zadania)
A23: Zadanie | D23: =IF(AND(R23="",R24="",W24=""),"",IFERROR(IF(BA23=0,"nie wybrano lub błędnie wybrano daty realizacji zadania",IF(BA23<12,"JEDNOROCZNE",IF(BA23=12,"zmień miesiąc, aby zadanie było jednoroczne lub wieloletnie","WIELOLETNIE"))),"nie wybrano lub błędnie wybrano daty realizacji zadania")) ->  | M23: realizowane | Q23: od | W23: 2026 | AE23: Wybierz z listy rozwijanej przewidywany miesiąc rozpoczęcia robót budowlanych | AY23: =IF(R23="stycznia",1,IF(R23="lutego",2,IF(R23="marca",3,IF(R23="kwietnia",4,IF(R23="maja",5,IF(R23="czerwca",6,IF(R23="lipca",7,IF(R23="sierpnia",8,IF(R23="września",9,IF(R23="października",10,IF(R23="listopada",11,IF(R23="grudnia",12,"")))))))))))) ->  | AZ23: =IF(AY23="","",DATE(W23,AY23,1)) ->  | BA23: =IF(AY23="","",DATEDIF(AZ23,AZ24,"m")) -> 
Q24: do | AE24: Wybierz z listy rozwijanej przewidywany miesiąc i rok zakończenia robót budowlanych | AY24: =IF(R24="stycznia",1,IF(R24="lutego",2,IF(R24="marca",3,IF(R24="kwietnia",4,IF(R24="maja",5,IF(R24="czerwca",6,IF(R24="lipca",7,IF(R24="sierpnia",8,IF(R24="września",9,IF(R24="października",10,IF(R24="listopada",11,IF(R24="grudnia",12,"")))))))))))) ->  | AZ24: =IF(AY24="","",DATE(W24,AY24,1)) ->  | BA24: =IFERROR(IF(BA23="","",IF(BA23>0,"OK","B")),"B") ->  | BB24: =IF(BA23="","",IF(AND(R24<>"",W24<>"",BA23=12),"B","OK")) -> 
A25: 5. | B25: DŁUGOŚĆ ODCINKÓW DRÓG OBJĘTYCH ZADANIEM, WG RODZAJU ROBÓT BUDOWLANYCH [m] | AE25: =_xlfn.CONCAT(A25,B25) -> 5. DŁUGOŚĆ ODCINKÓW DRÓG OBJĘTYCH ZADANIEM, WG RODZAJU ROBÓT BUDOWLANYCH [m]
A26: BUDOWA | I26: PRZEBUDOWA | Q26: ŁĄCZNIE | AE26: Wpisz długość odcinka objętego danym rodzajem robót budowlanych (długość podaj w metrach)
H27: m | P27: m | Q27: =IF(AND(I27="",A27=""),"",A27+I27) ->  | Z27: m | AE27: Łączna długość załaduje się automatycznie. Powinna być taka sama jak realizowana długość odcinka w pkt 9 | AY27: =IF(AND(A27="",I27=""),"",IF(AND(A27<>"",I27=""),"BUDOWA",IF(AND(A27="",I27<>""),"PRZEBUDOWA",IF(AND(A27<>"",I27<>"",A27>=I27),"BUDOWA",IF(AND(A27<>"",I27<>"",A27<I27),"PRZEBUDOWA",""))))) -> 
A28: 6. | B28: PRZEWIDYWANY HARMONOGRAM RZECZOWO-FINANSOWY REALIZACJI ZADANIA (brutto) | AE28: =_xlfn.CONCAT(A28,B28) -> 6. PRZEWIDYWANY HARMONOGRAM RZECZOWO-FINANSOWY REALIZACJI ZADANIA (brutto)
A29: Lp. | B29: ELEMENTY I RODZAJE ROBÓT | K29: KOSZT KWALIFIKOWALNY [zł] | S29: KOSZT NIEKWALIFIKOWALNY [zł]
A30: 1. | B30: Roboty budowlane | AE30: Wpisz koszt brutto robót budowlanych w podziale na wydatki kwalifikowalne i niekwalifikowalne
A31: 2. | B31: Nadzór inwestorski (wszystkie branże) | AE31: Wpisz koszt brutto nadzoru inwestorskiego (wszystkie branże) w podziale na wydatki kwalifikowalne i niekwalifikowalne
A32: 3. | B32: Tablice informacyjne ( na podst. art. 38 ust. 1, 1a ustawy o RFRD) | AE32: Wpisz koszt brutto tablic informacyjnych w podziale na wydatki kwalifikowalne i niekwalifikowalne
A33: 4. | B33: Dodatkowy obowiązek informacyjny ( na podst. art. 38 ust. 6 ustawy o RFRD) | AE33: Wpisz koszt brutto dodatkowego obowiązku informacyjnego w podziale na wydatki kwalifikowalne i niekwalifikowalne Koszt kwalifikowalny dodatkowego obowiązku informacyjnego nie może być niższy niż 1 000,00 zł, ani wyższy niż 5 000,00 zł | AY33: =IF(K33="","",IF(AND(1000<=K33,K33<=5000),"OK","B")) -> 
A34: SUMA | K34: =SUM(K30:R33) -> 0 | S34: =SUM(S30:Z33) -> 0 | AE34: SUMY OBLICZĄ SIĘ AUTOMATYCZNIE
A35: OGÓŁEM | K35: =SUM(K34,S34) -> 0 | AE35: KWOTA OGÓŁEM OBLICZY SIĘ AUTOMATYCZNIE
A36: 7. | B36: PRZEWIDYWANE KOSZTY REALIZACJI ZADANIA BRUTTO - WYDATKI KWALIFIKOWALNE [zł] | AE36: =_xlfn.CONCAT(A36,B36) -> 7. PRZEWIDYWANE KOSZTY REALIZACJI ZADANIA BRUTTO - WYDATKI KWALIFIKOWALNE [zł]
A37: A. | B37: ŁĄCZNY KOSZT REALIZACJI ZADANIA [zł] | U37: =K34 -> 0 | AE37: Koszty i kwoty słownie załadują się automatycznie po poprawnym wypełnieniu pkt 6 wniosku | AY37: =IF(K34=U37,"ok","b") -> ok | BA37: =IF(U37<0,"b","OK") -> OK
B38: SŁOWNIE : | E38: =IF(OR(U37=0,U37=""),"",Slownie(U37)) -> 
A39: B. | B39: KWOTA WNIOSKOWANEGO DOFINANSOWANIA [zł] | U39: =IF(OR(U37="",U43=""),"",IF(ROUNDDOWN(U37*U43,0)>30000000,AZ39,ROUNDDOWN((U37*U43),0))) ->  | AE39: Kwota dofinansowania nie może przekraczać 30 mln zł, jeśli przekracza, to wniosek ją automatycznie zmniejsza do kwoty maksymalnej | AY39: =IF(U39>AZ39,"b","ok") -> b | AZ39: 30000000 | BA39: =IF(U39<0,"b","OK") -> OK
B40: SŁOWNIE : | E40: =IF(OR(U39=0,U39="")," ",Slownie(U39)) -> 
A41: C. | B41: KWOTA WKŁADU WŁASNEGO [zł] | U41: =IF(OR(U37="",U43=""),"",U37-U39) ->  | BA41: =IF(U41<0,"b","OK") -> OK
B42: SŁOWNIE : | E42: =IF(OR(U41=0,U41="")," ",Slownie(U41)) -> 
A43: D. | B43: UDZIAŁ DOFINANSOWANIA W KOSZTACH KWALIFIKOWALNYCH ZADANIA [%] | U43: =IF(Q14="","",IF(Q11="powiat",VLOOKUP(Q14,DANE!$G$46:$O$58,9,0),VLOOKUP(Q14,DANE!$G$59:$O$159,9,0))) ->  | AE43: Poziom dofinansowania nie może przekraczać 80,00%. Wprowadzono % dofinansowania z roku 2025, ale dana ta może ulec zmianie zgodnie z zatwierdzoną listą | AZ43: =U39/U37 ->  | BA43: =IF(U43<0,"b","OK") -> OK
A44: 8. | B44: PRZEWIDYWANY TERMIN DOKONYWANIA WYPŁAT NA RZECZ WYKONAWCY ZADANIA | AE44: =_xlfn.CONCAT(A44,B44) -> 8. PRZEWIDYWANY TERMIN DOKONYWANIA WYPŁAT NA RZECZ WYKONAWCY ZADANIA
A45: KWOTA DO WYPŁATY W DANYM ROKU NA RZECZ WYKONAWCY ZADANIA | AE45: Uzupełnij dane dotyczące dokonywania wypłat na rzecz wykonawcy zadania w podziale na poszczególne lata oraz na wydatki kwalifikowalne i niekwalifikowalne. Wydatki kwalifikowalne należy podać w podziale na dofinansowanie i wkład własny.
A46: ROK | D46: KWALIFIKOWALNE | N46: NIEKWALIFIKOWALNE | U46: OGÓŁEM
D47: DOFINANSOWANIE | I47: WKŁAD WŁASNY
A48: 2026 | U48: =IF(AND(D48="",I48="",N48=""),"",SUM(D48:T48)) ->  | AE48: Jeśli dane nie będą wprowadzone poprawnie, to kwoty sum i łącznie podświetlą się na czerwono. Będzie to miało miejsce w przypadku, gdy: - kwota dofinansowania (suma z wiersza 53), będzie się różnić od kwoty dofinansowania w pkt 7 lit. B (wiersz 39); - kwota wkładu własnego (suma z wiersza 53), będzie się różnić od kwoty wkładu własnego w pkt 7 lit. C (wiersz 41); - kwota środków kwalifikowalnych (łącznie z wiersza 54), będzie się różnić od kwoty łącznego kosztu realizacji zadania w pkt 7 lit. A (wiersz 37); - kwota środków niekwalifikowalnych (łącznie z wiersza 54), będzie się różnić od kwoty kosztów niekwalifikowalnych w pkt 6 (wiersz 34); - kwota środków ogółem (łącznie z wiersza 54), będzie się różnić od kwoty kosztów ogółem w pkt 6 (wiersz 35); Należy wtedy poprawić kwoty z wierszy 48-52 lub kwoty w pkt 6 wniosku (jeśli tam zostały wprowadzone błędnie)
A49: 2027 | U49: =IF(AND(D49="",I49="",N49=""),"",SUM(D49:T49)) -> 
A50: 2028 | U50: =IF(AND(D50="",I50="",N50=""),"",SUM(D50:T50)) -> 
A51: 2029 | U51: =IF(AND(D51="",I51="",N51=""),"",SUM(D51:T51)) -> 
A52: 2030 | U52: =IF(AND(D52="",I52="",N52=""),"",SUM(D52:T52)) -> 
A53: SUMA | D53: =SUM(D48:H52) -> 0 | I53: =SUM(I48:M52) -> 0 | AY53: =IF(U39="","ok",IF(D53<>U39,"błąd","ok")) -> ok | AZ53: =IF(U41="","ok",IF(I53<>U41,"błąd","ok")) -> ok
A54: ŁĄCZNIE | D54: =D53+I53 -> 0 | N54: =SUM(N48:T52) -> 0 | U54: =SUM(U48:Z52) -> 0 | AY54: =IF(U37="","ok",IF(D54<>U37,"błąd","ok")) -> ok | AZ54: =IF(N54<>S34,"błąd","ok") -> ok | BA54: =IF(U54<>K35,"błąd","ok") -> ok
A55: 9. | B55: OPIS ZADANIA OBEJMUJĄCY STAN ISTNIEJĄCY ORAZ PROJEKTOWANY WRAZ Z UZASADNIENIEM REALIZACJI ZADANIA | AE55: =_xlfn.CONCAT(A55,B55) -> 9. OPIS ZADANIA OBEJMUJĄCY STAN ISTNIEJĄCY ORAZ PROJEKTOWANY WRAZ Z UZASADNIENIEM REALIZACJI ZADANIA
A56: PARAMETRY ODCINKA | I56: STAN ISTNIEJĄCY | R56: STAN PROJEKTOWANY | AE56: Parametry odcinka dotyczą stanu istniejącego oraz stanu projektowanego, czyli stanu jaki ma zostać osiągnięty w wyniku budowy lub przebudowy; Wszystkie długości podaj z dokładnością do jednego metra.
B57: kategoria drogi | AE57: Kategoria drogi - wybierz z listy kategorię drogi stanu istniejącego i projektowanego
B58: numer drogi | AE58: Numer drogi - wpisz numer drogi stanu istniejącego i projektowanego
B59: klasa drogi | AE59: Klasa drogi - wybierz z listy rozwijanej, po wypełnieniu kategorii drogi
B60: rodzaj drogi | AE60: Rodzaj drogi - wybierz z listy rozwijanej
B61: rodzaj robót budowlanych | I61: =IF(AND(A27="",I27=""),"",IF(AND(A27<>"",I27=""),"BUDOWA",IF(AND(A27="",I27<>""),"PRZEBUDOWA",IF(AND(A27<>"",I27<>"",A27>=I27),"BUDOWA",IF(AND(A27<>"",I27<>"",A27<I27),"PRZEBUDOWA",""))))) ->  | AE61: Rodzaj robót budowlanych - komórka załaduje się automatycznie; jeśli dana się nie załaduje wybierz daną z listy rozwijanej | AY61: =IF(OR(I61=A26,I61=I26,I61=AY27),"OK","b") -> OK
B62: realizowany kilometraż | AE62: Realizowany kilometraż - wpisz rzeczywisty kilometraż, w którym realizowane jest zadanie
B63: realizowana długość odcinka | I63: =Q27 ->  | Z63: m | AE63: Realizowana długość odcinka - komórka załaduje się automatycznie (lub wpisz realizowaną długość odcinka z dokładnością do jednego metra)
B64: zgoda na odstępstwo od przepisów | AE64: Zgoda na odstępstwo od przepisów techniczno-budowlanych - wybierz z listy rozwijanej; Jeśli TAK, należy dołączyć do wniosku kopię zgody na odstępstwo od przepisów techniczno-budowlanych
B65: trudne warunki | AE65: Trudne warunki - wybierz z listy rozwijanej czy w ramach realizacji zadania będą stosowane przepisy odnoszące się do trudnych warunków;
B66: przekrój jezdni | AE66: Wpisz przekrój realizowanej jezdni zgodnie z Rozporządzeniem w sprawie przepisów techniczno-budowlanych dotyczących dróg
B67: szerokość jezdni | Q67: m | Z67: m | AE67: Wpisz szerokość realizowanej jezdni
B68: szerokość pasa ruchu | Q68: m | Z68: m | AE68: Wpisz szerokość pasa ruchu realizowanej jezdni
H69: pobocza o nawierzchni gruntowej | AE69: =IF(OR(AY69="b",AZ69="b"),"Sprawdź poprawność danych (lista rozwijana, długości, szerokości) dotyczących poboczy o nawierzchni gruntowej","Wybierz z listy rozwijanej, czy odcinek posiada pobocza o nawierzchni gruntowej i czy będą one realizowane w ramach zadania.") -> Wybierz z listy rozwijanej, czy odcinek posiada pobocza o nawierzchni gruntowej i czy będą one realizowane w ramach zadania.
B70: strona prawa | I70: dł. | L70: m | M70: szer. | Q70: m | R70: dł. | U70: m | V70: szer. | Z70: m | AE70: =IF(AND(OR(I69="",I69="nie",I69="nie dotyczy"),OR(R69="",R69="nie",R69="nie dotyczy")),"",IF(AND(I69="TAK",OR(R69="",R69="nie",R69="nie dotyczy")),"Wpisz długość i szerokość istniejących poboczy gruntowych po stronie prawej", IF(AND(OR(I69="",I69="nie",I69="nie dotyczy"),R69="TAK"),"Wpisz długość i szerokość projektowanych poboczy gruntowych po stronie prawej", IF(AND(I69="TAK",R69="TAK"),"Wpisz długość i szerokość istniejących i projektowanych poboczy gruntowych po stronie prawej")))) -> 
B71: strona lewa | I71: dł. | L71: m | M71: szer. | Q71: m | R71: dł. | U71: m | V71: szer. | Z71: m | AE71: =IF(AND(OR(I69="",I69="nie",I69="nie dotyczy"),OR(R69="",R69="nie",R69="nie dotyczy")),"",IF(AND(I69="TAK",OR(R69="",R69="nie",R69="nie dotyczy")),"Wpisz długość i szerokość istniejących poboczy gruntowych po stronie lewej", IF(AND(OR(I69="",I69="nie",I69="nie dotyczy"),R69="TAK"),"Wpisz długość i szerokość projektowanych poboczy gruntowych po stronie lewej", IF(AND(I69="TAK",R69="TAK"),"Wpisz długość i szerokość istniejących i projektowanych poboczy gruntowych po stronie lewej")))) -> 
B72: łączna długość | I72: dł. | J72: =IF(AND(J70="",J71=""),"",SUM(J70:K71)) ->  | L72: m | R72: dł. | S72: =IF(AND(S70="",S71=""),"",SUM(S70:T71)) ->  | U72: m | AE72: =IF(AND(OR(I69="",I69="nie",I69="nie dotyczy"),OR(R69="",R69="nie",R69="nie dotyczy")),"","Łączna długość poboczy gruntowych załaduje się automatycznie") -> 
H73: pobocza o nawierzchni twardej | R73: TAK | AE73: =IF(OR(AY73="b",AZ73="b"),"Sprawdź poprawność danych (lista rozwijana, długości, szerokości) dotyczących poboczy o nawierzchni twardej","Wybierz z listy rozwijanej, czy odcinek posiada pobocza o nawierzchni twardej i czy będą one realizowane w ramach zadania.") -> Wybierz z listy rozwijanej, czy odcinek posiada pobocza o nawierzchni twardej i czy będą one realizowane w ramach zadania.
B74: strona prawa | I74: dł. | L74: m | M74: szer. | Q74: m | R74: dł. | U74: m | V74: szer. | Z74: m | AE74: =IF(AND(OR(I73="",I73="nie",I73="nie dotyczy"),OR(R73="",R73="nie",R73="nie dotyczy")),"",IF(AND(I73="TAK",OR(R73="",R73="nie",R73="nie dotyczy")),"Wpisz długość i szerokość istniejących poboczy o nawierzchni twardej po stronie prawej", IF(AND(OR(I73="",I73="nie",I73="nie dotyczy"),R73="TAK"),"Wpisz długość i szerokość projektowanych poboczy o nawierzchni twardej po stronie prawej", IF(AND(I73="TAK",R73="TAK"),"Wpisz długość i szerokość istniejących i projektowanych poboczy o nawierzchni twardej po stronie prawej")))) -> Wpisz długość i szerokość projektowanych poboczy o nawierzchni twardej po stronie prawej
B75: strona lewa | I75: dł. | L75: m | M75: szer. | Q75: m | R75: dł. | U75: m | V75: szer. | Z75: m | AE75: =IF(AND(OR(I73="",I73="nie",I73="nie dotyczy"),OR(R73="",R73="nie",R73="nie dotyczy")),"",IF(AND(I73="TAK",OR(R73="",R73="nie",R73="nie dotyczy")),"Wpisz długość i szerokość istniejących poboczy o nawierzchni twardej po stronie lewej", IF(AND(OR(I73="",I73="nie",I73="nie dotyczy"),R73="TAK"),"Wpisz długość i szerokość projektowanych poboczy o nawierzchni twardej po stronie lewej", IF(AND(I73="TAK",R73="TAK"),"Wpisz długość i szerokość istniejących i projektowanych poboczy o nawierzchni twardej po stronie lewej")))) -> Wpisz długość i szerokość projektowanych poboczy o nawierzchni twardej po stronie lewej
B76: łączna długość | I76: dł. | J76: =IF(AND(J74="",J75=""),"",SUM(J74:K75)) ->  | L76: m | R76: dł. | S76: =IF(AND(S74="",S75=""),"",SUM(S74:T75)) ->  | U76: m | AE76: =IF(AND(OR(I73="",I73="nie",I73="nie dotyczy"),OR(R73="",R73="nie",R73="nie dotyczy")),"","Łączna długość poboczy gruntowych załaduje się automatycznie") -> Łączna długość poboczy gruntowych załaduje się automatycznie
B77: droga dla pieszych | AE77: =IF(OR(AY77="b",AZ77="b"),"Sprawdź poprawność danych (lista rozwijana, długości, szerokości) dotyczących drogi dla pieszych","Wybierz z listy rozwijanej, czy odcinek posiada drogę dla pieszych i czy będzie ona realizowana w ramach zadania.") -> Wybierz z listy rozwijanej, czy odcinek posiada drogę dla pieszych i czy będzie ona realizowana w ramach zadania.
B78: strona prawa | I78: dł. | L78: m | M78: szer. | Q78: m | R78: dł. | U78: m | V78: szer. | Z78: m | AE78: =IF(AND(OR(I77="",I77="nie",I77="nie dotyczy"),OR(R77="",R77="nie",R77="nie dotyczy")),"",IF(AND(I77="TAK",OR(R77="",R77="nie",R77="nie dotyczy")),"Wpisz długość i szerokość istniejącej drogi dla pieszych po stronie prawej", IF(AND(OR(I77="",I77="nie",I77="nie dotyczy"),R77="TAK"),"Wpisz długość i szerokość projektowanej drogi dla pieszych po stronie prawej", IF(AND(I77="TAK",R77="TAK"),"Wpisz długość i szerokość istniejącej i projektowanej drogi dla pieszych po stronie prawej")))) -> 
B79: strona lewa | I79: dł. | L79: m | M79: szer. | Q79: m | R79: dł. | U79: m | V79: szer. | Z79: m | AE79: =IF(AND(OR(I77="",I77="nie",I77="nie dotyczy"),OR(R77="",R77="nie",R77="nie dotyczy")),"",IF(AND(I77="TAK",OR(R77="",R77="nie",R77="nie dotyczy")),"Wpisz długość i szerokość istniejącej drogi dla pieszych po stronie lewej", IF(AND(OR(I77="",I77="nie",I77="nie dotyczy"),R77="TAK"),"Wpisz długość i szerokość projektowanej drogi dla pieszych po stronie lewej", IF(AND(I77="TAK",R77="TAK"),"Wpisz długość i szerokość istniejącej i projektowanej drogi dla pieszych po stronie lewej")))) -> 
B80: łączna długość | I80: dł. | J80: =IF(AND(J78="",J79=""),"",SUM(J78:K79)) ->  | L80: m | R80: dł. | S80: =IF(AND(S78="",S79=""),"",SUM(S78:T79)) ->  | U80: m | AE80: =IF(AND(OR(I77="",I77="nie",I77="nie dotyczy"),OR(R77="",R77="nie",R77="nie dotyczy")),"","Łączna długość drogi dla pieszych załaduje się automatycznie") -> 
B81: droga dla pieszych i rowerów | AE81: =IF(OR(AY81="b",AZ81="b"),"Sprawdź poprawność danych (lista rozwijana, długości, szerokości) dotyczących drogi dla pieszych i rowerów","Wybierz z listy rozwijanej, czy odcinek posiada drogę dla pieszych i rowerów i czy będzie ona realizowana w ramach zadania.") -> Wybierz z listy rozwijanej, czy odcinek posiada drogę dla pieszych i rowerów i czy będzie ona realizowana w ramach zadania.
B82: strona prawa | I82: dł. | L82: m | M82: szer. | Q82: m | R82: dł. | U82: m | V82: szer. | Z82: m | AE82: =IF(AND(OR(I81="",I81="nie",I81="nie dotyczy"),OR(R81="",R81="nie",R81="nie dotyczy")),"",IF(AND(I81="TAK",OR(R81="",R81="nie",R81="nie dotyczy")),"Wpisz długość i szerokość istniejącej drogi dla pieszych i rowerów po stronie prawej", IF(AND(OR(I81="",I81="nie",I81="nie dotyczy"),R81="TAK"),"Wpisz długość i szerokość projektowanej drogi dla pieszych i rowerów po stronie prawej", IF(AND(I81="TAK",R81="TAK"),"Wpisz długość i szerokość istniejącej i projektowanej drogi dla pieszych i rowerów po stronie prawej")))) -> 
B83: strona lewa | I83: dł. | L83: m | M83: szer. | Q83: m | R83: dł. | U83: m | V83: szer. | Z83: m | AE83: =IF(AND(OR(I81="",I81="nie",I81="nie dotyczy"),OR(R81="",R81="nie",R81="nie dotyczy")),"",IF(AND(I81="TAK",OR(R81="",R81="nie",R81="nie dotyczy")),"Wpisz długość i szerokość istniejącej drogi dla pieszych i rowerów po stronie lewej", IF(AND(OR(I81="",I81="nie",I81="nie dotyczy"),R81="TAK"),"Wpisz długość i szerokość projektowanej drogi dla pieszych i rowerów po stronie lewej", IF(AND(I81="TAK",R81="TAK"),"Wpisz długość i szerokość istniejącej i projektowanej drogi dla pieszych i rowerów po stronie lewej")))) -> 
B84: łączna długość | I84: dł. | J84: =IF(AND(J82="",J83=""),"",SUM(J82:K83)) ->  | L84: m | R84: dł. | S84: =IF(AND(S82="",S83=""),"",SUM(S82:T83)) ->  | U84: m | AE84: =IF(AND(OR(I81="",I81="nie",I81="nie dotyczy"),OR(R81="",R81="nie",R81="nie dotyczy")),"","Łączna długość drogi dla pieszych i rowerów załaduje się automatycznie") -> 
B85: droga dla rowerów | AE85: =IF(OR(AY85="b",AZ85="b"),"Sprawdź poprawność danych (lista rozwijana, długości, szerokości) dotyczących drogi dla rowerów","Wybierz z listy rozwijanej, czy odcinek posiada drogę dla rowerów i czy będzie ona realizowana w ramach zadania.") -> Wybierz z listy rozwijanej, czy odcinek posiada drogę dla rowerów i czy będzie ona realizowana w ramach zadania.
B86: strona prawa | I86: dł. | L86: m | M86: szer. | Q86: m | R86: dł. | U86: m | V86: szer. | Z86: m | AE86: =IF(AND(OR(I85="",I85="nie",I85="nie dotyczy"),OR(R85="",R85="nie",R85="nie dotyczy")),"",IF(AND(I85="TAK",OR(R85="",R85="nie",R85="nie dotyczy")),"Wpisz długość i szerokość istniejącej drogi dla rowerów po stronie prawej", IF(AND(OR(I85="",I85="nie",I85="nie dotyczy"),R85="TAK"),"Wpisz długość i szerokość projektowanej drogi dla rowerów po stronie prawej", IF(AND(I85="TAK",R85="TAK"),"Wpisz długość i szerokość istniejącej i projektowanej drogi dla rowerów po stronie prawej")))) -> 
B87: strona lewa | I87: dł. | L87: m | M87: szer. | Q87: m | R87: dł. | U87: m | V87: szer. | Z87: m | AE87: =IF(AND(OR(I85="",I85="nie",I85="nie dotyczy"),OR(R85="",R85="nie",R85="nie dotyczy")),"",IF(AND(I85="TAK",OR(R85="",R85="nie",R85="nie dotyczy")),"Wpisz długość i szerokość istniejącej drogi dla rowerów po stronie lewej", IF(AND(OR(I85="",I85="nie",I85="nie dotyczy"),R85="TAK"),"Wpisz długość i szerokość projektowanej drogi dla rowerów po stronie lewej", IF(AND(I85="TAK",R85="TAK"),"Wpisz długość i szerokość istniejącej i projektowanej drogi dla rowerów po stronie lewej")))) -> 
B88: łączna długość | I88: dł. | J88: =IF(AND(J86="",J87=""),"",SUM(J86:K87)) ->  | L88: m | R88: dł. | S88: =IF(AND(S86="",S87=""),"",SUM(S86:T87)) ->  | U88: m | AE88: =IF(AND(OR(I85="",I85="nie",I85="nie dotyczy"),OR(R85="",R85="nie",R85="nie dotyczy")),"","Łączna długość drogi dla rowerów załaduje się automatycznie") -> 
B89: pas ruchu dla rowerów | AE89: =IF(OR(AY89="b",AZ89="b"),"Sprawdź poprawność danych (lista rozwijana, długości, szerokości) dotyczących pasa ruchu dla rowerów","Wybierz z listy rozwijanej, czy odcinek posiada pas ruchu dla rowerów i czy będzie on realizowany w ramach zadania.") -> Wybierz z listy rozwijanej, czy odcinek posiada pas ruchu dla rowerów i czy będzie on realizowany w ramach zadania.
B90: strona prawa | I90: dł. | L90: m | M90: szer. | Q90: m | R90: dł. | U90: m | V90: szer. | Z90: m | AE90: =IF(AND(OR(I89="",I89="nie",I89="nie dotyczy"),OR(R89="",R89="nie",R89="nie dotyczy")),"",IF(AND(I89="TAK",OR(R89="",R89="nie",R89="nie dotyczy")),"Wpisz długość i szerokość istniejącego pasa ruchu dla rowerów po stronie prawej", IF(AND(OR(I89="",I89="nie",I89="nie dotyczy"),R89="TAK"),"Wpisz długość i szerokość projektowanego pasa ruchu dla rowerów po stronie prawej", IF(AND(I89="TAK",R89="TAK"),"Wpisz długość i szerokość istniejącego i projektowanego pasa ruchu dla rowerów po stronie prawej")))) -> 
B91: strona lewa | I91: dł. | L91: m | M91: szer. | Q91: m | R91: dł. | U91: m | V91: szer. | Z91: m | AE91: =IF(AND(OR(I89="",I89="nie",I89="nie dotyczy"),OR(R89="",R89="nie",R89="nie dotyczy")),"",IF(AND(I89="TAK",OR(R89="",R89="nie",R89="nie dotyczy")),"Wpisz długość i szerokość istniejącego pasa ruchu dla rowerów po stronie lewej", IF(AND(OR(I89="",I89="nie",I89="nie dotyczy"),R89="TAK"),"Wpisz długość i szerokość projektowanego pasa ruchu dla rowerów po stronie lewej", IF(AND(I89="TAK",R89="TAK"),"Wpisz długość i szerokość istniejącego i projektowanego pasa ruchu dla rowerów po stronie lewej")))) -> 
B92: łączna długość | I92: dł. | J92: =IF(AND(J90="",J91=""),"",SUM(J90:K91)) ->  | L92: m | R92: dł. | S92: =IF(AND(S90="",S91=""),"",SUM(S90:T91)) ->  | U92: m | AE92: =IF(AND(OR(I89="",I89="nie",I89="nie dotyczy"),OR(R89="",R89="nie",R89="nie dotyczy")),"","Łączna długość pasa ruchu dla rowerów załaduje się automatycznie") -> 
B93: stan istniejący | AA93: =LEN(F93) -> 0 | AB93: z | AC93: 1200 | AE93: Opisz stan istniejący odcinka, czyli stan w jakim znajdują się elementy drogi. Można użyć do 1200 wszystkich znaków.
B94: stan projektowany | AA94: =LEN(F94) -> 0 | AB94: z | AC94: 1200 | AE94: Opisz stan jaki ma zostać osiągnięty w wyniku realizacji zadania. Można użyć do 1200 wszystkich znaków.
B95: uzasadnienie | AA95: =LEN(F95) -> 0 | AB95: z | AC95: 1200 | AE95: Uzasadnij realizację zadania. Można użyć do 1200 wszystkich znaków.
A96: 10. | B96: CHARAKTERYSTYKA ZADANIA WEDŁUG KRYTERIÓW OCENY MERYTORYCZNEJ | AE96: =_xlfn.CONCAT(A96,B96) -> 10. CHARAKTERYSTYKA ZADANIA WEDŁUG KRYTERIÓW OCENY MERYTORYCZNEJ
B97: Kryterium nr 1 | F97: - | G97: Poprawa stanu bezpieczeństwa ruchu drogowego, ze szczególnym uwzględnieniem bezpieczeństwa ruchu drogowego niechronionych uczestników ruchu | AE97: =_xlfn.CONCAT(A97,B97," ",F97," ",G97) -> Kryterium nr 1 - Poprawa stanu bezpieczeństwa ruchu drogowego, ze szczególnym uwzględnieniem bezpieczeństwa ruchu drogowego niechronionych uczestników ruchu
A98: A. | B98: Ryzyko wypadków. Odcinek drogi przebiega przez gminę/powiat o dużym poziomie ryzyka społecznego pod względem: | AE98: Dane ładują się automatycznie po poprawnym uzupełnieniu pkt 1 oraz 3 wniosku
B99: 1) | C99: wypadków drogowych z udziałem pieszych | Y99: =IF($Q$11="","",IF($Q$11="powiat",VLOOKUP($Q$12,DANE!$D$46:$K$58,6,0),VLOOKUP($Q$13,DANE!$E$59:$K$159,5,0))) -> 
B100: 2) | C100: wypadków drogowych ogółem | Y100: =IF($Q$11="","",IF($Q$11="powiat",VLOOKUP($Q$12,DANE!$D$46:$K$58,7,0),VLOOKUP($Q$13,DANE!$E$59:$K$159,6,0))) -> 
B101: 3) | C101: ofiar śmiertelnych w wypadkach drogowych | Y101: =IF($Q$11="","",IF($Q$11="powiat",VLOOKUP($Q$12,DANE!$D$46:$K$58,8,0),VLOOKUP($Q$13,DANE!$E$59:$K$159,7,0))) -> 
A102: B. | B102: Bezpieczeństwo uczestników ruchu drogowego. Realizacja rozwiązań zwiększających bezpieczeństwo uczestników ruchu drogowego (poprzez budowę lub przebudowę): | AE102: Wybierz z list rozwijanych, czy w ramach zadania będą realizowane rozwiązania zwiększające bezpieczeństwo uczestników ruchu drogowego (w pkt 1 lit. a-e oraz pkt 2 lit. a-d)
B103: 1) | C103: przejścia dla pieszych lub/i przejazdu dla rowerów o podwyższonym standardzie bezpieczeństwa:
C104: a) | D104: z oświetleniem lub/i doświetleniem
C105: b) | D105: z wyspą dzielącą (tzw. azylem)
C106: c) | D106: wyniesionego przejścia dla pieszych lub/i przejazdu dla rowerów
C107: d) | D107: z sygnalizacją świetlną
C108: e) | D108: z oznakowaniem aktywnym lub sygnalizacją ostrzegawczą
B109: 2) | C109: innego rozwiązania w zakresie bezpieczeństwa nie związanego z przejściem dla pieszych lub/i przejazdem dla rowerów:
C110: a) | D110: wyniesionego skrzyżowania
C111: b) | D111: wyspy dzielącej na jezdni wraz z odgięciem toru jazdy na wjeździe do miejscowości
C112: c) | D112: radaru ze znakiem/tablicą zmiennej treści (aktywną), informującym o prędkości ruchu pojazdu
C113: d) | D113: oznakowania aktywnego na dojeździe do przejazdu kolejowo-drogowego
B114: Kryterium nr 2 | F114: - | G114: Zapewnienie spójności sieci dróg publicznych | AE114: =_xlfn.CONCAT(A114,B114," ",F114," ",G114) -> Kryterium nr 2 - Zapewnienie spójności sieci dróg publicznych
A115: A. | B115: Połączenie z innymi drogami publicznymi. Bezpośrednie połączenie odcinka drogi z inną drogą publiczną wyższego rzędu | AE115: Wybierz z listy rozwijanej, czy odcinek drogi ma bezpośrednie połączenie z drogą wyższego rzędu. Jeśli TAK podaj numer drogi wyższego rzędu stosując oznaczenia: DK – droga krajowa, DW – droga wojewódzka, DP – droga powiatowa, DG – droga gminna. Numer należy podać w formacie np. DP-1234T (można użyć do 100 wszystkich znaków). Zaznacz to połączenie na załączonej mapie poglądowej.
AA116: =LEN(D116) -> 0 | AB116: z | AC116: 100
B117: jeżeli wybrano odpowiedź TAK, należy wskazać to połączenie na załączonej mapie poglądowej
A118: B. | B118: Kontynuacja zadania. Kontynuacja robót budowlanych* realizowanych na podstawie umowy dofinansowania w ramach RFRD oraz zakończonych w ciągu 3 lat przed datą złożenia wniosku o dofinansowanie
B119: *kontynuacja robót budowlanych oznacza, że wcześniejsze roboty budowlane realizowane były na odcinku drogi bezpośrednio połączonym z odcinkiem drogi objętym wnioskowanym zadaniem | AE119: Wybierz z listy rozwijanej, czy odcinek stanowi kontynuację robót budowlanych (budowy, przebudowy lub remontu) w ramach wcześniej zawartych umów o dofinansowanie ze środków RFRD i zakończonych w ciągu 3 lat przed datą złożenia wniosku o dofinansowanie. Jeśli TAK wpisz numer umowy z wojewodą i datę jej zawarcia (np. 175/RFRD/A/2023 z dnia 30.04.2023) (można użyć do 100 znaków) oraz zaznacz to połącznie na załączonej mapie poglądowej.
AA120: =LEN(D120) -> 0 | AB120: z | AC120: 100
B121: jeżeli wybrano odpowiedź TAK, należy wskazać to połączenie na załączonej mapie poglądowej
A122: C. | B122: Peryferyjność. Odcinek drogi biegnie przez gminę, dla której wskaźnik peryferyjności czasowej jest mniejszy niż 30 min., mieści się w przedziale od 30 do 50 minut, jest większy niż 50 min. | AE122: Dana ładuje się automatycznie, po poprawnym wypełnieniu pkt 3 wniosku
B123: wskaźnik peryferyjności czasowej: | N123: =IF(OR(L20="",L20=0),"",VLOOKUP(L20,DANE!E46:M159,9,0)) -> 
A124: D. | B124: Uszkodzenie w wyniku niekorzystnych zjawisk atmosferycznych. Odcinek drogi został uszkodzony w wyniku działania niekorzystnych zjawisk atmosferycznych w ciągu 3 lat przed datą złożenia wniosku o dofinansowanie i jest ujęty w protokole strat potwierdzonym przez Wojewodę Świętokrzyskiego | AE124: Wybierz z listy rozwijanej, czy odcinek drogi został uszkodzony w wyniku działania niekorzystnych zjawisk atmosferycznych w ciągu 3 lat przed datą złożenia wniosku o dofinansowanie i jest ujęty w protokole strat potwierdzonym przez Wojewodę Świętokrzyskiego. Jeśli TAK, to wpisz rodzaj klęski i jej datę (można użyć do 70 wszystkich znaków) oraz numer i datę protokołu strat potwierdzonego przez Wojewodę Świętokrzyskiego (można użyć do 70 wszystkich znaków). Załącz kopię protokołu do wniosku. Zaznacz uszkodzony fragment na mapie poglądowej.
D125: rodzaj i data zjawiska | AA125: =LEN(L125) -> 0 | AB125: z | AC125: 70
D126: protokół strat potwierdzony przez Wojewodę Świętokrzyskiego | AA126: =LEN(L126) -> 0 | AB126: z | AC126: 70
B127: jeżeli wybrano odpowiedź TAK, należy załączyć do wniosku kopię protokołu strat potwierdzonego przez Wojewodę Świętokrzyskiego oraz zaznaczyć uszkodzony odcinek na mapie poglądowej
B128: Kryterium nr 3 | F128: - | G128: Podnoszenie standardów technicznych dróg powiatowych i dróg gminnych, w szczególności dostosowanie ich do ruchu pojazdów o dopuszczalnym nacisku pojedynczej osi napędowej do 11,5 t, oraz zachowanie jednorodności sieci dróg powiatowych i dróg gminnych pod względem spełniania tych standardów | AE128: =_xlfn.CONCAT(A128,B128," ",F128," ",G128) -> Kryterium nr 3 - Podnoszenie standardów technicznych dróg powiatowych i dróg gminnych, w szczególności dostosowanie ich do ruchu pojazdów o dopuszczalnym nacisku pojedynczej osi napędowej do 11,5 t, oraz zachowanie jednorodności sieci dróg powiatowych i dróg gminnych pod względem spełniania tych standardów
A129: A. | B129: Skrzyżowania. Budowa/przebudowa skrzyżowań: | AE129: Wybierz z list rozwijanych, czy w ramach zadania będzie realizowana budowa/przebudowa podanych rodzajów skrzyżowań (lit. A, pkt 1-2). Jeśli TAK, to podaj ich ilości w sztukach oraz zaznacz te skrzyżowania na załączonej mapie poglądowej.
B130: 1) | C130: zwykłych z drogami publicznymi | Z130: szt. | AE130: =IF(AND(AY130="b",V130="tak"),"Błąd - wybrano TAK i nie podano ilości sztuk",IF(AND(AY130="b",OR(V130="nie",V130="")),"Błąd - wybrano NIE i podano ilość sztuk (pozostawienie pustego pola wyboru jest jednoznaczne z wybraniem NIE)","")) ->  | AY130: =IF(AND(V130="",X130=""),"ok",IF(AND(V130="tak",X130>0),"ok",IF(AND(V130="nie",X130=0),"ok",IF(AND(V130="nie",X130>""),"ok",IF(AND(V130="",X130=0),"ok","b"))))) -> ok
B131: 2) | C131: innych:
C132: • | D132: skanalizowanych | Z132: szt. | AE132: =IF(AND(AY132="b",V132="tak"),"Błąd - wybrano TAK i nie podano ilości sztuk",IF(AND(AY132="b",OR(V132="nie",V132="")),"Błąd - wybrano NIE i podano ilość sztuk (pozostawienie pustego pola wyboru jest jednoznaczne z wybraniem NIE)","")) ->  | AY132: =IF(AND(V132="",X132=""),"ok",IF(AND(V132="tak",X132>0),"ok",IF(AND(V132="nie",X132=0),"ok",IF(AND(V132="nie",X132>""),"ok",IF(AND(V132="",X132=0),"ok","b"))))) -> ok
C133: • | D133: w formie ronda | Z133: szt. | AE133: =IF(AND(AY133="b",V133="tak"),"Błąd - wybrano TAK i nie podano ilości sztuk",IF(AND(AY133="b",OR(V133="nie",V133="")),"Błąd - wybrano NIE i podano ilość sztuk (pozostawienie pustego pola wyboru jest jednoznaczne z wybraniem NIE)","")) ->  | AY133: =IF(AND(V133="",X133=""),"ok",IF(AND(V133="tak",X133>0),"ok",IF(AND(V133="nie",X133=0),"ok",IF(AND(V133="nie",X133>""),"ok",IF(AND(V133="",X133=0),"ok","b"))))) -> ok
C134: • | D134: innych podnoszących poziom bezpieczeństwa np. z sygnalizacją świetlną | Z134: szt. | AE134: =IF(AND(AY134="b",V134="tak"),"Błąd - wybrano TAK i nie podano ilości sztuk",IF(AND(AY134="b",OR(V134="nie",V134="")),"Błąd - wybrano NIE i podano ilość sztuk (pozostawienie pustego pola wyboru jest jednoznaczne z wybraniem NIE)","")) ->  | AY134: =IF(AND(V134="",X134=""),"ok",IF(AND(V134="tak",X134>0),"ok",IF(AND(V134="nie",X134=0),"ok",IF(AND(V134="nie",X134>""),"ok",IF(AND(V134="",X134=0),"ok","b"))))) -> ok
B135: jeśli wybrano odpowiedź TAK, należy wskazać to skrzyżowanie na załączonej mapie poglądowej
A136: B. | B136: Drogowe obiekty inżynierskie. Budowa/przebudowa drogowych obiektów inżynierskich: | AE136: Wybierz z list rozwijanych, czy w ramach zadania będzie realizowana budowa/przebudowa podanych obiektów inżynierskich (lit. B pkt 1-3). Jeśli TAK, to podaj ich ilości w sztukach oraz zaznacz te obiekty na załączonej mapie poglądowej.
B137: 1) | C137: • | D137: mostów | Z137: szt. | AE137: =IF(AND(AY137="b",V137="tak"),"Błąd - wybrano TAK i nie podano ilości sztuk",IF(AND(AY137="b",OR(V137="nie",V137="")),"Błąd - wybrano NIE i podano ilość sztuk (pozostawienie pustego pola wyboru jest jednoznaczne z wybraniem NIE)","")) ->  | AY137: =IF(AND(V137="",X137=""),"ok",IF(AND(V137="tak",X137>0),"ok",IF(AND(V137="nie",X137=0),"ok",IF(AND(V137="nie",X137>""),"ok",IF(AND(V137="",X137=0),"ok","b"))))) -> ok
C138: • | D138: wiaduktów | Z138: szt. | AY138: =IF(AND(V138="",X138=""),"ok",IF(AND(V138="tak",X138>0),"ok",IF(AND(V138="nie",X138=0),"ok",IF(AND(V138="nie",X138>""),"ok",IF(AND(V138="",X138=0),"ok","b"))))) -> ok
C139: • | D139: estakad | Z139: szt. | AY139: ok
C140: • | D140: kładek dla pieszych | Z140: szt. | AY140: ok
B141: 2) | C141: przepustów pod koroną drogi | Z141: szt. | AY141: ok
B142: 3) | C142: konstrukcji oporowej | Z142: szt. | AY142: ok
B143: jeśli wybrano odpowiedź TAK, należy wskazać ten obiekt na załączonej mapie poglądowej
A144: C. | B144: Inne. Budowa/przebudowa elementów w ramach wnioskowanego zadania: | AE144: Wybierz z list rozwijanych, czy w ramach zadania będzie realizowana budowa lub przebudowa podanych elementów (lit. C pkt 1-6).
B145: 1) | C145: drogi dla pieszych lub rowerów | AE145: =IF(Y145="","Wybierz z listy rozwijanej, czy w ramach zadania będzie realizowana droga dla pieszych lub droga dla rowerów", IF(AND(OR(R77="tak",R85="tak"),Y145<>"tak"),"BŁĄD - w pkt 9 wybrano TAK; należy wybrać TAK lub zmienić odpowiedź w pkt 9 wniosku (droga dla pieszych lub droga dla rowerów)",IF(AND(OR(R77<>"tak",R85<>"tak"),Y145="tak"),"BŁĄD - w pkt 9 wybrano NIE (pozostawienie komórki pustej jest jednoznaczne z wybraniem NIE); należy wybrać NIE lub zmienić odpowiedź w pkt 9 wniosku (droga dla pieszych lub droga rowerów)","OK"))) -> Wybierz z listy rozwijanej, czy w ramach zadania będzie realizowana droga dla pieszych lub droga dla rowerów | AY145: =IF(Y145="","w",IF(AND(OR(R77="tak",R85="tak"),Y145<>"tak"),"b",IF(AND(OR(R77<>"tak",R85<>"tak"),Y145="tak"),"b","OK"))) -> w
B146: 2) | C146: drogi dla pieszych i rowerów (ciągu pieszo-rowerowego) | AE146: =IF(Y146="","Wybierz z listy rozwijanej, czy w ramach zadania będzie realizowana droga dla pieszych i rowerów", IF(AND(R81="tak",Y146<>"tak"),"BŁĄD - w pkt 9 wybrano TAK; należy wybrać TAK lub zmienić odpowiedź w pkt 9 wniosku (droga dla pieszych i rowerów)",IF(AND(R81<>"tak",Y146="tak"),"BŁĄD - w pkt 9 wybrano NIE (pozostawienie komórki pustej jest jednoznaczne z wybraniem NIE); należy wybrać NIE lub zmienić odpowiedź w pkt 9 wniosku (droga dla pieszych i rowerów)","OK"))) -> Wybierz z listy rozwijanej, czy w ramach zadania będzie realizowana droga dla pieszych i rowerów | AY146: =IF(Y146="","w",IF(AND(R81="tak",Y146<>"tak"),"b",IF(AND(R81<>"tak",Y146="tak"),"b","OK"))) -> w
B147: 3) | C147: oświetlenia ulicznego
B148: 4) | C148: odwodnienia drogi (kanału deszczowego, rowu)
B149: 5) | C149: przebudowy drogi wewnętrznej i zaliczenie jej do kategorii dróg publicznych
B150: 6) | C150: dostosowania drogi do ruchu pojazdów o dopuszczalnym nacisku pojedynczej osi napędowej do 11,5 t
B151: Kryterium nr 4 | F151: - | G151: Zwiększenie dostępności transportowej jednostek administracyjnych | AE151: =_xlfn.CONCAT(A151,B151," ",F151," ",G151) -> Kryterium nr 4 - Zwiększenie dostępności transportowej jednostek administracyjnych
A152: A. | B152: Obszar wiejski. Odcinek drogi przebiega w całości lub w części na obszarze wiejskim (wykracza poza granice administracyjne miasta) | AE152: Wybierz z listy rozwijanej, czy odcinek drogi przebiega w całości lub w części na obszarze wiejskim (wykracza poza granice administracyjne miasta)
A154: B. | B154: Utrata funkcji społeczno-gospodarczych. Odcinek drogi przebiega w całości lub w części w granicach administracyjnych miast ujętych w pakiecie dla średnich miast uznanych za zagrożone utratą funkcji społeczno-gospodarczych (na podstawie Analizy Instytutu Geografii i Przestrzennego Zagospodarowania PAN)
AE155: Wybierz z listy rozwijanej, czy odcinek przebiega w granicach administracyjnych jednego z miast ujętych w Pakiecie dla średnich miast uznanych za zagrożone utratą funkcji społeczno-gospodarczych. Jeśli TAK, to wybierz z listy rozwijanej miasto, przez które przebiega odcinek.
B156: =IFERROR(IF(FIND("TAK",B155)=1,"miasto",""),"") -> 
B157: średnie miasta uznane za zagrożone utratą funkcji społeczno-gospodarczych w województwie świętokrzyskim – Busko-Zdrój, Jędrzejów, Końskie, Ostrowiec Świętokrzyski, Sandomierz, Skarżysko-Kamienna, Starachowice, Staszów.
A158: C. | B158: Instytucje publiczne i miejsca zgromadzeń. Odcinek drogi zapewnia bezpośredni dojazd* do:
B159: • • | C159: miejsc zgromadzeń ludności (np.: cmentarz, boisko, amfiteatr, obiekty zabytkowe, sakralne, turystyczne, itp.) instytucji publicznych lub świadczących usługi publiczne (np.: urząd gminy, szkoła, ośrodek zdrowia, ośrodek pomocy społecznej, remiza OSP, świetlica wiejska, żłobek, przedszkole, klub seniora. itp.)
B160: *bezpośredni dojazd - położenie do 200 m od odcinka drogi
AA161: =LEN(D161) -> 0 | AB161: z | AC161: 500 | AE161: Wybierz z listy rozwijanej, czy odcinek drogi zapewnia bezpośredni dojazd (do 200 m od odcinka) do miejsc zgromadzeń ludności, instytucji publicznych lub świadczących usługi publiczne. Jeśli TAK, to wymień do jakich miejsc zgromadzeń ludności, instytucji publicznych lub świadczących usługi publiczne odcinek zapewnia bezpośredni dojazd (można użyć do 500 wszystkich znaków) oraz zaznacz te miejsca na załączonej mapie poglądowej.
B162: jeżeli wybrano odpowiedź TAK, należy wskazać te miejsca i instytucje na załączonej mapie poglądowej
A163: D. | B163: Transport publiczny. Na odcinku drogi przebiega linia autobusowa objęta wsparciem z Funduszu Rozwoju Przewozów Autobusowych, realizowane są usługi transportu publicznego, uchwalono planowany przebieg linii użyteczności publicznej
AA164: =LEN(D164) -> 0 | AB164: z | AC164: 300 | AE164: Wybierz z listy rozwijanej, czy na odcinku drogi przebiega linia autobusowa objęta wsparciem z Funduszu Rozwoju Przewozów Autobusowych, realizowane są usługi transportu publicznego, uchwalono planowany przebieg linii użyteczności publicznej. Jeśli TAK, to wpisz nr umowy z wojewodą i datę jej zawarcia oraz nr linii autobusowej lub usługi transportu publicznego lub numer i datę uchwały o planowanym przebiegu linii użyteczności publicznej (można użyć do 300 wszystkich znaków), zaznacz przebieg linii na załączonej mapie poglądowej oraz załącz do wniosku kopię odpowiedniego dokumentu.
B165: jeżeli wybrano odpowiedź TAK, należy załączyć do wniosku kopię odpowiedniego dokumentu oraz zaznaczyć przebieg linii na załączonej mapie poglądowej.
A166: E. | B166: Dostępność komunikacyjna. Wpływ odcinka drogi na dostępność komunikacyjną obszaru, na którym znajduje się ta droga
AA167: =LEN(D167) -> 0 | AB167: z | AC167: 500 | AE167: Wybierz z listy rozwijanej, czy odcinek drogi wpływa na dostępność komunikacyjną obszaru, na którym znajduje się ta droga. Jeśli TAK, to opisz wpływ odcinka drogi na dostępność komunikacyjną obszaru, na którym znajduje się ta droga (można użyć do 500 wszystkich znaków).
B168: Kryterium nr 5 | F168: - | G168: Poprawa dostępności terenów inwestycyjnych i gospodarczych | AE168: =_xlfn.CONCAT(A168,B168," ",F168," ",G168) -> Kryterium nr 5 - Poprawa dostępności terenów inwestycyjnych i gospodarczych
A169: A. | B169: Lokalne ośrodki gospodarcze. Odcinek drogi zapewnia bezpośredni dojazd* do lokalnych ośrodków gospodarczych np. do strefy ekonomicznej, podmiotów gospodarczych, lokalnego targowiska *bezpośredni dojazd - położenie do 200 m od odcinka drogi
AA170: =LEN(D170) -> 0 | AB170: z | AC170: 400 | AE170: Wybierz z listy rozwijanej , czy odcinek drogi zapewnia bezpośredni dojazd (do 200 m od odcinka) do lokalnych ośrodków gospodarczych np. do strefy ekonomicznej, podmiotów gospodarczych, lokalnego targowiska. Jeśli TAK, to wymień do jakich lokalnych ośrodków gospodarczych odcinek stanowi bezpośredni dojazd (można użyć do 400 wszystkich znaków) oraz zaznacz te ośrodki na załączonej mapie poglądowej.
B171: jeżeli wybrano odpowiedź TAK, należy wskazać te ośrodki gospodarcze na załączonej mapie poglądowej
A172: B. | B172: Tereny inwestycyjne. Odcinek drogi zapewnia bezpośredni dojazd* do terenów inwestycyjnych, rozumianych jako tereny przeznaczone pod działalność gospodarczą w studium uwarunkowań przestrzennych, miejscowym planie zagospodarowania, warunkach zabudowy lub decyzji lokalizacyjnej celu publicznego *bezpośredni dojazd - położenie do 200 m od odcinka drogi
AA173: =LEN(D173) -> 0 | AB173: z | AC173: 400 | AE173: Wybierz z listy rozwijanej, czy odcinek drogi zapewnia bezpośredni dojazd (do 200 m od odcinka) do terenów inwestycyjnych, rozumianych jako tereny przeznaczone pod działalność gospodarczą w studium uwarunkowań przestrzennych, miejscowym planie zagospodarowania, warunkach zabudowy lub decyzji lokalizacyjnej celu publicznego. Jeśli TAK, to wymień do jakich terenów inwestycyjnych odcinek stanowi bezpośredni dojazd (można użyć do 400 wszystkich znaków) oraz zaznacz te tereny na załączonej mapie poglądowej.
B174: jeżeli wybrano odpowiedź TAK, należy wskazać te tereny inwestycyjne na załączonej mapie poglądowej
A175: C. | B175: Tereny rolne. Odcinek drogi zapewnia bezpośredni dojazd* do terenów, na których prowadzona jest produkcja rolna, sadownictwo, ogrodnictwo lub/i zlokalizowane są gospodarstwa agroturystyczne ważne ze względu na specyfikę obszaru *bezpośredni dojazd - położenie do 200 m od odcinka drogi
AA176: =LEN(D176) -> 0 | AB176: z | AC176: 400 | AE176: Wybierz z listy rozwijanej, czy odcinek drogi zapewnia bezpośredni dojazd (do 200 m od odcinka) do terenów, na których prowadzona jest produkcja rolna, sadownictwo, ogrodnictwo lub/i zlokalizowane są gospodarstwa agroturystyczne ważne ze względu na specyfikę obszaru. Jeśli TAK, to wymień do jakich terenów rolnych odcinek stanowi bezpośredni dojazd (można użyć do 400 wszystkich znaków) oraz zaznacz te tereny na załączonej mapie poglądowej.
B177: jeżeli wybrano odpowiedź TAK, należy wskazać te tereny rolne na załączonej mapie poglądowej
A178: D. | B178: Rozwój społeczno-gospodarczy. Strategiczne znaczenia odcinka drogi dla rozwoju społeczno-gospodarczego województwa
AA179: =LEN(D179) -> 0 | AB179: z | AC179: 500 | AE179: Wybierz z listy rozwijanej, czy odcinek drogi ma strategiczne znaczenie dla rozwoju społeczno-gospodarczego województwa. Jeśli TAK, to opisz przewidywane znaczenie wnioskowanego odcinka drogi dla rozwoju społeczno-gospodarczego województwa (można użyć do 500 wszystkich znaków).
B180: Kryterium nr 6 | F180: - | G180: Zwiększenie liczby obwodnic w ciągu dróg powiatowych i dróg gminnych | AE180: =_xlfn.CONCAT(A180,B180," ",F180," ",G180) -> Kryterium nr 6 - Zwiększenie liczby obwodnic w ciągu dróg powiatowych i dróg gminnych
B181: Zwiększenie liczby obwodnic. Odcinek drogi przyczynia się do zwiększenia liczby dróg spełniających funkcję obwodnicy, która w rozumieniu art. 2 ust.1 pkt 2a ustawy o RFRD oznacza drogę omijającą miejscowość lub teren zwartej zabudowy miejscowości, planowaną do realizacji w większości w nowym przebiegu i mającą na celu wyprowadzenie części ruchu pojazdów z tej miejscowości
AA182: =LEN(D182) -> 0 | AB182: z | AC182: 500 | AE182: Wybierz z listy rozwijanej, czy odcinek drogi przyczynia się do zwiększenia ilości dróg spełniających funkcję obwodnicy. Jeśli TAK, to opisz/uzasadnij przyczynianie się odcinka do zwiększenia ilości dróg spełniających funkcję obwodnicy (można użyć do 500 wszystkich znaków).
B183: Kryterium nr 7 | F183: - | G183: Poprawa dostępności terenów objętych przedsięwzięciami lub inwestycjami powiązanymi z przedsięwzięciem infrastrukturalnym | AE183: =_xlfn.CONCAT(A183,B183," ",F183," ",G183) -> Kryterium nr 7 - Poprawa dostępności terenów objętych przedsięwzięciami lub inwestycjami powiązanymi z przedsięwzięciem infrastrukturalnym
B184: Tereny powiązane z przedsięwzięciem infrastrukturalnym. Odcinek drogi przyczynia się do poprawy dostępności terenów objętych przedsięwzięciami lub inwestycjami powiązanymi z przedsięwzięciem infrastrukturalnym, o których mowa w art. 5c ust. 1 ustawy z dnia 8 grudnia 2006 r. o finansowym wsparciu niektórych przedsięwzięć mieszkaniowych (Dz. U. z 2024 r. poz. 304)
AA185: =LEN(D185) -> 0 | AB185: z | AC185: 500 | AE185: Wybierz z listy rozwijanej, czy odcinek drogi przyczynia się do poprawy dostępności terenów objętych przedsięwzięciami lub inwestycjami powiązanymi z przedsięwzięciem infrastrukturalnym. Jeśli TAK wymień te tereny i krótko opisz (można użyć do 500 wszystkich znaków).
B186: jeżeli wybrano odpowiedź TAK, należy wskazać te tereny na załączonej mapie poglądowej
A187: 11. | B187: OSOBY UPOWAŻNIONE DO UDZIELANIA WYJAŚNIEŃ KOMISJI | AE187: =_xlfn.CONCAT(A187,B187) -> 11. OSOBY UPOWAŻNIONE DO UDZIELANIA WYJAŚNIEŃ KOMISJI
A188: Lp. | B188: imię i nazwisko | I188: stanowisko służbowe | O188: nr telefonu | T188: e-mail | AE188: Wskaż osobę/osoby do kontaktu przez podanie następujących danych: - imię i nazwisko, - zajmowane stanowisko służbowe, - nr telefonu (ze wskazaniem nr wewnętrznego - jeśli dotyczy), - adres e-mail.
A189: 1
A190: 2
A191: 12. | B191: ZŁĄCZNIKI | AE191: =_xlfn.CONCAT(A191,B191) -> 12. ZŁĄCZNIKI
B192: Do wniosku dołączone zostały załączniki: | AE192: Wybierz z list rozwijanych, które z wymienionych załączników zostały dołączone do wniosku.
B193: a) | C193: kopia prawomocnej* decyzji o pozwoleniu na budowę - dotyczy robót realizowanych na podstawie pozwolenia na budowę (obligatoryjnie), *w przypadku nadania decyzji rygoru natychmiastowej wykonalności prawomocność nie jest wymagana | AE193: =IF(X193="","Wybierz z listy rozwijanej, czy załączono kopię prawomocnej decyzji o pozwoleniu na budowę."&" Załącznik jest OBLIGATORYJNY jeśli nie załącza się kopii ZRID lub kopii zgłoszenia robót budowlanych z poświadczeniem o braku podstaw do wniesienia sprzeciwu."&" Pozostawienie komórki pustej jest jednoznaczne z wybraniem NIE.",IF(AND(X193<>"tak",X194<>"tak",X196<>"tak"),"BŁĄD - kopia prawomocnej decyzji o pozwoleniu na budowę jest załącznikiem OBLIGATORYJNYM jeśli nie załącza się kopii ZRID lub kopii zgłoszenia robót budowlanych z poświadczeniem o braku podstaw do wniesienia sprzeciwu", IF(AND(X193<>"tak", OR(X194="tak",X196="tak")),"OK - wnioskodawca oświadczył, że załączył do wniosku kopię jednego z trzech wymaganych dokumentów wskazanych w pkt 12, lit. a wniosku","OK - wnioskodawca oświadczył, że załączył do wniosku kopię prawomocnej decyzji o pozwoleniu na budowę"))) -> Wybierz z listy rozwijanej, czy załączono kopię prawomocnej decyzji o pozwoleniu na budowę. Załącznik jest OBLIGATORYJNY jeśli nie załącza się kopii ZRID lub kopii zgłoszenia robót budowlanych z poświadczeniem o braku podstaw do wniesienia sprzeciwu. Pozostawienie komórki pustej jest jednoznaczne z wybraniem NIE. | AY193: =IF(AND(X193<>"tak",X194<>"tak",X196<>"tak"),"B",IF(X193="","OK1",IF(AND(X193<>"tak",OR(X194="tak",X196="tak")),"OK1","OK"))) -> B | AZ193: =IF(AND(OR(X193="",X193="nie",X193="nie dotyczy"),OR(X194="",X194="nie",X194="nie dotyczy"),OR(X196="nie",X196="nie dotyczy")),"B","OK") -> OK
C194: lub
C195: kopia prawomocnej* decyzji o zezwoleniu na realizację inwestycji drogowej (ZRID)- dotyczy robót realizowanych na podstawie ZRID (obligatoryjnie), *w przypadku nadania decyzji rygoru natychmiastowej wykonalności prawomocność nie jest wymagana | AE195: =IF(X194="","Wybierz z listy rozwijanej, czy załączono kopię prawomocnej decyzji o zezwoleniu na realizację inwestycji drogowej (ZRID)."&" Załącznik jest OBLIGATORYJNY jeśli nie załącza się kopii decyzji o pozwoleniu na budowę lub kopii zgłoszenia robót budowlanych z poświadczeniem o braku podstaw do wniesienia sprzeciwu."&" Pozostawienie komórki pustej jest jednoznaczne z wybraniem NIE.",IF(AND(X193<>"tak",X194<>"tak",X196<>"tak"),"BŁĄD - kopia prawomocnej decyzji o zezwoleniu na realizację inwestycji drogowej jest załącznikiem OBLIGATORYJNYM"&" jeśli nie załącza się kopii decyzji o pozwoleniu na budowę lub kopii zgłoszenia robót budowlanych z poświadczeniem o braku podstaw do wniesienia sprzeciwu", IF(AND(X194<>"tak", OR(X193="tak",X196="tak")),"OK - wnioskodawca oświadczył, że załączył do wniosku kopię jednego z trzech wymaganych dokumentów wskazanych w pkt 12, lit. a wniosku","OK - wnioskodawca oświadczył, że załączył do wniosku kopię prawomocnej decyzji o zezwoleniu na realizację inwestycji drogowej (ZRID)"))) -> Wybierz z listy rozwijanej, czy załączono kopię prawomocnej decyzji o zezwoleniu na realizację inwestycji drogowej (ZRID). Załącznik jest OBLIGATORYJNY jeśli nie załącza się kopii decyzji o pozwoleniu na budowę lub kopii zgłoszenia robót budowlanych z poświadczeniem o braku podstaw do wniesienia sprzeciwu. Pozostawienie komórki pustej jest jednoznaczne z wybraniem NIE. | AY195: =IF(AND(X193<>"tak",X194<>"tak",X196<>"tak"),"B",IF(X194="","OK1",IF(AND(X194<>"tak",OR(X193="tak",X196="tak")),"OK1","OK"))) -> B | AZ195: =IF(AND(OR(X193="",X193="nie",X193="nie dotyczy"),OR(X194="",X194="nie",X194="nie dotyczy"),OR(X196="nie",X196="nie dotyczy")),"B","OK") -> OK
C196: lub
C197: kopia zgłoszenia robót budowlanych z poświadczeniem o braku podstaw do wniesienia sprzeciwu na zgłoszenie wykonania robót budowlanych potwierdzonym: - zaświadczeniem organu administracji architektoniczno-budowlanej lub - pieczęcią organu administracji architektoniczno-budowlanej dotyczy robót realizowanych na podstawie zgłoszenia (obligatoryjnie), | AE197: =IF(X196="","Wybierz z listy rozwijanej, czy załączono kopię zgłoszenia robót budowlanych z poświadczeniem o braku podstaw do wniesienia sprzeciwu."&" Załącznik jest OBLIGATORYJNY jeśli nie załącza się kopii decyzji o pozwoleniu na budowę lub kopii ZRID."&" Pozostawienie komórki pustej jest jednoznaczne z wybraniem NIE.",IF(AND(X193<>"tak",X194<>"tak",X196<>"tak"),"BŁĄD - kopia zgłoszenia robót budowlanych z poświadczeniem o braku podstaw do wniesienia sprzeciwu jest załącznikiem OBLIGATORYJNYM"&" jeśli nie załącza się kopii decyzji o pozwoleniu na budowę lub kopii ZRID",IF(AND(X196<>"tak", OR(X193="tak",X194="tak")),"OK - wnioskodawca oświadczył, że załączył do wniosku kopię jednego z trzech wymaganych dokumentów wskazanych w pkt 12, lit. a wniosku","OK - wnioskodawca oświadczył, że załączył do wniosku kopię zgłoszenia robót budowlanych z poświadczeniem o braku podstaw do wniesienia sprzeciwu"))) -> Wybierz z listy rozwijanej, czy załączono kopię zgłoszenia robót budowlanych z poświadczeniem o braku podstaw do wniesienia sprzeciwu. Załącznik jest OBLIGATORYJNY jeśli nie załącza się kopii decyzji o pozwoleniu na budowę lub kopii ZRID. Pozostawienie komórki pustej jest jednoznaczne z wybraniem NIE. | AY197: =IF(AND(X193<>"tak",X194<>"tak",X196<>"tak"),"B",IF(X196="","OK1",IF(AND(X196<>"tak",OR(X193="tak",X194="tak")),"OK1","OK"))) -> B | AZ197: =IF(AND(OR(X193="",X193="nie",X193="nie dotyczy"),OR(X194="",X194="nie",X194="nie dotyczy"),OR(X196="nie",X196="nie dotyczy")),"B","OK") -> OK
B198: b) | C198: zgodna ze stanem faktycznym, czytelna mapa poglądowa zawierająca: - naniesioną skalę, - zaznaczone miejsce/odcinek realizacji wnioskowanego zadania, - obszar obrazujący odległość 200 m od odcinka drogi objętego zadaniem, - zaznaczone elementy mające wpływ na ocenę merytoryczną wniosku - dotyczy kryterium: nr 2 lit. A, B, D; nr 3 lit. A, B; nr 4 lit. C, D; nr 5 lit. A, B, C; nr 7 (obligatoryjnie). | AE198: =IF(X198="","Wybierz z listy rozwijanej, czy załączono mapę poglądową. Załącznik jest OBLIGATORYJNY. Pozostawienie komórki pustej jest jednoznaczne z wybraniem NIE.",IF(OR(X198="",X198="nie",X198="nie dotyczy"),"BŁĄD - mapa poglądowa jest załącznikiem OBLIGATORYJNYM","OK - wnioskodawca oświadczył, że załączył do wniosku mapę poglądową")) -> Wybierz z listy rozwijanej, czy załączono mapę poglądową. Załącznik jest OBLIGATORYJNY. Pozostawienie komórki pustej jest jednoznaczne z wybraniem NIE. | AY198: =IF(X198="tak","OK","B") -> B | AZ198: =IF(OR(X198="nie",X198="nie dotyczy"),"B","OK") -> OK
B199: c) | C199: rysunki z charakterystycznymi przekrojami poprzecznymi pasa drogowego w liniach rozgraniczających ze zwymiarowanymi elementami drogi – szerokość jezdni, pasa ruchu drogowego, pobocza, drogi dla pieszych, itp. (obligatoryjnie). | AE199: =IF(X199="","Wybierz z listy rozwijanej, "&"czy załączono kopie rysunków z charakterystycznymi przekrojami poprzecznymi pasa drogowego w liniach rozgraniczających."&" Załącznik jest OBLIGATORYJNY. Pozostawienie komórki pustej jest jednoznaczne z wybraniem NIE.",IF(OR(X199="",X199="nie",X199="nie dotyczy"),"BŁĄD - kopie rysunków z charakterystycznymi przekrojami poprzecznymi pasa drogowego w liniach rozgraniczających są załącznikiem OBLIGATORYJNYM","OK - wnioskodawca oświadczył, że załączył do wniosku "&"kopie rysunków z charakterystycznymi przekrojami poprzecznymi pasa drogowego w liniach rozgraniczających")) -> Wybierz z listy rozwijanej, czy załączono kopie rysunków z charakterystycznymi przekrojami poprzecznymi pasa drogowego w liniach rozgraniczających. Załącznik jest OBLIGATORYJNY. Pozostawienie komórki pustej jest jednoznaczne z wybraniem NIE. | AY199: =IF(X199="tak","OK","B") -> B | AZ199: =IF(OR(X199="nie",X199="nie dotyczy"),"B","OK") -> OK
B200: d) | C200: kopia kosztorysu inwestorskiego (obligatoryjnie). | AE200: =IF(X200="","Wybierz z listy rozwijanej, czy załączono kopię aktualnego kosztorysu inwestorskiego (sporządzonego nie wcześniej niż 6 miesięcy przed złożeniem wniosku)."&" Załącznik jest OBLIGATORYJNY. Pozostawienie komórki pustej jest jednoznaczne z wybraniem NIE.",IF(OR(X200="",X200="nie",X200="nie dotyczy"),"BŁĄD - kopia aktualnego kosztorysu inwestorskiego jest załącznikiem OBLIGATORYJNYM","OK - wnioskodawca oświadczył, że załączył do wniosku kopię aktualnego kosztorysu inwestorskiego")) -> Wybierz z listy rozwijanej, czy załączono kopię aktualnego kosztorysu inwestorskiego (sporządzonego nie wcześniej niż 6 miesięcy przed złożeniem wniosku). Załącznik jest OBLIGATORYJNY. Pozostawienie komórki pustej jest jednoznaczne z wybraniem NIE. | AY200: =IF(X200="tak","OK","B") -> B | AZ200: =IF(OR(X200="nie",X200="nie dotyczy"),"B","OK") -> OK
B201: e) | C201: kopia zgody na odstępstwo od przepisów techniczno-budowlanych (jeśli dotyczy). | AE201: =IF(X201="","Wybierz z listy rozwijanej, czy załączono kopię zgody na odstępstwo od przepisów techniczno-budowlanych - jeśli dotyczy, czyli gdy parametru odcinka nie są zgodne z parametrami wynikającymi z Rozporządzenia"&" - jeśli dotyczy, czyli gdy w pkt nr 9 zgoda na odstępstwo od przepisów wybrano TAK",IF(AND(R64="tak",X201="tak"),"OK - wnioskodawca oświadczył, że załączył kopię zgody na odstępstwo od przepisów techniczno-budowlanych", IF(AND(R64="tak", OR(X201="nie",X201="nie dotyczy")),"BŁĄD - zgoda jest załącznikiem OBLIGATORYJNYM w przypadku, gdy w pkt nr 9 zgoda na odstępstwo od przepisów wybrano TAK."&" Wybierz TAK lub zmień odpowiedź w pkt nr 9 zgoda na odstępstwo od przepisów", IF(AND(OR(R64="nie dotyczy",R64="nie",R64=""),OR(X201="nie",X201="nie dotyczy",X201="")),"OK - wnioskodawca oświadczył, że nie załączył kopii zgody na odstępstwo od przepisów techniczno-budowlanych", IF(AND(OR(R64="nie dotyczy",R64="nie",R64=""),OR(X201="tak")),"BŁĄD - w pkt nr 9 zgoda na odstępstwo od przepisów wybrano NIE (pozostawienie komórki pustej jest jednoznaczne z wybraniem NIE). Wybierz NIE lub zmień odpowiedź w pkt nr 9 zgoda na odstępstwo od przepisów", "Błąd danej - wprowadzono daną spoza listy rozwijanej"))))) -> Wybierz z listy rozwijanej, czy załączono kopię zgody na odstępstwo od przepisów techniczno-budowlanych - jeśli dotyczy, czyli gdy parametru odcinka nie są zgodne z parametrami wynikającymi z Rozporządzenia - jeśli dotyczy, czyli gdy w pkt nr 9 zgoda na odstępstwo od przepisów wybrano TAK | AY201: =IF(X201="","W",IF(AND(X201="tak",OR(R64="",R64="nie",R64="nie dotyczy")),"B",IF(AND(X201<>"tak",R64="tak"),"B","OK"))) -> W
... 34 more rows

Sheet Remont
A1: ! | B1: UWAGA: | AE1: INSTRUKCJA WYPEŁNIANIA WNIOSKU | AY1: OK
B2: WNIOSEK NALEŻY ZŁOŻYĆ ZA PISMEM PRZEWODNIM. | AE2: szare pola - NIE ZMIENIAJ | AY2: Wprowadzono błędną daną - proszę wprowadzić poprawną daną wybierając ją z listy rozwijanej
B3: PRZED WYPEŁNIENIEM WNIOSKU NALEŻY ZAPOZNAĆ SIĘ Z INSTRUKCJĄ
B4: WYPEŁNIAJĄC WNIOSEK NALEŻY KIEROWAĆ SIĘ INSTRUKCJĄ POMOCNICZĄ I WSKAZÓWKAMI - (pola po prawej stronie wniosku oraz żółte pola pojawiające się po zaznaczeniu komórki). | AE4: żółte pola - WYBIERZ Z LISTY ROZWIJANEJ
B5: PLIK ZOSTAŁ ZABEZPIECZONY PRZED EDYTOWANIEM. PROSZĘ NIE USUWAĆ ZABEZPIECZEŃ I SAMODZIELNIE NIE EDYTOWAĆ PLIKU. | AE5: białe pola - WPISZ
A6: WNIOSEK O DOFINANSOWANIE W RAMACH RZĄDOWEGO FUNDUSZU ROZWOJU DRÓG | AE6: czerwone pola - błąd lub brak danych
A7: REMONT
A8: PIECZĘĆ WPŁYWU DO URZĘDU WOJEWÓDZKIEGO | N8: NR EWIDENCYJNY WNIOSKU | AA8: POLA POMOCNICZE - liczniki znaków użytych w komórkach | AE8: PIECZĘĆ WPŁYWU DO URZĘDU WOJEWÓDZKIEGO oraz NR EWIDENCYJNY WNIOSKU uzupełniają pracownicy Świętokrzyskiego Urzędu Wojewódzkiego.
N9: /A /2026
N10: 1. JEDNOSTKA SAMORZĄDU TERYTORIALNEGO | AE10: =N10 -> 1. JEDNOSTKA SAMORZĄDU TERYTORIALNEGO
N11: JST | AE11: =IF(Q11="","Wybierz z listy rozwijanej jaka jednostka ubiega się o dofinansowanie (POWIAT / GMINA)",IF(AND(Q11<>"",AZ11<>"B"),"OK","Błąd danej - wprowadź poprawną daną wybierając ją z listy rozwijanej")) -> Wybierz z listy rozwijanej jaka jednostka ubiega się o dofinansowanie (POWIAT / GMINA) | AY11: =IF(Q11="","W",IF(AND(Q11<>"",AZ11<>"B"),"OK",IF(AZ11="B","B",""))) -> W | AZ11: =IFERROR(IF(Q11="","",VLOOKUP(Q11,DANE!B8:B9,1,0)),"B") ->  | BA11: =IF(AND(Q11="",OR(Q12<>"",Q13<>"")),"b","ok") -> ok
N12: POWIAT | AE12: =IF(AND(Q11="",Q12=""),"",IF(AND(Q11="POWIAT",Q12=""),"Wybierz z listy rozwijanej powiat",IF(AND(Q11="",Q12<>""),"Wybierz z listy rozwijanej JST (pole powyżej)",IF(AND(Q11="GMINA",Q12=""),"Wybierz z listy rozwijanej powiat, w którym znajduje się gmina",IF(AZ12="b","Błąd danej - wprowadź poprawną daną wybierając ją z listy rozwijanej","OK"))))) ->  | AY12: =IF(AND(Q11="",Q12=""),"",IF(AND(Q11="POWIAT",Q12=""),"W",IF(AND(Q11="",Q12<>""),"W",IF(AND(Q11="GMINA",Q12=""),"W",IF(AZ12="b","B","OK"))))) ->  | AZ12: =IFERROR(IF(Q12="","",VLOOKUP(Q12,POWIAT[POWIAT],1,FALSE)),"B") -> 
N13: =IF(Q11="powiat","","GMINA ") -> GMINA | AE13: =IF(AND(Q11="POWIAT",Q13=""),"",IF(AND(Q11="POWIAT",Q13<>""),"Błąd danej - błędnie wskazana JST lub błędnie wskazana GMINA",IF(AND(Q11="GMINA",Q12=""),"",IF(AND(Q11="GMINA",Q12<>"",Q13=""),"Wybierz z listy rozwijanej gminę",IF(AND(Q11="",Q12<>"",Q13<>""),"Wybierz z listy rozwijanej JST (dwa pola powyżej)",IF(AND(Q11="",Q12="",Q13<>""),"Wybierz z listy rozwijanej JST (dwa pola powyżej) oraz POWIAT (pole powyżej)",IF(AND(Q11="",Q12="",Q13=""),"",IF(AND(Q11<>"",AY11="b"),"",IF(AZ13="b","Błąd danej - wybrana gmina nie znajduje się w powiecie wskazanym powyżej","OK"))))))))) ->  | AY13: =IF(AND(Q11="POWIAT",Q13=""),"",IF(AND(Q11="POWIAT",Q13<>""),"B",IF(AND(Q11="GMINA",Q12=""),"",IF(AND(Q11="GMINA",Q12<>"",Q13=""),"W",IF(AND(Q11="",Q12<>"",Q13<>""),"W",IF(AND(Q11="",Q12="",Q13<>""),"W",IF(AND(Q11="",Q12="",Q13=""),"",IF(AND(Q11<>"",AY11="b"),"","OK")))))))) ->  | AZ13: =IF(AND(Q11="powiat",Q13<>""),"b",IF(VLOOKUP(Q13,DANE!$E$59:$Q$159,13,0)<>Q12,"b","ok")) -> 
N14: NR TERC | Q14: =IFERROR(IF(Q11="powiat",VLOOKUP(Q12,DANE!$D$46:$H$58,4,0),IF(Q11="gmina",VLOOKUP(Q13,DANE!$E$59:$H$159,3,0),"")),"") ->  | W14: =IFERROR(IF(Q11="powiat",VLOOKUP(Q12,DANE!$D$46:$H$58,5,0),IF(Q11="gmina",VLOOKUP(Q13,DANE!$E$59:$H$159,4,0),"")),"") ->  | AB14: ↓ | AE14: =IF(Q14="","NR TERC ładuje się automatycznie po uzupełnieniu powyższych danych dotyczących jst",IF(AND(Q11="POWIAT",AZ14=4),"OK - Załadowano NR TERC dla powiatu",IF(AND(Q11="GMINA",AZ14=7),"OK - Załadowano NR TERC dla gminy",IF(AND(Q11="POWIAT",AZ14=7),"Błąd danej - Załadowano NR TERC dla gminy, a w JST wybrano powiat",IF(AND(Q11="GMINA",AZ14=4),"Błąd danej - Załadowano NR TERC dla powiatu, a w JST wybrano gminę",""))))) -> NR TERC ładuje się automatycznie po uzupełnieniu powyższych danych dotyczących jst | AY14: =IF(Q14="","W",IF(AND(Q11="powiat",AZ14=4),"ok",IF(AND(Q11="gmina",AZ14=7),"ok","b"))) -> W | AZ14: =LEN(Q14) -> 0
N15: ADRES | AA15: =LEN(Q15) -> 0 | AB15: z | AC15: 120 | AE15: =IF(AA15=0,"Wpisz adres jednostki samorządu terytorialnego ubiegającej się o dofinansowanie - [można użyć do 120 znaków]",IF(AA15>120,"błąd danej - Wprowadzono zbyt dużą ilość znków. Zmniejsz ilość wprowadzonych znaków","Wprowadzono dane dotyczące adresu jednostki samorządu terytorialnego")) -> Wpisz adres jednostki samorządu terytorialnego ubiegającej się o dofinansowanie - [można użyć do 120 znaków] | AY15: =IF(AA15=0,"W",IF(AA15>0,"OK",IF(AA15>120,"b",""))) -> W
A16: 2. | B16: TYTUŁ ZADANIA (nazwa zadania) | AE16: =_xlfn.CONCAT(A16,B16) -> 2. TYTUŁ ZADANIA (nazwa zadania)
AA17: =LEN(A17) -> 0 | AB17: z | AC17: 300 | AE17: Wpisz tytuł zadania (nazwę zadania) - [można użyć do 300 wszystkich znaków] WAŻNE: Tytuł powinien identyfikować zadanie (rodzaj robót i ich lokalizację: nazwa ulicy, nr drogi i lokalizacja drogi) oraz sugerować klasyfikację środków (remont / budowa / rozbudowa / przebudowa)
A18: 3. | B18: LOKALIZACJA ZADANIA (kategoria, numer i lokalizacja drogi, na której znajduje się realizowane zadanie) | AE18: =_xlfn.CONCAT(A18,B18) -> 3. LOKALIZACJA ZADANIA (kategoria, numer i lokalizacja drogi, na której znajduje się realizowane zadanie)
A19: L.p. | B19: KATEGORIA | E19: NR DROGI | H19: POWIAT | L19: GMINA | S19: MIEJSCOWOŚĆ | AE19: Wybierz z list rozwijanych: kategorię drogi, powiat i gminę
A20: 1 | H20: =Q12 -> 0 | L20: =Q13 -> 0 | AE20: Wpisz nr drogi, na której znajduje się zgłoszone zadanie oraz miejscowość | AY20: =IF(VLOOKUP(L20,DANE!$E$59:$Q$159,13,0)<>H20,"b","ok") -> 
AA21: =LEN(A21) -> 0 | AB21: z | AC21: 400 | AE21: (miejsce na dodatkowe informacje dotyczące rodzaju i lokalizacji zadania np., gdy droga biegnie przez więcej niż jedną gminę lub więcej niż jedną miejscowość)
A22: 4. | B22: PRZEWIDYWANY OKRES REALIZACJI ZADANIA (rozpoczęcie i zakończenie realizacji zadania) | AE22: =_xlfn.CONCAT(A22,B22) -> 4. PRZEWIDYWANY OKRES REALIZACJI ZADANIA (rozpoczęcie i zakończenie realizacji zadania)
A23: Zadanie | D23: =IF(AND(R23="",R24="",W24=""),"",IFERROR(IF(BA23=0,"nie wybrano lub błędnie wybrano daty realizacji zadania",IF(BA23<12,"JEDNOROCZNE",IF(BA23=12,"zmień miesiąc, aby zadanie było jednoroczne lub wieloletnie","WIELOLETNIE"))),"nie wybrano lub błędnie wybrano daty realizacji zadania")) ->  | M23: realizowane | Q23: od | W23: 2026 | AE23: Wybierz z listy rozwijanej przewidywany miesiąc rozpoczęcia robót budowlanych | AY23: =IF(R23="stycznia",1,IF(R23="lutego",2,IF(R23="marca",3,IF(R23="kwietnia",4,IF(R23="maja",5,IF(R23="czerwca",6,IF(R23="lipca",7,IF(R23="sierpnia",8,IF(R23="września",9,IF(R23="października",10,IF(R23="listopada",11,IF(R23="grudnia",12,"")))))))))))) ->  | AZ23: =IF(AY23="","",DATE(W23,AY23,1)) ->  | BA23: =IF(AY23="","",DATEDIF(AZ23,AZ24,"m")) -> 
Q24: do | AE24: Wybierz z listy rozwijanej przewidywany miesiąc i rok zakończenia robót budowlanych | AY24: =IF(R24="stycznia",1,IF(R24="lutego",2,IF(R24="marca",3,IF(R24="kwietnia",4,IF(R24="maja",5,IF(R24="czerwca",6,IF(R24="lipca",7,IF(R24="sierpnia",8,IF(R24="września",9,IF(R24="października",10,IF(R24="listopada",11,IF(R24="grudnia",12,"")))))))))))) ->  | AZ24: =IF(AY24="","",DATE(W24,AY24,1)) ->  | BA24: =IFERROR(IF(BA23="","",IF(BA23>0,"OK","B")),"B") ->  | BB24: =IF(BA23="","",IF(AND(R24<>"",W24<>"",BA23=12),"B","OK")) -> 
A25: 5. | B25: DŁUGOŚĆ ODCINKÓW DRÓG OBJĘTYCH ZADANIEM, WG RODZAJU ROBÓT BUDOWLANYCH [m] | AE25: =_xlfn.CONCAT(A25,B25) -> 5. DŁUGOŚĆ ODCINKÓW DRÓG OBJĘTYCH ZADANIEM, WG RODZAJU ROBÓT BUDOWLANYCH [m]
I26: REMONT | Q26: ŁĄCZNIE | AE26: Wpisz długość odcinka objętego danym rodzajem robót budowlanych (długość podaj w metrach z dokładnością do jednego metra)
P27: m | Q27: =IF(I27="","",I27) ->  | Z27: m | AE27: Łączna długość załaduje się automatycznie. Powinna być taka sama jak realizowana długość odcinka w pkt 9 | AY27: =IF(I27="","",I26) -> 
A28: 6. | B28: PRZEWIDYWANY HARMONOGRAM RZECZOWO-FINANSOWY REALIZACJI ZADANIA (brutto) | AE28: =_xlfn.CONCAT(A28,B28) -> 6. PRZEWIDYWANY HARMONOGRAM RZECZOWO-FINANSOWY REALIZACJI ZADANIA (brutto)
A29: Lp. | B29: ELEMENTY I RODZAJE ROBÓT | K29: KOSZT KWALIFIKOWALNY [zł] | S29: KOSZT NIEKWALIFIKOWALNY [zł]
A30: 1. | B30: Roboty budowlane | AE30: Wpisz koszt brutto robót budowlanych w podziale na wydatki kwalifikowalne i niekwalifikowalne
A31: 2. | B31: Nadzór inwestorski (wszystkie branże) | AE31: Wpisz koszt brutto nadzoru inwestorskiego (wszystkie branże) w podziale na wydatki kwalifikowalne i niekwalifikowalne
A32: 3. | B32: Tablice informacyjne ( na podst. art. 38 ust. 1, 1a ustawy o RFRD) | AE32: Wpisz koszt brutto tablic informacyjnych w podziale na wydatki kwalifikowalne i niekwalifikowalne
A33: 4. | B33: Dodatkowy obowiązek informacyjny ( na podst. art. 38 ust. 6 ustawy o RFRD) | AE33: Wpisz koszt brutto dodatkowego obowiązku informacyjnego w podziale na wydatki kwalifikowalne i niekwalifikowalne Koszt kwalifikowalny dodatkowego obowiązku informacyjnego nie może być niższy niż 1 000,00 zł, ani wyższy niż 5 000,00 zł | AY33: =IF(K33="","",IF(AND(1000<=K33,K33<=5000),"OK","B")) -> 
A34: SUMA | K34: =SUM(K30:R33) -> 0 | S34: =SUM(S30:Z33) -> 0 | AE34: SUMY OBLICZĄ SIĘ AUTOMATYCZNIE
A35: OGÓŁEM | K35: =SUM(K34,S34) -> 0 | AE35: KWOTA OGÓŁEM OBLICZY SIĘ AUTOMATYCZNIE
A36: 7. | B36: PRZEWIDYWANE KOSZTY REALIZACJI ZADANIA BRUTTO - WYDATKI KWALIFIKOWALNE [zł] | AE36: =_xlfn.CONCAT(A36,B36) -> 7. PRZEWIDYWANE KOSZTY REALIZACJI ZADANIA BRUTTO - WYDATKI KWALIFIKOWALNE [zł]
A37: A. | B37: ŁĄCZNY KOSZT REALIZACJI ZADANIA [zł] | U37: =K34 -> 0 | AE37: Koszty i kwoty słownie załadują się automatycznie po poprawnym wypełnieniu pkt 6 wniosku | AY37: =IF(K34=U37,"ok","b") -> ok | BA37: =IF(U37<0,"b","OK") -> OK
B38: SŁOWNIE : | E38: =IF(OR(U37=0,U37=""),"",Slownie(U37)) -> 
A39: B. | B39: KWOTA WNIOSKOWANEGO DOFINANSOWANIA [zł] | U39: =IF(OR(U37="",U43=""),"",IF(ROUNDDOWN(U37*U43,0)>30000000,AZ39,ROUNDDOWN((U37*U43),0))) ->  | AE39: Kwota dofinansowania nie może przekraczać 30 mln zł, jeśli przekracza, to wniosek ją automatycznie zmniejsza do kwoty maksymalnej | AY39: =IF(U39>AZ39,"b","ok") -> b | AZ39: 30000000 | BA39: =IF(U39<0,"b","OK") -> OK
B40: SŁOWNIE : | E40: =IF(OR(U39=0,U39="")," ",Slownie(U39)) -> 
A41: C. | B41: KWOTA WKŁADU WŁASNEGO [zł] | U41: =IF(OR(U37="",U43=""),"",U37-U39) ->  | BA41: =IF(U41<0,"b","OK") -> OK
B42: SŁOWNIE : | E42: =IF(OR(U41=0,U41="")," ",Slownie(U41)) -> 
A43: D. | B43: UDZIAŁ DOFINANSOWANIA W KOSZTACH KWALIFIKOWALNYCH ZADANIA [%] | U43: =IF(Q14="","",IF(Q11="powiat",VLOOKUP(Q14,DANE!$G$46:$O$58,9,0),VLOOKUP(Q14,DANE!$G$59:$O$159,9,0))) ->  | AE43: Poziom dofinansowania nie może przekraczać 80,00%. Wprowadzono % dofinansowania z roku 2025, ale dana ta może ulec zmianie zgodnie z zatwierdzoną listą | AZ43: =U39/U37 ->  | BA43: =IF(U43<0,"b","OK") -> OK
A44: 8. | B44: PRZEWIDYWANY TERMIN DOKONYWANIA WYPŁAT NA RZECZ WYKONAWCY ZADANIA | AE44: =_xlfn.CONCAT(A44,B44) -> 8. PRZEWIDYWANY TERMIN DOKONYWANIA WYPŁAT NA RZECZ WYKONAWCY ZADANIA
A45: KWOTA DO WYPŁATY W DANYM ROKU NA RZECZ WYKONAWCY ZADANIA | AE45: Uzupełnij dane dotyczące dokonywania wypłat na rzecz wykonawcy zadania w podziale na poszczególne lata oraz na wydatki kwalifikowalne i niekwalifikowalne. Wydatki kwalifikowalne należy podać w podziale na dofinansowanie i wkład własny.
A46: ROK | D46: KWALIFIKOWALNE | N46: NIEKWALIFIKOWALNE | U46: OGÓŁEM
D47: DOFINANSOWANIE | I47: WKŁAD WŁASNY
A48: 2026 | U48: =IF(AND(D48="",I48="",N48=""),"",SUM(D48:T48)) ->  | AE48: Jeśli dane nie będą wprowadzone poprawnie, to kwoty sum i łącznie podświetlą się na czerwono. Będzie to miało miejsce w przypadku, gdy: - kwota dofinansowania (suma z wiersza 53), będzie się różnić od kwoty dofinansowania w pkt 7 lit. B (wiersz 39); - kwota wkładu własnego (suma z wiersza 53), będzie się różnić od kwoty wkładu własnego w pkt 7 lit. C (wiersz 41); - kwota środków kwalifikowalnych (łącznie z wiersza 54), będzie się różnić od kwoty łącznego kosztu realizacji zadania w pkt 7 lit. A (wiersz 37); - kwota środków niekwalifikowalnych (łącznie z wiersza 54), będzie się różnić od kwoty kosztów niekwalifikowalnych w pkt 6 (wiersz 34); - kwota środków ogółem (łącznie z wiersza 54), będzie się różnić od kwoty kosztów ogółem w pkt 6 (wiersz 35); Należy wtedy poprawić kwoty z wierszy 48-52 lub kwoty w pkt 6 wniosku (jeśli tam zostały wprowadzone błędnie)
A49: 2027 | U49: =IF(AND(D49="",I49="",N49=""),"",SUM(D49:T49)) -> 
A50: 2028 | U50: =IF(AND(D50="",I50="",N50=""),"",SUM(D50:T50)) -> 
A51: 2029 | U51: =IF(AND(D51="",I51="",N51=""),"",SUM(D51:T51)) -> 
A52: 2030 | U52: =IF(AND(D52="",I52="",N52=""),"",SUM(D52:T52)) -> 
A53: SUMA | D53: =SUM(D48:H52) -> 0 | I53: =SUM(I48:M52) -> 0 | AY53: =IF(U39="","ok",IF(D53<>U39,"błąd","ok")) -> ok | AZ53: =IF(U41="","ok",IF(I53<>U41,"błąd","ok")) -> ok
A54: ŁĄCZNIE | D54: =D53+I53 -> 0 | N54: =SUM(N48:T52) -> 0 | U54: =SUM(U48:Z52) -> 0 | AY54: =IF(U37="","ok",IF(D54<>U37,"błąd","ok")) -> ok | AZ54: =IF(N54<>S34,"błąd","ok") -> ok | BA54: =IF(U54<>K35,"błąd","ok") -> ok
A55: 9. | B55: OPIS ZADANIA OBEJMUJĄCY STAN ISTNIEJĄCY ORAZ PROJEKTOWANY WRAZ Z UZASADNIENIEM REALIZACJI ZADANIA | AE55: =_xlfn.CONCAT(A55,B55) -> 9. OPIS ZADANIA OBEJMUJĄCY STAN ISTNIEJĄCY ORAZ PROJEKTOWANY WRAZ Z UZASADNIENIEM REALIZACJI ZADANIA
A56: PARAMETRY ODCINKA | I56: STAN ISTNIEJĄCY (stan pierwotny, który będzie odtwarzany) | AE56: Parametry odcinka dotyczą stanu istniejącego, który będzie odtwarzany w wyniku remontu; Wszystkie długości podaj z dokładnością do jednego metra.
B57: kategoria drogi | I57: =IF(B20="","",B20) ->  | AE57: Kategoria drogi - komórka załaduje się automatycznie po wypełnieniu danych w pkt 3
B58: numer drogi | I58: =IF(E20="","",E20) ->  | AE58: Numer drogi - komórka załaduje się automatycznie po wypełnieniu danych w pkt 3; jeśli dane są niekompletne można je zmienić wpisując dane
B59: klasa drogi | AE59: Klasa drogi - wybierz z listy rozwijanej, po wypełnieniu danych w pkt 3
B60: rodzaj drogi | AE60: Rodzaj drogi - wybierz z listy rozwijanej
B61: rodzaj robót budowlanych | I61: =IF(I27="","","REMONT") ->  | AE61: Rodzaj robót budowlanych - komórka załaduje się automatycznie; jeśli dana się nie załaduje wybierz daną z listy rozwijanej
B62: realizowany kilometraż | AE62: Realizowany kilometraż - wpisz rzeczywisty kilometraż, w którym realizowane jest zadanie
B63: realizowana długość odcinka | I63: =Q27 ->  | Z63: m | AE63: Realizowana długość odcinka - komórka załaduje się automatycznie (lub wpisz realizowaną długość odcinka z dokładnością do jednego metra)
B64: zgoda na odstępstwo od przepisów | I64: NIE DOTYCZY | AE64: NIE DOTYCZY REMONTU
B65: trudne warunki | I65: NIE DOTYCZY | AE65: NIE DOTYCZY REMONTU
B66: przekrój jezdni | AE66: Wpisz przekrój remontowanej jezdni zgodnie z Rozporządzeniem w sprawie przepisów techniczno-budowlanych dotyczących dróg
B67: szerokość jezdni | Q67: m | AE67: Wpisz szerokość remontowanej jezdni
B68: szerokość pasa ruchu | Q68: m | AE68: Wpisz szerokość pasa ruchu remontowanej jezdni
H69: pobocza o nawierzchni gruntowej | AE69: =IF(AY69="b","Sprawdź poprawność danych (lista rozwijana, długości, szerokości) dotyczących poboczy o nawierzchni gruntowej","Wybierz z listy rozwijanej, czy odcinek posiada pobocza o nawierzchni gruntowej, które będą remontowane w ramach zadania.") -> Wybierz z listy rozwijanej, czy odcinek posiada pobocza o nawierzchni gruntowej, które będą remontowane w ramach zadania.
B70: strona prawa | I70: dł. | L70: m | M70: szer. | Q70: m | AE70: =IF(OR(I69="",I69="nie",I69="nie dotyczy"),"","Wpisz długość i szerokość remontowanych poboczy gruntowych po stronie prawej") -> 
B71: strona lewa | I71: dł. | L71: m | M71: szer. | Q71: m | AE71: =IF(OR(I69="",I69="nie",I69="nie dotyczy"),"","Wpisz długość i szerokość remontowanych poboczy gruntowych po stronie lewej") -> 
B72: łączna długość | I72: dł. | J72: =IF(AND(J70="",J71=""),"",SUM(J70:K71)) ->  | L72: m | AE72: =IF(I69="tak","Łączna długość remontowanych poboczy gruntowych załaduje się automatycznie","") -> 
H73: pobocza o nawierzchni twardej | AE73: =IF(AY73="b","Sprawdź poprawność danych (lista rozwijana, długości, szerokości) dotyczących poboczy o nawierzchni twardej","Wybierz z listy rozwijanej, czy odcinek posiada pobocza o nawierzchni twardej, które będą remontowane w ramach zadania.") -> Wybierz z listy rozwijanej, czy odcinek posiada pobocza o nawierzchni twardej, które będą remontowane w ramach zadania.
B74: strona prawa | I74: dł. | L74: m | M74: szer. | Q74: m | AE74: =IF(OR(I73="",I73="nie",I73="nie dotyczy"),"","Wpisz długość i szerokość remontowanych poboczy twardych po stronie prawej") -> 
B75: strona lewa | I75: dł. | L75: m | M75: szer. | Q75: m | AE75: =IF(OR(I73="",I73="nie",I73="nie dotyczy"),"","Wpisz długość i szerokość remontowanych poboczy twardych po stronie lewej") -> 
B76: łączna długość | I76: dł. | J76: =IF(AND(J74="",J75=""),"",SUM(J74:K75)) ->  | L76: m | AE76: =IF(I73="tak","Łączna długość remontowanych poboczy o nawierzchni twardej załaduje się automatycznie","") -> 
B77: droga dla pieszych | AE77: =IF(AY77="b","Sprawdź poprawność danych (lista rozwijana, długości, szerokości) dotyczących drogi dla pieszych","Wybierz z listy rozwijanej, czy odcinek posiada drogę dla pieszych, która będzie remontowana w ramach zadania.") -> Wybierz z listy rozwijanej, czy odcinek posiada drogę dla pieszych, która będzie remontowana w ramach zadania.
B78: strona prawa | I78: dł. | L78: m | M78: szer. | Q78: m | AE78: =IF(OR(I77="",I77="nie",I77="nie dotyczy"),"","Wpisz długość i szerokość remontowanej drogi dla pieszych po stronie prawej") -> 
B79: strona lewa | I79: dł. | L79: m | M79: szer. | Q79: m | AE79: =IF(OR(I77="",I77="nie",I77="nie dotyczy"),"","Wpisz długość i szerokość remontowanej drogi dla pieszych po stronie lewej") -> 
B80: łączna długość | I80: dł. | J80: =IF(AND(J78="",J79=""),"",SUM(J78:K79)) ->  | L80: m | AE80: =IF(I77="tak","Łączna długość remontowanej drogi dla pieszych załaduje się automatycznie","") -> 
B81: droga dla pieszych i rowerów | AE81: =IF(AY81="b","Sprawdź poprawność danych (lista rozwijana, długości, szerokości) dotyczących drogi dla pieszych i rowerów","Wybierz z listy rozwijanej, czy odcinek posiada drogę dla pieszych i rowerów, która będzie remontowana w ramach zadania.") -> Wybierz z listy rozwijanej, czy odcinek posiada drogę dla pieszych i rowerów, która będzie remontowana w ramach zadania.
B82: strona prawa | I82: dł. | L82: m | M82: szer. | Q82: m | AE82: =IF(OR(I81="",I81="nie",I81="nie dotyczy"),"","Wpisz długość i szerokość remontowanej drogi dla pieszych i rowerów po stronie prawej") -> 
B83: strona lewa | I83: dł. | L83: m | M83: szer. | Q83: m | AE83: =IF(OR(I81="",I81="nie",I81="nie dotyczy"),"","Wpisz długość i szerokość remontowanej drogi dla pieszych i rowerów po stronie lewej") -> 
B84: łączna długość | I84: dł. | J84: =IF(AND(J82="",J83=""),"",SUM(J82:K83)) ->  | L84: m | AE84: =IF(I81="tak","Łączna długość remontowanej drogi dla pieszych i rowerów załaduje się automatycznie","") -> 
B85: droga dla rowerów | AE85: =IF(AY85="b","Sprawdź poprawność danych (lista rozwijana, długości, szerokości) dotyczących drogi dla rowerów","Wybierz z listy rozwijanej, czy odcinek posiada drogę dla rowerów, która będzie remontowana w ramach zadania.") -> Wybierz z listy rozwijanej, czy odcinek posiada drogę dla rowerów, która będzie remontowana w ramach zadania.
B86: strona prawa | I86: dł. | L86: m | M86: szer. | Q86: m | AE86: =IF(OR(I85="",I85="nie",I85="nie dotyczy"),"","Wpisz długość i szerokość remontowanej drogi dla rowerów po stronie prawej") -> 
B87: strona lewa | I87: dł. | L87: m | M87: szer. | Q87: m | AE87: =IF(OR(I85="",I85="nie",I85="nie dotyczy"),"","Wpisz długość i szerokość remontowanej drogi dla rowerów po stronie lewej") -> 
B88: łączna długość | I88: dł. | J88: =IF(AND(J86="",J87=""),"",SUM(J86:K87)) ->  | L88: m | AE88: =IF(I85="tak","Łączna długość remontowanej drogi dla rowerów załaduje się automatycznie","") -> 
B89: pas ruchu dla rowerów | AE89: =IF(AY89="b","Sprawdź poprawność danych (lista rozwijana, długości, szerokości) dotyczących pasa ruchu dla rowerów","Wybierz z listy rozwijanej, czy odcinek posiada pas ruchu dla rowerów, który będzie remontowany w ramach zadania.") -> Wybierz z listy rozwijanej, czy odcinek posiada pas ruchu dla rowerów, który będzie remontowany w ramach zadania.
B90: strona prawa | I90: dł. | L90: m | M90: szer. | Q90: m | AE90: =IF(OR(I89="",I89="nie",I89="nie dotyczy"),"","Wpisz długość i szerokość remontowanego pasa ruchu dla rowerów po stronie prawej") -> 
B91: strona lewa | I91: dł. | L91: m | M91: szer. | Q91: m | AE91: =IF(OR(I89="",I89="nie",I89="nie dotyczy"),"","Wpisz długość i szerokość remontowanego pasa ruchu dla rowerów po stronie lewej") -> 
B92: łączna długość | I92: dł. | J92: =IF(AND(J90="",J91=""),"",SUM(J90:K91)) ->  | L92: m | AE92: =IF(I89="tak","Łączna długość remontowanego pasa ruchu dla rowerów załaduje się automatycznie","") -> 
B93: stan istniejący | AA93: =LEN(F93) -> 0 | AB93: z | AC93: 1200 | AE93: Opisz stan istniejący odcinka, czyli stan w jakim znajdują się elementy drogi. Można użyć do 1200 wszystkich znaków.
B94: stan projektowany | AA94: =LEN(F94) -> 0 | AB94: z | AC94: 1200 | AE94: Opisz stan jaki ma zostać osiągnięty w wyniku realizacji zadania. Można użyć do 1200 wszystkich znaków.
B95: uzasadnienie | AA95: =LEN(F95) -> 0 | AB95: z | AC95: 1200 | AE95: Uzasadnij realizację zadania. Można użyć do 1200 wszystkich znaków.
A96: 10. | B96: CHARAKTERYSTYKA ZADANIA WEDŁUG KRYTERIÓW OCENY MERYTORYCZNEJ | AE96: =_xlfn.CONCAT(A96,B96) -> 10. CHARAKTERYSTYKA ZADANIA WEDŁUG KRYTERIÓW OCENY MERYTORYCZNEJ
B97: Kryterium nr 1 | F97: - | G97: Poprawa stanu bezpieczeństwa ruchu drogowego, ze szczególnym uwzględnieniem bezpieczeństwa ruchu drogowego niechronionych uczestników ruchu | AE97: =_xlfn.CONCAT(A97,B97," ",F97," ",G97) -> Kryterium nr 1 - Poprawa stanu bezpieczeństwa ruchu drogowego, ze szczególnym uwzględnieniem bezpieczeństwa ruchu drogowego niechronionych uczestników ruchu
A98: A. | B98: Ryzyko wypadków. Odcinek drogi przebiega przez gminę/powiat o dużym poziomie ryzyka społecznego pod względem: | AE98: Dane (lit. A ppkt 1-3) ładują się automatycznie po poprawnym uzupełnieniu pkt 1 oraz pkt 3 wniosku
B99: 1) | C99: wypadków drogowych z udziałem pieszych | Y99: =IF($Q$11="","",IF($Q$11="powiat",VLOOKUP($Q$12,DANE!$D$46:$K$58,6,0),VLOOKUP($Q$13,DANE!$E$59:$K$159,5,0))) -> 
B100: 2) | C100: wypadków drogowych ogółem | Y100: =IF($Q$11="","",IF($Q$11="powiat",VLOOKUP($Q$12,DANE!$D$46:$K$58,7,0),VLOOKUP($Q$13,DANE!$E$59:$K$159,6,0))) -> 
B101: 3) | C101: ofiar śmiertelnych w wypadkach drogowych | Y101: =IF($Q$11="","",IF($Q$11="powiat",VLOOKUP($Q$12,DANE!$D$46:$K$58,8,0),VLOOKUP($Q$13,DANE!$E$59:$K$159,7,0))) -> 
A102: B. | B102: Bezpieczeństwo uczestników ruchu drogowego. Realizacja rozwiązań zwiększających bezpieczeństwo uczestników ruchu drogowego (poprzez remont): | AE102: Wybierz z list rozwijanych "TAK/NIE", czy w ramach zadania będą realizowane rozwiązania zwiększające bezpieczeństwo uczestników ruchu drogowego (w pkt 1 lit. a-e oraz pkt 2 lit. a-d)
B103: 1) | C103: przejścia dla pieszych lub/i przejazdu dla rowerów o podwyższonym standardzie bezpieczeństwa:
C104: a) | D104: z oświetleniem lub/i doświetleniem
C105: b) | D105: z wyspą dzielącą (tzw. azylem)
C106: c) | D106: wyniesionego przejścia dla pieszych lub/i przejazdu dla rowerów
C107: d) | D107: z sygnalizacją świetlną
C108: e) | D108: z oznakowaniem aktywnym lub sygnalizacją ostrzegawczą
B109: 2) | C109: innego rozwiązania w zakresie bezpieczeństwa nie związanego z przejściem dla pieszych lub/i przejazdem dla rowerów:
C110: a) | D110: wyniesionego skrzyżowania
C111: b) | D111: wyspy dzielącej na jezdni wraz z odgięciem toru jazdy na wjeździe do miejscowości
C112: c) | D112: radaru ze znakiem/tablicą zmiennej treści (aktywną), informującym o prędkości ruchu pojazdu
C113: d) | D113: oznakowania aktywnego na dojeździe do przejazdu kolejowo-drogowego
B114: Kryterium nr 2 | F114: - | G114: Zapewnienie spójności sieci dróg publicznych | AE114: =_xlfn.CONCAT(A114,B114," ",F114," ",G114) -> Kryterium nr 2 - Zapewnienie spójności sieci dróg publicznych
A115: A. | B115: Połączenie z innymi drogami publicznymi. Bezpośrednie połączenie odcinka drogi z inną drogą publiczną wyższego rzędu | AE115: Wybierz z listy rozwijanej, czy odcinek drogi ma bezpośrednie połączenie z drogą wyższego rzędu. Jeśli TAK podaj numer drogi wyższego rzędu stosując oznaczenia: DK – droga krajowa, DW – droga wojewódzka, DP – droga powiatowa, DG – droga gminna. Numer należy podać w formacie np. DP-1234T (można użyć do 100 wszystkich znaków). Zaznacz to połączenie na załączonej mapie poglądowej.
AA116: =LEN(D116) -> 0 | AB116: z | AC116: 100
B117: jeżeli wybrano odpowiedź TAK, należy wskazać to połączenie na załączonej mapie poglądowej
A118: B. | B118: Kontynuacja zadania. Kontynuacja robót budowlanych* realizowanych na podstawie umowy dofinansowania w ramach RFRD oraz zakończonych w ciągu 3 lat przed datą złożenia wniosku o dofinansowanie
B119: *kontynuacja robót budowlanych oznacza, że wcześniejsze roboty budowlane realizowane były na odcinku drogi bezpośrednio połączonym z odcinkiem drogi objętym wnioskowanym zadaniem | AE119: Wybierz z listy rozwijanej, czy odcinek stanowi kontynuację robót budowlanych (budowy, przebudowy lub remontu) w ramach wcześniej zawartych umów o dofinansowanie ze środków RFRD i zakończonych w ciągu 3 lat przed datą złożenia wniosku o dofinansowanie. Jeśli TAK wpisz numer umowy z wojewodą i datę jej zawarcia (np. 175/RFRD/A/2023 z dnia 30.04.2023) (można użyć do 100 znaków) oraz zaznacz to połącznie na załączonej mapie poglądowej.
AA120: =LEN(D120) -> 0 | AB120: z | AC120: 100
B121: jeżeli wybrano odpowiedź TAK, należy wskazać to połączenie na załączonej mapie poglądowej
A122: C. | B122: Peryferyjność. Odcinek drogi biegnie przez gminę, dla której wskaźnik peryferyjności czasowej jest mniejszy niż 30 min., mieści się w przedziale od 30 do 50 minut, jest większy niż 50 min. | AE122: Dana ładuje się automatycznie, po poprawnym wypełnieniu pkt 3 wniosku
B123: wskaźnik peryferyjności czasowej: | N123: =IF(OR(L20="",L20=0),"",VLOOKUP(L20,DANE!E46:M159,9,0)) -> 
A124: D. | B124: Uszkodzenie w wyniku niekorzystnych zjawisk atmosferycznych. Odcinek drogi został uszkodzony w wyniku działania niekorzystnych zjawisk atmosferycznych w ciągu 3 lat przed datą złożenia wniosku o dofinansowanie i jest ujęty w protokole strat potwierdzonym przez Wojewodę Świętokrzyskiego | AE124: Wybierz z listy rozwijanej, czy odcinek drogi został uszkodzony w wyniku działania niekorzystnych zjawisk atmosferycznych w ciągu 3 lat przed datą złożenia wniosku o dofinansowanie i jest ujęty w protokole strat potwierdzonym przez Wojewodę Świętokrzyskiego. Jeśli TAK, to wpisz rodzaj klęski i jej datę (można użyć do 70 wszystkich znaków) oraz numer i datę protokołu strat potwierdzonego przez Wojewodę Świętokrzyskiego (można użyć do 70 wszystkich znaków). Załącz kopię protokołu do wniosku. Zaznacz uszkodzony fragment na mapie poglądowej.
D125: rodzaj i data zjawiska | AA125: =LEN(L125) -> 0 | AB125: z | AC125: 70
D126: protokół strat potwierdzony przez Wojewodę Świętokrzyskiego | AA126: =LEN(L126) -> 0 | AB126: z | AC126: 70
B127: jeżeli wybrano odpowiedź TAK, należy załączyć do wniosku kopię protokołu strat potwierdzonego przez Wojewodę Świętokrzyskiego oraz zaznaczyć uszkodzony odcinek na mapie poglądowej
B128: Kryterium nr 3 | F128: - | G128: Podnoszenie standardów technicznych dróg powiatowych i dróg gminnych, w szczególności dostosowanie ich do ruchu pojazdów o dopuszczalnym nacisku pojedynczej osi napędowej do 11,5 t, oraz zachowanie jednorodności sieci dróg powiatowych i dróg gminnych pod względem spełniania tych standardów | AE128: =_xlfn.CONCAT(A128,B128," ",F128," ",G128) -> Kryterium nr 3 - Podnoszenie standardów technicznych dróg powiatowych i dróg gminnych, w szczególności dostosowanie ich do ruchu pojazdów o dopuszczalnym nacisku pojedynczej osi napędowej do 11,5 t, oraz zachowanie jednorodności sieci dróg powiatowych i dróg gminnych pod względem spełniania tych standardów
A129: A. | B129: Skrzyżowania. Remont skrzyżowań: | AE129: Wybierz z list rozwijanych, czy w ramach zadania będzie realizowany remont podanych rodzajów skrzyżowań (lit. A, pkt 1-2). Jeśli TAK, to podaj ich ilości w sztukach oraz zaznacz te skrzyżowania na załączonej mapie poglądowej.
B130: 1) | C130: zwykłych z drogami publicznymi | Z130: szt. | AE130: =IF(AND(AY130="b",V130="tak"),"Błąd - wybrano TAK i nie podano ilości sztuk",IF(AND(AY130="b",OR(V130="nie",V130="")),"Błąd - wybrano NIE i podano ilość sztuk (pozostawienie pustego pola wyboru jest jednoznaczne z wybraniem NIE)","")) ->  | AY130: =IF(AND(V130="",X130=""),"ok",IF(AND(V130="tak",X130>0),"ok",IF(AND(V130="nie",X130=0),"ok",IF(AND(V130="nie",X130>""),"ok",IF(AND(V130="",X130=0),"ok","b"))))) -> ok
B131: 2) | C131: innych:
C132: • | D132: skanalizowanych | Z132: szt. | AE132: =IF(AND(AY132="b",V132="tak"),"Błąd - wybrano TAK i nie podano ilości sztuk",IF(AND(AY132="b",OR(V132="nie",V132="")),"Błąd - wybrano NIE i podano ilość sztuk (pozostawienie pustego pola wyboru jest jednoznaczne z wybraniem NIE)","")) ->  | AY132: =IF(AND(V132="",X132=""),"ok",IF(AND(V132="tak",X132>0),"ok",IF(AND(V132="nie",X132=0),"ok",IF(AND(V132="nie",X132>""),"ok",IF(AND(V132="",X132=0),"ok","b"))))) -> ok
C133: • | D133: w formie ronda | Z133: szt. | AE133: =IF(AND(AY133="b",V133="tak"),"Błąd - wybrano TAK i nie podano ilości sztuk",IF(AND(AY133="b",OR(V133="nie",V133="")),"Błąd - wybrano NIE i podano ilość sztuk (pozostawienie pustego pola wyboru jest jednoznaczne z wybraniem NIE)","")) ->  | AY133: =IF(AND(V133="",X133=""),"ok",IF(AND(V133="tak",X133>0),"ok",IF(AND(V133="nie",X133=0),"ok",IF(AND(V133="nie",X133>""),"ok",IF(AND(V133="",X133=0),"ok","b"))))) -> ok
C134: • | D134: innych podnoszących poziom bezpieczeństwa np. z sygnalizacją świetlną | Z134: szt. | AE134: =IF(AND(AY134="b",V134="tak"),"Błąd - wybrano TAK i nie podano ilości sztuk",IF(AND(AY134="b",OR(V134="nie",V134="")),"Błąd - wybrano NIE i podano ilość sztuk (pozostawienie pustego pola wyboru jest jednoznaczne z wybraniem NIE)","")) ->  | AY134: =IF(AND(V134="",X134=""),"ok",IF(AND(V134="tak",X134>0),"ok",IF(AND(V134="nie",X134=0),"ok",IF(AND(V134="nie",X134>""),"ok",IF(AND(V134="",X134=0),"ok","b"))))) -> ok
B135: jeśli wybrano odpowiedź TAK, należy wskazać to skrzyżowanie na załączonej mapie poglądowej
A136: B. | B136: Drogowe obiekty inżynierskie. Remont drogowych obiektów inżynierskich: | AE136: Wybierz z list rozwijanych, czy w ramach zadania będzie realizowany remont podanych obiektów inżynierskich (lit. B pkt 1-3). Jeśli TAK, to podaj ich ilości w sztukach oraz zaznacz te obiekty na załączonej mapie poglądowej.
B137: 1) | C137: • | D137: mostów | Z137: szt. | AE137: =IF(AND(AY137="b",V137="tak"),"Błąd - wybrano TAK i nie podano ilości sztuk",IF(AND(AY137="b",OR(V137="nie",V137="")),"Błąd - wybrano NIE i podano ilość sztuk (pozostawienie pustego pola wyboru jest jednoznaczne z wybraniem NIE)","")) ->  | AY137: =IF(AND(V137="",X137=""),"ok",IF(AND(V137="tak",X137>0),"ok",IF(AND(V137="nie",X137=0),"ok",IF(AND(V137="nie",X137>""),"ok",IF(AND(V137="",X137=0),"ok","b"))))) -> ok
C138: • | D138: wiaduktów | Z138: szt. | AY138: =IF(AND(V138="",X138=""),"ok",IF(AND(V138="tak",X138>0),"ok",IF(AND(V138="nie",X138=0),"ok",IF(AND(V138="nie",X138>""),"ok",IF(AND(V138="",X138=0),"ok","b"))))) -> ok
C139: • | D139: estakad | Z139: szt. | AY139: ok
C140: • | D140: kładek dla pieszych | Z140: szt. | AY140: ok
B141: 2) | C141: przepustów pod koroną drogi | Z141: szt. | AY141: ok
B142: 3) | C142: konstrukcji oporowej | Z142: szt. | AY142: ok
B143: jeśli wybrano odpowiedź TAK, należy wskazać ten obiekt na załączonej mapie poglądowej
A144: C. | B144: Inne. Remont elementów w ramach wnioskowanego zadania: | AE144: Wybierz z list rozwijanych, czy w ramach zadania będzie realizowany remont podanych elementów (lit. C pkt 1-4).
B145: 1) | C145: drogi dla pieszych lub rowerów | AE145: =IF(Y145="","Wybierz z listy rozwijanej, czy w ramach zadania będzie realizowana droga dla pieszych lub droga dla rowerów", IF(AND(OR(I77="tak",I85="tak"),Y145<>"tak"),"BŁĄD - w pkt 9 wybrano TAK; należy wybrać TAK lub zmienić odpowiedź w pkt 9 wniosku (droga dla pieszych lub droga dla rowerów)",IF(AND(OR(I77<>"tak",I85<>"tak"),Y145="tak"),"BŁĄD - w pkt 9 wybrano NIE (pozostawienie komórki pustej jest jednoznaczne z wybraniem NIE); należy wybrać NIE lub zmienić odpowiedź w pkt 9 wniosku (droga dla pieszych lub droga rowerów)","OK"))) -> Wybierz z listy rozwijanej, czy w ramach zadania będzie realizowana droga dla pieszych lub droga dla rowerów | AY145: =IF(Y145="","w",IF(AND(OR(I77="tak",I85="tak"),Y145<>"tak"),"b",IF(AND(OR(I77<>"tak",I85<>"tak"),Y145="tak"),"b","OK"))) -> w
B146: 2) | C146: drogi dla pieszych i rowerów (ciągu pieszo-rowerowego) | AE146: =IF(Y146="","Wybierz z listy rozwijanej, czy w ramach zadania będzie realizowana droga dla pieszych i rowerów", IF(AND(I81="tak",Y146<>"tak"),"BŁĄD - w pkt 9 wybrano TAK; należy wybrać TAK lub zmienić odpowiedź w pkt 9 wniosku (droga dla pieszych i rowerów)",IF(AND(I81<>"tak",Y146="tak"),"BŁĄD - w pkt 9 wybrano NIE (pozostawienie komórki pustej jest jednoznaczne z wybraniem NIE); należy wybrać NIE lub zmienić odpowiedź w pkt 9 wniosku (droga dla pieszych i rowerów)","OK"))) -> Wybierz z listy rozwijanej, czy w ramach zadania będzie realizowana droga dla pieszych i rowerów | AY146: =IF(Y146="","w",IF(AND(I81="tak",Y146<>"tak"),"b",IF(AND(I81<>"tak",Y146="tak"),"b","OK"))) -> w
B147: 3) | C147: oświetlenia ulicznego
B148: 4) | C148: odwodnienia drogi (kanału deszczowego, rowu)
B149: 5) | C149: przebudowy drogi wewnętrznej i zaliczenie jej do kategorii dróg | Y149: NIE | AE149: NIE DOTYCZY REMONTU | AY149: =IF(Y149="nie","OK","B") -> OK
B150: 6) | C150: dostosowania drogi do ruchu pojazdów o dopuszczalnym nacisku pojedynczej osi napędowej do 11,5 t | Y150: NIE | AE150: NIE DOTYCZY REMONTU | AY150: =IF(Y150="nie","OK","B") -> OK
B151: Kryterium nr 4 | F151: - | G151: Zwiększenie dostępności transportowej jednostek administracyjnych | AE151: =_xlfn.CONCAT(A151,B151," ",F151," ",G151) -> Kryterium nr 4 - Zwiększenie dostępności transportowej jednostek administracyjnych
A152: A. | B152: Obszar wiejski. Odcinek drogi przebiega w całości lub w części na obszarze wiejskim (wykracza poza granice administracyjne miasta) | AE152: Wybierz z listy rozwijanej , czy odcinek drogi przebiega w całości lub w części na obszarze wiejskim (wykracza poza granice administracyjne miasta).
A154: B. | B154: Utrata funkcji społeczno-gospodarczych. Odcinek drogi przebiega w całości lub w części w granicach administracyjnych miast ujętych w pakiecie dla średnich miast uznanych za zagrożone utratą funkcji społeczno-gospodarczych (na podstawie Analizy Instytutu Geografii i Przestrzennego Zagospodarowania PAN)
AE155: Wybierz z listy rozwijanej, czy odcinek przebiega w granicach administracyjnych jednego z miast ujętych w Pakiecie dla średnich miast uznanych za zagrożone utratą funkcji społeczno-gospodarczych. Jeśli TAK, to wybierz z listy rozwijanej miasto, przez które przebiega odcinek.
B156: =IFERROR(IF(FIND("TAK",B155)=1,"miasto",""),"") -> 
B157: średnie miasta uznane za zagrożone utratą funkcji społeczno-gospodarczych w województwie świętokrzyskim – Busko-Zdrój, Jędrzejów, Końskie, Ostrowiec Świętokrzyski, Sandomierz, Skarżysko-Kamienna, Starachowice, Staszów.
A158: C. | B158: Instytucje publiczne i miejsca zgromadzeń. Odcinek drogi zapewnia bezpośredni dojazd* do:
B159: • • | C159: miejsc zgromadzeń ludności (np.: cmentarz, boisko, amfiteatr, obiekty zabytkowe, sakralne, turystyczne, itp.) instytucji publicznych lub świadczących usługi publiczne (np.: urząd gminy, szkoła, ośrodek zdrowia, ośrodek pomocy społecznej, remiza OSP, świetlica wiejska, żłobek, przedszkole, klub seniora. itp.)
B160: *bezpośredni dojazd - położenie do 200 m od odcinka drogi
AA161: =LEN(D161) -> 0 | AB161: z | AC161: 500 | AE161: Wybierz z listy rozwijanej, czy odcinek drogi zapewnia bezpośredni dojazd (do 200 m od odcinka) do miejsc zgromadzeń ludności, instytucji publicznych lub świadczących usługi publiczne. Jeśli TAK, to wymień do jakich miejsc zgromadzeń ludności, instytucji publicznych lub świadczących usługi publiczne odcinek zapewnia bezpośredni dojazd (można użyć do 500 wszystkich znaków) oraz zaznacz te miejsca na załączonej mapie poglądowej mapie poglądowej.
B162: jeżeli wybrano odpowiedź TAK, należy wskazać te miejsca i instytucje na załączonej mapie poglądowej
A163: D. | B163: Transport publiczny. Na odcinku drogi przebiega linia autobusowa objęta wsparciem z Funduszu Rozwoju Przewozów Autobusowych, realizowane są usługi transportu publicznego, uchwalono planowany przebieg linii użyteczności publicznej
AA164: =LEN(D164) -> 0 | AB164: z | AC164: 300 | AE164: Wybierz z listy rozwijanej, czy na odcinku drogi przebiega linia autobusowa objęta wsparciem z Funduszu Rozwoju Przewozów Autobusowych, realizowane są usługi transportu publicznego, uchwalono planowany przebieg linii użyteczności publicznej. Jeśli TAK, to wpisz nr umowy z wojewodą i datę jej zawarcia oraz nr linii autobusowej lub usługi transportu publicznego lub numer i datę uchwały o planowanym przebiegu linii użyteczności publicznej (można użyć do 300 wszystkich znaków), zaznacz przebieg linii na załączonej mapie poglądowej oraz załącz do wniosku kopię odpowiedniego dokumentu.
B165: jeżeli wybrano odpowiedź TAK, należy załączyć do wniosku kopię odpowiedniego dokumentu oraz zaznaczyć przebieg linii na załączonej mapie poglądowej.
A166: E. | B166: Dostępność komunikacyjna. Wpływ odcinka drogi na dostępność komunikacyjną obszaru, na którym znajduje się ta droga
AA167: =LEN(D167) -> 0 | AB167: z | AC167: 500 | AE167: Wybierz z listy rozwijanej, czy odcinek drogi wpływa na dostępność komunikacyjną obszaru, na którym znajduje się ta droga. Jeśli TAK, to opisz wpływ odcinka drogi na dostępność komunikacyjną obszaru, na którym znajduje się ta droga (można użyć do 500 wszystkich znaków).
B168: Kryterium nr 5 | F168: - | G168: Poprawa dostępności terenów inwestycyjnych i gospodarczych | AE168: =_xlfn.CONCAT(A168,B168," ",F168," ",G168) -> Kryterium nr 5 - Poprawa dostępności terenów inwestycyjnych i gospodarczych
A169: A. | B169: Lokalne ośrodki gospodarcze. Odcinek drogi zapewnia bezpośredni dojazd* do lokalnych ośrodków gospodarczych np. do strefy ekonomicznej, podmiotów gospodarczych, lokalnego targowiska *bezpośredni dojazd - położenie do 200 m od odcinka drogi
AA170: =LEN(D170) -> 0 | AB170: z | AC170: 400 | AE170: Wybierz z listy rozwijanej , czy odcinek drogi zapewnia bezpośredni dojazd (do 200 m od odcinka) do lokalnych ośrodków gospodarczych np. do strefy ekonomicznej, podmiotów gospodarczych, lokalnego targowiska. Jeśli TAK, to wymień do jakich lokalnych ośrodków gospodarczych odcinek stanowi bezpośredni dojazd (można użyć do 400 wszystkich znaków) oraz zaznacz te ośrodki na załączonej mapie poglądowej.
B171: jeżeli wybrano odpowiedź TAK, należy wskazać te ośrodki gospodarcze na załączonej mapie poglądowej
A172: B. | B172: Tereny inwestycyjne. Odcinek drogi zapewnia bezpośredni dojazd* do terenów inwestycyjnych, rozumianych jako tereny przeznaczone pod działalność gospodarczą w studium uwarunkowań przestrzennych, miejscowym planie zagospodarowania, warunkach zabudowy lub decyzji lokalizacyjnej celu publicznego *bezpośredni dojazd - położenie do 200 m od odcinka drogi
AA173: =LEN(D173) -> 0 | AB173: z | AC173: 400 | AE173: Wybierz z listy rozwijanej, czy odcinek drogi zapewnia bezpośredni dojazd (do 200 m od odcinka) do terenów inwestycyjnych, rozumianych jako tereny przeznaczone pod działalność gospodarczą w studium uwarunkowań przestrzennych, miejscowym planie zagospodarowania, warunkach zabudowy lub decyzji lokalizacyjnej celu publicznego. Jeśli TAK, to wymień do jakich terenów inwestycyjnych odcinek stanowi bezpośredni dojazd (można użyć do 400 wszystkich znaków) oraz zaznacz te tereny na załączonej mapie poglądowej.
B174: jeżeli wybrano odpowiedź TAK, należy wskazać te tereny inwestycyjne na załączonej mapie poglądowej
A175: C. | B175: Tereny rolne. Odcinek drogi zapewnia bezpośredni dojazd* do terenów, na których prowadzona jest produkcja rolna, sadownictwo, ogrodnictwo lub/i zlokalizowane są gospodarstwa agroturystyczne ważne ze względu na specyfikę obszaru *bezpośredni dojazd - położenie do 200 m od odcinka drogi
AA176: =LEN(D176) -> 0 | AB176: z | AC176: 400 | AE176: Wybierz z listy rozwijanej, czy odcinek drogi zapewnia bezpośredni dojazd (do 200 m od odcinka) do terenów, na których prowadzona jest produkcja rolna, sadownictwo, ogrodnictwo lub/i zlokalizowane są gospodarstwa agroturystyczne ważne ze względu na specyfikę obszaru. Jeśli TAK, to wymień do jakich terenów rolnych odcinek stanowi bezpośredni dojazd (można użyć do 400 wszystkich znaków) oraz zaznacz te tereny na załączonej mapie poglądowej.
B177: jeżeli wybrano odpowiedź TAK, należy wskazać te tereny rolne na załączonej mapie poglądowej
A178: D. | B178: Rozwój społeczno-gospodarczy. Strategiczne znaczenia odcinka drogi dla rozwoju społeczno-gospodarczego województwa
AA179: =LEN(D179) -> 0 | AB179: z | AC179: 500 | AE179: Wybierz z listy rozwijanej, czy odcinek drogi ma strategiczne znaczenie dla rozwoju społeczno-gospodarczego województwa. Jeśli TAK, to opisz przewidywane znaczenie wnioskowanego odcinka drogi dla rozwoju społeczno-gospodarczego województwa (można użyć do 500 wszystkich znaków).
B180: Kryterium nr 6 | F180: - | G180: Zwiększenie liczby obwodnic w ciągu dróg powiatowych i dróg gminnych | AE180: =_xlfn.CONCAT(A180,B180," ",F180," ",G180) -> Kryterium nr 6 - Zwiększenie liczby obwodnic w ciągu dróg powiatowych i dróg gminnych
B181: Zwiększenie liczby obwodnic. Odcinek drogi przyczynia się do zwiększenia liczby dróg spełniających funkcję obwodnicy, która w rozumieniu art. 2 ust.1 pkt 2a ustawy o RFRD oznacza drogę omijającą miejscowość lub teren zwartej zabudowy miejscowości, planowaną do realizacji w większości w nowym przebiegu i mającą na celu wyprowadzenie części ruchu pojazdów z tej miejscowości
B182: NIE | D182: NIE DOTYCZY | AE182: NIE DOTYCZY REMONTU
B183: Kryterium nr 7 | F183: - | G183: Poprawa dostępności terenów objętych przedsięwzięciami lub inwestycjami powiązanymi z przedsięwzięciem infrastrukturalnym | AE183: =_xlfn.CONCAT(A183,B183," ",F183," ",G183) -> Kryterium nr 7 - Poprawa dostępności terenów objętych przedsięwzięciami lub inwestycjami powiązanymi z przedsięwzięciem infrastrukturalnym
B184: Tereny powiązane z przedsięwzięciem infrastrukturalnym. Odcinek drogi przyczynia się do poprawy dostępności terenów objętych przedsięwzięciami lub inwestycjami powiązanymi z przedsięwzięciem infrastrukturalnym, o których mowa w art. 5c ust. 1 ustawy z dnia 8 grudnia 2006 r. o finansowym wsparciu niektórych przedsięwzięć mieszkaniowych (Dz. U. z 2024 r. poz. 304)
AA185: =LEN(D185) -> 0 | AB185: z | AC185: 500 | AE185: Wybierz z listy rozwijanej, czy odcinek drogi przyczynia się do poprawy dostępności terenów objętych przedsięwzięciami lub inwestycjami powiązanymi z przedsięwzięciem infrastrukturalnym. Jeśli TAK wymień te tereny i krótko opisz (można użyć do 500 wszystkich znaków).
B186: jeżeli wybrano odpowiedź TAK, należy wskazać te tereny na załączonej mapie poglądowej
A187: 11. | B187: OSOBY UPOWAŻNIONE DO UDZIELANIA WYJAŚNIEŃ KOMISJI | AE187: =_xlfn.CONCAT(A187,B187) -> 11. OSOBY UPOWAŻNIONE DO UDZIELANIA WYJAŚNIEŃ KOMISJI
A188: Lp. | B188: imię i nazwisko | I188: stanowisko służbowe | O188: nr telefonu | T188: e-mail | AE188: Wskaż osobę/osoby do kontaktu przez podanie następujących danych: - imię i nazwisko, - zajmowane stanowisko służbowe, - nr telefonu (ze wskazaniem nr wewnętrznego - jeśli dotyczy), - adres e-mail.
A189: 1
A190: 2
A191: 12. | B191: ZŁĄCZNIKI | AE191: =_xlfn.CONCAT(A191,B191) -> 12. ZŁĄCZNIKI
B192: Do wniosku dołączone zostały załączniki: | AE192: Wybierz z list rozwijanych, które z wymienionych załączników zostały dołączone do wniosku.
B193: a) | C193: kopia prawomocnej* decyzji o pozwoleniu na budowę - dotyczy robót realizowanych na podstawie pozwolenia na budowę (nie dotyczy), *w przypadku nadania decyzji rygoru natychmiastowej wykonalności prawomocność nie jest wymagana | X193: NIE DOTYCZY | AE193: NIE DOTYCZY REMONTU
C194: lub | X194: NIE DOTYCZY
C195: kopia prawomocnej* decyzji o zezwoleniu na realizację inwestycji drogowej (ZRID)- dotyczy robót realizowanych na podstawie ZRID (nie dotyczy), *w przypadku nadania decyzji rygoru natychmiastowej wykonalności prawomocność nie jest wymagana | AE195: NIE DOTYCZY REMONTU
C196: lub
C197: kopia zgłoszenia robót budowlanych z poświadczeniem o braku podstaw do wniesienia sprzeciwu na zgłoszenie wykonania robót budowlanych potwierdzonym: - zaświadczeniem organu administracji architektoniczno-budowlanej lub - pieczęcią organu administracji architektoniczno-budowlanej dotyczy robót realizowanych na podstawie zgłoszenia (obligatoryjnie). | AE197: =IF(X196="","Wybierz z listy rozwijanej, czy załączono kopię zgłoszenia robót budowlanych z poświadczeniem o braku podstaw do wniesienia sprzeciwu na zgłoszenie wykonania robót budowlanych."&" Załącznik jest OBLIGATORYJNY. Pozostawienie komórki pustej jest jednoznaczne z wybraniem NIE.",IF(OR(X196="",X196="nie",X196="nie dotyczy"),"BŁĄD - kopia zgłoszenia robót budowlanych z poświadczeniem o braku podstaw do wniesienia sprzeciwu na zgłoszenie wykonania robót budowlanych jest załącznikiem OBLIGATORYJNYM","OK - wnioskodawca oświadczył, że załączył do wniosku kopię zgłoszenia robót budowlanych z poświadczeniem o braku podstaw do wniesienia sprzeciwu na zgłoszenie wykonania robót budowlanych")) -> Wybierz z listy rozwijanej, czy załączono kopię zgłoszenia robót budowlanych z poświadczeniem o braku podstaw do wniesienia sprzeciwu na zgłoszenie wykonania robót budowlanych. Załącznik jest OBLIGATORYJNY. Pozostawienie komórki pustej jest jednoznaczne z wybraniem NIE. | AY197: =IF(X196="tak","OK","B") -> B | AZ197: =IF(OR(X196="nie",X196="nie dotyczy"),"B","OK") -> OK
B198: b) | C198: zgodna ze stanem faktycznym, czytelna mapa poglądowa zawierająca: - naniesioną skalę, - zaznaczone miejsce/odcinek realizacji wnioskowanego zadania, - obszar obrazujący odległość 200 m od odcinka drogi objętego zadaniem, - zaznaczone elementy mające wpływ na ocenę merytoryczną wniosku - dotyczy kryterium: nr 2 lit. A, B, D; nr 3 lit. A, B; nr 4 lit. C, D; nr 5 lit. A, B, C; nr 7 (obligatoryjnie). | AE198: =IF(X198="","Wybierz z listy rozwijanej, czy załączono mapę poglądową. Załącznik jest OBLIGATORYJNY. Pozostawienie komórki pustej jest jednoznaczne z wybraniem NIE.",IF(OR(X198="",X198="nie",X198="nie dotyczy"),"BŁĄD - mapa poglądowa jest załącznikiem OBLIGATORYJNYM","OK - wnioskodawca oświadczył, że załączył do wniosku mapę poglądową")) -> Wybierz z listy rozwijanej, czy załączono mapę poglądową. Załącznik jest OBLIGATORYJNY. Pozostawienie komórki pustej jest jednoznaczne z wybraniem NIE. | AY198: =IF(X198="tak","OK","B") -> B | AZ198: =IF(OR(X198="nie",X198="nie dotyczy"),"B","OK") -> OK
B199: c) | C199: rysunki z charakterystycznymi przekrojami poprzecznymi pasa drogowego w liniach rozgraniczających ze zwymiarowanymi elementami drogi – szerokość jezdni, pasa ruchu drogowego, pobocza, drogi dla pieszych, itp. (nie dotyczy). | X199: NIE DOTYCZY | AE199: NIE DOTYCZY REMONTU
B200: d) | C200: kopia kosztorysu inwestorskiego (obligatoryjnie). | AE200: =IF(X200="","Wybierz z listy rozwijanej, czy załączono kopię aktualnego kosztorysu inwestorskiego (sporządzonego nie wcześniej niż 6 miesięcy przed złożeniem wniosku)."&" Załącznik jest OBLIGATORYJNY. Pozostawienie komórki pustej jest jednoznaczne z wybraniem NIE.",IF(OR(X200="",X200="nie",X200="nie dotyczy"),"BŁĄD - kopia aktualnego kosztorysu inwestorskiego jest załącznikiem OBLIGATORYJNYM","OK - wnioskodawca oświadczył, że załączył do wniosku kopię aktualnego kosztorysu inwestorskiego")) -> Wybierz z listy rozwijanej, czy załączono kopię aktualnego kosztorysu inwestorskiego (sporządzonego nie wcześniej niż 6 miesięcy przed złożeniem wniosku). Załącznik jest OBLIGATORYJNY. Pozostawienie komórki pustej jest jednoznaczne z wybraniem NIE. | AY200: =IF(X200="tak","OK","B") -> B | AZ200: =IF(OR(X200="nie",X200="nie dotyczy"),"B","OK") -> OK
B201: e) | C201: kopia zgody na odstępstwo od przepisów techniczno-budowlanych (nie dotyczy). | X201: NIE DOTYCZY | AE201: NIE DOTYCZY REMONTU
... 34 more rows

Sheet SŁOWNIK (hidden)
B1: WYKAZ POJĘĆ - jeszcze w opracowaniu
B3: Ustawa z dnia 7 lipca 1994 r. Prawo budowlane (t.j. Dz.U. z 2025 r. poz. 418)
B4: art. 3, pkt 1 | C4: obiekt budowlany | D4: budynek, budowla bądź obiekt małej architektury, wraz z instalacjami zapewniającymi możliwość użytkowania obiektu zgodnie z jego przeznaczeniem, wzniesiony z użyciem wyrobów budowlanych | F4: =UPPER(C4) -> OBIEKT BUDOWLANY
B5: art. 3, pkt 3 | C5: budowla | D5: każdy obiekt budowlany niebędący budynkiem lub obiektem małej architektury, jak: obiekty liniowe, lotniska, mosty, wiadukty, estakady, tunele, przepusty, sieci techniczne, wolno stojące maszty antenowe, wolno stojące trwale związane z gruntem tablice reklamowe i urządzenia reklamowe, budowle ziemne, obronne (fortyfikacje), ochronne, hydrotechniczne, zbiorniki, wolno stojące instalacje przemysłowe lub urządzenia techniczne, oczyszczalnie ścieków, składowiska odpadów, stacje uzdatniania wody, konstrukcje oporowe, nadziemne i podziemne przejścia dla pieszych, sieci uzbrojenia terenu, budowle sportowe, cmentarze, pomniki, a także części budowlane urządzeń technicznych (kotłów, pieców przemysłowych, elektrowni jądrowych, elektrowni wiatrowych, morskich turbin wiatrowych i innych urządzeń) oraz fundamenty pod maszyny i urządzenia, jako odrębne pod względem technicznym części przedmiotów składających się na całość użytkową | F5: =UPPER(C5) -> BUDOWLA
B6: art. 3, pkt 3a | C6: obiekt liniowy | D6: obiekt budowlany, którego charakterystycznym parametrem jest długość, w szczególności droga wraz ze zjazdami, droga kolejowa, wodociąg, kanał, gazociąg, ciepłociąg, rurociąg, linia i trakcja elektroenergetyczna, linia kablowa nadziemna i, umieszczona bezpośrednio w ziemi, podziemna, wał przeciwpowodziowy oraz kanalizacja kablowa, przy czym kable zainstalowane w kanalizacji kablowej, kable zainstalowane w kanale technologicznym oraz kable telekomunikacyjne dowieszone do już istniejącej linii kablowej nadziemnej nie stanowią obiektu budowlanego lub jego części ani urządzenia budowlanego | F6: OBIEKT LINIOWY
B7: art. 3, pkt 4 | C7: obiekt małej architektury | D7: niewielkie obiekty, a w szczególności: a) kultu religijnego, jak: kapliczki, krzyże przydrożne, figury, b) posągi, wodotryski i inne obiekty architektury ogrodowej, c) użytkowe służące rekreacji codziennej i utrzymaniu porządku, jak: piaskownice, huśtawki, drabinki, śmietniki | F7: OBIEKT MAŁEJ ARCHITEKTURY
B8: art. 3, pkt 6 | C8: budowa | D8: wykonywanie obiektu budowlanego w określonym miejscu, a także odbudowę, rozbudowę, nadbudowę obiektu budowlanego | F8: BUDOWA
B9: art. 3, pkt 7 | C9: roboty budowlane | D9: budowa, a także prace polegające na przebudowie, montażu, remoncie lub rozbiórce obiektu budowlanego | F9: ROBOTY BUDOWLANE
B10: art. 3, pkt 7a | C10: przebudowa | D10: wykonywanie robót budowlanych, w wyniku których następuje zmiana parametrów użytkowych lub technicznych istniejącego obiektu budowlanego, z wyjątkiem charakterystycznych parametrów, jak: kubatura, powierzchnia zabudowy, wysokość, długość, szerokość bądź liczba kondygnacji; w przypadku dróg są dopuszczalne zmiany charakterystycznych parametrów w zakresie niewymagającym zmiany granic pasa drogowego | F10: PRZEBUDOWA
B11: art. 3, pkt 8 | C11: remont | D11: wykonywanie w istniejącym obiekcie budowlanym robót budowlanych polegających na odtworzeniu stanu pierwotnego, a niestanowiących bieżącej konserwacji, przy czym dopuszcza się stosowanie wyrobów budowlanych innych niż użyto w stanie pierwotnym | F11: REMONT
B12: art. 3, pkt 11 | C12: prawo do dysponowania nieruchomością na cele budowlane | D12: tytuł prawny wynikający z prawa własności, użytkowania wieczystego, zarządu, ograniczonego prawa rzeczowego albo stosunku zobowiązaniowego, przewidującego uprawnienia do wykonywania robót budowlanych | F12: PRAWO DO DYSPONOWANIA NIERUCHOMOŚCIĄ NA CELE BUDOWLANE

Sheet DANE (hidden)
B1: DANE DO WNIOSKU - proszę nic nie zmieniać w tym arkuszu !!!
B7: JST | D7: GMINA | E7: POWIAT | F7: Buski | G7: Jędrzejowski | H7: Kazimierski | I7: Kielecki | J7: Konecki | K7: Opatowski | L7: Ostrowiecki | M7: Pińczowski | N7: Sandomierski | O7: Skarżyski | P7: Starachowicki | Q7: Staszowski | R7: Włoszczowski
B8: GMINA | D8: Buski | E8: Buski | F8: Busko-Zdrój | G8: Imielno | H8: Bejsce | I8: Bieliny | J8: Fałków | K8: Baćkowice | L8: Bałtów | M8: Działoszyce | N8: Dwikozy | O8: Bliżyn | P8: Brody | Q8: Bogoria | R8: Kluczewsko | S8: 1
B9: POWIAT | D9: Jędrzejowski | E9: Jędrzejowski | F9: Gnojno | G9: Jędrzejów | H9: Czarnocin | I9: Bodzentyn | J9: Gowarczów | K9: Iwaniska | L9: Bodzechów | M9: Kije | N9: Klimontów | O9: Łączna | P9: Mirzec | Q9: Łubnice | R9: Krasocin | S9: 2
D10: Kazimierski | E10: Kazimierski | F10: Nowy Korczyn | G10: Małogoszcz | H10: Kazimierza Wielka | I10: Chęciny | J10: Końskie | K10: Lipnik | L10: Ćmielów | M10: Michałów | N10: Koprzywnica | O10: Skarżysko-Kamienna | P10: Pawłów | Q10: Oleśnica | R10: Moskorzew | S10: 3
D11: Kielecki | E11: Kielecki | F11: Pacanów | G11: Nagłowice | H11: Opatowiec | I11: Chmielnik | J11: Radoszyce | K11: Opatów | L11: Kunów | M11: Pińczów | N11: Łoniów | O11: Skarżysko Kościelne | P11: Starachowice | Q11: Osiek | R11: Radków | S11: 4
D12: Konecki | E12: Konecki | F12: Solec-Zdrój | G12: Oksa | H12: Skalbmierz | I12: Daleszyce | J12: Ruda Maleniecka | K12: Ożarów | L12: Ostrowiec Świętokrzyski | M12: Złota | N12: Obrazów | O12: Suchedniów | P12: Wąchock | Q12: Połaniec | R12: Secemin | S12: 5
B13: RODZAJ ROBÓT | D13: Opatowski | E13: Opatowski | F13: Stopnica | G13: Sędziszów | I13: Górno | J13: Słupia Konecka | K13: Sadowie | L13: Waśniów | N13: Samborzec | Q13: Rytwiany | R13: Włoszczowa | S13: 6
B14: BUDOWA | D14: Ostrowiecki | E14: Ostrowiecki | F14: Tuczępy | G14: Słupia (Jędrzejowska) | I14: Kielce | J14: Smyków | K14: Tarłów | N14: Sandomierz | Q14: Staszów | S14: 7
B15: PRZEBUDOWA | D15: Pińczowski | E15: Pińczowski | F15: Wiślica | G15: Sobków | I15: Łagów | J15: Stąporków | K15: Wojciechowice | N15: Wilczyce | Q15: Szydłów | S15: 8
B16: ="" ->  | D16: Sandomierski | E16: Sandomierski | G16: Wodzisław | I16: Łopuszno | N16: Zawichost | S16: 9
B17: REMONT | D17: Skarżyski | E17: Skarżyski | I17: Masłów | S17: 10
D18: Starachowicki | E18: Starachowicki | I18: Miedziana Góra | S18: 11
D19: Staszowski | E19: Staszowski | I19: Mniów | S19: 12
D20: Włoszczowski | E20: Włoszczowski | I20: Morawica | S20: 13
B21: TAK / NIE / NIE DOTYCZY | I21: Nowa Słupia
B22: TAK | I22: Nowiny
B23: NIE | I23: Piekoszów
B24: NIE DOTYCZY | I24: Pierzchnica
I25: Raków
I26: Strawczyn
I27: Zagnańsk
D30: KLASA DROGI
B31: Klasa drogi | D31: KATEGORIA (pkt 3 wniosku) | E31: gminna | F31: powiatowa | G31: brak | I31: RODZAJ DROGI (pkt 9 wniosku)
B32: D - dojazdowa | D32: gminna | E32: D - dojazdowa | F32: Z - zbiorcza | G32: D - dojazdowa | I32: droga zamiejska
B33: L - lokalna | D33: powiatowa | E33: L - lokalna | F33: G - główna | G33: L - lokalna | I33: ulica
B34: Z - zbiorcza | D34: brak | E34: Z - zbiorcza | F34: GP - główna ruchu przyspieszonego | G34: Z - zbiorcza
B35: G - główna | E35: G - główna | F35: L - lokalna | G35: G - główna
B36: GP - główna ruchu przyspieszonego | E36: GP - główna ruchu przyspieszonego | G36: GP - główna ruchu przyspieszonego
G44: 2025 | I44: RYZYKO WYPADKÓW | L44: PAN
D45: powiat | E45: gmina | F45: JST | G45: Teryt TERC | H45: SKRÓT - typ JST | I45: z udziałem pieszych | J45: ogółem | K45: ofiary śmiertelne | L45: utrata funkcji | M45: Peryferyjność | O45: % RFRD [ 2025]
D46: buski | F46: powiat buski | G46: =VLOOKUP($F46,'DANE - TERC'!$D$6:$P$119,10,0) -> 2601 | H46: =VLOOKUP($F46,'DANE - TERC'!$D$6:$P$119,12,0) -> PZ | I46: =VLOOKUP($F46,'DANE - K1 lit.A'!$D$6:$M$119,4,0) -> NIE | J46: =VLOOKUP($F46,'DANE - K1 lit.A'!$D$6:$M$119,5,0) -> NIE | K46: =VLOOKUP($F46,'DANE - K1 lit.A'!$D$6:$M$119,6,0) -> NIE | L46: =IF($E46="","",VLOOKUP($F46,'DANE - K4 lit.B'!$D$6:$E$107,2,0)) ->  | M46: =IF($E46="","",VLOOKUP($F46,'DANE - K2 lit.C'!$B$14:$I$114,8,0)) ->  | O46: 0.7 | P46: =VLOOKUP($D46,POWIAT[POWIAT],1,0) -> Buski | Q46: =D46 -> buski
D47: jędrzejowski | F47: powiat jędrzejowski | G47: =VLOOKUP($F47,'DANE - TERC'!$D$6:$P$119,10,0) -> 2602 | H47: =VLOOKUP($F47,'DANE - TERC'!$D$6:$P$119,12,0) -> PZ | I47: =VLOOKUP($F47,'DANE - K1 lit.A'!$D$6:$M$119,4,0) -> TAK | J47: =VLOOKUP($F47,'DANE - K1 lit.A'!$D$6:$M$119,5,0) -> TAK | K47: =VLOOKUP($F47,'DANE - K1 lit.A'!$D$6:$M$119,6,0) -> NIE | L47: =IF($E47="","",VLOOKUP($F47,'DANE - K4 lit.B'!$D$6:$E$107,2,0)) ->  | M47: =IF($E47="","",VLOOKUP($F47,'DANE - K2 lit.C'!$B$14:$I$114,8,0)) ->  | O47: 0.7 | P47: =VLOOKUP($D47,POWIAT[POWIAT],1,0) -> Jędrzejowski | Q47: =D47 -> jędrzejowski
D48: kazimierski | F48: powiat kazimierski | G48: =VLOOKUP($F48,'DANE - TERC'!$D$6:$P$119,10,0) -> 2603 | H48: =VLOOKUP($F48,'DANE - TERC'!$D$6:$P$119,12,0) -> PZ | I48: =VLOOKUP($F48,'DANE - K1 lit.A'!$D$6:$M$119,4,0) -> TAK | J48: =VLOOKUP($F48,'DANE - K1 lit.A'!$D$6:$M$119,5,0) -> NIE | K48: =VLOOKUP($F48,'DANE - K1 lit.A'!$D$6:$M$119,6,0) -> TAK | L48: =IF($E48="","",VLOOKUP($F48,'DANE - K4 lit.B'!$D$6:$E$107,2,0)) ->  | M48: =IF($E48="","",VLOOKUP($F48,'DANE - K2 lit.C'!$B$14:$I$114,8,0)) ->  | O48: 0.7 | P48: =VLOOKUP($D48,POWIAT[POWIAT],1,0) -> Kazimierski | Q48: kazimierski
D49: kielecki | F49: powiat kielecki | G49: =VLOOKUP($F49,'DANE - TERC'!$D$6:$P$119,10,0) -> 2604 | H49: =VLOOKUP($F49,'DANE - TERC'!$D$6:$P$119,12,0) -> PZ | I49: =VLOOKUP($F49,'DANE - K1 lit.A'!$D$6:$M$119,4,0) -> TAK | J49: =VLOOKUP($F49,'DANE - K1 lit.A'!$D$6:$M$119,5,0) -> TAK | K49: =VLOOKUP($F49,'DANE - K1 lit.A'!$D$6:$M$119,6,0) -> TAK | L49: =IF($E49="","",VLOOKUP($F49,'DANE - K4 lit.B'!$D$6:$E$107,2,0)) ->  | M49: =IF($E49="","",VLOOKUP($F49,'DANE - K2 lit.C'!$B$14:$I$114,8,0)) ->  | O49: 0.7 | P49: =VLOOKUP($D49,POWIAT[POWIAT],1,0) -> Kielecki | Q49: kielecki
D50: konecki | F50: powiat konecki | G50: =VLOOKUP($F50,'DANE - TERC'!$D$6:$P$119,10,0) -> 2605 | H50: =VLOOKUP($F50,'DANE - TERC'!$D$6:$P$119,12,0) -> PZ | I50: =VLOOKUP($F50,'DANE - K1 lit.A'!$D$6:$M$119,4,0) -> TAK | J50: =VLOOKUP($F50,'DANE - K1 lit.A'!$D$6:$M$119,5,0) -> NIE | K50: =VLOOKUP($F50,'DANE - K1 lit.A'!$D$6:$M$119,6,0) -> TAK | L50: =IF($E50="","",VLOOKUP($F50,'DANE - K4 lit.B'!$D$6:$E$107,2,0)) ->  | M50: =IF($E50="","",VLOOKUP($F50,'DANE - K2 lit.C'!$B$14:$I$114,8,0)) ->  | O50: 0.6 | P50: =VLOOKUP($D50,POWIAT[POWIAT],1,0) -> Konecki | Q50: konecki
D51: opatowski | F51: powiat opatowski | G51: =VLOOKUP($F51,'DANE - TERC'!$D$6:$P$119,10,0) -> 2606 | H51: =VLOOKUP($F51,'DANE - TERC'!$D$6:$P$119,12,0) -> PZ | I51: =VLOOKUP($F51,'DANE - K1 lit.A'!$D$6:$M$119,4,0) -> NIE | J51: =VLOOKUP($F51,'DANE - K1 lit.A'!$D$6:$M$119,5,0) -> NIE | K51: =VLOOKUP($F51,'DANE - K1 lit.A'!$D$6:$M$119,6,0) -> TAK | L51: =IF($E51="","",VLOOKUP($F51,'DANE - K4 lit.B'!$D$6:$E$107,2,0)) ->  | M51: =IF($E51="","",VLOOKUP($F51,'DANE - K2 lit.C'!$B$14:$I$114,8,0)) ->  | O51: 0.6 | P51: =VLOOKUP($D51,POWIAT[POWIAT],1,0) -> Opatowski | Q51: opatowski
D52: ostrowiecki | F52: powiat ostrowiecki | G52: =VLOOKUP($F52,'DANE - TERC'!$D$6:$P$119,10,0) -> 2607 | H52: =VLOOKUP($F52,'DANE - TERC'!$D$6:$P$119,12,0) -> PZ | I52: =VLOOKUP($F52,'DANE - K1 lit.A'!$D$6:$M$119,4,0) -> NIE | J52: =VLOOKUP($F52,'DANE - K1 lit.A'!$D$6:$M$119,5,0) -> NIE | K52: =VLOOKUP($F52,'DANE - K1 lit.A'!$D$6:$M$119,6,0) -> NIE | L52: =IF($E52="","",VLOOKUP($F52,'DANE - K4 lit.B'!$D$6:$E$107,2,0)) ->  | M52: =IF($E52="","",VLOOKUP($F52,'DANE - K2 lit.C'!$B$14:$I$114,8,0)) ->  | O52: 0.7 | P52: =VLOOKUP($D52,POWIAT[POWIAT],1,0) -> Ostrowiecki | Q52: ostrowiecki
D53: pińczowski | F53: powiat pińczowski | G53: =VLOOKUP($F53,'DANE - TERC'!$D$6:$P$119,10,0) -> 2608 | H53: =VLOOKUP($F53,'DANE - TERC'!$D$6:$P$119,12,0) -> PZ | I53: =VLOOKUP($F53,'DANE - K1 lit.A'!$D$6:$M$119,4,0) -> NIE | J53: =VLOOKUP($F53,'DANE - K1 lit.A'!$D$6:$M$119,5,0) -> TAK | K53: =VLOOKUP($F53,'DANE - K1 lit.A'!$D$6:$M$119,6,0) -> NIE | L53: =IF($E53="","",VLOOKUP($F53,'DANE - K4 lit.B'!$D$6:$E$107,2,0)) ->  | M53: =IF($E53="","",VLOOKUP($F53,'DANE - K2 lit.C'!$B$14:$I$114,8,0)) ->  | O53: 0.7 | P53: =VLOOKUP($D53,POWIAT[POWIAT],1,0) -> Pińczowski | Q53: pińczowski
D54: sandomierski | F54: powiat sandomierski | G54: =VLOOKUP($F54,'DANE - TERC'!$D$6:$P$119,10,0) -> 2609 | H54: =VLOOKUP($F54,'DANE - TERC'!$D$6:$P$119,12,0) -> PZ | I54: =VLOOKUP($F54,'DANE - K1 lit.A'!$D$6:$M$119,4,0) -> TAK | J54: =VLOOKUP($F54,'DANE - K1 lit.A'!$D$6:$M$119,5,0) -> TAK | K54: =VLOOKUP($F54,'DANE - K1 lit.A'!$D$6:$M$119,6,0) -> NIE | L54: =IF($E54="","",VLOOKUP($F54,'DANE - K4 lit.B'!$D$6:$E$107,2,0)) ->  | M54: =IF($E54="","",VLOOKUP($F54,'DANE - K2 lit.C'!$B$14:$I$114,8,0)) ->  | O54: 0.7 | P54: =VLOOKUP($D54,POWIAT[POWIAT],1,0) -> Sandomierski | Q54: sandomierski
D55: skarżyski | F55: powiat skarżyski | G55: =VLOOKUP($F55,'DANE - TERC'!$D$6:$P$119,10,0) -> 2610 | H55: =VLOOKUP($F55,'DANE - TERC'!$D$6:$P$119,12,0) -> PZ | I55: =VLOOKUP($F55,'DANE - K1 lit.A'!$D$6:$M$119,4,0) -> TAK | J55: =VLOOKUP($F55,'DANE - K1 lit.A'!$D$6:$M$119,5,0) -> TAK | K55: =VLOOKUP($F55,'DANE - K1 lit.A'!$D$6:$M$119,6,0) -> NIE | L55: =IF($E55="","",VLOOKUP($F55,'DANE - K4 lit.B'!$D$6:$E$107,2,0)) ->  | M55: =IF($E55="","",VLOOKUP($F55,'DANE - K2 lit.C'!$B$14:$I$114,8,0)) ->  | O55: 0.6 | P55: =VLOOKUP($D55,POWIAT[POWIAT],1,0) -> Skarżyski | Q55: skarżyski
D56: starachowicki | F56: powiat starachowicki | G56: =VLOOKUP($F56,'DANE - TERC'!$D$6:$P$119,10,0) -> 2611 | H56: =VLOOKUP($F56,'DANE - TERC'!$D$6:$P$119,12,0) -> PZ | I56: =VLOOKUP($F56,'DANE - K1 lit.A'!$D$6:$M$119,4,0) -> NIE | J56: =VLOOKUP($F56,'DANE - K1 lit.A'!$D$6:$M$119,5,0) -> NIE | K56: =VLOOKUP($F56,'DANE - K1 lit.A'!$D$6:$M$119,6,0) -> NIE | L56: =IF($E56="","",VLOOKUP($F56,'DANE - K4 lit.B'!$D$6:$E$107,2,0)) ->  | M56: =IF($E56="","",VLOOKUP($F56,'DANE - K2 lit.C'!$B$14:$I$114,8,0)) ->  | O56: 0.7 | P56: =VLOOKUP($D56,POWIAT[POWIAT],1,0) -> Starachowicki | Q56: starachowicki
D57: staszowski | F57: powiat staszowski | G57: =VLOOKUP($F57,'DANE - TERC'!$D$6:$P$119,10,0) -> 2612 | H57: =VLOOKUP($F57,'DANE - TERC'!$D$6:$P$119,12,0) -> PZ | I57: =VLOOKUP($F57,'DANE - K1 lit.A'!$D$6:$M$119,4,0) -> NIE | J57: =VLOOKUP($F57,'DANE - K1 lit.A'!$D$6:$M$119,5,0) -> NIE | K57: =VLOOKUP($F57,'DANE - K1 lit.A'!$D$6:$M$119,6,0) -> TAK | L57: =IF($E57="","",VLOOKUP($F57,'DANE - K4 lit.B'!$D$6:$E$107,2,0)) ->  | M57: =IF($E57="","",VLOOKUP($F57,'DANE - K2 lit.C'!$B$14:$I$114,8,0)) ->  | O57: 0.7 | P57: =VLOOKUP($D57,POWIAT[POWIAT],1,0) -> Staszowski | Q57: staszowski
D58: włoszczowski | F58: powiat włoszczowski | G58: =VLOOKUP($F58,'DANE - TERC'!$D$6:$P$119,10,0) -> 2613 | H58: =VLOOKUP($F58,'DANE - TERC'!$D$6:$P$119,12,0) -> PZ | I58: =VLOOKUP($F58,'DANE - K1 lit.A'!$D$6:$M$119,4,0) -> NIE | J58: =VLOOKUP($F58,'DANE - K1 lit.A'!$D$6:$M$119,5,0) -> TAK | K58: =VLOOKUP($F58,'DANE - K1 lit.A'!$D$6:$M$119,6,0) -> TAK | L58: =IF($E58="","",VLOOKUP($F58,'DANE - K4 lit.B'!$D$6:$E$107,2,0)) ->  | M58: =IF($E58="","",VLOOKUP($F58,'DANE - K2 lit.C'!$B$14:$I$114,8,0)) ->  | O58: 0.7 | P58: =VLOOKUP($D58,POWIAT[POWIAT],1,0) -> Włoszczowski | Q58: włoszczowski
D59: buski | E59: Busko-Zdrój | F59: gmina Busko-Zdrój | G59: =VLOOKUP($F59,'DANE - TERC'!$D$6:$P$119,10,0) -> 2601013 | H59: =VLOOKUP($F59,'DANE - TERC'!$D$6:$P$119,12,0) -> GM-W | I59: =VLOOKUP($F59,'DANE - K1 lit.A'!$D$6:$M$119,4,0) -> TAK | J59: =VLOOKUP($F59,'DANE - K1 lit.A'!$D$6:$M$119,5,0) -> NIE | K59: =VLOOKUP($F59,'DANE - K1 lit.A'!$D$6:$M$119,6,0) -> NIE | L59: =IF($E59="","",VLOOKUP($F59,'DANE - K4 lit.B'!$D$6:$E$107,2,0)) -> TAK | M59: =IF($E59="","",VLOOKUP($F59,'DANE - K2 lit.C'!$B$14:$I$114,8,0)) -> w przedziale od 30 do 50 minut | O59: 0.8 | P59: =IF($D59=Buski[[#Headers],[Buski]],VLOOKUP($E59,Buski[Buski],1,0),IF($D59=Jędrzejowski[[#Headers],[Jędrzejowski]],VLOOKUP($E59,Jędrzejowski[Jędrzejowski],1,0),IF($D59=Kazimierski[[#Headers],[Kazimierski]],VLOOKUP($E59,Kazimierski[Kazimierski],1,0),IF($D59=Kielecki[[#Headers],[Kielecki]],VLOOKUP($E59,Kielecki[Kielecki],1,0),IF($D59=Konecki[[#Headers],[Konecki]],VLOOKUP($E59,Konecki[Konecki],1,0),IF($D59=Opatowski[[#Headers],[Opatowski]],VLOOKUP($E59,Opatowski[Opatowski],1,0),IF($D59=Ostrowiecki[[#Headers],[Ostrowiecki]],VLOOKUP($E59,Ostrowiecki[Ostrowiecki],1,0),IF($D59=Pińczowski[[#Headers],[Pińczowski]],VLOOKUP($E59,Pińczowski[Pińczowski],1,0),IF($D59=Sandomierski[[#Headers],[Sandomierski]],VLOOKUP($E59,Sandomierski[Sandomierski],1,0),IF($D59=Skarżyski[[#Headers],[Skarżyski]],VLOOKUP($E59,Skarżyski[Skarżyski],1,0),IF($D59=Starachowicki[[#Headers],[Starachowicki]],VLOOKUP($E59,Starachowicki[Starachowicki],1,0),IF($D59=Staszowski[[#Headers],[Staszowski]],VLOOKUP($E59,Staszowski[Staszowski],1,0),IF($D59=Włoszczowski[[#Headers],[Włoszczowski]],VLOOKUP($E59,Włoszczowski[Włoszczowski],1,0),""))))))))))))) -> Busko-Zdrój | Q59: buski
D60: buski | E60: Gnojno | F60: gmina Gnojno | G60: =VLOOKUP($F60,'DANE - TERC'!$D$6:$P$119,10,0) -> 2601022 | H60: =VLOOKUP($F60,'DANE - TERC'!$D$6:$P$119,12,0) -> GW | I60: =VLOOKUP($F60,'DANE - K1 lit.A'!$D$6:$M$119,4,0) -> NIE | J60: =VLOOKUP($F60,'DANE - K1 lit.A'!$D$6:$M$119,5,0) -> NIE | K60: =VLOOKUP($F60,'DANE - K1 lit.A'!$D$6:$M$119,6,0) -> NIE | L60: =IF($E60="","",VLOOKUP($F60,'DANE - K4 lit.B'!$D$6:$E$107,2,0)) -> NIE | M60: =IF($E60="","",VLOOKUP($F60,'DANE - K2 lit.C'!$B$14:$I$114,8,0)) -> w przedziale od 30 do 50 minut | O60: 0.8 | P60: =IF($D60=Buski[[#Headers],[Buski]],VLOOKUP($E60,Buski[Buski],1,0),IF($D60=Jędrzejowski[[#Headers],[Jędrzejowski]],VLOOKUP($E60,Jędrzejowski[Jędrzejowski],1,0),IF($D60=Kazimierski[[#Headers],[Kazimierski]],VLOOKUP($E60,Kazimierski[Kazimierski],1,0),IF($D60=Kielecki[[#Headers],[Kielecki]],VLOOKUP($E60,Kielecki[Kielecki],1,0),IF($D60=Konecki[[#Headers],[Konecki]],VLOOKUP($E60,Konecki[Konecki],1,0),IF($D60=Opatowski[[#Headers],[Opatowski]],VLOOKUP($E60,Opatowski[Opatowski],1,0),IF($D60=Ostrowiecki[[#Headers],[Ostrowiecki]],VLOOKUP($E60,Ostrowiecki[Ostrowiecki],1,0),IF($D60=Pińczowski[[#Headers],[Pińczowski]],VLOOKUP($E60,Pińczowski[Pińczowski],1,0),IF($D60=Sandomierski[[#Headers],[Sandomierski]],VLOOKUP($E60,Sandomierski[Sandomierski],1,0),IF($D60=Skarżyski[[#Headers],[Skarżyski]],VLOOKUP($E60,Skarżyski[Skarżyski],1,0),IF($D60=Starachowicki[[#Headers],[Starachowicki]],VLOOKUP($E60,Starachowicki[Starachowicki],1,0),IF($D60=Staszowski[[#Headers],[Staszowski]],VLOOKUP($E60,Staszowski[Staszowski],1,0),IF($D60=Włoszczowski[[#Headers],[Włoszczowski]],VLOOKUP($E60,Włoszczowski[Włoszczowski],1,0),""))))))))))))) -> Gnojno | Q60: buski
D61: buski | E61: Nowy Korczyn | F61: gmina Nowy Korczyn | G61: =VLOOKUP($F61,'DANE - TERC'!$D$6:$P$119,10,0) -> 2601033 | H61: =VLOOKUP($F61,'DANE - TERC'!$D$6:$P$119,12,0) -> GM-W | I61: =VLOOKUP($F61,'DANE - K1 lit.A'!$D$6:$M$119,4,0) -> TAK | J61: =VLOOKUP($F61,'DANE - K1 lit.A'!$D$6:$M$119,5,0) -> TAK | K61: =VLOOKUP($F61,'DANE - K1 lit.A'!$D$6:$M$119,6,0) -> NIE | L61: =IF($E61="","",VLOOKUP($F61,'DANE - K4 lit.B'!$D$6:$E$107,2,0)) -> NIE | M61: =IF($E61="","",VLOOKUP($F61,'DANE - K2 lit.C'!$B$14:$I$114,8,0)) -> większy niż 50 minut | O61: 0.8 | P61: =IF($D61=Buski[[#Headers],[Buski]],VLOOKUP($E61,Buski[Buski],1,0),IF($D61=Jędrzejowski[[#Headers],[Jędrzejowski]],VLOOKUP($E61,Jędrzejowski[Jędrzejowski],1,0),IF($D61=Kazimierski[[#Headers],[Kazimierski]],VLOOKUP($E61,Kazimierski[Kazimierski],1,0),IF($D61=Kielecki[[#Headers],[Kielecki]],VLOOKUP($E61,Kielecki[Kielecki],1,0),IF($D61=Konecki[[#Headers],[Konecki]],VLOOKUP($E61,Konecki[Konecki],1,0),IF($D61=Opatowski[[#Headers],[Opatowski]],VLOOKUP($E61,Opatowski[Opatowski],1,0),IF($D61=Ostrowiecki[[#Headers],[Ostrowiecki]],VLOOKUP($E61,Ostrowiecki[Ostrowiecki],1,0),IF($D61=Pińczowski[[#Headers],[Pińczowski]],VLOOKUP($E61,Pińczowski[Pińczowski],1,0),IF($D61=Sandomierski[[#Headers],[Sandomierski]],VLOOKUP($E61,Sandomierski[Sandomierski],1,0),IF($D61=Skarżyski[[#Headers],[Skarżyski]],VLOOKUP($E61,Skarżyski[Skarżyski],1,0),IF($D61=Starachowicki[[#Headers],[Starachowicki]],VLOOKUP($E61,Starachowicki[Starachowicki],1,0),IF($D61=Staszowski[[#Headers],[Staszowski]],VLOOKUP($E61,Staszowski[Staszowski],1,0),IF($D61=Włoszczowski[[#Headers],[Włoszczowski]],VLOOKUP($E61,Włoszczowski[Włoszczowski],1,0),""))))))))))))) -> Nowy Korczyn | Q61: buski
D62: buski | E62: Pacanów | F62: gmina Pacanów | G62: =VLOOKUP($F62,'DANE - TERC'!$D$6:$P$119,10,0) -> 2601043 | H62: =VLOOKUP($F62,'DANE - TERC'!$D$6:$P$119,12,0) -> GM-W | I62: =VLOOKUP($F62,'DANE - K1 lit.A'!$D$6:$M$119,4,0) -> NIE | J62: =VLOOKUP($F62,'DANE - K1 lit.A'!$D$6:$M$119,5,0) -> NIE | K62: =VLOOKUP($F62,'DANE - K1 lit.A'!$D$6:$M$119,6,0) -> NIE | L62: =IF($E62="","",VLOOKUP($F62,'DANE - K4 lit.B'!$D$6:$E$107,2,0)) -> NIE | M62: =IF($E62="","",VLOOKUP($F62,'DANE - K2 lit.C'!$B$14:$I$114,8,0)) -> większy niż 50 minut | O62: 0.8 | P62: =IF($D62=Buski[[#Headers],[Buski]],VLOOKUP($E62,Buski[Buski],1,0),IF($D62=Jędrzejowski[[#Headers],[Jędrzejowski]],VLOOKUP($E62,Jędrzejowski[Jędrzejowski],1,0),IF($D62=Kazimierski[[#Headers],[Kazimierski]],VLOOKUP($E62,Kazimierski[Kazimierski],1,0),IF($D62=Kielecki[[#Headers],[Kielecki]],VLOOKUP($E62,Kielecki[Kielecki],1,0),IF($D62=Konecki[[#Headers],[Konecki]],VLOOKUP($E62,Konecki[Konecki],1,0),IF($D62=Opatowski[[#Headers],[Opatowski]],VLOOKUP($E62,Opatowski[Opatowski],1,0),IF($D62=Ostrowiecki[[#Headers],[Ostrowiecki]],VLOOKUP($E62,Ostrowiecki[Ostrowiecki],1,0),IF($D62=Pińczowski[[#Headers],[Pińczowski]],VLOOKUP($E62,Pińczowski[Pińczowski],1,0),IF($D62=Sandomierski[[#Headers],[Sandomierski]],VLOOKUP($E62,Sandomierski[Sandomierski],1,0),IF($D62=Skarżyski[[#Headers],[Skarżyski]],VLOOKUP($E62,Skarżyski[Skarżyski],1,0),IF($D62=Starachowicki[[#Headers],[Starachowicki]],VLOOKUP($E62,Starachowicki[Starachowicki],1,0),IF($D62=Staszowski[[#Headers],[Staszowski]],VLOOKUP($E62,Staszowski[Staszowski],1,0),IF($D62=Włoszczowski[[#Headers],[Włoszczowski]],VLOOKUP($E62,Włoszczowski[Włoszczowski],1,0),""))))))))))))) -> Pacanów | Q62: buski
D63: buski | E63: Solec-Zdrój | F63: gmina Solec-Zdrój | G63: =VLOOKUP($F63,'DANE - TERC'!$D$6:$P$119,10,0) -> 2601052 | H63: =VLOOKUP($F63,'DANE - TERC'!$D$6:$P$119,12,0) -> GW | I63: =VLOOKUP($F63,'DANE - K1 lit.A'!$D$6:$M$119,4,0) -> TAK | J63: =VLOOKUP($F63,'DANE - K1 lit.A'!$D$6:$M$119,5,0) -> TAK | K63: =VLOOKUP($F63,'DANE - K1 lit.A'!$D$6:$M$119,6,0) -> NIE | L63: =IF($E63="","",VLOOKUP($F63,'DANE - K4 lit.B'!$D$6:$E$107,2,0)) -> NIE | M63: =IF($E63="","",VLOOKUP($F63,'DANE - K2 lit.C'!$B$14:$I$114,8,0)) -> większy niż 50 minut | O63: 0.8 | P63: =IF($D63=Buski[[#Headers],[Buski]],VLOOKUP($E63,Buski[Buski],1,0),IF($D63=Jędrzejowski[[#Headers],[Jędrzejowski]],VLOOKUP($E63,Jędrzejowski[Jędrzejowski],1,0),IF($D63=Kazimierski[[#Headers],[Kazimierski]],VLOOKUP($E63,Kazimierski[Kazimierski],1,0),IF($D63=Kielecki[[#Headers],[Kielecki]],VLOOKUP($E63,Kielecki[Kielecki],1,0),IF($D63=Konecki[[#Headers],[Konecki]],VLOOKUP($E63,Konecki[Konecki],1,0),IF($D63=Opatowski[[#Headers],[Opatowski]],VLOOKUP($E63,Opatowski[Opatowski],1,0),IF($D63=Ostrowiecki[[#Headers],[Ostrowiecki]],VLOOKUP($E63,Ostrowiecki[Ostrowiecki],1,0),IF($D63=Pińczowski[[#Headers],[Pińczowski]],VLOOKUP($E63,Pińczowski[Pińczowski],1,0),IF($D63=Sandomierski[[#Headers],[Sandomierski]],VLOOKUP($E63,Sandomierski[Sandomierski],1,0),IF($D63=Skarżyski[[#Headers],[Skarżyski]],VLOOKUP($E63,Skarżyski[Skarżyski],1,0),IF($D63=Starachowicki[[#Headers],[Starachowicki]],VLOOKUP($E63,Starachowicki[Starachowicki],1,0),IF($D63=Staszowski[[#Headers],[Staszowski]],VLOOKUP($E63,Staszowski[Staszowski],1,0),IF($D63=Włoszczowski[[#Headers],[Włoszczowski]],VLOOKUP($E63,Włoszczowski[Włoszczowski],1,0),""))))))))))))) -> Solec-Zdrój | Q63: buski
D64: buski | E64: Stopnica | F64: gmina Stopnica | G64: =VLOOKUP($F64,'DANE - TERC'!$D$6:$P$119,10,0) -> 2601063 | H64: =VLOOKUP($F64,'DANE - TERC'!$D$6:$P$119,12,0) -> GM-W | I64: =VLOOKUP($F64,'DANE - K1 lit.A'!$D$6:$M$119,4,0) -> NIE | J64: =VLOOKUP($F64,'DANE - K1 lit.A'!$D$6:$M$119,5,0) -> NIE | K64: =VLOOKUP($F64,'DANE - K1 lit.A'!$D$6:$M$119,6,0) -> NIE | L64: =IF($E64="","",VLOOKUP($F64,'DANE - K4 lit.B'!$D$6:$E$107,2,0)) -> NIE | M64: =IF($E64="","",VLOOKUP($F64,'DANE - K2 lit.C'!$B$14:$I$114,8,0)) -> w przedziale od 30 do 50 minut | O64: 0.8 | P64: =IF($D64=Buski[[#Headers],[Buski]],VLOOKUP($E64,Buski[Buski],1,0),IF($D64=Jędrzejowski[[#Headers],[Jędrzejowski]],VLOOKUP($E64,Jędrzejowski[Jędrzejowski],1,0),IF($D64=Kazimierski[[#Headers],[Kazimierski]],VLOOKUP($E64,Kazimierski[Kazimierski],1,0),IF($D64=Kielecki[[#Headers],[Kielecki]],VLOOKUP($E64,Kielecki[Kielecki],1,0),IF($D64=Konecki[[#Headers],[Konecki]],VLOOKUP($E64,Konecki[Konecki],1,0),IF($D64=Opatowski[[#Headers],[Opatowski]],VLOOKUP($E64,Opatowski[Opatowski],1,0),IF($D64=Ostrowiecki[[#Headers],[Ostrowiecki]],VLOOKUP($E64,Ostrowiecki[Ostrowiecki],1,0),IF($D64=Pińczowski[[#Headers],[Pińczowski]],VLOOKUP($E64,Pińczowski[Pińczowski],1,0),IF($D64=Sandomierski[[#Headers],[Sandomierski]],VLOOKUP($E64,Sandomierski[Sandomierski],1,0),IF($D64=Skarżyski[[#Headers],[Skarżyski]],VLOOKUP($E64,Skarżyski[Skarżyski],1,0),IF($D64=Starachowicki[[#Headers],[Starachowicki]],VLOOKUP($E64,Starachowicki[Starachowicki],1,0),IF($D64=Staszowski[[#Headers],[Staszowski]],VLOOKUP($E64,Staszowski[Staszowski],1,0),IF($D64=Włoszczowski[[#Headers],[Włoszczowski]],VLOOKUP($E64,Włoszczowski[Włoszczowski],1,0),""))))))))))))) -> Stopnica | Q64: buski
D65: buski | E65: Tuczępy | F65: gmina Tuczępy | G65: =VLOOKUP($F65,'DANE - TERC'!$D$6:$P$119,10,0) -> 2601072 | H65: =VLOOKUP($F65,'DANE - TERC'!$D$6:$P$119,12,0) -> GW | I65: =VLOOKUP($F65,'DANE - K1 lit.A'!$D$6:$M$119,4,0) -> NIE | J65: =VLOOKUP($F65,'DANE - K1 lit.A'!$D$6:$M$119,5,0) -> NIE | K65: =VLOOKUP($F65,'DANE - K1 lit.A'!$D$6:$M$119,6,0) -> NIE | L65: =IF($E65="","",VLOOKUP($F65,'DANE - K4 lit.B'!$D$6:$E$107,2,0)) -> NIE | M65: =IF($E65="","",VLOOKUP($F65,'DANE - K2 lit.C'!$B$14:$I$114,8,0)) -> w przedziale od 30 do 50 minut | O65: 0.6 | P65: =IF($D65=Buski[[#Headers],[Buski]],VLOOKUP($E65,Buski[Buski],1,0),IF($D65=Jędrzejowski[[#Headers],[Jędrzejowski]],VLOOKUP($E65,Jędrzejowski[Jędrzejowski],1,0),IF($D65=Kazimierski[[#Headers],[Kazimierski]],VLOOKUP($E65,Kazimierski[Kazimierski],1,0),IF($D65=Kielecki[[#Headers],[Kielecki]],VLOOKUP($E65,Kielecki[Kielecki],1,0),IF($D65=Konecki[[#Headers],[Konecki]],VLOOKUP($E65,Konecki[Konecki],1,0),IF($D65=Opatowski[[#Headers],[Opatowski]],VLOOKUP($E65,Opatowski[Opatowski],1,0),IF($D65=Ostrowiecki[[#Headers],[Ostrowiecki]],VLOOKUP($E65,Ostrowiecki[Ostrowiecki],1,0),IF($D65=Pińczowski[[#Headers],[Pińczowski]],VLOOKUP($E65,Pińczowski[Pińczowski],1,0),IF($D65=Sandomierski[[#Headers],[Sandomierski]],VLOOKUP($E65,Sandomierski[Sandomierski],1,0),IF($D65=Skarżyski[[#Headers],[Skarżyski]],VLOOKUP($E65,Skarżyski[Skarżyski],1,0),IF($D65=Starachowicki[[#Headers],[Starachowicki]],VLOOKUP($E65,Starachowicki[Starachowicki],1,0),IF($D65=Staszowski[[#Headers],[Staszowski]],VLOOKUP($E65,Staszowski[Staszowski],1,0),IF($D65=Włoszczowski[[#Headers],[Włoszczowski]],VLOOKUP($E65,Włoszczowski[Włoszczowski],1,0),""))))))))))))) -> Tuczępy | Q65: buski
D66: buski | E66: Wiślica | F66: gmina Wiślica | G66: =VLOOKUP($F66,'DANE - TERC'!$D$6:$P$119,10,0) -> 2601083 | H66: =VLOOKUP($F66,'DANE - TERC'!$D$6:$P$119,12,0) -> GM-W | I66: =VLOOKUP($F66,'DANE - K1 lit.A'!$D$6:$M$119,4,0) -> NIE | J66: =VLOOKUP($F66,'DANE - K1 lit.A'!$D$6:$M$119,5,0) -> TAK | K66: =VLOOKUP($F66,'DANE - K1 lit.A'!$D$6:$M$119,6,0) -> NIE | L66: =IF($E66="","",VLOOKUP($F66,'DANE - K4 lit.B'!$D$6:$E$107,2,0)) -> NIE | M66: =IF($E66="","",VLOOKUP($F66,'DANE - K2 lit.C'!$B$14:$I$114,8,0)) -> w przedziale od 30 do 50 minut | O66: 0.8 | P66: =IF($D66=Buski[[#Headers],[Buski]],VLOOKUP($E66,Buski[Buski],1,0),IF($D66=Jędrzejowski[[#Headers],[Jędrzejowski]],VLOOKUP($E66,Jędrzejowski[Jędrzejowski],1,0),IF($D66=Kazimierski[[#Headers],[Kazimierski]],VLOOKUP($E66,Kazimierski[Kazimierski],1,0),IF($D66=Kielecki[[#Headers],[Kielecki]],VLOOKUP($E66,Kielecki[Kielecki],1,0),IF($D66=Konecki[[#Headers],[Konecki]],VLOOKUP($E66,Konecki[Konecki],1,0),IF($D66=Opatowski[[#Headers],[Opatowski]],VLOOKUP($E66,Opatowski[Opatowski],1,0),IF($D66=Ostrowiecki[[#Headers],[Ostrowiecki]],VLOOKUP($E66,Ostrowiecki[Ostrowiecki],1,0),IF($D66=Pińczowski[[#Headers],[Pińczowski]],VLOOKUP($E66,Pińczowski[Pińczowski],1,0),IF($D66=Sandomierski[[#Headers],[Sandomierski]],VLOOKUP($E66,Sandomierski[Sandomierski],1,0),IF($D66=Skarżyski[[#Headers],[Skarżyski]],VLOOKUP($E66,Skarżyski[Skarżyski],1,0),IF($D66=Starachowicki[[#Headers],[Starachowicki]],VLOOKUP($E66,Starachowicki[Starachowicki],1,0),IF($D66=Staszowski[[#Headers],[Staszowski]],VLOOKUP($E66,Staszowski[Staszowski],1,0),IF($D66=Włoszczowski[[#Headers],[Włoszczowski]],VLOOKUP($E66,Włoszczowski[Włoszczowski],1,0),""))))))))))))) -> Wiślica | Q66: buski
D67: jędrzejowski | E67: Imielno | F67: gmina Imielno | G67: =VLOOKUP($F67,'DANE - TERC'!$D$6:$P$119,10,0) -> 2602012 | H67: =VLOOKUP($F67,'DANE - TERC'!$D$6:$P$119,12,0) -> GW | I67: =VLOOKUP($F67,'DANE - K1 lit.A'!$D$6:$M$119,4,0) -> NIE | J67: =VLOOKUP($F67,'DANE - K1 lit.A'!$D$6:$M$119,5,0) -> NIE | K67: =VLOOKUP($F67,'DANE - K1 lit.A'!$D$6:$M$119,6,0) -> NIE | L67: =IF($E67="","",VLOOKUP($F67,'DANE - K4 lit.B'!$D$6:$E$107,2,0)) -> NIE | M67: =IF($E67="","",VLOOKUP($F67,'DANE - K2 lit.C'!$B$14:$I$114,8,0)) -> w przedziale od 30 do 50 minut | O67: 0.8 | P67: =IF($D67=Buski[[#Headers],[Buski]],VLOOKUP($E67,Buski[Buski],1,0),IF($D67=Jędrzejowski[[#Headers],[Jędrzejowski]],VLOOKUP($E67,Jędrzejowski[Jędrzejowski],1,0),IF($D67=Kazimierski[[#Headers],[Kazimierski]],VLOOKUP($E67,Kazimierski[Kazimierski],1,0),IF($D67=Kielecki[[#Headers],[Kielecki]],VLOOKUP($E67,Kielecki[Kielecki],1,0),IF($D67=Konecki[[#Headers],[Konecki]],VLOOKUP($E67,Konecki[Konecki],1,0),IF($D67=Opatowski[[#Headers],[Opatowski]],VLOOKUP($E67,Opatowski[Opatowski],1,0),IF($D67=Ostrowiecki[[#Headers],[Ostrowiecki]],VLOOKUP($E67,Ostrowiecki[Ostrowiecki],1,0),IF($D67=Pińczowski[[#Headers],[Pińczowski]],VLOOKUP($E67,Pińczowski[Pińczowski],1,0),IF($D67=Sandomierski[[#Headers],[Sandomierski]],VLOOKUP($E67,Sandomierski[Sandomierski],1,0),IF($D67=Skarżyski[[#Headers],[Skarżyski]],VLOOKUP($E67,Skarżyski[Skarżyski],1,0),IF($D67=Starachowicki[[#Headers],[Starachowicki]],VLOOKUP($E67,Starachowicki[Starachowicki],1,0),IF($D67=Staszowski[[#Headers],[Staszowski]],VLOOKUP($E67,Staszowski[Staszowski],1,0),IF($D67=Włoszczowski[[#Headers],[Włoszczowski]],VLOOKUP($E67,Włoszczowski[Włoszczowski],1,0),""))))))))))))) -> Imielno | Q67: jędrzejowski
D68: jędrzejowski | E68: Jędrzejów | F68: gmina Jędrzejów | G68: =VLOOKUP($F68,'DANE - TERC'!$D$6:$P$119,10,0) -> 2602023 | H68: =VLOOKUP($F68,'DANE - TERC'!$D$6:$P$119,12,0) -> GM-W | I68: =VLOOKUP($F68,'DANE - K1 lit.A'!$D$6:$M$119,4,0) -> TAK | J68: =VLOOKUP($F68,'DANE - K1 lit.A'!$D$6:$M$119,5,0) -> TAK | K68: =VLOOKUP($F68,'DANE - K1 lit.A'!$D$6:$M$119,6,0) -> TAK | L68: =IF($E68="","",VLOOKUP($F68,'DANE - K4 lit.B'!$D$6:$E$107,2,0)) -> TAK | M68: =IF($E68="","",VLOOKUP($F68,'DANE - K2 lit.C'!$B$14:$I$114,8,0)) -> w przedziale od 30 do 50 minut | O68: 0.8 | P68: =IF($D68=Buski[[#Headers],[Buski]],VLOOKUP($E68,Buski[Buski],1,0),IF($D68=Jędrzejowski[[#Headers],[Jędrzejowski]],VLOOKUP($E68,Jędrzejowski[Jędrzejowski],1,0),IF($D68=Kazimierski[[#Headers],[Kazimierski]],VLOOKUP($E68,Kazimierski[Kazimierski],1,0),IF($D68=Kielecki[[#Headers],[Kielecki]],VLOOKUP($E68,Kielecki[Kielecki],1,0),IF($D68=Konecki[[#Headers],[Konecki]],VLOOKUP($E68,Konecki[Konecki],1,0),IF($D68=Opatowski[[#Headers],[Opatowski]],VLOOKUP($E68,Opatowski[Opatowski],1,0),IF($D68=Ostrowiecki[[#Headers],[Ostrowiecki]],VLOOKUP($E68,Ostrowiecki[Ostrowiecki],1,0),IF($D68=Pińczowski[[#Headers],[Pińczowski]],VLOOKUP($E68,Pińczowski[Pińczowski],1,0),IF($D68=Sandomierski[[#Headers],[Sandomierski]],VLOOKUP($E68,Sandomierski[Sandomierski],1,0),IF($D68=Skarżyski[[#Headers],[Skarżyski]],VLOOKUP($E68,Skarżyski[Skarżyski],1,0),IF($D68=Starachowicki[[#Headers],[Starachowicki]],VLOOKUP($E68,Starachowicki[Starachowicki],1,0),IF($D68=Staszowski[[#Headers],[Staszowski]],VLOOKUP($E68,Staszowski[Staszowski],1,0),IF($D68=Włoszczowski[[#Headers],[Włoszczowski]],VLOOKUP($E68,Włoszczowski[Włoszczowski],1,0),""))))))))))))) -> Jędrzejów | Q68: jędrzejowski
D69: jędrzejowski | E69: Małogoszcz | F69: gmina Małogoszcz | G69: =VLOOKUP($F69,'DANE - TERC'!$D$6:$P$119,10,0) -> 2602033 | H69: =VLOOKUP($F69,'DANE - TERC'!$D$6:$P$119,12,0) -> GM-W | I69: =VLOOKUP($F69,'DANE - K1 lit.A'!$D$6:$M$119,4,0) -> TAK | J69: =VLOOKUP($F69,'DANE - K1 lit.A'!$D$6:$M$119,5,0) -> TAK | K69: =VLOOKUP($F69,'DANE - K1 lit.A'!$D$6:$M$119,6,0) -> TAK | L69: =IF($E69="","",VLOOKUP($F69,'DANE - K4 lit.B'!$D$6:$E$107,2,0)) -> NIE | M69: =IF($E69="","",VLOOKUP($F69,'DANE - K2 lit.C'!$B$14:$I$114,8,0)) -> w przedziale od 30 do 50 minut | O69: 0.6 | P69: =IF($D69=Buski[[#Headers],[Buski]],VLOOKUP($E69,Buski[Buski],1,0),IF($D69=Jędrzejowski[[#Headers],[Jędrzejowski]],VLOOKUP($E69,Jędrzejowski[Jędrzejowski],1,0),IF($D69=Kazimierski[[#Headers],[Kazimierski]],VLOOKUP($E69,Kazimierski[Kazimierski],1,0),IF($D69=Kielecki[[#Headers],[Kielecki]],VLOOKUP($E69,Kielecki[Kielecki],1,0),IF($D69=Konecki[[#Headers],[Konecki]],VLOOKUP($E69,Konecki[Konecki],1,0),IF($D69=Opatowski[[#Headers],[Opatowski]],VLOOKUP($E69,Opatowski[Opatowski],1,0),IF($D69=Ostrowiecki[[#Headers],[Ostrowiecki]],VLOOKUP($E69,Ostrowiecki[Ostrowiecki],1,0),IF($D69=Pińczowski[[#Headers],[Pińczowski]],VLOOKUP($E69,Pińczowski[Pińczowski],1,0),IF($D69=Sandomierski[[#Headers],[Sandomierski]],VLOOKUP($E69,Sandomierski[Sandomierski],1,0),IF($D69=Skarżyski[[#Headers],[Skarżyski]],VLOOKUP($E69,Skarżyski[Skarżyski],1,0),IF($D69=Starachowicki[[#Headers],[Starachowicki]],VLOOKUP($E69,Starachowicki[Starachowicki],1,0),IF($D69=Staszowski[[#Headers],[Staszowski]],VLOOKUP($E69,Staszowski[Staszowski],1,0),IF($D69=Włoszczowski[[#Headers],[Włoszczowski]],VLOOKUP($E69,Włoszczowski[Włoszczowski],1,0),""))))))))))))) -> Małogoszcz | Q69: jędrzejowski
D70: jędrzejowski | E70: Nagłowice | F70: gmina Nagłowice | G70: =VLOOKUP($F70,'DANE - TERC'!$D$6:$P$119,10,0) -> 2602042 | H70: =VLOOKUP($F70,'DANE - TERC'!$D$6:$P$119,12,0) -> GW | I70: =VLOOKUP($F70,'DANE - K1 lit.A'!$D$6:$M$119,4,0) -> NIE | J70: =VLOOKUP($F70,'DANE - K1 lit.A'!$D$6:$M$119,5,0) -> TAK | K70: =VLOOKUP($F70,'DANE - K1 lit.A'!$D$6:$M$119,6,0) -> NIE | L70: =IF($E70="","",VLOOKUP($F70,'DANE - K4 lit.B'!$D$6:$E$107,2,0)) -> NIE | M70: =IF($E70="","",VLOOKUP($F70,'DANE - K2 lit.C'!$B$14:$I$114,8,0)) -> w przedziale od 30 do 50 minut | O70: 0.8 | P70: =IF($D70=Buski[[#Headers],[Buski]],VLOOKUP($E70,Buski[Buski],1,0),IF($D70=Jędrzejowski[[#Headers],[Jędrzejowski]],VLOOKUP($E70,Jędrzejowski[Jędrzejowski],1,0),IF($D70=Kazimierski[[#Headers],[Kazimierski]],VLOOKUP($E70,Kazimierski[Kazimierski],1,0),IF($D70=Kielecki[[#Headers],[Kielecki]],VLOOKUP($E70,Kielecki[Kielecki],1,0),IF($D70=Konecki[[#Headers],[Konecki]],VLOOKUP($E70,Konecki[Konecki],1,0),IF($D70=Opatowski[[#Headers],[Opatowski]],VLOOKUP($E70,Opatowski[Opatowski],1,0),IF($D70=Ostrowiecki[[#Headers],[Ostrowiecki]],VLOOKUP($E70,Ostrowiecki[Ostrowiecki],1,0),IF($D70=Pińczowski[[#Headers],[Pińczowski]],VLOOKUP($E70,Pińczowski[Pińczowski],1,0),IF($D70=Sandomierski[[#Headers],[Sandomierski]],VLOOKUP($E70,Sandomierski[Sandomierski],1,0),IF($D70=Skarżyski[[#Headers],[Skarżyski]],VLOOKUP($E70,Skarżyski[Skarżyski],1,0),IF($D70=Starachowicki[[#Headers],[Starachowicki]],VLOOKUP($E70,Starachowicki[Starachowicki],1,0),IF($D70=Staszowski[[#Headers],[Staszowski]],VLOOKUP($E70,Staszowski[Staszowski],1,0),IF($D70=Włoszczowski[[#Headers],[Włoszczowski]],VLOOKUP($E70,Włoszczowski[Włoszczowski],1,0),""))))))))))))) -> Nagłowice | Q70: jędrzejowski
D71: jędrzejowski | E71: Oksa | F71: gmina Oksa | G71: =VLOOKUP($F71,'DANE - TERC'!$D$6:$P$119,10,0) -> 2602052 | H71: =VLOOKUP($F71,'DANE - TERC'!$D$6:$P$119,12,0) -> GW | I71: =VLOOKUP($F71,'DANE - K1 lit.A'!$D$6:$M$119,4,0) -> NIE | J71: =VLOOKUP($F71,'DANE - K1 lit.A'!$D$6:$M$119,5,0) -> NIE | K71: =VLOOKUP($F71,'DANE - K1 lit.A'!$D$6:$M$119,6,0) -> NIE | L71: =IF($E71="","",VLOOKUP($F71,'DANE - K4 lit.B'!$D$6:$E$107,2,0)) -> NIE | M71: =IF($E71="","",VLOOKUP($F71,'DANE - K2 lit.C'!$B$14:$I$114,8,0)) -> w przedziale od 30 do 50 minut | O71: 0.8 | P71: =IF($D71=Buski[[#Headers],[Buski]],VLOOKUP($E71,Buski[Buski],1,0),IF($D71=Jędrzejowski[[#Headers],[Jędrzejowski]],VLOOKUP($E71,Jędrzejowski[Jędrzejowski],1,0),IF($D71=Kazimierski[[#Headers],[Kazimierski]],VLOOKUP($E71,Kazimierski[Kazimierski],1,0),IF($D71=Kielecki[[#Headers],[Kielecki]],VLOOKUP($E71,Kielecki[Kielecki],1,0),IF($D71=Konecki[[#Headers],[Konecki]],VLOOKUP($E71,Konecki[Konecki],1,0),IF($D71=Opatowski[[#Headers],[Opatowski]],VLOOKUP($E71,Opatowski[Opatowski],1,0),IF($D71=Ostrowiecki[[#Headers],[Ostrowiecki]],VLOOKUP($E71,Ostrowiecki[Ostrowiecki],1,0),IF($D71=Pińczowski[[#Headers],[Pińczowski]],VLOOKUP($E71,Pińczowski[Pińczowski],1,0),IF($D71=Sandomierski[[#Headers],[Sandomierski]],VLOOKUP($E71,Sandomierski[Sandomierski],1,0),IF($D71=Skarżyski[[#Headers],[Skarżyski]],VLOOKUP($E71,Skarżyski[Skarżyski],1,0),IF($D71=Starachowicki[[#Headers],[Starachowicki]],VLOOKUP($E71,Starachowicki[Starachowicki],1,0),IF($D71=Staszowski[[#Headers],[Staszowski]],VLOOKUP($E71,Staszowski[Staszowski],1,0),IF($D71=Włoszczowski[[#Headers],[Włoszczowski]],VLOOKUP($E71,Włoszczowski[Włoszczowski],1,0),""))))))))))))) -> Oksa | Q71: jędrzejowski
D72: jędrzejowski | E72: Sędziszów | F72: gmina Sędziszów | G72: =VLOOKUP($F72,'DANE - TERC'!$D$6:$P$119,10,0) -> 2602063 | H72: =VLOOKUP($F72,'DANE - TERC'!$D$6:$P$119,12,0) -> GM-W | I72: =VLOOKUP($F72,'DANE - K1 lit.A'!$D$6:$M$119,4,0) -> TAK | J72: =VLOOKUP($F72,'DANE - K1 lit.A'!$D$6:$M$119,5,0) -> TAK | K72: =VLOOKUP($F72,'DANE - K1 lit.A'!$D$6:$M$119,6,0) -> TAK | L72: =IF($E72="","",VLOOKUP($F72,'DANE - K4 lit.B'!$D$6:$E$107,2,0)) -> NIE | M72: =IF($E72="","",VLOOKUP($F72,'DANE - K2 lit.C'!$B$14:$I$114,8,0)) -> większy niż 50 minut | O72: 0.8 | P72: =IF($D72=Buski[[#Headers],[Buski]],VLOOKUP($E72,Buski[Buski],1,0),IF($D72=Jędrzejowski[[#Headers],[Jędrzejowski]],VLOOKUP($E72,Jędrzejowski[Jędrzejowski],1,0),IF($D72=Kazimierski[[#Headers],[Kazimierski]],VLOOKUP($E72,Kazimierski[Kazimierski],1,0),IF($D72=Kielecki[[#Headers],[Kielecki]],VLOOKUP($E72,Kielecki[Kielecki],1,0),IF($D72=Konecki[[#Headers],[Konecki]],VLOOKUP($E72,Konecki[Konecki],1,0),IF($D72=Opatowski[[#Headers],[Opatowski]],VLOOKUP($E72,Opatowski[Opatowski],1,0),IF($D72=Ostrowiecki[[#Headers],[Ostrowiecki]],VLOOKUP($E72,Ostrowiecki[Ostrowiecki],1,0),IF($D72=Pińczowski[[#Headers],[Pińczowski]],VLOOKUP($E72,Pińczowski[Pińczowski],1,0),IF($D72=Sandomierski[[#Headers],[Sandomierski]],VLOOKUP($E72,Sandomierski[Sandomierski],1,0),IF($D72=Skarżyski[[#Headers],[Skarżyski]],VLOOKUP($E72,Skarżyski[Skarżyski],1,0),IF($D72=Starachowicki[[#Headers],[Starachowicki]],VLOOKUP($E72,Starachowicki[Starachowicki],1,0),IF($D72=Staszowski[[#Headers],[Staszowski]],VLOOKUP($E72,Staszowski[Staszowski],1,0),IF($D72=Włoszczowski[[#Headers],[Włoszczowski]],VLOOKUP($E72,Włoszczowski[Włoszczowski],1,0),""))))))))))))) -> Sędziszów | Q72: jędrzejowski
D73: jędrzejowski | E73: Słupia (Jędrzejowska) | F73: gmina Słupia (Jędrzejowska) | G73: =VLOOKUP($F73,'DANE - TERC'!$D$6:$P$119,10,0) -> 2602072 | H73: =VLOOKUP($F73,'DANE - TERC'!$D$6:$P$119,12,0) -> GW | I73: =VLOOKUP($F73,'DANE - K1 lit.A'!$D$6:$M$119,4,0) -> NIE | J73: =VLOOKUP($F73,'DANE - K1 lit.A'!$D$6:$M$119,5,0) -> NIE | K73: =VLOOKUP($F73,'DANE - K1 lit.A'!$D$6:$M$119,6,0) -> NIE | L73: =IF($E73="","",VLOOKUP($F73,'DANE - K4 lit.B'!$D$6:$E$107,2,0)) -> NIE | M73: =IF($E73="","",VLOOKUP($F73,'DANE - K2 lit.C'!$B$14:$I$114,8,0)) -> większy niż 50 minut | O73: 0.7 | P73: =IF($D73=Buski[[#Headers],[Buski]],VLOOKUP($E73,Buski[Buski],1,0),IF($D73=Jędrzejowski[[#Headers],[Jędrzejowski]],VLOOKUP($E73,Jędrzejowski[Jędrzejowski],1,0),IF($D73=Kazimierski[[#Headers],[Kazimierski]],VLOOKUP($E73,Kazimierski[Kazimierski],1,0),IF($D73=Kielecki[[#Headers],[Kielecki]],VLOOKUP($E73,Kielecki[Kielecki],1,0),IF($D73=Konecki[[#Headers],[Konecki]],VLOOKUP($E73,Konecki[Konecki],1,0),IF($D73=Opatowski[[#Headers],[Opatowski]],VLOOKUP($E73,Opatowski[Opatowski],1,0),IF($D73=Ostrowiecki[[#Headers],[Ostrowiecki]],VLOOKUP($E73,Ostrowiecki[Ostrowiecki],1,0),IF($D73=Pińczowski[[#Headers],[Pińczowski]],VLOOKUP($E73,Pińczowski[Pińczowski],1,0),IF($D73=Sandomierski[[#Headers],[Sandomierski]],VLOOKUP($E73,Sandomierski[Sandomierski],1,0),IF($D73=Skarżyski[[#Headers],[Skarżyski]],VLOOKUP($E73,Skarżyski[Skarżyski],1,0),IF($D73=Starachowicki[[#Headers],[Starachowicki]],VLOOKUP($E73,Starachowicki[Starachowicki],1,0),IF($D73=Staszowski[[#Headers],[Staszowski]],VLOOKUP($E73,Staszowski[Staszowski],1,0),IF($D73=Włoszczowski[[#Headers],[Włoszczowski]],VLOOKUP($E73,Włoszczowski[Włoszczowski],1,0),""))))))))))))) -> Słupia (Jędrzejowska) | Q73: jędrzejowski
D74: jędrzejowski | E74: Sobków | F74: gmina Sobków | G74: =VLOOKUP($F74,'DANE - TERC'!$D$6:$P$119,10,0) -> 2602083 | H74: =VLOOKUP($F74,'DANE - TERC'!$D$6:$P$119,12,0) -> GM-W | I74: =VLOOKUP($F74,'DANE - K1 lit.A'!$D$6:$M$119,4,0) -> TAK | J74: =VLOOKUP($F74,'DANE - K1 lit.A'!$D$6:$M$119,5,0) -> TAK | K74: =VLOOKUP($F74,'DANE - K1 lit.A'!$D$6:$M$119,6,0) -> TAK | L74: =IF($E74="","",VLOOKUP($F74,'DANE - K4 lit.B'!$D$6:$E$107,2,0)) -> NIE | M74: =IF($E74="","",VLOOKUP($F74,'DANE - K2 lit.C'!$B$14:$I$114,8,0)) -> mniejszy niż 30 minut | O74: 0.8 | P74: =IF($D74=Buski[[#Headers],[Buski]],VLOOKUP($E74,Buski[Buski],1,0),IF($D74=Jędrzejowski[[#Headers],[Jędrzejowski]],VLOOKUP($E74,Jędrzejowski[Jędrzejowski],1,0),IF($D74=Kazimierski[[#Headers],[Kazimierski]],VLOOKUP($E74,Kazimierski[Kazimierski],1,0),IF($D74=Kielecki[[#Headers],[Kielecki]],VLOOKUP($E74,Kielecki[Kielecki],1,0),IF($D74=Konecki[[#Headers],[Konecki]],VLOOKUP($E74,Konecki[Konecki],1,0),IF($D74=Opatowski[[#Headers],[Opatowski]],VLOOKUP($E74,Opatowski[Opatowski],1,0),IF($D74=Ostrowiecki[[#Headers],[Ostrowiecki]],VLOOKUP($E74,Ostrowiecki[Ostrowiecki],1,0),IF($D74=Pińczowski[[#Headers],[Pińczowski]],VLOOKUP($E74,Pińczowski[Pińczowski],1,0),IF($D74=Sandomierski[[#Headers],[Sandomierski]],VLOOKUP($E74,Sandomierski[Sandomierski],1,0),IF($D74=Skarżyski[[#Headers],[Skarżyski]],VLOOKUP($E74,Skarżyski[Skarżyski],1,0),IF($D74=Starachowicki[[#Headers],[Starachowicki]],VLOOKUP($E74,Starachowicki[Starachowicki],1,0),IF($D74=Staszowski[[#Headers],[Staszowski]],VLOOKUP($E74,Staszowski[Staszowski],1,0),IF($D74=Włoszczowski[[#Headers],[Włoszczowski]],VLOOKUP($E74,Włoszczowski[Włoszczowski],1,0),""))))))))))))) -> Sobków | Q74: jędrzejowski
D75: jędrzejowski | E75: Wodzisław | F75: gmina Wodzisław | G75: =VLOOKUP($F75,'DANE - TERC'!$D$6:$P$119,10,0) -> 2602093 | H75: =VLOOKUP($F75,'DANE - TERC'!$D$6:$P$119,12,0) -> GM-W | I75: =VLOOKUP($F75,'DANE - K1 lit.A'!$D$6:$M$119,4,0) -> TAK | J75: =VLOOKUP($F75,'DANE - K1 lit.A'!$D$6:$M$119,5,0) -> TAK | K75: =VLOOKUP($F75,'DANE - K1 lit.A'!$D$6:$M$119,6,0) -> NIE | L75: =IF($E75="","",VLOOKUP($F75,'DANE - K4 lit.B'!$D$6:$E$107,2,0)) -> NIE | M75: =IF($E75="","",VLOOKUP($F75,'DANE - K2 lit.C'!$B$14:$I$114,8,0)) -> w przedziale od 30 do 50 minut | O75: 0.8 | P75: =IF($D75=Buski[[#Headers],[Buski]],VLOOKUP($E75,Buski[Buski],1,0),IF($D75=Jędrzejowski[[#Headers],[Jędrzejowski]],VLOOKUP($E75,Jędrzejowski[Jędrzejowski],1,0),IF($D75=Kazimierski[[#Headers],[Kazimierski]],VLOOKUP($E75,Kazimierski[Kazimierski],1,0),IF($D75=Kielecki[[#Headers],[Kielecki]],VLOOKUP($E75,Kielecki[Kielecki],1,0),IF($D75=Konecki[[#Headers],[Konecki]],VLOOKUP($E75,Konecki[Konecki],1,0),IF($D75=Opatowski[[#Headers],[Opatowski]],VLOOKUP($E75,Opatowski[Opatowski],1,0),IF($D75=Ostrowiecki[[#Headers],[Ostrowiecki]],VLOOKUP($E75,Ostrowiecki[Ostrowiecki],1,0),IF($D75=Pińczowski[[#Headers],[Pińczowski]],VLOOKUP($E75,Pińczowski[Pińczowski],1,0),IF($D75=Sandomierski[[#Headers],[Sandomierski]],VLOOKUP($E75,Sandomierski[Sandomierski],1,0),IF($D75=Skarżyski[[#Headers],[Skarżyski]],VLOOKUP($E75,Skarżyski[Skarżyski],1,0),IF($D75=Starachowicki[[#Headers],[Starachowicki]],VLOOKUP($E75,Starachowicki[Starachowicki],1,0),IF($D75=Staszowski[[#Headers],[Staszowski]],VLOOKUP($E75,Staszowski[Staszowski],1,0),IF($D75=Włoszczowski[[#Headers],[Włoszczowski]],VLOOKUP($E75,Włoszczowski[Włoszczowski],1,0),""))))))))))))) -> Wodzisław | Q75: jędrzejowski
D76: kazimierski | E76: Bejsce | F76: gmina Bejsce | G76: =VLOOKUP($F76,'DANE - TERC'!$D$6:$P$119,10,0) -> 2603012 | H76: =VLOOKUP($F76,'DANE - TERC'!$D$6:$P$119,12,0) -> GW | I76: =VLOOKUP($F76,'DANE - K1 lit.A'!$D$6:$M$119,4,0) -> NIE | J76: =VLOOKUP($F76,'DANE - K1 lit.A'!$D$6:$M$119,5,0) -> NIE | K76: =VLOOKUP($F76,'DANE - K1 lit.A'!$D$6:$M$119,6,0) -> NIE | L76: =IF($E76="","",VLOOKUP($F76,'DANE - K4 lit.B'!$D$6:$E$107,2,0)) -> NIE | M76: =IF($E76="","",VLOOKUP($F76,'DANE - K2 lit.C'!$B$14:$I$114,8,0)) -> w przedziale od 30 do 50 minut | O76: 0.8 | P76: =IF($D76=Buski[[#Headers],[Buski]],VLOOKUP($E76,Buski[Buski],1,0),IF($D76=Jędrzejowski[[#Headers],[Jędrzejowski]],VLOOKUP($E76,Jędrzejowski[Jędrzejowski],1,0),IF($D76=Kazimierski[[#Headers],[Kazimierski]],VLOOKUP($E76,Kazimierski[Kazimierski],1,0),IF($D76=Kielecki[[#Headers],[Kielecki]],VLOOKUP($E76,Kielecki[Kielecki],1,0),IF($D76=Konecki[[#Headers],[Konecki]],VLOOKUP($E76,Konecki[Konecki],1,0),IF($D76=Opatowski[[#Headers],[Opatowski]],VLOOKUP($E76,Opatowski[Opatowski],1,0),IF($D76=Ostrowiecki[[#Headers],[Ostrowiecki]],VLOOKUP($E76,Ostrowiecki[Ostrowiecki],1,0),IF($D76=Pińczowski[[#Headers],[Pińczowski]],VLOOKUP($E76,Pińczowski[Pińczowski],1,0),IF($D76=Sandomierski[[#Headers],[Sandomierski]],VLOOKUP($E76,Sandomierski[Sandomierski],1,0),IF($D76=Skarżyski[[#Headers],[Skarżyski]],VLOOKUP($E76,Skarżyski[Skarżyski],1,0),IF($D76=Starachowicki[[#Headers],[Starachowicki]],VLOOKUP($E76,Starachowicki[Starachowicki],1,0),IF($D76=Staszowski[[#Headers],[Staszowski]],VLOOKUP($E76,Staszowski[Staszowski],1,0),IF($D76=Włoszczowski[[#Headers],[Włoszczowski]],VLOOKUP($E76,Włoszczowski[Włoszczowski],1,0),""))))))))))))) -> Bejsce | Q76: kazimierski
D77: kazimierski | E77: Czarnocin | F77: gmina Czarnocin | G77: =VLOOKUP($F77,'DANE - TERC'!$D$6:$P$119,10,0) -> 2603022 | H77: =VLOOKUP($F77,'DANE - TERC'!$D$6:$P$119,12,0) -> GW | I77: =VLOOKUP($F77,'DANE - K1 lit.A'!$D$6:$M$119,4,0) -> NIE | J77: =VLOOKUP($F77,'DANE - K1 lit.A'!$D$6:$M$119,5,0) -> NIE | K77: =VLOOKUP($F77,'DANE - K1 lit.A'!$D$6:$M$119,6,0) -> NIE | L77: =IF($E77="","",VLOOKUP($F77,'DANE - K4 lit.B'!$D$6:$E$107,2,0)) -> NIE | M77: =IF($E77="","",VLOOKUP($F77,'DANE - K2 lit.C'!$B$14:$I$114,8,0)) -> większy niż 50 minut | O77: 0.8 | P77: =IF($D77=Buski[[#Headers],[Buski]],VLOOKUP($E77,Buski[Buski],1,0),IF($D77=Jędrzejowski[[#Headers],[Jędrzejowski]],VLOOKUP($E77,Jędrzejowski[Jędrzejowski],1,0),IF($D77=Kazimierski[[#Headers],[Kazimierski]],VLOOKUP($E77,Kazimierski[Kazimierski],1,0),IF($D77=Kielecki[[#Headers],[Kielecki]],VLOOKUP($E77,Kielecki[Kielecki],1,0),IF($D77=Konecki[[#Headers],[Konecki]],VLOOKUP($E77,Konecki[Konecki],1,0),IF($D77=Opatowski[[#Headers],[Opatowski]],VLOOKUP($E77,Opatowski[Opatowski],1,0),IF($D77=Ostrowiecki[[#Headers],[Ostrowiecki]],VLOOKUP($E77,Ostrowiecki[Ostrowiecki],1,0),IF($D77=Pińczowski[[#Headers],[Pińczowski]],VLOOKUP($E77,Pińczowski[Pińczowski],1,0),IF($D77=Sandomierski[[#Headers],[Sandomierski]],VLOOKUP($E77,Sandomierski[Sandomierski],1,0),IF($D77=Skarżyski[[#Headers],[Skarżyski]],VLOOKUP($E77,Skarżyski[Skarżyski],1,0),IF($D77=Starachowicki[[#Headers],[Starachowicki]],VLOOKUP($E77,Starachowicki[Starachowicki],1,0),IF($D77=Staszowski[[#Headers],[Staszowski]],VLOOKUP($E77,Staszowski[Staszowski],1,0),IF($D77=Włoszczowski[[#Headers],[Włoszczowski]],VLOOKUP($E77,Włoszczowski[Włoszczowski],1,0),""))))))))))))) -> Czarnocin | Q77: kazimierski
D78: kazimierski | E78: Kazimierza Wielka | F78: gmina Kazimierza Wielka | G78: =VLOOKUP($F78,'DANE - TERC'!$D$6:$P$119,10,0) -> 2603033 | H78: =VLOOKUP($F78,'DANE - TERC'!$D$6:$P$119,12,0) -> GM-W | I78: =VLOOKUP($F78,'DANE - K1 lit.A'!$D$6:$M$119,4,0) -> TAK | J78: =VLOOKUP($F78,'DANE - K1 lit.A'!$D$6:$M$119,5,0) -> TAK | K78: =VLOOKUP($F78,'DANE - K1 lit.A'!$D$6:$M$119,6,0) -> NIE | L78: =IF($E78="","",VLOOKUP($F78,'DANE - K4 lit.B'!$D$6:$E$107,2,0)) -> NIE | M78: =IF($E78="","",VLOOKUP($F78,'DANE - K2 lit.C'!$B$14:$I$114,8,0)) -> w przedziale od 30 do 50 minut | O78: 0.8 | P78: =IF($D78=Buski[[#Headers],[Buski]],VLOOKUP($E78,Buski[Buski],1,0),IF($D78=Jędrzejowski[[#Headers],[Jędrzejowski]],VLOOKUP($E78,Jędrzejowski[Jędrzejowski],1,0),IF($D78=Kazimierski[[#Headers],[Kazimierski]],VLOOKUP($E78,Kazimierski[Kazimierski],1,0),IF($D78=Kielecki[[#Headers],[Kielecki]],VLOOKUP($E78,Kielecki[Kielecki],1,0),IF($D78=Konecki[[#Headers],[Konecki]],VLOOKUP($E78,Konecki[Konecki],1,0),IF($D78=Opatowski[[#Headers],[Opatowski]],VLOOKUP($E78,Opatowski[Opatowski],1,0),IF($D78=Ostrowiecki[[#Headers],[Ostrowiecki]],VLOOKUP($E78,Ostrowiecki[Ostrowiecki],1,0),IF($D78=Pińczowski[[#Headers],[Pińczowski]],VLOOKUP($E78,Pińczowski[Pińczowski],1,0),IF($D78=Sandomierski[[#Headers],[Sandomierski]],VLOOKUP($E78,Sandomierski[Sandomierski],1,0),IF($D78=Skarżyski[[#Headers],[Skarżyski]],VLOOKUP($E78,Skarżyski[Skarżyski],1,0),IF($D78=Starachowicki[[#Headers],[Starachowicki]],VLOOKUP($E78,Starachowicki[Starachowicki],1,0),IF($D78=Staszowski[[#Headers],[Staszowski]],VLOOKUP($E78,Staszowski[Staszowski],1,0),IF($D78=Włoszczowski[[#Headers],[Włoszczowski]],VLOOKUP($E78,Włoszczowski[Włoszczowski],1,0),""))))))))))))) -> Kazimierza Wielka | Q78: kazimierski
D79: kazimierski | E79: Opatowiec | F79: gmina Opatowiec | G79: =VLOOKUP($F79,'DANE - TERC'!$D$6:$P$119,10,0) -> 2603043 | H79: =VLOOKUP($F79,'DANE - TERC'!$D$6:$P$119,12,0) -> GM-W | I79: =VLOOKUP($F79,'DANE - K1 lit.A'!$D$6:$M$119,4,0) -> NIE | J79: =VLOOKUP($F79,'DANE - K1 lit.A'!$D$6:$M$119,5,0) -> NIE | K79: =VLOOKUP($F79,'DANE - K1 lit.A'!$D$6:$M$119,6,0) -> NIE | L79: =IF($E79="","",VLOOKUP($F79,'DANE - K4 lit.B'!$D$6:$E$107,2,0)) -> NIE | M79: =IF($E79="","",VLOOKUP($F79,'DANE - K2 lit.C'!$B$14:$I$114,8,0)) -> większy niż 50 minut | O79: 0.7 | P79: =IF($D79=Buski[[#Headers],[Buski]],VLOOKUP($E79,Buski[Buski],1,0),IF($D79=Jędrzejowski[[#Headers],[Jędrzejowski]],VLOOKUP($E79,Jędrzejowski[Jędrzejowski],1,0),IF($D79=Kazimierski[[#Headers],[Kazimierski]],VLOOKUP($E79,Kazimierski[Kazimierski],1,0),IF($D79=Kielecki[[#Headers],[Kielecki]],VLOOKUP($E79,Kielecki[Kielecki],1,0),IF($D79=Konecki[[#Headers],[Konecki]],VLOOKUP($E79,Konecki[Konecki],1,0),IF($D79=Opatowski[[#Headers],[Opatowski]],VLOOKUP($E79,Opatowski[Opatowski],1,0),IF($D79=Ostrowiecki[[#Headers],[Ostrowiecki]],VLOOKUP($E79,Ostrowiecki[Ostrowiecki],1,0),IF($D79=Pińczowski[[#Headers],[Pińczowski]],VLOOKUP($E79,Pińczowski[Pińczowski],1,0),IF($D79=Sandomierski[[#Headers],[Sandomierski]],VLOOKUP($E79,Sandomierski[Sandomierski],1,0),IF($D79=Skarżyski[[#Headers],[Skarżyski]],VLOOKUP($E79,Skarżyski[Skarżyski],1,0),IF($D79=Starachowicki[[#Headers],[Starachowicki]],VLOOKUP($E79,Starachowicki[Starachowicki],1,0),IF($D79=Staszowski[[#Headers],[Staszowski]],VLOOKUP($E79,Staszowski[Staszowski],1,0),IF($D79=Włoszczowski[[#Headers],[Włoszczowski]],VLOOKUP($E79,Włoszczowski[Włoszczowski],1,0),""))))))))))))) -> Opatowiec | Q79: kazimierski
D80: kazimierski | E80: Skalbmierz | F80: gmina Skalbmierz | G80: =VLOOKUP($F80,'DANE - TERC'!$D$6:$P$119,10,0) -> 2603053 | H80: =VLOOKUP($F80,'DANE - TERC'!$D$6:$P$119,12,0) -> GM-W | I80: =VLOOKUP($F80,'DANE - K1 lit.A'!$D$6:$M$119,4,0) -> TAK | J80: =VLOOKUP($F80,'DANE - K1 lit.A'!$D$6:$M$119,5,0) -> TAK | K80: =VLOOKUP($F80,'DANE - K1 lit.A'!$D$6:$M$119,6,0) -> NIE | L80: =IF($E80="","",VLOOKUP($F80,'DANE - K4 lit.B'!$D$6:$E$107,2,0)) -> NIE | M80: =IF($E80="","",VLOOKUP($F80,'DANE - K2 lit.C'!$B$14:$I$114,8,0)) -> w przedziale od 30 do 50 minut | O80: 0.8 | P80: =IF($D80=Buski[[#Headers],[Buski]],VLOOKUP($E80,Buski[Buski],1,0),IF($D80=Jędrzejowski[[#Headers],[Jędrzejowski]],VLOOKUP($E80,Jędrzejowski[Jędrzejowski],1,0),IF($D80=Kazimierski[[#Headers],[Kazimierski]],VLOOKUP($E80,Kazimierski[Kazimierski],1,0),IF($D80=Kielecki[[#Headers],[Kielecki]],VLOOKUP($E80,Kielecki[Kielecki],1,0),IF($D80=Konecki[[#Headers],[Konecki]],VLOOKUP($E80,Konecki[Konecki],1,0),IF($D80=Opatowski[[#Headers],[Opatowski]],VLOOKUP($E80,Opatowski[Opatowski],1,0),IF($D80=Ostrowiecki[[#Headers],[Ostrowiecki]],VLOOKUP($E80,Ostrowiecki[Ostrowiecki],1,0),IF($D80=Pińczowski[[#Headers],[Pińczowski]],VLOOKUP($E80,Pińczowski[Pińczowski],1,0),IF($D80=Sandomierski[[#Headers],[Sandomierski]],VLOOKUP($E80,Sandomierski[Sandomierski],1,0),IF($D80=Skarżyski[[#Headers],[Skarżyski]],VLOOKUP($E80,Skarżyski[Skarżyski],1,0),IF($D80=Starachowicki[[#Headers],[Starachowicki]],VLOOKUP($E80,Starachowicki[Starachowicki],1,0),IF($D80=Staszowski[[#Headers],[Staszowski]],VLOOKUP($E80,Staszowski[Staszowski],1,0),IF($D80=Włoszczowski[[#Headers],[Włoszczowski]],VLOOKUP($E80,Włoszczowski[Włoszczowski],1,0),""))))))))))))) -> Skalbmierz | Q80: kazimierski
D81: kielecki | E81: Bieliny | F81: gmina Bieliny | G81: =VLOOKUP($F81,'DANE - TERC'!$D$6:$P$119,10,0) -> 2604012 | H81: =VLOOKUP($F81,'DANE - TERC'!$D$6:$P$119,12,0) -> GW | I81: =VLOOKUP($F81,'DANE - K1 lit.A'!$D$6:$M$119,4,0) -> NIE | J81: =VLOOKUP($F81,'DANE - K1 lit.A'!$D$6:$M$119,5,0) -> TAK | K81: =VLOOKUP($F81,'DANE - K1 lit.A'!$D$6:$M$119,6,0) -> NIE | L81: =IF($E81="","",VLOOKUP($F81,'DANE - K4 lit.B'!$D$6:$E$107,2,0)) -> NIE | M81: =IF($E81="","",VLOOKUP($F81,'DANE - K2 lit.C'!$B$14:$I$114,8,0)) -> w przedziale od 30 do 50 minut | O81: 0.8 | P81: =IF($D81=Buski[[#Headers],[Buski]],VLOOKUP($E81,Buski[Buski],1,0),IF($D81=Jędrzejowski[[#Headers],[Jędrzejowski]],VLOOKUP($E81,Jędrzejowski[Jędrzejowski],1,0),IF($D81=Kazimierski[[#Headers],[Kazimierski]],VLOOKUP($E81,Kazimierski[Kazimierski],1,0),IF($D81=Kielecki[[#Headers],[Kielecki]],VLOOKUP($E81,Kielecki[Kielecki],1,0),IF($D81=Konecki[[#Headers],[Konecki]],VLOOKUP($E81,Konecki[Konecki],1,0),IF($D81=Opatowski[[#Headers],[Opatowski]],VLOOKUP($E81,Opatowski[Opatowski],1,0),IF($D81=Ostrowiecki[[#Headers],[Ostrowiecki]],VLOOKUP($E81,Ostrowiecki[Ostrowiecki],1,0),IF($D81=Pińczowski[[#Headers],[Pińczowski]],VLOOKUP($E81,Pińczowski[Pińczowski],1,0),IF($D81=Sandomierski[[#Headers],[Sandomierski]],VLOOKUP($E81,Sandomierski[Sandomierski],1,0),IF($D81=Skarżyski[[#Headers],[Skarżyski]],VLOOKUP($E81,Skarżyski[Skarżyski],1,0),IF($D81=Starachowicki[[#Headers],[Starachowicki]],VLOOKUP($E81,Starachowicki[Starachowicki],1,0),IF($D81=Staszowski[[#Headers],[Staszowski]],VLOOKUP($E81,Staszowski[Staszowski],1,0),IF($D81=Włoszczowski[[#Headers],[Włoszczowski]],VLOOKUP($E81,Włoszczowski[Włoszczowski],1,0),""))))))))))))) -> Bieliny | Q81: kielecki
D82: kielecki | E82: Bodzentyn | F82: gmina Bodzentyn | G82: =VLOOKUP($F82,'DANE - TERC'!$D$6:$P$119,10,0) -> 2604023 | H82: =VLOOKUP($F82,'DANE - TERC'!$D$6:$P$119,12,0) -> GM-W | I82: =VLOOKUP($F82,'DANE - K1 lit.A'!$D$6:$M$119,4,0) -> NIE | J82: =VLOOKUP($F82,'DANE - K1 lit.A'!$D$6:$M$119,5,0) -> NIE | K82: =VLOOKUP($F82,'DANE - K1 lit.A'!$D$6:$M$119,6,0) -> TAK | L82: =IF($E82="","",VLOOKUP($F82,'DANE - K4 lit.B'!$D$6:$E$107,2,0)) -> NIE | M82: =IF($E82="","",VLOOKUP($F82,'DANE - K2 lit.C'!$B$14:$I$114,8,0)) -> w przedziale od 30 do 50 minut | O82: 0.7 | P82: =IF($D82=Buski[[#Headers],[Buski]],VLOOKUP($E82,Buski[Buski],1,0),IF($D82=Jędrzejowski[[#Headers],[Jędrzejowski]],VLOOKUP($E82,Jędrzejowski[Jędrzejowski],1,0),IF($D82=Kazimierski[[#Headers],[Kazimierski]],VLOOKUP($E82,Kazimierski[Kazimierski],1,0),IF($D82=Kielecki[[#Headers],[Kielecki]],VLOOKUP($E82,Kielecki[Kielecki],1,0),IF($D82=Konecki[[#Headers],[Konecki]],VLOOKUP($E82,Konecki[Konecki],1,0),IF($D82=Opatowski[[#Headers],[Opatowski]],VLOOKUP($E82,Opatowski[Opatowski],1,0),IF($D82=Ostrowiecki[[#Headers],[Ostrowiecki]],VLOOKUP($E82,Ostrowiecki[Ostrowiecki],1,0),IF($D82=Pińczowski[[#Headers],[Pińczowski]],VLOOKUP($E82,Pińczowski[Pińczowski],1,0),IF($D82=Sandomierski[[#Headers],[Sandomierski]],VLOOKUP($E82,Sandomierski[Sandomierski],1,0),IF($D82=Skarżyski[[#Headers],[Skarżyski]],VLOOKUP($E82,Skarżyski[Skarżyski],1,0),IF($D82=Starachowicki[[#Headers],[Starachowicki]],VLOOKUP($E82,Starachowicki[Starachowicki],1,0),IF($D82=Staszowski[[#Headers],[Staszowski]],VLOOKUP($E82,Staszowski[Staszowski],1,0),IF($D82=Włoszczowski[[#Headers],[Włoszczowski]],VLOOKUP($E82,Włoszczowski[Włoszczowski],1,0),""))))))))))))) -> Bodzentyn | Q82: kielecki
D83: kielecki | E83: Chęciny | F83: gmina Chęciny | G83: =VLOOKUP($F83,'DANE - TERC'!$D$6:$P$119,10,0) -> 2604033 | H83: =VLOOKUP($F83,'DANE - TERC'!$D$6:$P$119,12,0) -> GM-W | I83: =VLOOKUP($F83,'DANE - K1 lit.A'!$D$6:$M$119,4,0) -> NIE | J83: =VLOOKUP($F83,'DANE - K1 lit.A'!$D$6:$M$119,5,0) -> TAK | K83: =VLOOKUP($F83,'DANE - K1 lit.A'!$D$6:$M$119,6,0) -> NIE | L83: =IF($E83="","",VLOOKUP($F83,'DANE - K4 lit.B'!$D$6:$E$107,2,0)) -> NIE | M83: =IF($E83="","",VLOOKUP($F83,'DANE - K2 lit.C'!$B$14:$I$114,8,0)) -> mniejszy niż 30 minut | O83: 0.8 | P83: =IF($D83=Buski[[#Headers],[Buski]],VLOOKUP($E83,Buski[Buski],1,0),IF($D83=Jędrzejowski[[#Headers],[Jędrzejowski]],VLOOKUP($E83,Jędrzejowski[Jędrzejowski],1,0),IF($D83=Kazimierski[[#Headers],[Kazimierski]],VLOOKUP($E83,Kazimierski[Kazimierski],1,0),IF($D83=Kielecki[[#Headers],[Kielecki]],VLOOKUP($E83,Kielecki[Kielecki],1,0),IF($D83=Konecki[[#Headers],[Konecki]],VLOOKUP($E83,Konecki[Konecki],1,0),IF($D83=Opatowski[[#Headers],[Opatowski]],VLOOKUP($E83,Opatowski[Opatowski],1,0),IF($D83=Ostrowiecki[[#Headers],[Ostrowiecki]],VLOOKUP($E83,Ostrowiecki[Ostrowiecki],1,0),IF($D83=Pińczowski[[#Headers],[Pińczowski]],VLOOKUP($E83,Pińczowski[Pińczowski],1,0),IF($D83=Sandomierski[[#Headers],[Sandomierski]],VLOOKUP($E83,Sandomierski[Sandomierski],1,0),IF($D83=Skarżyski[[#Headers],[Skarżyski]],VLOOKUP($E83,Skarżyski[Skarżyski],1,0),IF($D83=Starachowicki[[#Headers],[Starachowicki]],VLOOKUP($E83,Starachowicki[Starachowicki],1,0),IF($D83=Staszowski[[#Headers],[Staszowski]],VLOOKUP($E83,Staszowski[Staszowski],1,0),IF($D83=Włoszczowski[[#Headers],[Włoszczowski]],VLOOKUP($E83,Włoszczowski[Włoszczowski],1,0),""))))))))))))) -> Chęciny | Q83: kielecki
D84: kielecki | E84: Chmielnik | F84: gmina Chmielnik | G84: =VLOOKUP($F84,'DANE - TERC'!$D$6:$P$119,10,0) -> 2604043 | H84: =VLOOKUP($F84,'DANE - TERC'!$D$6:$P$119,12,0) -> GM-W | I84: =VLOOKUP($F84,'DANE - K1 lit.A'!$D$6:$M$119,4,0) -> NIE | J84: =VLOOKUP($F84,'DANE - K1 lit.A'!$D$6:$M$119,5,0) -> TAK | K84: =VLOOKUP($F84,'DANE - K1 lit.A'!$D$6:$M$119,6,0) -> NIE | L84: =IF($E84="","",VLOOKUP($F84,'DANE - K4 lit.B'!$D$6:$E$107,2,0)) -> NIE | M84: =IF($E84="","",VLOOKUP($F84,'DANE - K2 lit.C'!$B$14:$I$114,8,0)) -> w przedziale od 30 do 50 minut | O84: 0.8 | P84: =IF($D84=Buski[[#Headers],[Buski]],VLOOKUP($E84,Buski[Buski],1,0),IF($D84=Jędrzejowski[[#Headers],[Jędrzejowski]],VLOOKUP($E84,Jędrzejowski[Jędrzejowski],1,0),IF($D84=Kazimierski[[#Headers],[Kazimierski]],VLOOKUP($E84,Kazimierski[Kazimierski],1,0),IF($D84=Kielecki[[#Headers],[Kielecki]],VLOOKUP($E84,Kielecki[Kielecki],1,0),IF($D84=Konecki[[#Headers],[Konecki]],VLOOKUP($E84,Konecki[Konecki],1,0),IF($D84=Opatowski[[#Headers],[Opatowski]],VLOOKUP($E84,Opatowski[Opatowski],1,0),IF($D84=Ostrowiecki[[#Headers],[Ostrowiecki]],VLOOKUP($E84,Ostrowiecki[Ostrowiecki],1,0),IF($D84=Pińczowski[[#Headers],[Pińczowski]],VLOOKUP($E84,Pińczowski[Pińczowski],1,0),IF($D84=Sandomierski[[#Headers],[Sandomierski]],VLOOKUP($E84,Sandomierski[Sandomierski],1,0),IF($D84=Skarżyski[[#Headers],[Skarżyski]],VLOOKUP($E84,Skarżyski[Skarżyski],1,0),IF($D84=Starachowicki[[#Headers],[Starachowicki]],VLOOKUP($E84,Starachowicki[Starachowicki],1,0),IF($D84=Staszowski[[#Headers],[Staszowski]],VLOOKUP($E84,Staszowski[Staszowski],1,0),IF($D84=Włoszczowski[[#Headers],[Włoszczowski]],VLOOKUP($E84,Włoszczowski[Włoszczowski],1,0),""))))))))))))) -> Chmielnik | Q84: kielecki
D85: kielecki | E85: Daleszyce | F85: gmina Daleszyce | G85: =VLOOKUP($F85,'DANE - TERC'!$D$6:$P$119,10,0) -> 2604053 | H85: =VLOOKUP($F85,'DANE - TERC'!$D$6:$P$119,12,0) -> GM-W | I85: =VLOOKUP($F85,'DANE - K1 lit.A'!$D$6:$M$119,4,0) -> NIE | J85: =VLOOKUP($F85,'DANE - K1 lit.A'!$D$6:$M$119,5,0) -> TAK | K85: =VLOOKUP($F85,'DANE - K1 lit.A'!$D$6:$M$119,6,0) -> NIE | L85: =IF($E85="","",VLOOKUP($F85,'DANE - K4 lit.B'!$D$6:$E$107,2,0)) -> NIE | M85: =IF($E85="","",VLOOKUP($F85,'DANE - K2 lit.C'!$B$14:$I$114,8,0)) -> w przedziale od 30 do 50 minut | O85: 0.7 | P85: =IF($D85=Buski[[#Headers],[Buski]],VLOOKUP($E85,Buski[Buski],1,0),IF($D85=Jędrzejowski[[#Headers],[Jędrzejowski]],VLOOKUP($E85,Jędrzejowski[Jędrzejowski],1,0),IF($D85=Kazimierski[[#Headers],[Kazimierski]],VLOOKUP($E85,Kazimierski[Kazimierski],1,0),IF($D85=Kielecki[[#Headers],[Kielecki]],VLOOKUP($E85,Kielecki[Kielecki],1,0),IF($D85=Konecki[[#Headers],[Konecki]],VLOOKUP($E85,Konecki[Konecki],1,0),IF($D85=Opatowski[[#Headers],[Opatowski]],VLOOKUP($E85,Opatowski[Opatowski],1,0),IF($D85=Ostrowiecki[[#Headers],[Ostrowiecki]],VLOOKUP($E85,Ostrowiecki[Ostrowiecki],1,0),IF($D85=Pińczowski[[#Headers],[Pińczowski]],VLOOKUP($E85,Pińczowski[Pińczowski],1,0),IF($D85=Sandomierski[[#Headers],[Sandomierski]],VLOOKUP($E85,Sandomierski[Sandomierski],1,0),IF($D85=Skarżyski[[#Headers],[Skarżyski]],VLOOKUP($E85,Skarżyski[Skarżyski],1,0),IF($D85=Starachowicki[[#Headers],[Starachowicki]],VLOOKUP($E85,Starachowicki[Starachowicki],1,0),IF($D85=Staszowski[[#Headers],[Staszowski]],VLOOKUP($E85,Staszowski[Staszowski],1,0),IF($D85=Włoszczowski[[#Headers],[Włoszczowski]],VLOOKUP($E85,Włoszczowski[Włoszczowski],1,0),""))))))))))))) -> Daleszyce | Q85: kielecki
D86: kielecki | E86: Górno | F86: gmina Górno | G86: =VLOOKUP($F86,'DANE - TERC'!$D$6:$P$119,10,0) -> 2604062 | H86: =VLOOKUP($F86,'DANE - TERC'!$D$6:$P$119,12,0) -> GW | I86: =VLOOKUP($F86,'DANE - K1 lit.A'!$D$6:$M$119,4,0) -> TAK | J86: =VLOOKUP($F86,'DANE - K1 lit.A'!$D$6:$M$119,5,0) -> TAK | K86: =VLOOKUP($F86,'DANE - K1 lit.A'!$D$6:$M$119,6,0) -> NIE | L86: =IF($E86="","",VLOOKUP($F86,'DANE - K4 lit.B'!$D$6:$E$107,2,0)) -> NIE | M86: =IF($E86="","",VLOOKUP($F86,'DANE - K2 lit.C'!$B$14:$I$114,8,0)) -> mniejszy niż 30 minut | O86: 0.8 | P86: =IF($D86=Buski[[#Headers],[Buski]],VLOOKUP($E86,Buski[Buski],1,0),IF($D86=Jędrzejowski[[#Headers],[Jędrzejowski]],VLOOKUP($E86,Jędrzejowski[Jędrzejowski],1,0),IF($D86=Kazimierski[[#Headers],[Kazimierski]],VLOOKUP($E86,Kazimierski[Kazimierski],1,0),IF($D86=Kielecki[[#Headers],[Kielecki]],VLOOKUP($E86,Kielecki[Kielecki],1,0),IF($D86=Konecki[[#Headers],[Konecki]],VLOOKUP($E86,Konecki[Konecki],1,0),IF($D86=Opatowski[[#Headers],[Opatowski]],VLOOKUP($E86,Opatowski[Opatowski],1,0),IF($D86=Ostrowiecki[[#Headers],[Ostrowiecki]],VLOOKUP($E86,Ostrowiecki[Ostrowiecki],1,0),IF($D86=Pińczowski[[#Headers],[Pińczowski]],VLOOKUP($E86,Pińczowski[Pińczowski],1,0),IF($D86=Sandomierski[[#Headers],[Sandomierski]],VLOOKUP($E86,Sandomierski[Sandomierski],1,0),IF($D86=Skarżyski[[#Headers],[Skarżyski]],VLOOKUP($E86,Skarżyski[Skarżyski],1,0),IF($D86=Starachowicki[[#Headers],[Starachowicki]],VLOOKUP($E86,Starachowicki[Starachowicki],1,0),IF($D86=Staszowski[[#Headers],[Staszowski]],VLOOKUP($E86,Staszowski[Staszowski],1,0),IF($D86=Włoszczowski[[#Headers],[Włoszczowski]],VLOOKUP($E86,Włoszczowski[Włoszczowski],1,0),""))))))))))))) -> Górno | Q86: kielecki
D87: kielecki | E87: Łagów | F87: gmina Łagów | G87: =VLOOKUP($F87,'DANE - TERC'!$D$6:$P$119,10,0) -> 2604073 | H87: =VLOOKUP($F87,'DANE - TERC'!$D$6:$P$119,12,0) -> GM-W | I87: =VLOOKUP($F87,'DANE - K1 lit.A'!$D$6:$M$119,4,0) -> NIE | J87: =VLOOKUP($F87,'DANE - K1 lit.A'!$D$6:$M$119,5,0) -> NIE | K87: =VLOOKUP($F87,'DANE - K1 lit.A'!$D$6:$M$119,6,0) -> NIE | L87: =IF($E87="","",VLOOKUP($F87,'DANE - K4 lit.B'!$D$6:$E$107,2,0)) -> NIE | M87: =IF($E87="","",VLOOKUP($F87,'DANE - K2 lit.C'!$B$14:$I$114,8,0)) -> w przedziale od 30 do 50 minut | O87: 0.8 | P87: =IF($D87=Buski[[#Headers],[Buski]],VLOOKUP($E87,Buski[Buski],1,0),IF($D87=Jędrzejowski[[#Headers],[Jędrzejowski]],VLOOKUP($E87,Jędrzejowski[Jędrzejowski],1,0),IF($D87=Kazimierski[[#Headers],[Kazimierski]],VLOOKUP($E87,Kazimierski[Kazimierski],1,0),IF($D87=Kielecki[[#Headers],[Kielecki]],VLOOKUP($E87,Kielecki[Kielecki],1,0),IF($D87=Konecki[[#Headers],[Konecki]],VLOOKUP($E87,Konecki[Konecki],1,0),IF($D87=Opatowski[[#Headers],[Opatowski]],VLOOKUP($E87,Opatowski[Opatowski],1,0),IF($D87=Ostrowiecki[[#Headers],[Ostrowiecki]],VLOOKUP($E87,Ostrowiecki[Ostrowiecki],1,0),IF($D87=Pińczowski[[#Headers],[Pińczowski]],VLOOKUP($E87,Pińczowski[Pińczowski],1,0),IF($D87=Sandomierski[[#Headers],[Sandomierski]],VLOOKUP($E87,Sandomierski[Sandomierski],1,0),IF($D87=Skarżyski[[#Headers],[Skarżyski]],VLOOKUP($E87,Skarżyski[Skarżyski],1,0),IF($D87=Starachowicki[[#Headers],[Starachowicki]],VLOOKUP($E87,Starachowicki[Starachowicki],1,0),IF($D87=Staszowski[[#Headers],[Staszowski]],VLOOKUP($E87,Staszowski[Staszowski],1,0),IF($D87=Włoszczowski[[#Headers],[Włoszczowski]],VLOOKUP($E87,Włoszczowski[Włoszczowski],1,0),""))))))))))))) -> Łagów | Q87: kielecki
D88: kielecki | E88: Łopuszno | F88: gmina Łopuszno | G88: =VLOOKUP($F88,'DANE - TERC'!$D$6:$P$119,10,0) -> 2604083 | H88: =VLOOKUP($F88,'DANE - TERC'!$D$6:$P$119,12,0) -> GM-W | I88: =VLOOKUP($F88,'DANE - K1 lit.A'!$D$6:$M$119,4,0) -> NIE | J88: =VLOOKUP($F88,'DANE - K1 lit.A'!$D$6:$M$119,5,0) -> NIE | K88: =VLOOKUP($F88,'DANE - K1 lit.A'!$D$6:$M$119,6,0) -> NIE | L88: =IF($E88="","",VLOOKUP($F88,'DANE - K4 lit.B'!$D$6:$E$107,2,0)) -> NIE | M88: =IF($E88="","",VLOOKUP($F88,'DANE - K2 lit.C'!$B$14:$I$114,8,0)) -> w przedziale od 30 do 50 minut | O88: 0.8 | P88: =IF($D88=Buski[[#Headers],[Buski]],VLOOKUP($E88,Buski[Buski],1,0),IF($D88=Jędrzejowski[[#Headers],[Jędrzejowski]],VLOOKUP($E88,Jędrzejowski[Jędrzejowski],1,0),IF($D88=Kazimierski[[#Headers],[Kazimierski]],VLOOKUP($E88,Kazimierski[Kazimierski],1,0),IF($D88=Kielecki[[#Headers],[Kielecki]],VLOOKUP($E88,Kielecki[Kielecki],1,0),IF($D88=Konecki[[#Headers],[Konecki]],VLOOKUP($E88,Konecki[Konecki],1,0),IF($D88=Opatowski[[#Headers],[Opatowski]],VLOOKUP($E88,Opatowski[Opatowski],1,0),IF($D88=Ostrowiecki[[#Headers],[Ostrowiecki]],VLOOKUP($E88,Ostrowiecki[Ostrowiecki],1,0),IF($D88=Pińczowski[[#Headers],[Pińczowski]],VLOOKUP($E88,Pińczowski[Pińczowski],1,0),IF($D88=Sandomierski[[#Headers],[Sandomierski]],VLOOKUP($E88,Sandomierski[Sandomierski],1,0),IF($D88=Skarżyski[[#Headers],[Skarżyski]],VLOOKUP($E88,Skarżyski[Skarżyski],1,0),IF($D88=Starachowicki[[#Headers],[Starachowicki]],VLOOKUP($E88,Starachowicki[Starachowicki],1,0),IF($D88=Staszowski[[#Headers],[Staszowski]],VLOOKUP($E88,Staszowski[Staszowski],1,0),IF($D88=Włoszczowski[[#Headers],[Włoszczowski]],VLOOKUP($E88,Włoszczowski[Włoszczowski],1,0),""))))))))))))) -> Łopuszno | Q88: kielecki
D89: kielecki | E89: Masłów | F89: gmina Masłów | G89: =VLOOKUP($F89,'DANE - TERC'!$D$6:$P$119,10,0) -> 2604092 | H89: =VLOOKUP($F89,'DANE - TERC'!$D$6:$P$119,12,0) -> GW | I89: =VLOOKUP($F89,'DANE - K1 lit.A'!$D$6:$M$119,4,0) -> NIE | J89: =VLOOKUP($F89,'DANE - K1 lit.A'!$D$6:$M$119,5,0) -> NIE | K89: =VLOOKUP($F89,'DANE - K1 lit.A'!$D$6:$M$119,6,0) -> NIE | L89: =IF($E89="","",VLOOKUP($F89,'DANE - K4 lit.B'!$D$6:$E$107,2,0)) -> NIE | M89: =IF($E89="","",VLOOKUP($F89,'DANE - K2 lit.C'!$B$14:$I$114,8,0)) -> mniejszy niż 30 minut | O89: 0.8 | P89: =IF($D89=Buski[[#Headers],[Buski]],VLOOKUP($E89,Buski[Buski],1,0),IF($D89=Jędrzejowski[[#Headers],[Jędrzejowski]],VLOOKUP($E89,Jędrzejowski[Jędrzejowski],1,0),IF($D89=Kazimierski[[#Headers],[Kazimierski]],VLOOKUP($E89,Kazimierski[Kazimierski],1,0),IF($D89=Kielecki[[#Headers],[Kielecki]],VLOOKUP($E89,Kielecki[Kielecki],1,0),IF($D89=Konecki[[#Headers],[Konecki]],VLOOKUP($E89,Konecki[Konecki],1,0),IF($D89=Opatowski[[#Headers],[Opatowski]],VLOOKUP($E89,Opatowski[Opatowski],1,0),IF($D89=Ostrowiecki[[#Headers],[Ostrowiecki]],VLOOKUP($E89,Ostrowiecki[Ostrowiecki],1,0),IF($D89=Pińczowski[[#Headers],[Pińczowski]],VLOOKUP($E89,Pińczowski[Pińczowski],1,0),IF($D89=Sandomierski[[#Headers],[Sandomierski]],VLOOKUP($E89,Sandomierski[Sandomierski],1,0),IF($D89=Skarżyski[[#Headers],[Skarżyski]],VLOOKUP($E89,Skarżyski[Skarżyski],1,0),IF($D89=Starachowicki[[#Headers],[Starachowicki]],VLOOKUP($E89,Starachowicki[Starachowicki],1,0),IF($D89=Staszowski[[#Headers],[Staszowski]],VLOOKUP($E89,Staszowski[Staszowski],1,0),IF($D89=Włoszczowski[[#Headers],[Włoszczowski]],VLOOKUP($E89,Włoszczowski[Włoszczowski],1,0),""))))))))))))) -> Masłów | Q89: kielecki
D90: kielecki | E90: Miedziana Góra | F90: gmina Miedziana Góra | G90: =VLOOKUP($F90,'DANE - TERC'!$D$6:$P$119,10,0) -> 2604102 | H90: =VLOOKUP($F90,'DANE - TERC'!$D$6:$P$119,12,0) -> GW | I90: =VLOOKUP($F90,'DANE - K1 lit.A'!$D$6:$M$119,4,0) -> NIE | J90: =VLOOKUP($F90,'DANE - K1 lit.A'!$D$6:$M$119,5,0) -> NIE | K90: =VLOOKUP($F90,'DANE - K1 lit.A'!$D$6:$M$119,6,0) -> NIE | L90: =IF($E90="","",VLOOKUP($F90,'DANE - K4 lit.B'!$D$6:$E$107,2,0)) -> NIE | M90: =IF($E90="","",VLOOKUP($F90,'DANE - K2 lit.C'!$B$14:$I$114,8,0)) -> mniejszy niż 30 minut | O90: 0.8 | P90: =IF($D90=Buski[[#Headers],[Buski]],VLOOKUP($E90,Buski[Buski],1,0),IF($D90=Jędrzejowski[[#Headers],[Jędrzejowski]],VLOOKUP($E90,Jędrzejowski[Jędrzejowski],1,0),IF($D90=Kazimierski[[#Headers],[Kazimierski]],VLOOKUP($E90,Kazimierski[Kazimierski],1,0),IF($D90=Kielecki[[#Headers],[Kielecki]],VLOOKUP($E90,Kielecki[Kielecki],1,0),IF($D90=Konecki[[#Headers],[Konecki]],VLOOKUP($E90,Konecki[Konecki],1,0),IF($D90=Opatowski[[#Headers],[Opatowski]],VLOOKUP($E90,Opatowski[Opatowski],1,0),IF($D90=Ostrowiecki[[#Headers],[Ostrowiecki]],VLOOKUP($E90,Ostrowiecki[Ostrowiecki],1,0),IF($D90=Pińczowski[[#Headers],[Pińczowski]],VLOOKUP($E90,Pińczowski[Pińczowski],1,0),IF($D90=Sandomierski[[#Headers],[Sandomierski]],VLOOKUP($E90,Sandomierski[Sandomierski],1,0),IF($D90=Skarżyski[[#Headers],[Skarżyski]],VLOOKUP($E90,Skarżyski[Skarżyski],1,0),IF($D90=Starachowicki[[#Headers],[Starachowicki]],VLOOKUP($E90,Starachowicki[Starachowicki],1,0),IF($D90=Staszowski[[#Headers],[Staszowski]],VLOOKUP($E90,Staszowski[Staszowski],1,0),IF($D90=Włoszczowski[[#Headers],[Włoszczowski]],VLOOKUP($E90,Włoszczowski[Włoszczowski],1,0),""))))))))))))) -> Miedziana Góra | Q90: kielecki
D91: kielecki | E91: Mniów | F91: gmina Mniów | G91: =VLOOKUP($F91,'DANE - TERC'!$D$6:$P$119,10,0) -> 2604112 | H91: =VLOOKUP($F91,'DANE - TERC'!$D$6:$P$119,12,0) -> GW | I91: =VLOOKUP($F91,'DANE - K1 lit.A'!$D$6:$M$119,4,0) -> NIE | J91: =VLOOKUP($F91,'DANE - K1 lit.A'!$D$6:$M$119,5,0) -> NIE | K91: =VLOOKUP($F91,'DANE - K1 lit.A'!$D$6:$M$119,6,0) -> NIE | L91: =IF($E91="","",VLOOKUP($F91,'DANE - K4 lit.B'!$D$6:$E$107,2,0)) -> NIE | M91: =IF($E91="","",VLOOKUP($F91,'DANE - K2 lit.C'!$B$14:$I$114,8,0)) -> w przedziale od 30 do 50 minut | O91: 0.8 | P91: =IF($D91=Buski[[#Headers],[Buski]],VLOOKUP($E91,Buski[Buski],1,0),IF($D91=Jędrzejowski[[#Headers],[Jędrzejowski]],VLOOKUP($E91,Jędrzejowski[Jędrzejowski],1,0),IF($D91=Kazimierski[[#Headers],[Kazimierski]],VLOOKUP($E91,Kazimierski[Kazimierski],1,0),IF($D91=Kielecki[[#Headers],[Kielecki]],VLOOKUP($E91,Kielecki[Kielecki],1,0),IF($D91=Konecki[[#Headers],[Konecki]],VLOOKUP($E91,Konecki[Konecki],1,0),IF($D91=Opatowski[[#Headers],[Opatowski]],VLOOKUP($E91,Opatowski[Opatowski],1,0),IF($D91=Ostrowiecki[[#Headers],[Ostrowiecki]],VLOOKUP($E91,Ostrowiecki[Ostrowiecki],1,0),IF($D91=Pińczowski[[#Headers],[Pińczowski]],VLOOKUP($E91,Pińczowski[Pińczowski],1,0),IF($D91=Sandomierski[[#Headers],[Sandomierski]],VLOOKUP($E91,Sandomierski[Sandomierski],1,0),IF($D91=Skarżyski[[#Headers],[Skarżyski]],VLOOKUP($E91,Skarżyski[Skarżyski],1,0),IF($D91=Starachowicki[[#Headers],[Starachowicki]],VLOOKUP($E91,Starachowicki[Starachowicki],1,0),IF($D91=Staszowski[[#Headers],[Staszowski]],VLOOKUP($E91,Staszowski[Staszowski],1,0),IF($D91=Włoszczowski[[#Headers],[Włoszczowski]],VLOOKUP($E91,Włoszczowski[Włoszczowski],1,0),""))))))))))))) -> Mniów | Q91: kielecki
D92: kielecki | E92: Morawica | F92: gmina Morawica | G92: =VLOOKUP($F92,'DANE - TERC'!$D$6:$P$119,10,0) -> 2604123 | H92: =VLOOKUP($F92,'DANE - TERC'!$D$6:$P$119,12,0) -> GM-W | I92: =VLOOKUP($F92,'DANE - K1 lit.A'!$D$6:$M$119,4,0) -> NIE | J92: =VLOOKUP($F92,'DANE - K1 lit.A'!$D$6:$M$119,5,0) -> TAK | K92: =VLOOKUP($F92,'DANE - K1 lit.A'!$D$6:$M$119,6,0) -> NIE | L92: =IF($E92="","",VLOOKUP($F92,'DANE - K4 lit.B'!$D$6:$E$107,2,0)) -> NIE | M92: =IF($E92="","",VLOOKUP($F92,'DANE - K2 lit.C'!$B$14:$I$114,8,0)) -> mniejszy niż 30 minut | O92: 0.6 | P92: =IF($D92=Buski[[#Headers],[Buski]],VLOOKUP($E92,Buski[Buski],1,0),IF($D92=Jędrzejowski[[#Headers],[Jędrzejowski]],VLOOKUP($E92,Jędrzejowski[Jędrzejowski],1,0),IF($D92=Kazimierski[[#Headers],[Kazimierski]],VLOOKUP($E92,Kazimierski[Kazimierski],1,0),IF($D92=Kielecki[[#Headers],[Kielecki]],VLOOKUP($E92,Kielecki[Kielecki],1,0),IF($D92=Konecki[[#Headers],[Konecki]],VLOOKUP($E92,Konecki[Konecki],1,0),IF($D92=Opatowski[[#Headers],[Opatowski]],VLOOKUP($E92,Opatowski[Opatowski],1,0),IF($D92=Ostrowiecki[[#Headers],[Ostrowiecki]],VLOOKUP($E92,Ostrowiecki[Ostrowiecki],1,0),IF($D92=Pińczowski[[#Headers],[Pińczowski]],VLOOKUP($E92,Pińczowski[Pińczowski],1,0),IF($D92=Sandomierski[[#Headers],[Sandomierski]],VLOOKUP($E92,Sandomierski[Sandomierski],1,0),IF($D92=Skarżyski[[#Headers],[Skarżyski]],VLOOKUP($E92,Skarżyski[Skarżyski],1,0),IF($D92=Starachowicki[[#Headers],[Starachowicki]],VLOOKUP($E92,Starachowicki[Starachowicki],1,0),IF($D92=Staszowski[[#Headers],[Staszowski]],VLOOKUP($E92,Staszowski[Staszowski],1,0),IF($D92=Włoszczowski[[#Headers],[Włoszczowski]],VLOOKUP($E92,Włoszczowski[Włoszczowski],1,0),""))))))))))))) -> Morawica | Q92: kielecki
D93: kielecki | E93: Nowa Słupia | F93: gmina Nowa Słupia | G93: =VLOOKUP($F93,'DANE - TERC'!$D$6:$P$119,10,0) -> 2604133 | H93: =VLOOKUP($F93,'DANE - TERC'!$D$6:$P$119,12,0) -> GM-W | I93: =VLOOKUP($F93,'DANE - K1 lit.A'!$D$6:$M$119,4,0) -> NIE | J93: =VLOOKUP($F93,'DANE - K1 lit.A'!$D$6:$M$119,5,0) -> TAK | K93: =VLOOKUP($F93,'DANE - K1 lit.A'!$D$6:$M$119,6,0) -> TAK | L93: =IF($E93="","",VLOOKUP($F93,'DANE - K4 lit.B'!$D$6:$E$107,2,0)) -> NIE | M93: =IF($E93="","",VLOOKUP($F93,'DANE - K2 lit.C'!$B$14:$I$114,8,0)) -> w przedziale od 30 do 50 minut | O93: 0.8 | P93: =IF($D93=Buski[[#Headers],[Buski]],VLOOKUP($E93,Buski[Buski],1,0),IF($D93=Jędrzejowski[[#Headers],[Jędrzejowski]],VLOOKUP($E93,Jędrzejowski[Jędrzejowski],1,0),IF($D93=Kazimierski[[#Headers],[Kazimierski]],VLOOKUP($E93,Kazimierski[Kazimierski],1,0),IF($D93=Kielecki[[#Headers],[Kielecki]],VLOOKUP($E93,Kielecki[Kielecki],1,0),IF($D93=Konecki[[#Headers],[Konecki]],VLOOKUP($E93,Konecki[Konecki],1,0),IF($D93=Opatowski[[#Headers],[Opatowski]],VLOOKUP($E93,Opatowski[Opatowski],1,0),IF($D93=Ostrowiecki[[#Headers],[Ostrowiecki]],VLOOKUP($E93,Ostrowiecki[Ostrowiecki],1,0),IF($D93=Pińczowski[[#Headers],[Pińczowski]],VLOOKUP($E93,Pińczowski[Pińczowski],1,0),IF($D93=Sandomierski[[#Headers],[Sandomierski]],VLOOKUP($E93,Sandomierski[Sandomierski],1,0),IF($D93=Skarżyski[[#Headers],[Skarżyski]],VLOOKUP($E93,Skarżyski[Skarżyski],1,0),IF($D93=Starachowicki[[#Headers],[Starachowicki]],VLOOKUP($E93,Starachowicki[Starachowicki],1,0),IF($D93=Staszowski[[#Headers],[Staszowski]],VLOOKUP($E93,Staszowski[Staszowski],1,0),IF($D93=Włoszczowski[[#Headers],[Włoszczowski]],VLOOKUP($E93,Włoszczowski[Włoszczowski],1,0),""))))))))))))) -> Nowa Słupia | Q93: kielecki
D94: kielecki | E94: Nowiny | F94: gmina Nowiny | G94: =VLOOKUP($F94,'DANE - TERC'!$D$6:$P$119,10,0) -> 2604172 | H94: =VLOOKUP($F94,'DANE - TERC'!$D$6:$P$119,12,0) -> GW | I94: =VLOOKUP($F94,'DANE - K1 lit.A'!$D$6:$M$119,4,0) -> TAK | J94: =VLOOKUP($F94,'DANE - K1 lit.A'!$D$6:$M$119,5,0) -> TAK | K94: =VLOOKUP($F94,'DANE - K1 lit.A'!$D$6:$M$119,6,0) -> NIE | L94: =IF($E94="","",VLOOKUP($F94,'DANE - K4 lit.B'!$D$6:$E$107,2,0)) -> NIE | M94: =IF($E94="","",VLOOKUP($F94,'DANE - K2 lit.C'!$B$14:$I$114,8,0)) -> mniejszy niż 30 minut | O94: 0.6 | P94: =IF($D94=Buski[[#Headers],[Buski]],VLOOKUP($E94,Buski[Buski],1,0),IF($D94=Jędrzejowski[[#Headers],[Jędrzejowski]],VLOOKUP($E94,Jędrzejowski[Jędrzejowski],1,0),IF($D94=Kazimierski[[#Headers],[Kazimierski]],VLOOKUP($E94,Kazimierski[Kazimierski],1,0),IF($D94=Kielecki[[#Headers],[Kielecki]],VLOOKUP($E94,Kielecki[Kielecki],1,0),IF($D94=Konecki[[#Headers],[Konecki]],VLOOKUP($E94,Konecki[Konecki],1,0),IF($D94=Opatowski[[#Headers],[Opatowski]],VLOOKUP($E94,Opatowski[Opatowski],1,0),IF($D94=Ostrowiecki[[#Headers],[Ostrowiecki]],VLOOKUP($E94,Ostrowiecki[Ostrowiecki],1,0),IF($D94=Pińczowski[[#Headers],[Pińczowski]],VLOOKUP($E94,Pińczowski[Pińczowski],1,0),IF($D94=Sandomierski[[#Headers],[Sandomierski]],VLOOKUP($E94,Sandomierski[Sandomierski],1,0),IF($D94=Skarżyski[[#Headers],[Skarżyski]],VLOOKUP($E94,Skarżyski[Skarżyski],1,0),IF($D94=Starachowicki[[#Headers],[Starachowicki]],VLOOKUP($E94,Starachowicki[Starachowicki],1,0),IF($D94=Staszowski[[#Headers],[Staszowski]],VLOOKUP($E94,Staszowski[Staszowski],1,0),IF($D94=Włoszczowski[[#Headers],[Włoszczowski]],VLOOKUP($E94,Włoszczowski[Włoszczowski],1,0),""))))))))))))) -> Nowiny | Q94: kielecki
D95: kielecki | E95: Piekoszów | F95: gmina Piekoszów | G95: =VLOOKUP($F95,'DANE - TERC'!$D$6:$P$119,10,0) -> 2604143 | H95: =VLOOKUP($F95,'DANE - TERC'!$D$6:$P$119,12,0) -> GM-W | I95: =VLOOKUP($F95,'DANE - K1 lit.A'!$D$6:$M$119,4,0) -> NIE | J95: =VLOOKUP($F95,'DANE - K1 lit.A'!$D$6:$M$119,5,0) -> NIE | K95: =VLOOKUP($F95,'DANE - K1 lit.A'!$D$6:$M$119,6,0) -> NIE | L95: =IF($E95="","",VLOOKUP($F95,'DANE - K4 lit.B'!$D$6:$E$107,2,0)) -> NIE | M95: =IF($E95="","",VLOOKUP($F95,'DANE - K2 lit.C'!$B$14:$I$114,8,0)) -> mniejszy niż 30 minut | O95: 0.8 | P95: =IF($D95=Buski[[#Headers],[Buski]],VLOOKUP($E95,Buski[Buski],1,0),IF($D95=Jędrzejowski[[#Headers],[Jędrzejowski]],VLOOKUP($E95,Jędrzejowski[Jędrzejowski],1,0),IF($D95=Kazimierski[[#Headers],[Kazimierski]],VLOOKUP($E95,Kazimierski[Kazimierski],1,0),IF($D95=Kielecki[[#Headers],[Kielecki]],VLOOKUP($E95,Kielecki[Kielecki],1,0),IF($D95=Konecki[[#Headers],[Konecki]],VLOOKUP($E95,Konecki[Konecki],1,0),IF($D95=Opatowski[[#Headers],[Opatowski]],VLOOKUP($E95,Opatowski[Opatowski],1,0),IF($D95=Ostrowiecki[[#Headers],[Ostrowiecki]],VLOOKUP($E95,Ostrowiecki[Ostrowiecki],1,0),IF($D95=Pińczowski[[#Headers],[Pińczowski]],VLOOKUP($E95,Pińczowski[Pińczowski],1,0),IF($D95=Sandomierski[[#Headers],[Sandomierski]],VLOOKUP($E95,Sandomierski[Sandomierski],1,0),IF($D95=Skarżyski[[#Headers],[Skarżyski]],VLOOKUP($E95,Skarżyski[Skarżyski],1,0),IF($D95=Starachowicki[[#Headers],[Starachowicki]],VLOOKUP($E95,Starachowicki[Starachowicki],1,0),IF($D95=Staszowski[[#Headers],[Staszowski]],VLOOKUP($E95,Staszowski[Staszowski],1,0),IF($D95=Włoszczowski[[#Headers],[Włoszczowski]],VLOOKUP($E95,Włoszczowski[Włoszczowski],1,0),""))))))))))))) -> Piekoszów | Q95: kielecki
D96: kielecki | E96: Pierzchnica | F96: gmina Pierzchnica | G96: =VLOOKUP($F96,'DANE - TERC'!$D$6:$P$119,10,0) -> 2604153 | H96: =VLOOKUP($F96,'DANE - TERC'!$D$6:$P$119,12,0) -> GM-W | I96: =VLOOKUP($F96,'DANE - K1 lit.A'!$D$6:$M$119,4,0) -> NIE | J96: =VLOOKUP($F96,'DANE - K1 lit.A'!$D$6:$M$119,5,0) -> TAK | K96: =VLOOKUP($F96,'DANE - K1 lit.A'!$D$6:$M$119,6,0) -> TAK | L96: =IF($E96="","",VLOOKUP($F96,'DANE - K4 lit.B'!$D$6:$E$107,2,0)) -> NIE | M96: =IF($E96="","",VLOOKUP($F96,'DANE - K2 lit.C'!$B$14:$I$114,8,0)) -> w przedziale od 30 do 50 minut | O96: 0.8 | P96: =IF($D96=Buski[[#Headers],[Buski]],VLOOKUP($E96,Buski[Buski],1,0),IF($D96=Jędrzejowski[[#Headers],[Jędrzejowski]],VLOOKUP($E96,Jędrzejowski[Jędrzejowski],1,0),IF($D96=Kazimierski[[#Headers],[Kazimierski]],VLOOKUP($E96,Kazimierski[Kazimierski],1,0),IF($D96=Kielecki[[#Headers],[Kielecki]],VLOOKUP($E96,Kielecki[Kielecki],1,0),IF($D96=Konecki[[#Headers],[Konecki]],VLOOKUP($E96,Konecki[Konecki],1,0),IF($D96=Opatowski[[#Headers],[Opatowski]],VLOOKUP($E96,Opatowski[Opatowski],1,0),IF($D96=Ostrowiecki[[#Headers],[Ostrowiecki]],VLOOKUP($E96,Ostrowiecki[Ostrowiecki],1,0),IF($D96=Pińczowski[[#Headers],[Pińczowski]],VLOOKUP($E96,Pińczowski[Pińczowski],1,0),IF($D96=Sandomierski[[#Headers],[Sandomierski]],VLOOKUP($E96,Sandomierski[Sandomierski],1,0),IF($D96=Skarżyski[[#Headers],[Skarżyski]],VLOOKUP($E96,Skarżyski[Skarżyski],1,0),IF($D96=Starachowicki[[#Headers],[Starachowicki]],VLOOKUP($E96,Starachowicki[Starachowicki],1,0),IF($D96=Staszowski[[#Headers],[Staszowski]],VLOOKUP($E96,Staszowski[Staszowski],1,0),IF($D96=Włoszczowski[[#Headers],[Włoszczowski]],VLOOKUP($E96,Włoszczowski[Włoszczowski],1,0),""))))))))))))) -> Pierzchnica | Q96: kielecki
D97: kielecki | E97: Raków | F97: gmina Raków | G97: =VLOOKUP($F97,'DANE - TERC'!$D$6:$P$119,10,0) -> 2604162 | H97: =VLOOKUP($F97,'DANE - TERC'!$D$6:$P$119,12,0) -> GW | I97: =VLOOKUP($F97,'DANE - K1 lit.A'!$D$6:$M$119,4,0) -> NIE | J97: =VLOOKUP($F97,'DANE - K1 lit.A'!$D$6:$M$119,5,0) -> NIE | K97: =VLOOKUP($F97,'DANE - K1 lit.A'!$D$6:$M$119,6,0) -> NIE | L97: =IF($E97="","",VLOOKUP($F97,'DANE - K4 lit.B'!$D$6:$E$107,2,0)) -> NIE | M97: =IF($E97="","",VLOOKUP($F97,'DANE - K2 lit.C'!$B$14:$I$114,8,0)) -> w przedziale od 30 do 50 minut | O97: 0.8 | P97: =IF($D97=Buski[[#Headers],[Buski]],VLOOKUP($E97,Buski[Buski],1,0),IF($D97=Jędrzejowski[[#Headers],[Jędrzejowski]],VLOOKUP($E97,Jędrzejowski[Jędrzejowski],1,0),IF($D97=Kazimierski[[#Headers],[Kazimierski]],VLOOKUP($E97,Kazimierski[Kazimierski],1,0),IF($D97=Kielecki[[#Headers],[Kielecki]],VLOOKUP($E97,Kielecki[Kielecki],1,0),IF($D97=Konecki[[#Headers],[Konecki]],VLOOKUP($E97,Konecki[Konecki],1,0),IF($D97=Opatowski[[#Headers],[Opatowski]],VLOOKUP($E97,Opatowski[Opatowski],1,0),IF($D97=Ostrowiecki[[#Headers],[Ostrowiecki]],VLOOKUP($E97,Ostrowiecki[Ostrowiecki],1,0),IF($D97=Pińczowski[[#Headers],[Pińczowski]],VLOOKUP($E97,Pińczowski[Pińczowski],1,0),IF($D97=Sandomierski[[#Headers],[Sandomierski]],VLOOKUP($E97,Sandomierski[Sandomierski],1,0),IF($D97=Skarżyski[[#Headers],[Skarżyski]],VLOOKUP($E97,Skarżyski[Skarżyski],1,0),IF($D97=Starachowicki[[#Headers],[Starachowicki]],VLOOKUP($E97,Starachowicki[Starachowicki],1,0),IF($D97=Staszowski[[#Headers],[Staszowski]],VLOOKUP($E97,Staszowski[Staszowski],1,0),IF($D97=Włoszczowski[[#Headers],[Włoszczowski]],VLOOKUP($E97,Włoszczowski[Włoszczowski],1,0),""))))))))))))) -> Raków | Q97: kielecki
D98: kielecki | E98: Strawczyn | F98: gmina Strawczyn | G98: =VLOOKUP($F98,'DANE - TERC'!$D$6:$P$119,10,0) -> 2604182 | H98: =VLOOKUP($F98,'DANE - TERC'!$D$6:$P$119,12,0) -> GW | I98: =VLOOKUP($F98,'DANE - K1 lit.A'!$D$6:$M$119,4,0) -> NIE | J98: =VLOOKUP($F98,'DANE - K1 lit.A'!$D$6:$M$119,5,0) -> NIE | K98: =VLOOKUP($F98,'DANE - K1 lit.A'!$D$6:$M$119,6,0) -> NIE | L98: =IF($E98="","",VLOOKUP($F98,'DANE - K4 lit.B'!$D$6:$E$107,2,0)) -> NIE | M98: =IF($E98="","",VLOOKUP($F98,'DANE - K2 lit.C'!$B$14:$I$114,8,0)) -> w przedziale od 30 do 50 minut | O98: 0.8 | P98: =IF($D98=Buski[[#Headers],[Buski]],VLOOKUP($E98,Buski[Buski],1,0),IF($D98=Jędrzejowski[[#Headers],[Jędrzejowski]],VLOOKUP($E98,Jędrzejowski[Jędrzejowski],1,0),IF($D98=Kazimierski[[#Headers],[Kazimierski]],VLOOKUP($E98,Kazimierski[Kazimierski],1,0),IF($D98=Kielecki[[#Headers],[Kielecki]],VLOOKUP($E98,Kielecki[Kielecki],1,0),IF($D98=Konecki[[#Headers],[Konecki]],VLOOKUP($E98,Konecki[Konecki],1,0),IF($D98=Opatowski[[#Headers],[Opatowski]],VLOOKUP($E98,Opatowski[Opatowski],1,0),IF($D98=Ostrowiecki[[#Headers],[Ostrowiecki]],VLOOKUP($E98,Ostrowiecki[Ostrowiecki],1,0),IF($D98=Pińczowski[[#Headers],[Pińczowski]],VLOOKUP($E98,Pińczowski[Pińczowski],1,0),IF($D98=Sandomierski[[#Headers],[Sandomierski]],VLOOKUP($E98,Sandomierski[Sandomierski],1,0),IF($D98=Skarżyski[[#Headers],[Skarżyski]],VLOOKUP($E98,Skarżyski[Skarżyski],1,0),IF($D98=Starachowicki[[#Headers],[Starachowicki]],VLOOKUP($E98,Starachowicki[Starachowicki],1,0),IF($D98=Staszowski[[#Headers],[Staszowski]],VLOOKUP($E98,Staszowski[Staszowski],1,0),IF($D98=Włoszczowski[[#Headers],[Włoszczowski]],VLOOKUP($E98,Włoszczowski[Włoszczowski],1,0),""))))))))))))) -> Strawczyn | Q98: kielecki
D99: kielecki | E99: Zagnańsk | F99: gmina Zagnańsk | G99: =VLOOKUP($F99,'DANE - TERC'!$D$6:$P$119,10,0) -> 2604192 | H99: =VLOOKUP($F99,'DANE - TERC'!$D$6:$P$119,12,0) -> GW | I99: =VLOOKUP($F99,'DANE - K1 lit.A'!$D$6:$M$119,4,0) -> NIE | J99: =VLOOKUP($F99,'DANE - K1 lit.A'!$D$6:$M$119,5,0) -> TAK | K99: =VLOOKUP($F99,'DANE - K1 lit.A'!$D$6:$M$119,6,0) -> NIE | L99: =IF($E99="","",VLOOKUP($F99,'DANE - K4 lit.B'!$D$6:$E$107,2,0)) -> NIE | M99: =IF($E99="","",VLOOKUP($F99,'DANE - K2 lit.C'!$B$14:$I$114,8,0)) -> mniejszy niż 30 minut | O99: 0.8 | P99: =IF($D99=Buski[[#Headers],[Buski]],VLOOKUP($E99,Buski[Buski],1,0),IF($D99=Jędrzejowski[[#Headers],[Jędrzejowski]],VLOOKUP($E99,Jędrzejowski[Jędrzejowski],1,0),IF($D99=Kazimierski[[#Headers],[Kazimierski]],VLOOKUP($E99,Kazimierski[Kazimierski],1,0),IF($D99=Kielecki[[#Headers],[Kielecki]],VLOOKUP($E99,Kielecki[Kielecki],1,0),IF($D99=Konecki[[#Headers],[Konecki]],VLOOKUP($E99,Konecki[Konecki],1,0),IF($D99=Opatowski[[#Headers],[Opatowski]],VLOOKUP($E99,Opatowski[Opatowski],1,0),IF($D99=Ostrowiecki[[#Headers],[Ostrowiecki]],VLOOKUP($E99,Ostrowiecki[Ostrowiecki],1,0),IF($D99=Pińczowski[[#Headers],[Pińczowski]],VLOOKUP($E99,Pińczowski[Pińczowski],1,0),IF($D99=Sandomierski[[#Headers],[Sandomierski]],VLOOKUP($E99,Sandomierski[Sandomierski],1,0),IF($D99=Skarżyski[[#Headers],[Skarżyski]],VLOOKUP($E99,Skarżyski[Skarżyski],1,0),IF($D99=Starachowicki[[#Headers],[Starachowicki]],VLOOKUP($E99,Starachowicki[Starachowicki],1,0),IF($D99=Staszowski[[#Headers],[Staszowski]],VLOOKUP($E99,Staszowski[Staszowski],1,0),IF($D99=Włoszczowski[[#Headers],[Włoszczowski]],VLOOKUP($E99,Włoszczowski[Włoszczowski],1,0),""))))))))))))) -> Zagnańsk | Q99: kielecki
D100: konecki | E100: Fałków | F100: gmina Fałków | G100: =VLOOKUP($F100,'DANE - TERC'!$D$6:$P$119,10,0) -> 2605012 | H100: =VLOOKUP($F100,'DANE - TERC'!$D$6:$P$119,12,0) -> GW | I100: =VLOOKUP($F100,'DANE - K1 lit.A'!$D$6:$M$119,4,0) -> TAK | J100: =VLOOKUP($F100,'DANE - K1 lit.A'!$D$6:$M$119,5,0) -> TAK | K100: =VLOOKUP($F100,'DANE - K1 lit.A'!$D$6:$M$119,6,0) -> NIE | L100: =IF($E100="","",VLOOKUP($F100,'DANE - K4 lit.B'!$D$6:$E$107,2,0)) -> NIE | M100: =IF($E100="","",VLOOKUP($F100,'DANE - K2 lit.C'!$B$14:$I$114,8,0)) -> w przedziale od 30 do 50 minut | O100: 0.7 | P100: =IF($D100=Buski[[#Headers],[Buski]],VLOOKUP($E100,Buski[Buski],1,0),IF($D100=Jędrzejowski[[#Headers],[Jędrzejowski]],VLOOKUP($E100,Jędrzejowski[Jędrzejowski],1,0),IF($D100=Kazimierski[[#Headers],[Kazimierski]],VLOOKUP($E100,Kazimierski[Kazimierski],1,0),IF($D100=Kielecki[[#Headers],[Kielecki]],VLOOKUP($E100,Kielecki[Kielecki],1,0),IF($D100=Konecki[[#Headers],[Konecki]],VLOOKUP($E100,Konecki[Konecki],1,0),IF($D100=Opatowski[[#Headers],[Opatowski]],VLOOKUP($E100,Opatowski[Opatowski],1,0),IF($D100=Ostrowiecki[[#Headers],[Ostrowiecki]],VLOOKUP($E100,Ostrowiecki[Ostrowiecki],1,0),IF($D100=Pińczowski[[#Headers],[Pińczowski]],VLOOKUP($E100,Pińczowski[Pińczowski],1,0),IF($D100=Sandomierski[[#Headers],[Sandomierski]],VLOOKUP($E100,Sandomierski[Sandomierski],1,0),IF($D100=Skarżyski[[#Headers],[Skarżyski]],VLOOKUP($E100,Skarżyski[Skarżyski],1,0),IF($D100=Starachowicki[[#Headers],[Starachowicki]],VLOOKUP($E100,Starachowicki[Starachowicki],1,0),IF($D100=Staszowski[[#Headers],[Staszowski]],VLOOKUP($E100,Staszowski[Staszowski],1,0),IF($D100=Włoszczowski[[#Headers],[Włoszczowski]],VLOOKUP($E100,Włoszczowski[Włoszczowski],1,0),""))))))))))))) -> Fałków | Q100: konecki
D101: konecki | E101: Gowarczów | F101: gmina Gowarczów | G101: =VLOOKUP($F101,'DANE - TERC'!$D$6:$P$119,10,0) -> 2605023 | H101: =VLOOKUP($F101,'DANE - TERC'!$D$6:$P$119,12,0) -> GM-W | I101: =VLOOKUP($F101,'DANE - K1 lit.A'!$D$6:$M$119,4,0) -> NIE | J101: =VLOOKUP($F101,'DANE - K1 lit.A'!$D$6:$M$119,5,0) -> NIE | K101: =VLOOKUP($F101,'DANE - K1 lit.A'!$D$6:$M$119,6,0) -> NIE | L101: =IF($E101="","",VLOOKUP($F101,'DANE - K4 lit.B'!$D$6:$E$107,2,0)) -> NIE | M101: =IF($E101="","",VLOOKUP($F101,'DANE - K2 lit.C'!$B$14:$I$114,8,0)) -> w przedziale od 30 do 50 minut | O101: 0.8 | P101: =IF($D101=Buski[[#Headers],[Buski]],VLOOKUP($E101,Buski[Buski],1,0),IF($D101=Jędrzejowski[[#Headers],[Jędrzejowski]],VLOOKUP($E101,Jędrzejowski[Jędrzejowski],1,0),IF($D101=Kazimierski[[#Headers],[Kazimierski]],VLOOKUP($E101,Kazimierski[Kazimierski],1,0),IF($D101=Kielecki[[#Headers],[Kielecki]],VLOOKUP($E101,Kielecki[Kielecki],1,0),IF($D101=Konecki[[#Headers],[Konecki]],VLOOKUP($E101,Konecki[Konecki],1,0),IF($D101=Opatowski[[#Headers],[Opatowski]],VLOOKUP($E101,Opatowski[Opatowski],1,0),IF($D101=Ostrowiecki[[#Headers],[Ostrowiecki]],VLOOKUP($E101,Ostrowiecki[Ostrowiecki],1,0),IF($D101=Pińczowski[[#Headers],[Pińczowski]],VLOOKUP($E101,Pińczowski[Pińczowski],1,0),IF($D101=Sandomierski[[#Headers],[Sandomierski]],VLOOKUP($E101,Sandomierski[Sandomierski],1,0),IF($D101=Skarżyski[[#Headers],[Skarżyski]],VLOOKUP($E101,Skarżyski[Skarżyski],1,0),IF($D101=Starachowicki[[#Headers],[Starachowicki]],VLOOKUP($E101,Starachowicki[Starachowicki],1,0),IF($D101=Staszowski[[#Headers],[Staszowski]],VLOOKUP($E101,Staszowski[Staszowski],1,0),IF($D101=Włoszczowski[[#Headers],[Włoszczowski]],VLOOKUP($E101,Włoszczowski[Włoszczowski],1,0),""))))))))))))) -> Gowarczów | Q101: konecki
D102: konecki | E102: Końskie | F102: gmina Końskie | G102: =VLOOKUP($F102,'DANE - TERC'!$D$6:$P$119,10,0) -> 2605033 | H102: =VLOOKUP($F102,'DANE - TERC'!$D$6:$P$119,12,0) -> GM-W | I102: =VLOOKUP($F102,'DANE - K1 lit.A'!$D$6:$M$119,4,0) -> TAK | J102: =VLOOKUP($F102,'DANE - K1 lit.A'!$D$6:$M$119,5,0) -> TAK | K102: =VLOOKUP($F102,'DANE - K1 lit.A'!$D$6:$M$119,6,0) -> TAK | L102: =IF($E102="","",VLOOKUP($F102,'DANE - K4 lit.B'!$D$6:$E$107,2,0)) -> TAK | M102: =IF($E102="","",VLOOKUP($F102,'DANE - K2 lit.C'!$B$14:$I$114,8,0)) -> w przedziale od 30 do 50 minut | O102: 0.8 | P102: =IF($D102=Buski[[#Headers],[Buski]],VLOOKUP($E102,Buski[Buski],1,0),IF($D102=Jędrzejowski[[#Headers],[Jędrzejowski]],VLOOKUP($E102,Jędrzejowski[Jędrzejowski],1,0),IF($D102=Kazimierski[[#Headers],[Kazimierski]],VLOOKUP($E102,Kazimierski[Kazimierski],1,0),IF($D102=Kielecki[[#Headers],[Kielecki]],VLOOKUP($E102,Kielecki[Kielecki],1,0),IF($D102=Konecki[[#Headers],[Konecki]],VLOOKUP($E102,Konecki[Konecki],1,0),IF($D102=Opatowski[[#Headers],[Opatowski]],VLOOKUP($E102,Opatowski[Opatowski],1,0),IF($D102=Ostrowiecki[[#Headers],[Ostrowiecki]],VLOOKUP($E102,Ostrowiecki[Ostrowiecki],1,0),IF($D102=Pińczowski[[#Headers],[Pińczowski]],VLOOKUP($E102,Pińczowski[Pińczowski],1,0),IF($D102=Sandomierski[[#Headers],[Sandomierski]],VLOOKUP($E102,Sandomierski[Sandomierski],1,0),IF($D102=Skarżyski[[#Headers],[Skarżyski]],VLOOKUP($E102,Skarżyski[Skarżyski],1,0),IF($D102=Starachowicki[[#Headers],[Starachowicki]],VLOOKUP($E102,Starachowicki[Starachowicki],1,0),IF($D102=Staszowski[[#Headers],[Staszowski]],VLOOKUP($E102,Staszowski[Staszowski],1,0),IF($D102=Włoszczowski[[#Headers],[Włoszczowski]],VLOOKUP($E102,Włoszczowski[Włoszczowski],1,0),""))))))))))))) -> Końskie | Q102: konecki
D103: konecki | E103: Radoszyce | F103: gmina Radoszyce | G103: =VLOOKUP($F103,'DANE - TERC'!$D$6:$P$119,10,0) -> 2605043 | H103: =VLOOKUP($F103,'DANE - TERC'!$D$6:$P$119,12,0) -> GM-W | I103: =VLOOKUP($F103,'DANE - K1 lit.A'!$D$6:$M$119,4,0) -> NIE | J103: =VLOOKUP($F103,'DANE - K1 lit.A'!$D$6:$M$119,5,0) -> NIE | K103: =VLOOKUP($F103,'DANE - K1 lit.A'!$D$6:$M$119,6,0) -> NIE | L103: =IF($E103="","",VLOOKUP($F103,'DANE - K4 lit.B'!$D$6:$E$107,2,0)) -> NIE | M103: =IF($E103="","",VLOOKUP($F103,'DANE - K2 lit.C'!$B$14:$I$114,8,0)) -> w przedziale od 30 do 50 minut | O103: 0.8 | P103: =IF($D103=Buski[[#Headers],[Buski]],VLOOKUP($E103,Buski[Buski],1,0),IF($D103=Jędrzejowski[[#Headers],[Jędrzejowski]],VLOOKUP($E103,Jędrzejowski[Jędrzejowski],1,0),IF($D103=Kazimierski[[#Headers],[Kazimierski]],VLOOKUP($E103,Kazimierski[Kazimierski],1,0),IF($D103=Kielecki[[#Headers],[Kielecki]],VLOOKUP($E103,Kielecki[Kielecki],1,0),IF($D103=Konecki[[#Headers],[Konecki]],VLOOKUP($E103,Konecki[Konecki],1,0),IF($D103=Opatowski[[#Headers],[Opatowski]],VLOOKUP($E103,Opatowski[Opatowski],1,0),IF($D103=Ostrowiecki[[#Headers],[Ostrowiecki]],VLOOKUP($E103,Ostrowiecki[Ostrowiecki],1,0),IF($D103=Pińczowski[[#Headers],[Pińczowski]],VLOOKUP($E103,Pińczowski[Pińczowski],1,0),IF($D103=Sandomierski[[#Headers],[Sandomierski]],VLOOKUP($E103,Sandomierski[Sandomierski],1,0),IF($D103=Skarżyski[[#Headers],[Skarżyski]],VLOOKUP($E103,Skarżyski[Skarżyski],1,0),IF($D103=Starachowicki[[#Headers],[Starachowicki]],VLOOKUP($E103,Starachowicki[Starachowicki],1,0),IF($D103=Staszowski[[#Headers],[Staszowski]],VLOOKUP($E103,Staszowski[Staszowski],1,0),IF($D103=Włoszczowski[[#Headers],[Włoszczowski]],VLOOKUP($E103,Włoszczowski[Włoszczowski],1,0),""))))))))))))) -> Radoszyce | Q103: konecki
D104: konecki | E104: Ruda Maleniecka | F104: gmina Ruda Maleniecka | G104: =VLOOKUP($F104,'DANE - TERC'!$D$6:$P$119,10,0) -> 2605052 | H104: =VLOOKUP($F104,'DANE - TERC'!$D$6:$P$119,12,0) -> GW | I104: =VLOOKUP($F104,'DANE - K1 lit.A'!$D$6:$M$119,4,0) -> NIE | J104: =VLOOKUP($F104,'DANE - K1 lit.A'!$D$6:$M$119,5,0) -> NIE | K104: =VLOOKUP($F104,'DANE - K1 lit.A'!$D$6:$M$119,6,0) -> NIE | L104: =IF($E104="","",VLOOKUP($F104,'DANE - K4 lit.B'!$D$6:$E$107,2,0)) -> NIE | M104: =IF($E104="","",VLOOKUP($F104,'DANE - K2 lit.C'!$B$14:$I$114,8,0)) -> w przedziale od 30 do 50 minut | O104: 0.8 | P104: =IF($D104=Buski[[#Headers],[Buski]],VLOOKUP($E104,Buski[Buski],1,0),IF($D104=Jędrzejowski[[#Headers],[Jędrzejowski]],VLOOKUP($E104,Jędrzejowski[Jędrzejowski],1,0),IF($D104=Kazimierski[[#Headers],[Kazimierski]],VLOOKUP($E104,Kazimierski[Kazimierski],1,0),IF($D104=Kielecki[[#Headers],[Kielecki]],VLOOKUP($E104,Kielecki[Kielecki],1,0),IF($D104=Konecki[[#Headers],[Konecki]],VLOOKUP($E104,Konecki[Konecki],1,0),IF($D104=Opatowski[[#Headers],[Opatowski]],VLOOKUP($E104,Opatowski[Opatowski],1,0),IF($D104=Ostrowiecki[[#Headers],[Ostrowiecki]],VLOOKUP($E104,Ostrowiecki[Ostrowiecki],1,0),IF($D104=Pińczowski[[#Headers],[Pińczowski]],VLOOKUP($E104,Pińczowski[Pińczowski],1,0),IF($D104=Sandomierski[[#Headers],[Sandomierski]],VLOOKUP($E104,Sandomierski[Sandomierski],1,0),IF($D104=Skarżyski[[#Headers],[Skarżyski]],VLOOKUP($E104,Skarżyski[Skarżyski],1,0),IF($D104=Starachowicki[[#Headers],[Starachowicki]],VLOOKUP($E104,Starachowicki[Starachowicki],1,0),IF($D104=Staszowski[[#Headers],[Staszowski]],VLOOKUP($E104,Staszowski[Staszowski],1,0),IF($D104=Włoszczowski[[#Headers],[Włoszczowski]],VLOOKUP($E104,Włoszczowski[Włoszczowski],1,0),""))))))))))))) -> Ruda Maleniecka | Q104: konecki
D105: konecki | E105: Słupia Konecka | F105: gmina Słupia Konecka | G105: =VLOOKUP($F105,'DANE - TERC'!$D$6:$P$119,10,0) -> 2605062 | H105: =VLOOKUP($F105,'DANE - TERC'!$D$6:$P$119,12,0) -> GW | I105: =VLOOKUP($F105,'DANE - K1 lit.A'!$D$6:$M$119,4,0) -> NIE | J105: =VLOOKUP($F105,'DANE - K1 lit.A'!$D$6:$M$119,5,0) -> NIE | K105: =VLOOKUP($F105,'DANE - K1 lit.A'!$D$6:$M$119,6,0) -> NIE | L105: =IF($E105="","",VLOOKUP($F105,'DANE - K4 lit.B'!$D$6:$E$107,2,0)) -> NIE | M105: =IF($E105="","",VLOOKUP($F105,'DANE - K2 lit.C'!$B$14:$I$114,8,0)) -> w przedziale od 30 do 50 minut | O105: 0.7 | P105: =IF($D105=Buski[[#Headers],[Buski]],VLOOKUP($E105,Buski[Buski],1,0),IF($D105=Jędrzejowski[[#Headers],[Jędrzejowski]],VLOOKUP($E105,Jędrzejowski[Jędrzejowski],1,0),IF($D105=Kazimierski[[#Headers],[Kazimierski]],VLOOKUP($E105,Kazimierski[Kazimierski],1,0),IF($D105=Kielecki[[#Headers],[Kielecki]],VLOOKUP($E105,Kielecki[Kielecki],1,0),IF($D105=Konecki[[#Headers],[Konecki]],VLOOKUP($E105,Konecki[Konecki],1,0),IF($D105=Opatowski[[#Headers],[Opatowski]],VLOOKUP($E105,Opatowski[Opatowski],1,0),IF($D105=Ostrowiecki[[#Headers],[Ostrowiecki]],VLOOKUP($E105,Ostrowiecki[Ostrowiecki],1,0),IF($D105=Pińczowski[[#Headers],[Pińczowski]],VLOOKUP($E105,Pińczowski[Pińczowski],1,0),IF($D105=Sandomierski[[#Headers],[Sandomierski]],VLOOKUP($E105,Sandomierski[Sandomierski],1,0),IF($D105=Skarżyski[[#Headers],[Skarżyski]],VLOOKUP($E105,Skarżyski[Skarżyski],1,0),IF($D105=Starachowicki[[#Headers],[Starachowicki]],VLOOKUP($E105,Starachowicki[Starachowicki],1,0),IF($D105=Staszowski[[#Headers],[Staszowski]],VLOOKUP($E105,Staszowski[Staszowski],1,0),IF($D105=Włoszczowski[[#Headers],[Włoszczowski]],VLOOKUP($E105,Włoszczowski[Włoszczowski],1,0),""))))))))))))) -> Słupia Konecka | Q105: konecki
D106: konecki | E106: Smyków | F106: gmina Smyków | G106: =VLOOKUP($F106,'DANE - TERC'!$D$6:$P$119,10,0) -> 2605072 | H106: =VLOOKUP($F106,'DANE - TERC'!$D$6:$P$119,12,0) -> GW | I106: =VLOOKUP($F106,'DANE - K1 lit.A'!$D$6:$M$119,4,0) -> NIE | J106: =VLOOKUP($F106,'DANE - K1 lit.A'!$D$6:$M$119,5,0) -> TAK | K106: =VLOOKUP($F106,'DANE - K1 lit.A'!$D$6:$M$119,6,0) -> NIE | L106: =IF($E106="","",VLOOKUP($F106,'DANE - K4 lit.B'!$D$6:$E$107,2,0)) -> NIE | M106: =IF($E106="","",VLOOKUP($F106,'DANE - K2 lit.C'!$B$14:$I$114,8,0)) -> w przedziale od 30 do 50 minut | O106: 0.8 | P106: =IF($D106=Buski[[#Headers],[Buski]],VLOOKUP($E106,Buski[Buski],1,0),IF($D106=Jędrzejowski[[#Headers],[Jędrzejowski]],VLOOKUP($E106,Jędrzejowski[Jędrzejowski],1,0),IF($D106=Kazimierski[[#Headers],[Kazimierski]],VLOOKUP($E106,Kazimierski[Kazimierski],1,0),IF($D106=Kielecki[[#Headers],[Kielecki]],VLOOKUP($E106,Kielecki[Kielecki],1,0),IF($D106=Konecki[[#Headers],[Konecki]],VLOOKUP($E106,Konecki[Konecki],1,0),IF($D106=Opatowski[[#Headers],[Opatowski]],VLOOKUP($E106,Opatowski[Opatowski],1,0),IF($D106=Ostrowiecki[[#Headers],[Ostrowiecki]],VLOOKUP($E106,Ostrowiecki[Ostrowiecki],1,0),IF($D106=Pińczowski[[#Headers],[Pińczowski]],VLOOKUP($E106,Pińczowski[Pińczowski],1,0),IF($D106=Sandomierski[[#Headers],[Sandomierski]],VLOOKUP($E106,Sandomierski[Sandomierski],1,0),IF($D106=Skarżyski[[#Headers],[Skarżyski]],VLOOKUP($E106,Skarżyski[Skarżyski],1,0),IF($D106=Starachowicki[[#Headers],[Starachowicki]],VLOOKUP($E106,Starachowicki[Starachowicki],1,0),IF($D106=Staszowski[[#Headers],[Staszowski]],VLOOKUP($E106,Staszowski[Staszowski],1,0),IF($D106=Włoszczowski[[#Headers],[Włoszczowski]],VLOOKUP($E106,Włoszczowski[Włoszczowski],1,0),""))))))))))))) -> Smyków | Q106: konecki
D107: konecki | E107: Stąporków | F107: gmina Stąporków | G107: =VLOOKUP($F107,'DANE - TERC'!$D$6:$P$119,10,0) -> 2605083 | H107: =VLOOKUP($F107,'DANE - TERC'!$D$6:$P$119,12,0) -> GM-W | I107: =VLOOKUP($F107,'DANE - K1 lit.A'!$D$6:$M$119,4,0) -> TAK | J107: =VLOOKUP($F107,'DANE - K1 lit.A'!$D$6:$M$119,5,0) -> TAK | K107: =VLOOKUP($F107,'DANE - K1 lit.A'!$D$6:$M$119,6,0) -> TAK | L107: =IF($E107="","",VLOOKUP($F107,'DANE - K4 lit.B'!$D$6:$E$107,2,0)) -> NIE | M107: =IF($E107="","",VLOOKUP($F107,'DANE - K2 lit.C'!$B$14:$I$114,8,0)) -> w przedziale od 30 do 50 minut | O107: 0.8 | P107: =IF($D107=Buski[[#Headers],[Buski]],VLOOKUP($E107,Buski[Buski],1,0),IF($D107=Jędrzejowski[[#Headers],[Jędrzejowski]],VLOOKUP($E107,Jędrzejowski[Jędrzejowski],1,0),IF($D107=Kazimierski[[#Headers],[Kazimierski]],VLOOKUP($E107,Kazimierski[Kazimierski],1,0),IF($D107=Kielecki[[#Headers],[Kielecki]],VLOOKUP($E107,Kielecki[Kielecki],1,0),IF($D107=Konecki[[#Headers],[Konecki]],VLOOKUP($E107,Konecki[Konecki],1,0),IF($D107=Opatowski[[#Headers],[Opatowski]],VLOOKUP($E107,Opatowski[Opatowski],1,0),IF($D107=Ostrowiecki[[#Headers],[Ostrowiecki]],VLOOKUP($E107,Ostrowiecki[Ostrowiecki],1,0),IF($D107=Pińczowski[[#Headers],[Pińczowski]],VLOOKUP($E107,Pińczowski[Pińczowski],1,0),IF($D107=Sandomierski[[#Headers],[Sandomierski]],VLOOKUP($E107,Sandomierski[Sandomierski],1,0),IF($D107=Skarżyski[[#Headers],[Skarżyski]],VLOOKUP($E107,Skarżyski[Skarżyski],1,0),IF($D107=Starachowicki[[#Headers],[Starachowicki]],VLOOKUP($E107,Starachowicki[Starachowicki],1,0),IF($D107=Staszowski[[#Headers],[Staszowski]],VLOOKUP($E107,Staszowski[Staszowski],1,0),IF($D107=Włoszczowski[[#Headers],[Włoszczowski]],VLOOKUP($E107,Włoszczowski[Włoszczowski],1,0),""))))))))))))) -> Stąporków | Q107: konecki
D108: opatowski | E108: Baćkowice | F108: gmina Baćkowice | G108: =VLOOKUP($F108,'DANE - TERC'!$D$6:$P$119,10,0) -> 2606012 | H108: =VLOOKUP($F108,'DANE - TERC'!$D$6:$P$119,12,0) -> GW | I108: =VLOOKUP($F108,'DANE - K1 lit.A'!$D$6:$M$119,4,0) -> NIE | J108: =VLOOKUP($F108,'DANE - K1 lit.A'!$D$6:$M$119,5,0) -> NIE | K108: =VLOOKUP($F108,'DANE - K1 lit.A'!$D$6:$M$119,6,0) -> NIE | L108: =IF($E108="","",VLOOKUP($F108,'DANE - K4 lit.B'!$D$6:$E$107,2,0)) -> NIE | M108: =IF($E108="","",VLOOKUP($F108,'DANE - K2 lit.C'!$B$14:$I$114,8,0)) -> w przedziale od 30 do 50 minut | O108: 0.7 | P108: =IF($D108=Buski[[#Headers],[Buski]],VLOOKUP($E108,Buski[Buski],1,0),IF($D108=Jędrzejowski[[#Headers],[Jędrzejowski]],VLOOKUP($E108,Jędrzejowski[Jędrzejowski],1,0),IF($D108=Kazimierski[[#Headers],[Kazimierski]],VLOOKUP($E108,Kazimierski[Kazimierski],1,0),IF($D108=Kielecki[[#Headers],[Kielecki]],VLOOKUP($E108,Kielecki[Kielecki],1,0),IF($D108=Konecki[[#Headers],[Konecki]],VLOOKUP($E108,Konecki[Konecki],1,0),IF($D108=Opatowski[[#Headers],[Opatowski]],VLOOKUP($E108,Opatowski[Opatowski],1,0),IF($D108=Ostrowiecki[[#Headers],[Ostrowiecki]],VLOOKUP($E108,Ostrowiecki[Ostrowiecki],1,0),IF($D108=Pińczowski[[#Headers],[Pińczowski]],VLOOKUP($E108,Pińczowski[Pińczowski],1,0),IF($D108=Sandomierski[[#Headers],[Sandomierski]],VLOOKUP($E108,Sandomierski[Sandomierski],1,0),IF($D108=Skarżyski[[#Headers],[Skarżyski]],VLOOKUP($E108,Skarżyski[Skarżyski],1,0),IF($D108=Starachowicki[[#Headers],[Starachowicki]],VLOOKUP($E108,Starachowicki[Starachowicki],1,0),IF($D108=Staszowski[[#Headers],[Staszowski]],VLOOKUP($E108,Staszowski[Staszowski],1,0),IF($D108=Włoszczowski[[#Headers],[Włoszczowski]],VLOOKUP($E108,Włoszczowski[Włoszczowski],1,0),""))))))))))))) -> Baćkowice | Q108: opatowski
D109: opatowski | E109: Iwaniska | F109: gmina Iwaniska | G109: =VLOOKUP($F109,'DANE - TERC'!$D$6:$P$119,10,0) -> 2606023 | H109: =VLOOKUP($F109,'DANE - TERC'!$D$6:$P$119,12,0) -> GM-W | I109: =VLOOKUP($F109,'DANE - K1 lit.A'!$D$6:$M$119,4,0) -> TAK | J109: =VLOOKUP($F109,'DANE - K1 lit.A'!$D$6:$M$119,5,0) -> NIE | K109: =VLOOKUP($F109,'DANE - K1 lit.A'!$D$6:$M$119,6,0) -> NIE | L109: =IF($E109="","",VLOOKUP($F109,'DANE - K4 lit.B'!$D$6:$E$107,2,0)) -> NIE | M109: =IF($E109="","",VLOOKUP($F109,'DANE - K2 lit.C'!$B$14:$I$114,8,0)) -> w przedziale od 30 do 50 minut | O109: 0.8 | P109: =IF($D109=Buski[[#Headers],[Buski]],VLOOKUP($E109,Buski[Buski],1,0),IF($D109=Jędrzejowski[[#Headers],[Jędrzejowski]],VLOOKUP($E109,Jędrzejowski[Jędrzejowski],1,0),IF($D109=Kazimierski[[#Headers],[Kazimierski]],VLOOKUP($E109,Kazimierski[Kazimierski],1,0),IF($D109=Kielecki[[#Headers],[Kielecki]],VLOOKUP($E109,Kielecki[Kielecki],1,0),IF($D109=Konecki[[#Headers],[Konecki]],VLOOKUP($E109,Konecki[Konecki],1,0),IF($D109=Opatowski[[#Headers],[Opatowski]],VLOOKUP($E109,Opatowski[Opatowski],1,0),IF($D109=Ostrowiecki[[#Headers],[Ostrowiecki]],VLOOKUP($E109,Ostrowiecki[Ostrowiecki],1,0),IF($D109=Pińczowski[[#Headers],[Pińczowski]],VLOOKUP($E109,Pińczowski[Pińczowski],1,0),IF($D109=Sandomierski[[#Headers],[Sandomierski]],VLOOKUP($E109,Sandomierski[Sandomierski],1,0),IF($D109=Skarżyski[[#Headers],[Skarżyski]],VLOOKUP($E109,Skarżyski[Skarżyski],1,0),IF($D109=Starachowicki[[#Headers],[Starachowicki]],VLOOKUP($E109,Starachowicki[Starachowicki],1,0),IF($D109=Staszowski[[#Headers],[Staszowski]],VLOOKUP($E109,Staszowski[Staszowski],1,0),IF($D109=Włoszczowski[[#Headers],[Włoszczowski]],VLOOKUP($E109,Włoszczowski[Włoszczowski],1,0),""))))))))))))) -> Iwaniska | Q109: opatowski
D110: opatowski | E110: Lipnik | F110: gmina Lipnik | G110: =VLOOKUP($F110,'DANE - TERC'!$D$6:$P$119,10,0) -> 2606032 | H110: =VLOOKUP($F110,'DANE - TERC'!$D$6:$P$119,12,0) -> GW | I110: =VLOOKUP($F110,'DANE - K1 lit.A'!$D$6:$M$119,4,0) -> NIE | J110: =VLOOKUP($F110,'DANE - K1 lit.A'!$D$6:$M$119,5,0) -> NIE | K110: =VLOOKUP($F110,'DANE - K1 lit.A'!$D$6:$M$119,6,0) -> NIE | L110: =IF($E110="","",VLOOKUP($F110,'DANE - K4 lit.B'!$D$6:$E$107,2,0)) -> NIE | M110: =IF($E110="","",VLOOKUP($F110,'DANE - K2 lit.C'!$B$14:$I$114,8,0)) -> w przedziale od 30 do 50 minut | O110: 0.8 | P110: =IF($D110=Buski[[#Headers],[Buski]],VLOOKUP($E110,Buski[Buski],1,0),IF($D110=Jędrzejowski[[#Headers],[Jędrzejowski]],VLOOKUP($E110,Jędrzejowski[Jędrzejowski],1,0),IF($D110=Kazimierski[[#Headers],[Kazimierski]],VLOOKUP($E110,Kazimierski[Kazimierski],1,0),IF($D110=Kielecki[[#Headers],[Kielecki]],VLOOKUP($E110,Kielecki[Kielecki],1,0),IF($D110=Konecki[[#Headers],[Konecki]],VLOOKUP($E110,Konecki[Konecki],1,0),IF($D110=Opatowski[[#Headers],[Opatowski]],VLOOKUP($E110,Opatowski[Opatowski],1,0),IF($D110=Ostrowiecki[[#Headers],[Ostrowiecki]],VLOOKUP($E110,Ostrowiecki[Ostrowiecki],1,0),IF($D110=Pińczowski[[#Headers],[Pińczowski]],VLOOKUP($E110,Pińczowski[Pińczowski],1,0),IF($D110=Sandomierski[[#Headers],[Sandomierski]],VLOOKUP($E110,Sandomierski[Sandomierski],1,0),IF($D110=Skarżyski[[#Headers],[Skarżyski]],VLOOKUP($E110,Skarżyski[Skarżyski],1,0),IF($D110=Starachowicki[[#Headers],[Starachowicki]],VLOOKUP($E110,Starachowicki[Starachowicki],1,0),IF($D110=Staszowski[[#Headers],[Staszowski]],VLOOKUP($E110,Staszowski[Staszowski],1,0),IF($D110=Włoszczowski[[#Headers],[Włoszczowski]],VLOOKUP($E110,Włoszczowski[Włoszczowski],1,0),""))))))))))))) -> Lipnik | Q110: opatowski
D111: opatowski | E111: Opatów | F111: gmina Opatów | G111: =VLOOKUP($F111,'DANE - TERC'!$D$6:$P$119,10,0) -> 2606043 | H111: =VLOOKUP($F111,'DANE - TERC'!$D$6:$P$119,12,0) -> GM-W | I111: =VLOOKUP($F111,'DANE - K1 lit.A'!$D$6:$M$119,4,0) -> TAK | J111: =VLOOKUP($F111,'DANE - K1 lit.A'!$D$6:$M$119,5,0) -> NIE | K111: =VLOOKUP($F111,'DANE - K1 lit.A'!$D$6:$M$119,6,0) -> NIE | L111: =IF($E111="","",VLOOKUP($F111,'DANE - K4 lit.B'!$D$6:$E$107,2,0)) -> NIE | M111: =IF($E111="","",VLOOKUP($F111,'DANE - K2 lit.C'!$B$14:$I$114,8,0)) -> w przedziale od 30 do 50 minut | O111: 0.8 | P111: =IF($D111=Buski[[#Headers],[Buski]],VLOOKUP($E111,Buski[Buski],1,0),IF($D111=Jędrzejowski[[#Headers],[Jędrzejowski]],VLOOKUP($E111,Jędrzejowski[Jędrzejowski],1,0),IF($D111=Kazimierski[[#Headers],[Kazimierski]],VLOOKUP($E111,Kazimierski[Kazimierski],1,0),IF($D111=Kielecki[[#Headers],[Kielecki]],VLOOKUP($E111,Kielecki[Kielecki],1,0),IF($D111=Konecki[[#Headers],[Konecki]],VLOOKUP($E111,Konecki[Konecki],1,0),IF($D111=Opatowski[[#Headers],[Opatowski]],VLOOKUP($E111,Opatowski[Opatowski],1,0),IF($D111=Ostrowiecki[[#Headers],[Ostrowiecki]],VLOOKUP($E111,Ostrowiecki[Ostrowiecki],1,0),IF($D111=Pińczowski[[#Headers],[Pińczowski]],VLOOKUP($E111,Pińczowski[Pińczowski],1,0),IF($D111=Sandomierski[[#Headers],[Sandomierski]],VLOOKUP($E111,Sandomierski[Sandomierski],1,0),IF($D111=Skarżyski[[#Headers],[Skarżyski]],VLOOKUP($E111,Skarżyski[Skarżyski],1,0),IF($D111=Starachowicki[[#Headers],[Starachowicki]],VLOOKUP($E111,Starachowicki[Starachowicki],1,0),IF($D111=Staszowski[[#Headers],[Staszowski]],VLOOKUP($E111,Staszowski[Staszowski],1,0),IF($D111=Włoszczowski[[#Headers],[Włoszczowski]],VLOOKUP($E111,Włoszczowski[Włoszczowski],1,0),""))))))))))))) -> Opatów | Q111: =D111 -> opatowski
D112: opatowski | E112: Ożarów | F112: gmina Ożarów | G112: =VLOOKUP($F112,'DANE - TERC'!$D$6:$P$119,10,0) -> 2606053 | H112: =VLOOKUP($F112,'DANE - TERC'!$D$6:$P$119,12,0) -> GM-W | I112: =VLOOKUP($F112,'DANE - K1 lit.A'!$D$6:$M$119,4,0) -> TAK | J112: =VLOOKUP($F112,'DANE - K1 lit.A'!$D$6:$M$119,5,0) -> TAK | K112: =VLOOKUP($F112,'DANE - K1 lit.A'!$D$6:$M$119,6,0) -> NIE | L112: =IF($E112="","",VLOOKUP($F112,'DANE - K4 lit.B'!$D$6:$E$107,2,0)) -> NIE | M112: =IF($E112="","",VLOOKUP($F112,'DANE - K2 lit.C'!$B$14:$I$114,8,0)) -> większy niż 50 minut | O112: 0.6 | P112: =IF($D112=Buski[[#Headers],[Buski]],VLOOKUP($E112,Buski[Buski],1,0),IF($D112=Jędrzejowski[[#Headers],[Jędrzejowski]],VLOOKUP($E112,Jędrzejowski[Jędrzejowski],1,0),IF($D112=Kazimierski[[#Headers],[Kazimierski]],VLOOKUP($E112,Kazimierski[Kazimierski],1,0),IF($D112=Kielecki[[#Headers],[Kielecki]],VLOOKUP($E112,Kielecki[Kielecki],1,0),IF($D112=Konecki[[#Headers],[Konecki]],VLOOKUP($E112,Konecki[Konecki],1,0),IF($D112=Opatowski[[#Headers],[Opatowski]],VLOOKUP($E112,Opatowski[Opatowski],1,0),IF($D112=Ostrowiecki[[#Headers],[Ostrowiecki]],VLOOKUP($E112,Ostrowiecki[Ostrowiecki],1,0),IF($D112=Pińczowski[[#Headers],[Pińczowski]],VLOOKUP($E112,Pińczowski[Pińczowski],1,0),IF($D112=Sandomierski[[#Headers],[Sandomierski]],VLOOKUP($E112,Sandomierski[Sandomierski],1,0),IF($D112=Skarżyski[[#Headers],[Skarżyski]],VLOOKUP($E112,Skarżyski[Skarżyski],1,0),IF($D112=Starachowicki[[#Headers],[Starachowicki]],VLOOKUP($E112,Starachowicki[Starachowicki],1,0),IF($D112=Staszowski[[#Headers],[Staszowski]],VLOOKUP($E112,Staszowski[Staszowski],1,0),IF($D112=Włoszczowski[[#Headers],[Włoszczowski]],VLOOKUP($E112,Włoszczowski[Włoszczowski],1,0),""))))))))))))) -> Ożarów | Q112: opatowski
D113: opatowski | E113: Sadowie | F113: gmina Sadowie | G113: =VLOOKUP($F113,'DANE - TERC'!$D$6:$P$119,10,0) -> 2606062 | H113: =VLOOKUP($F113,'DANE - TERC'!$D$6:$P$119,12,0) -> GW | I113: =VLOOKUP($F113,'DANE - K1 lit.A'!$D$6:$M$119,4,0) -> NIE | J113: =VLOOKUP($F113,'DANE - K1 lit.A'!$D$6:$M$119,5,0) -> NIE | K113: =VLOOKUP($F113,'DANE - K1 lit.A'!$D$6:$M$119,6,0) -> NIE | L113: =IF($E113="","",VLOOKUP($F113,'DANE - K4 lit.B'!$D$6:$E$107,2,0)) -> NIE | M113: =IF($E113="","",VLOOKUP($F113,'DANE - K2 lit.C'!$B$14:$I$114,8,0)) -> w przedziale od 30 do 50 minut | O113: 0.8 | P113: =IF($D113=Buski[[#Headers],[Buski]],VLOOKUP($E113,Buski[Buski],1,0),IF($D113=Jędrzejowski[[#Headers],[Jędrzejowski]],VLOOKUP($E113,Jędrzejowski[Jędrzejowski],1,0),IF($D113=Kazimierski[[#Headers],[Kazimierski]],VLOOKUP($E113,Kazimierski[Kazimierski],1,0),IF($D113=Kielecki[[#Headers],[Kielecki]],VLOOKUP($E113,Kielecki[Kielecki],1,0),IF($D113=Konecki[[#Headers],[Konecki]],VLOOKUP($E113,Konecki[Konecki],1,0),IF($D113=Opatowski[[#Headers],[Opatowski]],VLOOKUP($E113,Opatowski[Opatowski],1,0),IF($D113=Ostrowiecki[[#Headers],[Ostrowiecki]],VLOOKUP($E113,Ostrowiecki[Ostrowiecki],1,0),IF($D113=Pińczowski[[#Headers],[Pińczowski]],VLOOKUP($E113,Pińczowski[Pińczowski],1,0),IF($D113=Sandomierski[[#Headers],[Sandomierski]],VLOOKUP($E113,Sandomierski[Sandomierski],1,0),IF($D113=Skarżyski[[#Headers],[Skarżyski]],VLOOKUP($E113,Skarżyski[Skarżyski],1,0),IF($D113=Starachowicki[[#Headers],[Starachowicki]],VLOOKUP($E113,Starachowicki[Starachowicki],1,0),IF($D113=Staszowski[[#Headers],[Staszowski]],VLOOKUP($E113,Staszowski[Staszowski],1,0),IF($D113=Włoszczowski[[#Headers],[Włoszczowski]],VLOOKUP($E113,Włoszczowski[Włoszczowski],1,0),""))))))))))))) -> Sadowie | Q113: opatowski
D114: opatowski | E114: Tarłów | F114: gmina Tarłów | G114: =VLOOKUP($F114,'DANE - TERC'!$D$6:$P$119,10,0) -> 2606072 | H114: =VLOOKUP($F114,'DANE - TERC'!$D$6:$P$119,12,0) -> GW | I114: =VLOOKUP($F114,'DANE - K1 lit.A'!$D$6:$M$119,4,0) -> NIE | J114: =VLOOKUP($F114,'DANE - K1 lit.A'!$D$6:$M$119,5,0) -> TAK | K114: =VLOOKUP($F114,'DANE - K1 lit.A'!$D$6:$M$119,6,0) -> NIE | L114: =IF($E114="","",VLOOKUP($F114,'DANE - K4 lit.B'!$D$6:$E$107,2,0)) -> NIE | M114: =IF($E114="","",VLOOKUP($F114,'DANE - K2 lit.C'!$B$14:$I$114,8,0)) -> większy niż 50 minut | O114: 0.8 | P114: =IF($D114=Buski[[#Headers],[Buski]],VLOOKUP($E114,Buski[Buski],1,0),IF($D114=Jędrzejowski[[#Headers],[Jędrzejowski]],VLOOKUP($E114,Jędrzejowski[Jędrzejowski],1,0),IF($D114=Kazimierski[[#Headers],[Kazimierski]],VLOOKUP($E114,Kazimierski[Kazimierski],1,0),IF($D114=Kielecki[[#Headers],[Kielecki]],VLOOKUP($E114,Kielecki[Kielecki],1,0),IF($D114=Konecki[[#Headers],[Konecki]],VLOOKUP($E114,Konecki[Konecki],1,0),IF($D114=Opatowski[[#Headers],[Opatowski]],VLOOKUP($E114,Opatowski[Opatowski],1,0),IF($D114=Ostrowiecki[[#Headers],[Ostrowiecki]],VLOOKUP($E114,Ostrowiecki[Ostrowiecki],1,0),IF($D114=Pińczowski[[#Headers],[Pińczowski]],VLOOKUP($E114,Pińczowski[Pińczowski],1,0),IF($D114=Sandomierski[[#Headers],[Sandomierski]],VLOOKUP($E114,Sandomierski[Sandomierski],1,0),IF($D114=Skarżyski[[#Headers],[Skarżyski]],VLOOKUP($E114,Skarżyski[Skarżyski],1,0),IF($D114=Starachowicki[[#Headers],[Starachowicki]],VLOOKUP($E114,Starachowicki[Starachowicki],1,0),IF($D114=Staszowski[[#Headers],[Staszowski]],VLOOKUP($E114,Staszowski[Staszowski],1,0),IF($D114=Włoszczowski[[#Headers],[Włoszczowski]],VLOOKUP($E114,Włoszczowski[Włoszczowski],1,0),""))))))))))))) -> Tarłów | Q114: opatowski
D115: opatowski | E115: Wojciechowice | F115: gmina Wojciechowice | G115: =VLOOKUP($F115,'DANE - TERC'!$D$6:$P$119,10,0) -> 2606082 | H115: =VLOOKUP($F115,'DANE - TERC'!$D$6:$P$119,12,0) -> GW | I115: =VLOOKUP($F115,'DANE - K1 lit.A'!$D$6:$M$119,4,0) -> TAK | J115: =VLOOKUP($F115,'DANE - K1 lit.A'!$D$6:$M$119,5,0) -> TAK | K115: =VLOOKUP($F115,'DANE - K1 lit.A'!$D$6:$M$119,6,0) -> TAK | L115: =IF($E115="","",VLOOKUP($F115,'DANE - K4 lit.B'!$D$6:$E$107,2,0)) -> NIE | M115: =IF($E115="","",VLOOKUP($F115,'DANE - K2 lit.C'!$B$14:$I$114,8,0)) -> w przedziale od 30 do 50 minut | O115: 0.8 | P115: =IF($D115=Buski[[#Headers],[Buski]],VLOOKUP($E115,Buski[Buski],1,0),IF($D115=Jędrzejowski[[#Headers],[Jędrzejowski]],VLOOKUP($E115,Jędrzejowski[Jędrzejowski],1,0),IF($D115=Kazimierski[[#Headers],[Kazimierski]],VLOOKUP($E115,Kazimierski[Kazimierski],1,0),IF($D115=Kielecki[[#Headers],[Kielecki]],VLOOKUP($E115,Kielecki[Kielecki],1,0),IF($D115=Konecki[[#Headers],[Konecki]],VLOOKUP($E115,Konecki[Konecki],1,0),IF($D115=Opatowski[[#Headers],[Opatowski]],VLOOKUP($E115,Opatowski[Opatowski],1,0),IF($D115=Ostrowiecki[[#Headers],[Ostrowiecki]],VLOOKUP($E115,Ostrowiecki[Ostrowiecki],1,0),IF($D115=Pińczowski[[#Headers],[Pińczowski]],VLOOKUP($E115,Pińczowski[Pińczowski],1,0),IF($D115=Sandomierski[[#Headers],[Sandomierski]],VLOOKUP($E115,Sandomierski[Sandomierski],1,0),IF($D115=Skarżyski[[#Headers],[Skarżyski]],VLOOKUP($E115,Skarżyski[Skarżyski],1,0),IF($D115=Starachowicki[[#Headers],[Starachowicki]],VLOOKUP($E115,Starachowicki[Starachowicki],1,0),IF($D115=Staszowski[[#Headers],[Staszowski]],VLOOKUP($E115,Staszowski[Staszowski],1,0),IF($D115=Włoszczowski[[#Headers],[Włoszczowski]],VLOOKUP($E115,Włoszczowski[Włoszczowski],1,0),""))))))))))))) -> Wojciechowice | Q115: opatowski
D116: ostrowiecki | E116: Bałtów | F116: gmina Bałtów | G116: =VLOOKUP($F116,'DANE - TERC'!$D$6:$P$119,10,0) -> 2607022 | H116: =VLOOKUP($F116,'DANE - TERC'!$D$6:$P$119,12,0) -> GW | I116: =VLOOKUP($F116,'DANE - K1 lit.A'!$D$6:$M$119,4,0) -> NIE | J116: =VLOOKUP($F116,'DANE - K1 lit.A'!$D$6:$M$119,5,0) -> TAK | K116: =VLOOKUP($F116,'DANE - K1 lit.A'!$D$6:$M$119,6,0) -> NIE | L116: =IF($E116="","",VLOOKUP($F116,'DANE - K4 lit.B'!$D$6:$E$107,2,0)) -> NIE | M116: =IF($E116="","",VLOOKUP($F116,'DANE - K2 lit.C'!$B$14:$I$114,8,0)) -> większy niż 50 minut | O116: 0.8 | P116: =IF($D116=Buski[[#Headers],[Buski]],VLOOKUP($E116,Buski[Buski],1,0),IF($D116=Jędrzejowski[[#Headers],[Jędrzejowski]],VLOOKUP($E116,Jędrzejowski[Jędrzejowski],1,0),IF($D116=Kazimierski[[#Headers],[Kazimierski]],VLOOKUP($E116,Kazimierski[Kazimierski],1,0),IF($D116=Kielecki[[#Headers],[Kielecki]],VLOOKUP($E116,Kielecki[Kielecki],1,0),IF($D116=Konecki[[#Headers],[Konecki]],VLOOKUP($E116,Konecki[Konecki],1,0),IF($D116=Opatowski[[#Headers],[Opatowski]],VLOOKUP($E116,Opatowski[Opatowski],1,0),IF($D116=Ostrowiecki[[#Headers],[Ostrowiecki]],VLOOKUP($E116,Ostrowiecki[Ostrowiecki],1,0),IF($D116=Pińczowski[[#Headers],[Pińczowski]],VLOOKUP($E116,Pińczowski[Pińczowski],1,0),IF($D116=Sandomierski[[#Headers],[Sandomierski]],VLOOKUP($E116,Sandomierski[Sandomierski],1,0),IF($D116=Skarżyski[[#Headers],[Skarżyski]],VLOOKUP($E116,Skarżyski[Skarżyski],1,0),IF($D116=Starachowicki[[#Headers],[Starachowicki]],VLOOKUP($E116,Starachowicki[Starachowicki],1,0),IF($D116=Staszowski[[#Headers],[Staszowski]],VLOOKUP($E116,Staszowski[Staszowski],1,0),IF($D116=Włoszczowski[[#Headers],[Włoszczowski]],VLOOKUP($E116,Włoszczowski[Włoszczowski],1,0),""))))))))))))) -> Bałtów | Q116: ostrowiecki
D117: ostrowiecki | E117: Bodzechów | F117: gmina Bodzechów | G117: =VLOOKUP($F117,'DANE - TERC'!$D$6:$P$119,10,0) -> 2607032 | H117: =VLOOKUP($F117,'DANE - TERC'!$D$6:$P$119,12,0) -> GW | I117: =VLOOKUP($F117,'DANE - K1 lit.A'!$D$6:$M$119,4,0) -> TAK | J117: =VLOOKUP($F117,'DANE - K1 lit.A'!$D$6:$M$119,5,0) -> TAK | K117: =VLOOKUP($F117,'DANE - K1 lit.A'!$D$6:$M$119,6,0) -> TAK | L117: =IF($E117="","",VLOOKUP($F117,'DANE - K4 lit.B'!$D$6:$E$107,2,0)) -> NIE | M117: =IF($E117="","",VLOOKUP($F117,'DANE - K2 lit.C'!$B$14:$I$114,8,0)) -> większy niż 50 minut | O117: 0.8 | P117: =IF($D117=Buski[[#Headers],[Buski]],VLOOKUP($E117,Buski[Buski],1,0),IF($D117=Jędrzejowski[[#Headers],[Jędrzejowski]],VLOOKUP($E117,Jędrzejowski[Jędrzejowski],1,0),IF($D117=Kazimierski[[#Headers],[Kazimierski]],VLOOKUP($E117,Kazimierski[Kazimierski],1,0),IF($D117=Kielecki[[#Headers],[Kielecki]],VLOOKUP($E117,Kielecki[Kielecki],1,0),IF($D117=Konecki[[#Headers],[Konecki]],VLOOKUP($E117,Konecki[Konecki],1,0),IF($D117=Opatowski[[#Headers],[Opatowski]],VLOOKUP($E117,Opatowski[Opatowski],1,0),IF($D117=Ostrowiecki[[#Headers],[Ostrowiecki]],VLOOKUP($E117,Ostrowiecki[Ostrowiecki],1,0),IF($D117=Pińczowski[[#Headers],[Pińczowski]],VLOOKUP($E117,Pińczowski[Pińczowski],1,0),IF($D117=Sandomierski[[#Headers],[Sandomierski]],VLOOKUP($E117,Sandomierski[Sandomierski],1,0),IF($D117=Skarżyski[[#Headers],[Skarżyski]],VLOOKUP($E117,Skarżyski[Skarżyski],1,0),IF($D117=Starachowicki[[#Headers],[Starachowicki]],VLOOKUP($E117,Starachowicki[Starachowicki],1,0),IF($D117=Staszowski[[#Headers],[Staszowski]],VLOOKUP($E117,Staszowski[Staszowski],1,0),IF($D117=Włoszczowski[[#Headers],[Włoszczowski]],VLOOKUP($E117,Włoszczowski[Włoszczowski],1,0),""))))))))))))) -> Bodzechów | Q117: ostrowiecki
D118: ostrowiecki | E118: Ćmielów | F118: gmina Ćmielów | G118: =VLOOKUP($F118,'DANE - TERC'!$D$6:$P$119,10,0) -> 2607043 | H118: =VLOOKUP($F118,'DANE - TERC'!$D$6:$P$119,12,0) -> GM-W | I118: =VLOOKUP($F118,'DANE - K1 lit.A'!$D$6:$M$119,4,0) -> TAK | J118: =VLOOKUP($F118,'DANE - K1 lit.A'!$D$6:$M$119,5,0) -> TAK | K118: =VLOOKUP($F118,'DANE - K1 lit.A'!$D$6:$M$119,6,0) -> NIE | L118: =IF($E118="","",VLOOKUP($F118,'DANE - K4 lit.B'!$D$6:$E$107,2,0)) -> NIE | M118: =IF($E118="","",VLOOKUP($F118,'DANE - K2 lit.C'!$B$14:$I$114,8,0)) -> większy niż 50 minut | O118: 0.8 | P118: =IF($D118=Buski[[#Headers],[Buski]],VLOOKUP($E118,Buski[Buski],1,0),IF($D118=Jędrzejowski[[#Headers],[Jędrzejowski]],VLOOKUP($E118,Jędrzejowski[Jędrzejowski],1,0),IF($D118=Kazimierski[[#Headers],[Kazimierski]],VLOOKUP($E118,Kazimierski[Kazimierski],1,0),IF($D118=Kielecki[[#Headers],[Kielecki]],VLOOKUP($E118,Kielecki[Kielecki],1,0),IF($D118=Konecki[[#Headers],[Konecki]],VLOOKUP($E118,Konecki[Konecki],1,0),IF($D118=Opatowski[[#Headers],[Opatowski]],VLOOKUP($E118,Opatowski[Opatowski],1,0),IF($D118=Ostrowiecki[[#Headers],[Ostrowiecki]],VLOOKUP($E118,Ostrowiecki[Ostrowiecki],1,0),IF($D118=Pińczowski[[#Headers],[Pińczowski]],VLOOKUP($E118,Pińczowski[Pińczowski],1,0),IF($D118=Sandomierski[[#Headers],[Sandomierski]],VLOOKUP($E118,Sandomierski[Sandomierski],1,0),IF($D118=Skarżyski[[#Headers],[Skarżyski]],VLOOKUP($E118,Skarżyski[Skarżyski],1,0),IF($D118=Starachowicki[[#Headers],[Starachowicki]],VLOOKUP($E118,Starachowicki[Starachowicki],1,0),IF($D118=Staszowski[[#Headers],[Staszowski]],VLOOKUP($E118,Staszowski[Staszowski],1,0),IF($D118=Włoszczowski[[#Headers],[Włoszczowski]],VLOOKUP($E118,Włoszczowski[Włoszczowski],1,0),""))))))))))))) -> Ćmielów | Q118: ostrowiecki
D119: ostrowiecki | E119: Kunów | F119: gmina Kunów | G119: =VLOOKUP($F119,'DANE - TERC'!$D$6:$P$119,10,0) -> 2607053 | H119: =VLOOKUP($F119,'DANE - TERC'!$D$6:$P$119,12,0) -> GM-W | I119: =VLOOKUP($F119,'DANE - K1 lit.A'!$D$6:$M$119,4,0) -> NIE | J119: =VLOOKUP($F119,'DANE - K1 lit.A'!$D$6:$M$119,5,0) -> NIE | K119: =VLOOKUP($F119,'DANE - K1 lit.A'!$D$6:$M$119,6,0) -> NIE | L119: =IF($E119="","",VLOOKUP($F119,'DANE - K4 lit.B'!$D$6:$E$107,2,0)) -> NIE | M119: =IF($E119="","",VLOOKUP($F119,'DANE - K2 lit.C'!$B$14:$I$114,8,0)) -> większy niż 50 minut | O119: 0.7 | P119: =IF($D119=Buski[[#Headers],[Buski]],VLOOKUP($E119,Buski[Buski],1,0),IF($D119=Jędrzejowski[[#Headers],[Jędrzejowski]],VLOOKUP($E119,Jędrzejowski[Jędrzejowski],1,0),IF($D119=Kazimierski[[#Headers],[Kazimierski]],VLOOKUP($E119,Kazimierski[Kazimierski],1,0),IF($D119=Kielecki[[#Headers],[Kielecki]],VLOOKUP($E119,Kielecki[Kielecki],1,0),IF($D119=Konecki[[#Headers],[Konecki]],VLOOKUP($E119,Konecki[Konecki],1,0),IF($D119=Opatowski[[#Headers],[Opatowski]],VLOOKUP($E119,Opatowski[Opatowski],1,0),IF($D119=Ostrowiecki[[#Headers],[Ostrowiecki]],VLOOKUP($E119,Ostrowiecki[Ostrowiecki],1,0),IF($D119=Pińczowski[[#Headers],[Pińczowski]],VLOOKUP($E119,Pińczowski[Pińczowski],1,0),IF($D119=Sandomierski[[#Headers],[Sandomierski]],VLOOKUP($E119,Sandomierski[Sandomierski],1,0),IF($D119=Skarżyski[[#Headers],[Skarżyski]],VLOOKUP($E119,Skarżyski[Skarżyski],1,0),IF($D119=Starachowicki[[#Headers],[Starachowicki]],VLOOKUP($E119,Starachowicki[Starachowicki],1,0),IF($D119=Staszowski[[#Headers],[Staszowski]],VLOOKUP($E119,Staszowski[Staszowski],1,0),IF($D119=Włoszczowski[[#Headers],[Włoszczowski]],VLOOKUP($E119,Włoszczowski[Włoszczowski],1,0),""))))))))))))) -> Kunów | Q119: ostrowiecki
D120: ostrowiecki | E120: Ostrowiec Świętokrzyski | F120: gmina Ostrowiec Świętokrzyski | G120: =VLOOKUP($F120,'DANE - TERC'!$D$6:$P$119,10,0) -> 2607011 | H120: =VLOOKUP($F120,'DANE - TERC'!$D$6:$P$119,12,0) -> GM | I120: =VLOOKUP($F120,'DANE - K1 lit.A'!$D$6:$M$119,4,0) -> TAK | J120: =VLOOKUP($F120,'DANE - K1 lit.A'!$D$6:$M$119,5,0) -> NIE | K120: =VLOOKUP($F120,'DANE - K1 lit.A'!$D$6:$M$119,6,0) -> TAK | L120: =IF($E120="","",VLOOKUP($F120,'DANE - K4 lit.B'!$D$6:$E$107,2,0)) -> TAK | M120: =IF($E120="","",VLOOKUP($F120,'DANE - K2 lit.C'!$B$14:$I$114,8,0)) -> w przedziale od 30 do 50 minut | O120: 0.8 | P120: =IF($D120=Buski[[#Headers],[Buski]],VLOOKUP($E120,Buski[Buski],1,0),IF($D120=Jędrzejowski[[#Headers],[Jędrzejowski]],VLOOKUP($E120,Jędrzejowski[Jędrzejowski],1,0),IF($D120=Kazimierski[[#Headers],[Kazimierski]],VLOOKUP($E120,Kazimierski[Kazimierski],1,0),IF($D120=Kielecki[[#Headers],[Kielecki]],VLOOKUP($E120,Kielecki[Kielecki],1,0),IF($D120=Konecki[[#Headers],[Konecki]],VLOOKUP($E120,Konecki[Konecki],1,0),IF($D120=Opatowski[[#Headers],[Opatowski]],VLOOKUP($E120,Opatowski[Opatowski],1,0),IF($D120=Ostrowiecki[[#Headers],[Ostrowiecki]],VLOOKUP($E120,Ostrowiecki[Ostrowiecki],1,0),IF($D120=Pińczowski[[#Headers],[Pińczowski]],VLOOKUP($E120,Pińczowski[Pińczowski],1,0),IF($D120=Sandomierski[[#Headers],[Sandomierski]],VLOOKUP($E120,Sandomierski[Sandomierski],1,0),IF($D120=Skarżyski[[#Headers],[Skarżyski]],VLOOKUP($E120,Skarżyski[Skarżyski],1,0),IF($D120=Starachowicki[[#Headers],[Starachowicki]],VLOOKUP($E120,Starachowicki[Starachowicki],1,0),IF($D120=Staszowski[[#Headers],[Staszowski]],VLOOKUP($E120,Staszowski[Staszowski],1,0),IF($D120=Włoszczowski[[#Headers],[Włoszczowski]],VLOOKUP($E120,Włoszczowski[Włoszczowski],1,0),""))))))))))))) -> Ostrowiec Świętokrzyski | Q120: ostrowiecki
D121: ostrowiecki | E121: Waśniów | F121: gmina Waśniów | G121: =VLOOKUP($F121,'DANE - TERC'!$D$6:$P$119,10,0) -> 2607062 | H121: =VLOOKUP($F121,'DANE - TERC'!$D$6:$P$119,12,0) -> GW | I121: =VLOOKUP($F121,'DANE - K1 lit.A'!$D$6:$M$119,4,0) -> TAK | J121: =VLOOKUP($F121,'DANE - K1 lit.A'!$D$6:$M$119,5,0) -> TAK | K121: =VLOOKUP($F121,'DANE - K1 lit.A'!$D$6:$M$119,6,0) -> TAK | L121: =IF($E121="","",VLOOKUP($F121,'DANE - K4 lit.B'!$D$6:$E$107,2,0)) -> NIE | M121: =IF($E121="","",VLOOKUP($F121,'DANE - K2 lit.C'!$B$14:$I$114,8,0)) -> w przedziale od 30 do 50 minut | O121: 0.8 | P121: =IF($D121=Buski[[#Headers],[Buski]],VLOOKUP($E121,Buski[Buski],1,0),IF($D121=Jędrzejowski[[#Headers],[Jędrzejowski]],VLOOKUP($E121,Jędrzejowski[Jędrzejowski],1,0),IF($D121=Kazimierski[[#Headers],[Kazimierski]],VLOOKUP($E121,Kazimierski[Kazimierski],1,0),IF($D121=Kielecki[[#Headers],[Kielecki]],VLOOKUP($E121,Kielecki[Kielecki],1,0),IF($D121=Konecki[[#Headers],[Konecki]],VLOOKUP($E121,Konecki[Konecki],1,0),IF($D121=Opatowski[[#Headers],[Opatowski]],VLOOKUP($E121,Opatowski[Opatowski],1,0),IF($D121=Ostrowiecki[[#Headers],[Ostrowiecki]],VLOOKUP($E121,Ostrowiecki[Ostrowiecki],1,0),IF($D121=Pińczowski[[#Headers],[Pińczowski]],VLOOKUP($E121,Pińczowski[Pińczowski],1,0),IF($D121=Sandomierski[[#Headers],[Sandomierski]],VLOOKUP($E121,Sandomierski[Sandomierski],1,0),IF($D121=Skarżyski[[#Headers],[Skarżyski]],VLOOKUP($E121,Skarżyski[Skarżyski],1,0),IF($D121=Starachowicki[[#Headers],[Starachowicki]],VLOOKUP($E121,Starachowicki[Starachowicki],1,0),IF($D121=Staszowski[[#Headers],[Staszowski]],VLOOKUP($E121,Staszowski[Staszowski],1,0),IF($D121=Włoszczowski[[#Headers],[Włoszczowski]],VLOOKUP($E121,Włoszczowski[Włoszczowski],1,0),""))))))))))))) -> Waśniów | Q121: ostrowiecki
D122: pińczowski | E122: Działoszyce | F122: gmina Działoszyce | G122: =VLOOKUP($F122,'DANE - TERC'!$D$6:$P$119,10,0) -> 2608013 | H122: =VLOOKUP($F122,'DANE - TERC'!$D$6:$P$119,12,0) -> GM-W | I122: =VLOOKUP($F122,'DANE - K1 lit.A'!$D$6:$M$119,4,0) -> NIE | J122: =VLOOKUP($F122,'DANE - K1 lit.A'!$D$6:$M$119,5,0) -> NIE | K122: =VLOOKUP($F122,'DANE - K1 lit.A'!$D$6:$M$119,6,0) -> NIE | L122: =IF($E122="","",VLOOKUP($F122,'DANE - K4 lit.B'!$D$6:$E$107,2,0)) -> NIE | M122: =IF($E122="","",VLOOKUP($F122,'DANE - K2 lit.C'!$B$14:$I$114,8,0)) -> w przedziale od 30 do 50 minut | O122: 0.8 | P122: =IF($D122=Buski[[#Headers],[Buski]],VLOOKUP($E122,Buski[Buski],1,0),IF($D122=Jędrzejowski[[#Headers],[Jędrzejowski]],VLOOKUP($E122,Jędrzejowski[Jędrzejowski],1,0),IF($D122=Kazimierski[[#Headers],[Kazimierski]],VLOOKUP($E122,Kazimierski[Kazimierski],1,0),IF($D122=Kielecki[[#Headers],[Kielecki]],VLOOKUP($E122,Kielecki[Kielecki],1,0),IF($D122=Konecki[[#Headers],[Konecki]],VLOOKUP($E122,Konecki[Konecki],1,0),IF($D122=Opatowski[[#Headers],[Opatowski]],VLOOKUP($E122,Opatowski[Opatowski],1,0),IF($D122=Ostrowiecki[[#Headers],[Ostrowiecki]],VLOOKUP($E122,Ostrowiecki[Ostrowiecki],1,0),IF($D122=Pińczowski[[#Headers],[Pińczowski]],VLOOKUP($E122,Pińczowski[Pińczowski],1,0),IF($D122=Sandomierski[[#Headers],[Sandomierski]],VLOOKUP($E122,Sandomierski[Sandomierski],1,0),IF($D122=Skarżyski[[#Headers],[Skarżyski]],VLOOKUP($E122,Skarżyski[Skarżyski],1,0),IF($D122=Starachowicki[[#Headers],[Starachowicki]],VLOOKUP($E122,Starachowicki[Starachowicki],1,0),IF($D122=Staszowski[[#Headers],[Staszowski]],VLOOKUP($E122,Staszowski[Staszowski],1,0),IF($D122=Włoszczowski[[#Headers],[Włoszczowski]],VLOOKUP($E122,Włoszczowski[Włoszczowski],1,0),""))))))))))))) -> Działoszyce | Q122: pińczowski
D123: pińczowski | E123: Kije | F123: gmina Kije | G123: =VLOOKUP($F123,'DANE - TERC'!$D$6:$P$119,10,0) -> 2608022 | H123: =VLOOKUP($F123,'DANE - TERC'!$D$6:$P$119,12,0) -> GW | I123: =VLOOKUP($F123,'DANE - K1 lit.A'!$D$6:$M$119,4,0) -> NIE | J123: =VLOOKUP($F123,'DANE - K1 lit.A'!$D$6:$M$119,5,0) -> NIE | K123: =VLOOKUP($F123,'DANE - K1 lit.A'!$D$6:$M$119,6,0) -> NIE | L123: =IF($E123="","",VLOOKUP($F123,'DANE - K4 lit.B'!$D$6:$E$107,2,0)) -> NIE | M123: =IF($E123="","",VLOOKUP($F123,'DANE - K2 lit.C'!$B$14:$I$114,8,0)) -> w przedziale od 30 do 50 minut | O123: 0.8 | P123: =IF($D123=Buski[[#Headers],[Buski]],VLOOKUP($E123,Buski[Buski],1,0),IF($D123=Jędrzejowski[[#Headers],[Jędrzejowski]],VLOOKUP($E123,Jędrzejowski[Jędrzejowski],1,0),IF($D123=Kazimierski[[#Headers],[Kazimierski]],VLOOKUP($E123,Kazimierski[Kazimierski],1,0),IF($D123=Kielecki[[#Headers],[Kielecki]],VLOOKUP($E123,Kielecki[Kielecki],1,0),IF($D123=Konecki[[#Headers],[Konecki]],VLOOKUP($E123,Konecki[Konecki],1,0),IF($D123=Opatowski[[#Headers],[Opatowski]],VLOOKUP($E123,Opatowski[Opatowski],1,0),IF($D123=Ostrowiecki[[#Headers],[Ostrowiecki]],VLOOKUP($E123,Ostrowiecki[Ostrowiecki],1,0),IF($D123=Pińczowski[[#Headers],[Pińczowski]],VLOOKUP($E123,Pińczowski[Pińczowski],1,0),IF($D123=Sandomierski[[#Headers],[Sandomierski]],VLOOKUP($E123,Sandomierski[Sandomierski],1,0),IF($D123=Skarżyski[[#Headers],[Skarżyski]],VLOOKUP($E123,Skarżyski[Skarżyski],1,0),IF($D123=Starachowicki[[#Headers],[Starachowicki]],VLOOKUP($E123,Starachowicki[Starachowicki],1,0),IF($D123=Staszowski[[#Headers],[Staszowski]],VLOOKUP($E123,Staszowski[Staszowski],1,0),IF($D123=Włoszczowski[[#Headers],[Włoszczowski]],VLOOKUP($E123,Włoszczowski[Włoszczowski],1,0),""))))))))))))) -> Kije | Q123: pińczowski
D124: pińczowski | E124: Michałów | F124: gmina Michałów | G124: =VLOOKUP($F124,'DANE - TERC'!$D$6:$P$119,10,0) -> 2608032 | H124: =VLOOKUP($F124,'DANE - TERC'!$D$6:$P$119,12,0) -> GW | I124: =VLOOKUP($F124,'DANE - K1 lit.A'!$D$6:$M$119,4,0) -> NIE | J124: =VLOOKUP($F124,'DANE - K1 lit.A'!$D$6:$M$119,5,0) -> TAK | K124: =VLOOKUP($F124,'DANE - K1 lit.A'!$D$6:$M$119,6,0) -> TAK | L124: =IF($E124="","",VLOOKUP($F124,'DANE - K4 lit.B'!$D$6:$E$107,2,0)) -> NIE | M124: =IF($E124="","",VLOOKUP($F124,'DANE - K2 lit.C'!$B$14:$I$114,8,0)) -> w przedziale od 30 do 50 minut | O124: 0.8 | P124: =IF($D124=Buski[[#Headers],[Buski]],VLOOKUP($E124,Buski[Buski],1,0),IF($D124=Jędrzejowski[[#Headers],[Jędrzejowski]],VLOOKUP($E124,Jędrzejowski[Jędrzejowski],1,0),IF($D124=Kazimierski[[#Headers],[Kazimierski]],VLOOKUP($E124,Kazimierski[Kazimierski],1,0),IF($D124=Kielecki[[#Headers],[Kielecki]],VLOOKUP($E124,Kielecki[Kielecki],1,0),IF($D124=Konecki[[#Headers],[Konecki]],VLOOKUP($E124,Konecki[Konecki],1,0),IF($D124=Opatowski[[#Headers],[Opatowski]],VLOOKUP($E124,Opatowski[Opatowski],1,0),IF($D124=Ostrowiecki[[#Headers],[Ostrowiecki]],VLOOKUP($E124,Ostrowiecki[Ostrowiecki],1,0),IF($D124=Pińczowski[[#Headers],[Pińczowski]],VLOOKUP($E124,Pińczowski[Pińczowski],1,0),IF($D124=Sandomierski[[#Headers],[Sandomierski]],VLOOKUP($E124,Sandomierski[Sandomierski],1,0),IF($D124=Skarżyski[[#Headers],[Skarżyski]],VLOOKUP($E124,Skarżyski[Skarżyski],1,0),IF($D124=Starachowicki[[#Headers],[Starachowicki]],VLOOKUP($E124,Starachowicki[Starachowicki],1,0),IF($D124=Staszowski[[#Headers],[Staszowski]],VLOOKUP($E124,Staszowski[Staszowski],1,0),IF($D124=Włoszczowski[[#Headers],[Włoszczowski]],VLOOKUP($E124,Włoszczowski[Włoszczowski],1,0),""))))))))))))) -> Michałów | Q124: pińczowski
D125: pińczowski | E125: Pińczów | F125: gmina Pińczów | G125: =VLOOKUP($F125,'DANE - TERC'!$D$6:$P$119,10,0) -> 2608043 | H125: =VLOOKUP($F125,'DANE - TERC'!$D$6:$P$119,12,0) -> GM-W | I125: =VLOOKUP($F125,'DANE - K1 lit.A'!$D$6:$M$119,4,0) -> TAK | J125: =VLOOKUP($F125,'DANE - K1 lit.A'!$D$6:$M$119,5,0) -> TAK | K125: =VLOOKUP($F125,'DANE - K1 lit.A'!$D$6:$M$119,6,0) -> TAK | L125: =IF($E125="","",VLOOKUP($F125,'DANE - K4 lit.B'!$D$6:$E$107,2,0)) -> NIE | M125: =IF($E125="","",VLOOKUP($F125,'DANE - K2 lit.C'!$B$14:$I$114,8,0)) -> w przedziale od 30 do 50 minut | O125: 0.7 | P125: =IF($D125=Buski[[#Headers],[Buski]],VLOOKUP($E125,Buski[Buski],1,0),IF($D125=Jędrzejowski[[#Headers],[Jędrzejowski]],VLOOKUP($E125,Jędrzejowski[Jędrzejowski],1,0),IF($D125=Kazimierski[[#Headers],[Kazimierski]],VLOOKUP($E125,Kazimierski[Kazimierski],1,0),IF($D125=Kielecki[[#Headers],[Kielecki]],VLOOKUP($E125,Kielecki[Kielecki],1,0),IF($D125=Konecki[[#Headers],[Konecki]],VLOOKUP($E125,Konecki[Konecki],1,0),IF($D125=Opatowski[[#Headers],[Opatowski]],VLOOKUP($E125,Opatowski[Opatowski],1,0),IF($D125=Ostrowiecki[[#Headers],[Ostrowiecki]],VLOOKUP($E125,Ostrowiecki[Ostrowiecki],1,0),IF($D125=Pińczowski[[#Headers],[Pińczowski]],VLOOKUP($E125,Pińczowski[Pińczowski],1,0),IF($D125=Sandomierski[[#Headers],[Sandomierski]],VLOOKUP($E125,Sandomierski[Sandomierski],1,0),IF($D125=Skarżyski[[#Headers],[Skarżyski]],VLOOKUP($E125,Skarżyski[Skarżyski],1,0),IF($D125=Starachowicki[[#Headers],[Starachowicki]],VLOOKUP($E125,Starachowicki[Starachowicki],1,0),IF($D125=Staszowski[[#Headers],[Staszowski]],VLOOKUP($E125,Staszowski[Staszowski],1,0),IF($D125=Włoszczowski[[#Headers],[Włoszczowski]],VLOOKUP($E125,Włoszczowski[Włoszczowski],1,0),""))))))))))))) -> Pińczów | Q125: pińczowski
D126: pińczowski | E126: Złota | F126: gmina Złota | G126: =VLOOKUP($F126,'DANE - TERC'!$D$6:$P$119,10,0) -> 2608052 | H126: =VLOOKUP($F126,'DANE - TERC'!$D$6:$P$119,12,0) -> GW | I126: =VLOOKUP($F126,'DANE - K1 lit.A'!$D$6:$M$119,4,0) -> NIE | J126: =VLOOKUP($F126,'DANE - K1 lit.A'!$D$6:$M$119,5,0) -> NIE | K126: =VLOOKUP($F126,'DANE - K1 lit.A'!$D$6:$M$119,6,0) -> NIE | L126: =IF($E126="","",VLOOKUP($F126,'DANE - K4 lit.B'!$D$6:$E$107,2,0)) -> NIE | M126: =IF($E126="","",VLOOKUP($F126,'DANE - K2 lit.C'!$B$14:$I$114,8,0)) -> większy niż 50 minut | O126: 0.8 | P126: =IF($D126=Buski[[#Headers],[Buski]],VLOOKUP($E126,Buski[Buski],1,0),IF($D126=Jędrzejowski[[#Headers],[Jędrzejowski]],VLOOKUP($E126,Jędrzejowski[Jędrzejowski],1,0),IF($D126=Kazimierski[[#Headers],[Kazimierski]],VLOOKUP($E126,Kazimierski[Kazimierski],1,0),IF($D126=Kielecki[[#Headers],[Kielecki]],VLOOKUP($E126,Kielecki[Kielecki],1,0),IF($D126=Konecki[[#Headers],[Konecki]],VLOOKUP($E126,Konecki[Konecki],1,0),IF($D126=Opatowski[[#Headers],[Opatowski]],VLOOKUP($E126,Opatowski[Opatowski],1,0),IF($D126=Ostrowiecki[[#Headers],[Ostrowiecki]],VLOOKUP($E126,Ostrowiecki[Ostrowiecki],1,0),IF($D126=Pińczowski[[#Headers],[Pińczowski]],VLOOKUP($E126,Pińczowski[Pińczowski],1,0),IF($D126=Sandomierski[[#Headers],[Sandomierski]],VLOOKUP($E126,Sandomierski[Sandomierski],1,0),IF($D126=Skarżyski[[#Headers],[Skarżyski]],VLOOKUP($E126,Skarżyski[Skarżyski],1,0),IF($D126=Starachowicki[[#Headers],[Starachowicki]],VLOOKUP($E126,Starachowicki[Starachowicki],1,0),IF($D126=Staszowski[[#Headers],[Staszowski]],VLOOKUP($E126,Staszowski[Staszowski],1,0),IF($D126=Włoszczowski[[#Headers],[Włoszczowski]],VLOOKUP($E126,Włoszczowski[Włoszczowski],1,0),""))))))))))))) -> Złota | Q126: pińczowski
D127: sandomierski | E127: Dwikozy | F127: gmina Dwikozy | G127: =VLOOKUP($F127,'DANE - TERC'!$D$6:$P$119,10,0) -> 2609022 | H127: =VLOOKUP($F127,'DANE - TERC'!$D$6:$P$119,12,0) -> GW | I127: =VLOOKUP($F127,'DANE - K1 lit.A'!$D$6:$M$119,4,0) -> TAK | J127: =VLOOKUP($F127,'DANE - K1 lit.A'!$D$6:$M$119,5,0) -> TAK | K127: =VLOOKUP($F127,'DANE - K1 lit.A'!$D$6:$M$119,6,0) -> NIE | L127: =IF($E127="","",VLOOKUP($F127,'DANE - K4 lit.B'!$D$6:$E$107,2,0)) -> NIE | M127: =IF($E127="","",VLOOKUP($F127,'DANE - K2 lit.C'!$B$14:$I$114,8,0)) -> w przedziale od 30 do 50 minut | O127: 0.8 | P127: =IF($D127=Buski[[#Headers],[Buski]],VLOOKUP($E127,Buski[Buski],1,0),IF($D127=Jędrzejowski[[#Headers],[Jędrzejowski]],VLOOKUP($E127,Jędrzejowski[Jędrzejowski],1,0),IF($D127=Kazimierski[[#Headers],[Kazimierski]],VLOOKUP($E127,Kazimierski[Kazimierski],1,0),IF($D127=Kielecki[[#Headers],[Kielecki]],VLOOKUP($E127,Kielecki[Kielecki],1,0),IF($D127=Konecki[[#Headers],[Konecki]],VLOOKUP($E127,Konecki[Konecki],1,0),IF($D127=Opatowski[[#Headers],[Opatowski]],VLOOKUP($E127,Opatowski[Opatowski],1,0),IF($D127=Ostrowiecki[[#Headers],[Ostrowiecki]],VLOOKUP($E127,Ostrowiecki[Ostrowiecki],1,0),IF($D127=Pińczowski[[#Headers],[Pińczowski]],VLOOKUP($E127,Pińczowski[Pińczowski],1,0),IF($D127=Sandomierski[[#Headers],[Sandomierski]],VLOOKUP($E127,Sandomierski[Sandomierski],1,0),IF($D127=Skarżyski[[#Headers],[Skarżyski]],VLOOKUP($E127,Skarżyski[Skarżyski],1,0),IF($D127=Starachowicki[[#Headers],[Starachowicki]],VLOOKUP($E127,Starachowicki[Starachowicki],1,0),IF($D127=Staszowski[[#Headers],[Staszowski]],VLOOKUP($E127,Staszowski[Staszowski],1,0),IF($D127=Włoszczowski[[#Headers],[Włoszczowski]],VLOOKUP($E127,Włoszczowski[Włoszczowski],1,0),""))))))))))))) -> Dwikozy | Q127: sandomierski
D128: sandomierski | E128: Klimontów | F128: gmina Klimontów | G128: =VLOOKUP($F128,'DANE - TERC'!$D$6:$P$119,10,0) -> 2609033 | H128: =VLOOKUP($F128,'DANE - TERC'!$D$6:$P$119,12,0) -> GM-W | I128: =VLOOKUP($F128,'DANE - K1 lit.A'!$D$6:$M$119,4,0) -> TAK | J128: =VLOOKUP($F128,'DANE - K1 lit.A'!$D$6:$M$119,5,0) -> TAK | K128: =VLOOKUP($F128,'DANE - K1 lit.A'!$D$6:$M$119,6,0) -> NIE | L128: =IF($E128="","",VLOOKUP($F128,'DANE - K4 lit.B'!$D$6:$E$107,2,0)) -> NIE | M128: =IF($E128="","",VLOOKUP($F128,'DANE - K2 lit.C'!$B$14:$I$114,8,0)) -> w przedziale od 30 do 50 minut | O128: 0.8 | P128: =IF($D128=Buski[[#Headers],[Buski]],VLOOKUP($E128,Buski[Buski],1,0),IF($D128=Jędrzejowski[[#Headers],[Jędrzejowski]],VLOOKUP($E128,Jędrzejowski[Jędrzejowski],1,0),IF($D128=Kazimierski[[#Headers],[Kazimierski]],VLOOKUP($E128,Kazimierski[Kazimierski],1,0),IF($D128=Kielecki[[#Headers],[Kielecki]],VLOOKUP($E128,Kielecki[Kielecki],1,0),IF($D128=Konecki[[#Headers],[Konecki]],VLOOKUP($E128,Konecki[Konecki],1,0),IF($D128=Opatowski[[#Headers],[Opatowski]],VLOOKUP($E128,Opatowski[Opatowski],1,0),IF($D128=Ostrowiecki[[#Headers],[Ostrowiecki]],VLOOKUP($E128,Ostrowiecki[Ostrowiecki],1,0),IF($D128=Pińczowski[[#Headers],[Pińczowski]],VLOOKUP($E128,Pińczowski[Pińczowski],1,0),IF($D128=Sandomierski[[#Headers],[Sandomierski]],VLOOKUP($E128,Sandomierski[Sandomierski],1,0),IF($D128=Skarżyski[[#Headers],[Skarżyski]],VLOOKUP($E128,Skarżyski[Skarżyski],1,0),IF($D128=Starachowicki[[#Headers],[Starachowicki]],VLOOKUP($E128,Starachowicki[Starachowicki],1,0),IF($D128=Staszowski[[#Headers],[Staszowski]],VLOOKUP($E128,Staszowski[Staszowski],1,0),IF($D128=Włoszczowski[[#Headers],[Włoszczowski]],VLOOKUP($E128,Włoszczowski[Włoszczowski],1,0),""))))))))))))) -> Klimontów | Q128: sandomierski
D129: sandomierski | E129: Koprzywnica | F129: gmina Koprzywnica | G129: =VLOOKUP($F129,'DANE - TERC'!$D$6:$P$119,10,0) -> 2609043 | H129: =VLOOKUP($F129,'DANE - TERC'!$D$6:$P$119,12,0) -> GM-W | I129: =VLOOKUP($F129,'DANE - K1 lit.A'!$D$6:$M$119,4,0) -> NIE | J129: =VLOOKUP($F129,'DANE - K1 lit.A'!$D$6:$M$119,5,0) -> NIE | K129: =VLOOKUP($F129,'DANE - K1 lit.A'!$D$6:$M$119,6,0) -> TAK | L129: =IF($E129="","",VLOOKUP($F129,'DANE - K4 lit.B'!$D$6:$E$107,2,0)) -> NIE | M129: =IF($E129="","",VLOOKUP($F129,'DANE - K2 lit.C'!$B$14:$I$114,8,0)) -> w przedziale od 30 do 50 minut | O129: 0.8 | P129: =IF($D129=Buski[[#Headers],[Buski]],VLOOKUP($E129,Buski[Buski],1,0),IF($D129=Jędrzejowski[[#Headers],[Jędrzejowski]],VLOOKUP($E129,Jędrzejowski[Jędrzejowski],1,0),IF($D129=Kazimierski[[#Headers],[Kazimierski]],VLOOKUP($E129,Kazimierski[Kazimierski],1,0),IF($D129=Kielecki[[#Headers],[Kielecki]],VLOOKUP($E129,Kielecki[Kielecki],1,0),IF($D129=Konecki[[#Headers],[Konecki]],VLOOKUP($E129,Konecki[Konecki],1,0),IF($D129=Opatowski[[#Headers],[Opatowski]],VLOOKUP($E129,Opatowski[Opatowski],1,0),IF($D129=Ostrowiecki[[#Headers],[Ostrowiecki]],VLOOKUP($E129,Ostrowiecki[Ostrowiecki],1,0),IF($D129=Pińczowski[[#Headers],[Pińczowski]],VLOOKUP($E129,Pińczowski[Pińczowski],1,0),IF($D129=Sandomierski[[#Headers],[Sandomierski]],VLOOKUP($E129,Sandomierski[Sandomierski],1,0),IF($D129=Skarżyski[[#Headers],[Skarżyski]],VLOOKUP($E129,Skarżyski[Skarżyski],1,0),IF($D129=Starachowicki[[#Headers],[Starachowicki]],VLOOKUP($E129,Starachowicki[Starachowicki],1,0),IF($D129=Staszowski[[#Headers],[Staszowski]],VLOOKUP($E129,Staszowski[Staszowski],1,0),IF($D129=Włoszczowski[[#Headers],[Włoszczowski]],VLOOKUP($E129,Włoszczowski[Włoszczowski],1,0),""))))))))))))) -> Koprzywnica | Q129: sandomierski
D130: sandomierski | E130: Łoniów | F130: gmina Łoniów | G130: =VLOOKUP($F130,'DANE - TERC'!$D$6:$P$119,10,0) -> 2609052 | H130: =VLOOKUP($F130,'DANE - TERC'!$D$6:$P$119,12,0) -> GW | I130: =VLOOKUP($F130,'DANE - K1 lit.A'!$D$6:$M$119,4,0) -> NIE | J130: =VLOOKUP($F130,'DANE - K1 lit.A'!$D$6:$M$119,5,0) -> TAK | K130: =VLOOKUP($F130,'DANE - K1 lit.A'!$D$6:$M$119,6,0) -> NIE | L130: =IF($E130="","",VLOOKUP($F130,'DANE - K4 lit.B'!$D$6:$E$107,2,0)) -> NIE | M130: =IF($E130="","",VLOOKUP($F130,'DANE - K2 lit.C'!$B$14:$I$114,8,0)) -> w przedziale od 30 do 50 minut | O130: 0.8 | P130: =IF($D130=Buski[[#Headers],[Buski]],VLOOKUP($E130,Buski[Buski],1,0),IF($D130=Jędrzejowski[[#Headers],[Jędrzejowski]],VLOOKUP($E130,Jędrzejowski[Jędrzejowski],1,0),IF($D130=Kazimierski[[#Headers],[Kazimierski]],VLOOKUP($E130,Kazimierski[Kazimierski],1,0),IF($D130=Kielecki[[#Headers],[Kielecki]],VLOOKUP($E130,Kielecki[Kielecki],1,0),IF($D130=Konecki[[#Headers],[Konecki]],VLOOKUP($E130,Konecki[Konecki],1,0),IF($D130=Opatowski[[#Headers],[Opatowski]],VLOOKUP($E130,Opatowski[Opatowski],1,0),IF($D130=Ostrowiecki[[#Headers],[Ostrowiecki]],VLOOKUP($E130,Ostrowiecki[Ostrowiecki],1,0),IF($D130=Pińczowski[[#Headers],[Pińczowski]],VLOOKUP($E130,Pińczowski[Pińczowski],1,0),IF($D130=Sandomierski[[#Headers],[Sandomierski]],VLOOKUP($E130,Sandomierski[Sandomierski],1,0),IF($D130=Skarżyski[[#Headers],[Skarżyski]],VLOOKUP($E130,Skarżyski[Skarżyski],1,0),IF($D130=Starachowicki[[#Headers],[Starachowicki]],VLOOKUP($E130,Starachowicki[Starachowicki],1,0),IF($D130=Staszowski[[#Headers],[Staszowski]],VLOOKUP($E130,Staszowski[Staszowski],1,0),IF($D130=Włoszczowski[[#Headers],[Włoszczowski]],VLOOKUP($E130,Włoszczowski[Włoszczowski],1,0),""))))))))))))) -> Łoniów | Q130: sandomierski
D131: sandomierski | E131: Obrazów | F131: gmina Obrazów | G131: =VLOOKUP($F131,'DANE - TERC'!$D$6:$P$119,10,0) -> 2609062 | H131: =VLOOKUP($F131,'DANE - TERC'!$D$6:$P$119,12,0) -> GW | I131: =VLOOKUP($F131,'DANE - K1 lit.A'!$D$6:$M$119,4,0) -> NIE | J131: =VLOOKUP($F131,'DANE - K1 lit.A'!$D$6:$M$119,5,0) -> NIE | K131: =VLOOKUP($F131,'DANE - K1 lit.A'!$D$6:$M$119,6,0) -> NIE | L131: =IF($E131="","",VLOOKUP($F131,'DANE - K4 lit.B'!$D$6:$E$107,2,0)) -> NIE | M131: =IF($E131="","",VLOOKUP($F131,'DANE - K2 lit.C'!$B$14:$I$114,8,0)) -> w przedziale od 30 do 50 minut | O131: 0.8 | P131: =IF($D131=Buski[[#Headers],[Buski]],VLOOKUP($E131,Buski[Buski],1,0),IF($D131=Jędrzejowski[[#Headers],[Jędrzejowski]],VLOOKUP($E131,Jędrzejowski[Jędrzejowski],1,0),IF($D131=Kazimierski[[#Headers],[Kazimierski]],VLOOKUP($E131,Kazimierski[Kazimierski],1,0),IF($D131=Kielecki[[#Headers],[Kielecki]],VLOOKUP($E131,Kielecki[Kielecki],1,0),IF($D131=Konecki[[#Headers],[Konecki]],VLOOKUP($E131,Konecki[Konecki],1,0),IF($D131=Opatowski[[#Headers],[Opatowski]],VLOOKUP($E131,Opatowski[Opatowski],1,0),IF($D131=Ostrowiecki[[#Headers],[Ostrowiecki]],VLOOKUP($E131,Ostrowiecki[Ostrowiecki],1,0),IF($D131=Pińczowski[[#Headers],[Pińczowski]],VLOOKUP($E131,Pińczowski[Pińczowski],1,0),IF($D131=Sandomierski[[#Headers],[Sandomierski]],VLOOKUP($E131,Sandomierski[Sandomierski],1,0),IF($D131=Skarżyski[[#Headers],[Skarżyski]],VLOOKUP($E131,Skarżyski[Skarżyski],1,0),IF($D131=Starachowicki[[#Headers],[Starachowicki]],VLOOKUP($E131,Starachowicki[Starachowicki],1,0),IF($D131=Staszowski[[#Headers],[Staszowski]],VLOOKUP($E131,Staszowski[Staszowski],1,0),IF($D131=Włoszczowski[[#Headers],[Włoszczowski]],VLOOKUP($E131,Włoszczowski[Włoszczowski],1,0),""))))))))))))) -> Obrazów | Q131: sandomierski
D132: sandomierski | E132: Samborzec | F132: gmina Samborzec | G132: =VLOOKUP($F132,'DANE - TERC'!$D$6:$P$119,10,0) -> 2609072 | H132: =VLOOKUP($F132,'DANE - TERC'!$D$6:$P$119,12,0) -> GW | I132: =VLOOKUP($F132,'DANE - K1 lit.A'!$D$6:$M$119,4,0) -> NIE | J132: =VLOOKUP($F132,'DANE - K1 lit.A'!$D$6:$M$119,5,0) -> TAK | K132: =VLOOKUP($F132,'DANE - K1 lit.A'!$D$6:$M$119,6,0) -> NIE | L132: =IF($E132="","",VLOOKUP($F132,'DANE - K4 lit.B'!$D$6:$E$107,2,0)) -> NIE | M132: =IF($E132="","",VLOOKUP($F132,'DANE - K2 lit.C'!$B$14:$I$114,8,0)) -> w przedziale od 30 do 50 minut | O132: 0.8 | P132: =IF($D132=Buski[[#Headers],[Buski]],VLOOKUP($E132,Buski[Buski],1,0),IF($D132=Jędrzejowski[[#Headers],[Jędrzejowski]],VLOOKUP($E132,Jędrzejowski[Jędrzejowski],1,0),IF($D132=Kazimierski[[#Headers],[Kazimierski]],VLOOKUP($E132,Kazimierski[Kazimierski],1,0),IF($D132=Kielecki[[#Headers],[Kielecki]],VLOOKUP($E132,Kielecki[Kielecki],1,0),IF($D132=Konecki[[#Headers],[Konecki]],VLOOKUP($E132,Konecki[Konecki],1,0),IF($D132=Opatowski[[#Headers],[Opatowski]],VLOOKUP($E132,Opatowski[Opatowski],1,0),IF($D132=Ostrowiecki[[#Headers],[Ostrowiecki]],VLOOKUP($E132,Ostrowiecki[Ostrowiecki],1,0),IF($D132=Pińczowski[[#Headers],[Pińczowski]],VLOOKUP($E132,Pińczowski[Pińczowski],1,0),IF($D132=Sandomierski[[#Headers],[Sandomierski]],VLOOKUP($E132,Sandomierski[Sandomierski],1,0),IF($D132=Skarżyski[[#Headers],[Skarżyski]],VLOOKUP($E132,Skarżyski[Skarżyski],1,0),IF($D132=Starachowicki[[#Headers],[Starachowicki]],VLOOKUP($E132,Starachowicki[Starachowicki],1,0),IF($D132=Staszowski[[#Headers],[Staszowski]],VLOOKUP($E132,Staszowski[Staszowski],1,0),IF($D132=Włoszczowski[[#Headers],[Włoszczowski]],VLOOKUP($E132,Włoszczowski[Włoszczowski],1,0),""))))))))))))) -> Samborzec | Q132: sandomierski
D133: sandomierski | E133: Sandomierz | F133: gmina Sandomierz | G133: =VLOOKUP($F133,'DANE - TERC'!$D$6:$P$119,10,0) -> 2609011 | H133: =VLOOKUP($F133,'DANE - TERC'!$D$6:$P$119,12,0) -> GM | I133: =VLOOKUP($F133,'DANE - K1 lit.A'!$D$6:$M$119,4,0) -> TAK | J133: =VLOOKUP($F133,'DANE - K1 lit.A'!$D$6:$M$119,5,0) -> TAK | K133: =VLOOKUP($F133,'DANE - K1 lit.A'!$D$6:$M$119,6,0) -> NIE | L133: =IF($E133="","",VLOOKUP($F133,'DANE - K4 lit.B'!$D$6:$E$107,2,0)) -> TAK | M133: =IF($E133="","",VLOOKUP($F133,'DANE - K2 lit.C'!$B$14:$I$114,8,0)) -> w przedziale od 30 do 50 minut | O133: 0.6 | P133: =IF($D133=Buski[[#Headers],[Buski]],VLOOKUP($E133,Buski[Buski],1,0),IF($D133=Jędrzejowski[[#Headers],[Jędrzejowski]],VLOOKUP($E133,Jędrzejowski[Jędrzejowski],1,0),IF($D133=Kazimierski[[#Headers],[Kazimierski]],VLOOKUP($E133,Kazimierski[Kazimierski],1,0),IF($D133=Kielecki[[#Headers],[Kielecki]],VLOOKUP($E133,Kielecki[Kielecki],1,0),IF($D133=Konecki[[#Headers],[Konecki]],VLOOKUP($E133,Konecki[Konecki],1,0),IF($D133=Opatowski[[#Headers],[Opatowski]],VLOOKUP($E133,Opatowski[Opatowski],1,0),IF($D133=Ostrowiecki[[#Headers],[Ostrowiecki]],VLOOKUP($E133,Ostrowiecki[Ostrowiecki],1,0),IF($D133=Pińczowski[[#Headers],[Pińczowski]],VLOOKUP($E133,Pińczowski[Pińczowski],1,0),IF($D133=Sandomierski[[#Headers],[Sandomierski]],VLOOKUP($E133,Sandomierski[Sandomierski],1,0),IF($D133=Skarżyski[[#Headers],[Skarżyski]],VLOOKUP($E133,Skarżyski[Skarżyski],1,0),IF($D133=Starachowicki[[#Headers],[Starachowicki]],VLOOKUP($E133,Starachowicki[Starachowicki],1,0),IF($D133=Staszowski[[#Headers],[Staszowski]],VLOOKUP($E133,Staszowski[Staszowski],1,0),IF($D133=Włoszczowski[[#Headers],[Włoszczowski]],VLOOKUP($E133,Włoszczowski[Włoszczowski],1,0),""))))))))))))) -> Sandomierz | Q133: sandomierski
D134: sandomierski | E134: Wilczyce | F134: gmina Wilczyce | G134: =VLOOKUP($F134,'DANE - TERC'!$D$6:$P$119,10,0) -> 2609082 | H134: =VLOOKUP($F134,'DANE - TERC'!$D$6:$P$119,12,0) -> GW | I134: =VLOOKUP($F134,'DANE - K1 lit.A'!$D$6:$M$119,4,0) -> NIE | J134: =VLOOKUP($F134,'DANE - K1 lit.A'!$D$6:$M$119,5,0) -> NIE | K134: =VLOOKUP($F134,'DANE - K1 lit.A'!$D$6:$M$119,6,0) -> NIE | L134: =IF($E134="","",VLOOKUP($F134,'DANE - K4 lit.B'!$D$6:$E$107,2,0)) -> NIE | M134: =IF($E134="","",VLOOKUP($F134,'DANE - K2 lit.C'!$B$14:$I$114,8,0)) -> w przedziale od 30 do 50 minut | O134: 0.8 | P134: =IF($D134=Buski[[#Headers],[Buski]],VLOOKUP($E134,Buski[Buski],1,0),IF($D134=Jędrzejowski[[#Headers],[Jędrzejowski]],VLOOKUP($E134,Jędrzejowski[Jędrzejowski],1,0),IF($D134=Kazimierski[[#Headers],[Kazimierski]],VLOOKUP($E134,Kazimierski[Kazimierski],1,0),IF($D134=Kielecki[[#Headers],[Kielecki]],VLOOKUP($E134,Kielecki[Kielecki],1,0),IF($D134=Konecki[[#Headers],[Konecki]],VLOOKUP($E134,Konecki[Konecki],1,0),IF($D134=Opatowski[[#Headers],[Opatowski]],VLOOKUP($E134,Opatowski[Opatowski],1,0),IF($D134=Ostrowiecki[[#Headers],[Ostrowiecki]],VLOOKUP($E134,Ostrowiecki[Ostrowiecki],1,0),IF($D134=Pińczowski[[#Headers],[Pińczowski]],VLOOKUP($E134,Pińczowski[Pińczowski],1,0),IF($D134=Sandomierski[[#Headers],[Sandomierski]],VLOOKUP($E134,Sandomierski[Sandomierski],1,0),IF($D134=Skarżyski[[#Headers],[Skarżyski]],VLOOKUP($E134,Skarżyski[Skarżyski],1,0),IF($D134=Starachowicki[[#Headers],[Starachowicki]],VLOOKUP($E134,Starachowicki[Starachowicki],1,0),IF($D134=Staszowski[[#Headers],[Staszowski]],VLOOKUP($E134,Staszowski[Staszowski],1,0),IF($D134=Włoszczowski[[#Headers],[Włoszczowski]],VLOOKUP($E134,Włoszczowski[Włoszczowski],1,0),""))))))))))))) -> Wilczyce | Q134: sandomierski
D135: sandomierski | E135: Zawichost | F135: gmina Zawichost | G135: =VLOOKUP($F135,'DANE - TERC'!$D$6:$P$119,10,0) -> 2609093 | H135: =VLOOKUP($F135,'DANE - TERC'!$D$6:$P$119,12,0) -> GM-W | I135: =VLOOKUP($F135,'DANE - K1 lit.A'!$D$6:$M$119,4,0) -> NIE | J135: =VLOOKUP($F135,'DANE - K1 lit.A'!$D$6:$M$119,5,0) -> NIE | K135: =VLOOKUP($F135,'DANE - K1 lit.A'!$D$6:$M$119,6,0) -> NIE | L135: =IF($E135="","",VLOOKUP($F135,'DANE - K4 lit.B'!$D$6:$E$107,2,0)) -> NIE | M135: =IF($E135="","",VLOOKUP($F135,'DANE - K2 lit.C'!$B$14:$I$114,8,0)) -> większy niż 50 minut | O135: 0.8 | P135: =IF($D135=Buski[[#Headers],[Buski]],VLOOKUP($E135,Buski[Buski],1,0),IF($D135=Jędrzejowski[[#Headers],[Jędrzejowski]],VLOOKUP($E135,Jędrzejowski[Jędrzejowski],1,0),IF($D135=Kazimierski[[#Headers],[Kazimierski]],VLOOKUP($E135,Kazimierski[Kazimierski],1,0),IF($D135=Kielecki[[#Headers],[Kielecki]],VLOOKUP($E135,Kielecki[Kielecki],1,0),IF($D135=Konecki[[#Headers],[Konecki]],VLOOKUP($E135,Konecki[Konecki],1,0),IF($D135=Opatowski[[#Headers],[Opatowski]],VLOOKUP($E135,Opatowski[Opatowski],1,0),IF($D135=Ostrowiecki[[#Headers],[Ostrowiecki]],VLOOKUP($E135,Ostrowiecki[Ostrowiecki],1,0),IF($D135=Pińczowski[[#Headers],[Pińczowski]],VLOOKUP($E135,Pińczowski[Pińczowski],1,0),IF($D135=Sandomierski[[#Headers],[Sandomierski]],VLOOKUP($E135,Sandomierski[Sandomierski],1,0),IF($D135=Skarżyski[[#Headers],[Skarżyski]],VLOOKUP($E135,Skarżyski[Skarżyski],1,0),IF($D135=Starachowicki[[#Headers],[Starachowicki]],VLOOKUP($E135,Starachowicki[Starachowicki],1,0),IF($D135=Staszowski[[#Headers],[Staszowski]],VLOOKUP($E135,Staszowski[Staszowski],1,0),IF($D135=Włoszczowski[[#Headers],[Włoszczowski]],VLOOKUP($E135,Włoszczowski[Włoszczowski],1,0),""))))))))))))) -> Zawichost | Q135: sandomierski
D136: skarżyski | E136: Bliżyn | F136: gmina Bliżyn | G136: =VLOOKUP($F136,'DANE - TERC'!$D$6:$P$119,10,0) -> 2610022 | H136: =VLOOKUP($F136,'DANE - TERC'!$D$6:$P$119,12,0) -> GW | I136: =VLOOKUP($F136,'DANE - K1 lit.A'!$D$6:$M$119,4,0) -> NIE | J136: =VLOOKUP($F136,'DANE - K1 lit.A'!$D$6:$M$119,5,0) -> NIE | K136: =VLOOKUP($F136,'DANE - K1 lit.A'!$D$6:$M$119,6,0) -> NIE | L136: =IF($E136="","",VLOOKUP($F136,'DANE - K4 lit.B'!$D$6:$E$107,2,0)) -> NIE | M136: =IF($E136="","",VLOOKUP($F136,'DANE - K2 lit.C'!$B$14:$I$114,8,0)) -> w przedziale od 30 do 50 minut | O136: 0.8 | P136: =IF($D136=Buski[[#Headers],[Buski]],VLOOKUP($E136,Buski[Buski],1,0),IF($D136=Jędrzejowski[[#Headers],[Jędrzejowski]],VLOOKUP($E136,Jędrzejowski[Jędrzejowski],1,0),IF($D136=Kazimierski[[#Headers],[Kazimierski]],VLOOKUP($E136,Kazimierski[Kazimierski],1,0),IF($D136=Kielecki[[#Headers],[Kielecki]],VLOOKUP($E136,Kielecki[Kielecki],1,0),IF($D136=Konecki[[#Headers],[Konecki]],VLOOKUP($E136,Konecki[Konecki],1,0),IF($D136=Opatowski[[#Headers],[Opatowski]],VLOOKUP($E136,Opatowski[Opatowski],1,0),IF($D136=Ostrowiecki[[#Headers],[Ostrowiecki]],VLOOKUP($E136,Ostrowiecki[Ostrowiecki],1,0),IF($D136=Pińczowski[[#Headers],[Pińczowski]],VLOOKUP($E136,Pińczowski[Pińczowski],1,0),IF($D136=Sandomierski[[#Headers],[Sandomierski]],VLOOKUP($E136,Sandomierski[Sandomierski],1,0),IF($D136=Skarżyski[[#Headers],[Skarżyski]],VLOOKUP($E136,Skarżyski[Skarżyski],1,0),IF($D136=Starachowicki[[#Headers],[Starachowicki]],VLOOKUP($E136,Starachowicki[Starachowicki],1,0),IF($D136=Staszowski[[#Headers],[Staszowski]],VLOOKUP($E136,Staszowski[Staszowski],1,0),IF($D136=Włoszczowski[[#Headers],[Włoszczowski]],VLOOKUP($E136,Włoszczowski[Włoszczowski],1,0),""))))))))))))) -> Bliżyn | Q136: skarżyski
D137: skarżyski | E137: Łączna | F137: gmina Łączna | G137: =VLOOKUP($F137,'DANE - TERC'!$D$6:$P$119,10,0) -> 2610032 | H137: =VLOOKUP($F137,'DANE - TERC'!$D$6:$P$119,12,0) -> GW | I137: =VLOOKUP($F137,'DANE - K1 lit.A'!$D$6:$M$119,4,0) -> NIE | J137: =VLOOKUP($F137,'DANE - K1 lit.A'!$D$6:$M$119,5,0) -> NIE | K137: =VLOOKUP($F137,'DANE - K1 lit.A'!$D$6:$M$119,6,0) -> NIE | L137: =IF($E137="","",VLOOKUP($F137,'DANE - K4 lit.B'!$D$6:$E$107,2,0)) -> NIE | M137: =IF($E137="","",VLOOKUP($F137,'DANE - K2 lit.C'!$B$14:$I$114,8,0)) -> mniejszy niż 30 minut | O137: 0.8 | P137: =IF($D137=Buski[[#Headers],[Buski]],VLOOKUP($E137,Buski[Buski],1,0),IF($D137=Jędrzejowski[[#Headers],[Jędrzejowski]],VLOOKUP($E137,Jędrzejowski[Jędrzejowski],1,0),IF($D137=Kazimierski[[#Headers],[Kazimierski]],VLOOKUP($E137,Kazimierski[Kazimierski],1,0),IF($D137=Kielecki[[#Headers],[Kielecki]],VLOOKUP($E137,Kielecki[Kielecki],1,0),IF($D137=Konecki[[#Headers],[Konecki]],VLOOKUP($E137,Konecki[Konecki],1,0),IF($D137=Opatowski[[#Headers],[Opatowski]],VLOOKUP($E137,Opatowski[Opatowski],1,0),IF($D137=Ostrowiecki[[#Headers],[Ostrowiecki]],VLOOKUP($E137,Ostrowiecki[Ostrowiecki],1,0),IF($D137=Pińczowski[[#Headers],[Pińczowski]],VLOOKUP($E137,Pińczowski[Pińczowski],1,0),IF($D137=Sandomierski[[#Headers],[Sandomierski]],VLOOKUP($E137,Sandomierski[Sandomierski],1,0),IF($D137=Skarżyski[[#Headers],[Skarżyski]],VLOOKUP($E137,Skarżyski[Skarżyski],1,0),IF($D137=Starachowicki[[#Headers],[Starachowicki]],VLOOKUP($E137,Starachowicki[Starachowicki],1,0),IF($D137=Staszowski[[#Headers],[Staszowski]],VLOOKUP($E137,Staszowski[Staszowski],1,0),IF($D137=Włoszczowski[[#Headers],[Włoszczowski]],VLOOKUP($E137,Włoszczowski[Włoszczowski],1,0),""))))))))))))) -> Łączna | Q137: skarżyski
D138: skarżyski | E138: Skarżysko-Kamienna | F138: gmina Skarżysko-Kamienna | G138: =VLOOKUP($F138,'DANE - TERC'!$D$6:$P$119,10,0) -> 2610011 | H138: =VLOOKUP($F138,'DANE - TERC'!$D$6:$P$119,12,0) -> GM | I138: =VLOOKUP($F138,'DANE - K1 lit.A'!$D$6:$M$119,4,0) -> TAK | J138: =VLOOKUP($F138,'DANE - K1 lit.A'!$D$6:$M$119,5,0) -> NIE | K138: =VLOOKUP($F138,'DANE - K1 lit.A'!$D$6:$M$119,6,0) -> TAK | L138: =IF($E138="","",VLOOKUP($F138,'DANE - K4 lit.B'!$D$6:$E$107,2,0)) -> TAK | M138: =IF($E138="","",VLOOKUP($F138,'DANE - K2 lit.C'!$B$14:$I$114,8,0)) -> w przedziale od 30 do 50 minut | O138: 0.8 | P138: =IF($D138=Buski[[#Headers],[Buski]],VLOOKUP($E138,Buski[Buski],1,0),IF($D138=Jędrzejowski[[#Headers],[Jędrzejowski]],VLOOKUP($E138,Jędrzejowski[Jędrzejowski],1,0),IF($D138=Kazimierski[[#Headers],[Kazimierski]],VLOOKUP($E138,Kazimierski[Kazimierski],1,0),IF($D138=Kielecki[[#Headers],[Kielecki]],VLOOKUP($E138,Kielecki[Kielecki],1,0),IF($D138=Konecki[[#Headers],[Konecki]],VLOOKUP($E138,Konecki[Konecki],1,0),IF($D138=Opatowski[[#Headers],[Opatowski]],VLOOKUP($E138,Opatowski[Opatowski],1,0),IF($D138=Ostrowiecki[[#Headers],[Ostrowiecki]],VLOOKUP($E138,Ostrowiecki[Ostrowiecki],1,0),IF($D138=Pińczowski[[#Headers],[Pińczowski]],VLOOKUP($E138,Pińczowski[Pińczowski],1,0),IF($D138=Sandomierski[[#Headers],[Sandomierski]],VLOOKUP($E138,Sandomierski[Sandomierski],1,0),IF($D138=Skarżyski[[#Headers],[Skarżyski]],VLOOKUP($E138,Skarżyski[Skarżyski],1,0),IF($D138=Starachowicki[[#Headers],[Starachowicki]],VLOOKUP($E138,Starachowicki[Starachowicki],1,0),IF($D138=Staszowski[[#Headers],[Staszowski]],VLOOKUP($E138,Staszowski[Staszowski],1,0),IF($D138=Włoszczowski[[#Headers],[Włoszczowski]],VLOOKUP($E138,Włoszczowski[Włoszczowski],1,0),""))))))))))))) -> Skarżysko-Kamienna | Q138: skarżyski
D139: skarżyski | E139: Skarżysko Kościelne | F139: gmina Skarżysko Kościelne | G139: =VLOOKUP($F139,'DANE - TERC'!$D$6:$P$119,10,0) -> 2610042 | H139: =VLOOKUP($F139,'DANE - TERC'!$D$6:$P$119,12,0) -> GW | I139: =VLOOKUP($F139,'DANE - K1 lit.A'!$D$6:$M$119,4,0) -> NIE | J139: =VLOOKUP($F139,'DANE - K1 lit.A'!$D$6:$M$119,5,0) -> NIE | K139: =VLOOKUP($F139,'DANE - K1 lit.A'!$D$6:$M$119,6,0) -> NIE | L139: =IF($E139="","",VLOOKUP($F139,'DANE - K4 lit.B'!$D$6:$E$107,2,0)) -> NIE | M139: =IF($E139="","",VLOOKUP($F139,'DANE - K2 lit.C'!$B$14:$I$114,8,0)) -> w przedziale od 30 do 50 minut | O139: 0.8 | P139: =IF($D139=Buski[[#Headers],[Buski]],VLOOKUP($E139,Buski[Buski],1,0),IF($D139=Jędrzejowski[[#Headers],[Jędrzejowski]],VLOOKUP($E139,Jędrzejowski[Jędrzejowski],1,0),IF($D139=Kazimierski[[#Headers],[Kazimierski]],VLOOKUP($E139,Kazimierski[Kazimierski],1,0),IF($D139=Kielecki[[#Headers],[Kielecki]],VLOOKUP($E139,Kielecki[Kielecki],1,0),IF($D139=Konecki[[#Headers],[Konecki]],VLOOKUP($E139,Konecki[Konecki],1,0),IF($D139=Opatowski[[#Headers],[Opatowski]],VLOOKUP($E139,Opatowski[Opatowski],1,0),IF($D139=Ostrowiecki[[#Headers],[Ostrowiecki]],VLOOKUP($E139,Ostrowiecki[Ostrowiecki],1,0),IF($D139=Pińczowski[[#Headers],[Pińczowski]],VLOOKUP($E139,Pińczowski[Pińczowski],1,0),IF($D139=Sandomierski[[#Headers],[Sandomierski]],VLOOKUP($E139,Sandomierski[Sandomierski],1,0),IF($D139=Skarżyski[[#Headers],[Skarżyski]],VLOOKUP($E139,Skarżyski[Skarżyski],1,0),IF($D139=Starachowicki[[#Headers],[Starachowicki]],VLOOKUP($E139,Starachowicki[Starachowicki],1,0),IF($D139=Staszowski[[#Headers],[Staszowski]],VLOOKUP($E139,Staszowski[Staszowski],1,0),IF($D139=Włoszczowski[[#Headers],[Włoszczowski]],VLOOKUP($E139,Włoszczowski[Włoszczowski],1,0),""))))))))))))) -> Skarżysko Kościelne | Q139: skarżyski
D140: skarżyski | E140: Suchedniów | F140: gmina Suchedniów | G140: =VLOOKUP($F140,'DANE - TERC'!$D$6:$P$119,10,0) -> 2610053 | H140: =VLOOKUP($F140,'DANE - TERC'!$D$6:$P$119,12,0) -> GM-W | I140: =VLOOKUP($F140,'DANE - K1 lit.A'!$D$6:$M$119,4,0) -> TAK | J140: =VLOOKUP($F140,'DANE - K1 lit.A'!$D$6:$M$119,5,0) -> TAK | K140: =VLOOKUP($F140,'DANE - K1 lit.A'!$D$6:$M$119,6,0) -> NIE | L140: =IF($E140="","",VLOOKUP($F140,'DANE - K4 lit.B'!$D$6:$E$107,2,0)) -> NIE | M140: =IF($E140="","",VLOOKUP($F140,'DANE - K2 lit.C'!$B$14:$I$114,8,0)) -> w przedziale od 30 do 50 minut | O140: 0.8 | P140: =IF($D140=Buski[[#Headers],[Buski]],VLOOKUP($E140,Buski[Buski],1,0),IF($D140=Jędrzejowski[[#Headers],[Jędrzejowski]],VLOOKUP($E140,Jędrzejowski[Jędrzejowski],1,0),IF($D140=Kazimierski[[#Headers],[Kazimierski]],VLOOKUP($E140,Kazimierski[Kazimierski],1,0),IF($D140=Kielecki[[#Headers],[Kielecki]],VLOOKUP($E140,Kielecki[Kielecki],1,0),IF($D140=Konecki[[#Headers],[Konecki]],VLOOKUP($E140,Konecki[Konecki],1,0),IF($D140=Opatowski[[#Headers],[Opatowski]],VLOOKUP($E140,Opatowski[Opatowski],1,0),IF($D140=Ostrowiecki[[#Headers],[Ostrowiecki]],VLOOKUP($E140,Ostrowiecki[Ostrowiecki],1,0),IF($D140=Pińczowski[[#Headers],[Pińczowski]],VLOOKUP($E140,Pińczowski[Pińczowski],1,0),IF($D140=Sandomierski[[#Headers],[Sandomierski]],VLOOKUP($E140,Sandomierski[Sandomierski],1,0),IF($D140=Skarżyski[[#Headers],[Skarżyski]],VLOOKUP($E140,Skarżyski[Skarżyski],1,0),IF($D140=Starachowicki[[#Headers],[Starachowicki]],VLOOKUP($E140,Starachowicki[Starachowicki],1,0),IF($D140=Staszowski[[#Headers],[Staszowski]],VLOOKUP($E140,Staszowski[Staszowski],1,0),IF($D140=Włoszczowski[[#Headers],[Włoszczowski]],VLOOKUP($E140,Włoszczowski[Włoszczowski],1,0),""))))))))))))) -> Suchedniów | Q140: skarżyski
D141: starachowicki | E141: Brody | F141: gmina Brody | G141: =VLOOKUP($F141,'DANE - TERC'!$D$6:$P$119,10,0) -> 2611022 | H141: =VLOOKUP($F141,'DANE - TERC'!$D$6:$P$119,12,0) -> GW | I141: =VLOOKUP($F141,'DANE - K1 lit.A'!$D$6:$M$119,4,0) -> TAK | J141: =VLOOKUP($F141,'DANE - K1 lit.A'!$D$6:$M$119,5,0) -> TAK | K141: =VLOOKUP($F141,'DANE - K1 lit.A'!$D$6:$M$119,6,0) -> TAK | L141: =IF($E141="","",VLOOKUP($F141,'DANE - K4 lit.B'!$D$6:$E$107,2,0)) -> NIE | M141: =IF($E141="","",VLOOKUP($F141,'DANE - K2 lit.C'!$B$14:$I$114,8,0)) -> w przedziale od 30 do 50 minut | O141: 0.8 | P141: =IF($D141=Buski[[#Headers],[Buski]],VLOOKUP($E141,Buski[Buski],1,0),IF($D141=Jędrzejowski[[#Headers],[Jędrzejowski]],VLOOKUP($E141,Jędrzejowski[Jędrzejowski],1,0),IF($D141=Kazimierski[[#Headers],[Kazimierski]],VLOOKUP($E141,Kazimierski[Kazimierski],1,0),IF($D141=Kielecki[[#Headers],[Kielecki]],VLOOKUP($E141,Kielecki[Kielecki],1,0),IF($D141=Konecki[[#Headers],[Konecki]],VLOOKUP($E141,Konecki[Konecki],1,0),IF($D141=Opatowski[[#Headers],[Opatowski]],VLOOKUP($E141,Opatowski[Opatowski],1,0),IF($D141=Ostrowiecki[[#Headers],[Ostrowiecki]],VLOOKUP($E141,Ostrowiecki[Ostrowiecki],1,0),IF($D141=Pińczowski[[#Headers],[Pińczowski]],VLOOKUP($E141,Pińczowski[Pińczowski],1,0),IF($D141=Sandomierski[[#Headers],[Sandomierski]],VLOOKUP($E141,Sandomierski[Sandomierski],1,0),IF($D141=Skarżyski[[#Headers],[Skarżyski]],VLOOKUP($E141,Skarżyski[Skarżyski],1,0),IF($D141=Starachowicki[[#Headers],[Starachowicki]],VLOOKUP($E141,Starachowicki[Starachowicki],1,0),IF($D141=Staszowski[[#Headers],[Staszowski]],VLOOKUP($E141,Staszowski[Staszowski],1,0),IF($D141=Włoszczowski[[#Headers],[Włoszczowski]],VLOOKUP($E141,Włoszczowski[Włoszczowski],1,0),""))))))))))))) -> Brody | Q141: starachowicki
D142: starachowicki | E142: Mirzec | F142: gmina Mirzec | G142: =VLOOKUP($F142,'DANE - TERC'!$D$6:$P$119,10,0) -> 2611032 | H142: =VLOOKUP($F142,'DANE - TERC'!$D$6:$P$119,12,0) -> GW | I142: =VLOOKUP($F142,'DANE - K1 lit.A'!$D$6:$M$119,4,0) -> NIE | J142: =VLOOKUP($F142,'DANE - K1 lit.A'!$D$6:$M$119,5,0) -> NIE | K142: =VLOOKUP($F142,'DANE - K1 lit.A'!$D$6:$M$119,6,0) -> NIE | L142: =IF($E142="","",VLOOKUP($F142,'DANE - K4 lit.B'!$D$6:$E$107,2,0)) -> NIE | M142: =IF($E142="","",VLOOKUP($F142,'DANE - K2 lit.C'!$B$14:$I$114,8,0)) -> w przedziale od 30 do 50 minut | O142: 0.8 | P142: =IF($D142=Buski[[#Headers],[Buski]],VLOOKUP($E142,Buski[Buski],1,0),IF($D142=Jędrzejowski[[#Headers],[Jędrzejowski]],VLOOKUP($E142,Jędrzejowski[Jędrzejowski],1,0),IF($D142=Kazimierski[[#Headers],[Kazimierski]],VLOOKUP($E142,Kazimierski[Kazimierski],1,0),IF($D142=Kielecki[[#Headers],[Kielecki]],VLOOKUP($E142,Kielecki[Kielecki],1,0),IF($D142=Konecki[[#Headers],[Konecki]],VLOOKUP($E142,Konecki[Konecki],1,0),IF($D142=Opatowski[[#Headers],[Opatowski]],VLOOKUP($E142,Opatowski[Opatowski],1,0),IF($D142=Ostrowiecki[[#Headers],[Ostrowiecki]],VLOOKUP($E142,Ostrowiecki[Ostrowiecki],1,0),IF($D142=Pińczowski[[#Headers],[Pińczowski]],VLOOKUP($E142,Pińczowski[Pińczowski],1,0),IF($D142=Sandomierski[[#Headers],[Sandomierski]],VLOOKUP($E142,Sandomierski[Sandomierski],1,0),IF($D142=Skarżyski[[#Headers],[Skarżyski]],VLOOKUP($E142,Skarżyski[Skarżyski],1,0),IF($D142=Starachowicki[[#Headers],[Starachowicki]],VLOOKUP($E142,Starachowicki[Starachowicki],1,0),IF($D142=Staszowski[[#Headers],[Staszowski]],VLOOKUP($E142,Staszowski[Staszowski],1,0),IF($D142=Włoszczowski[[#Headers],[Włoszczowski]],VLOOKUP($E142,Włoszczowski[Włoszczowski],1,0),""))))))))))))) -> Mirzec | Q142: starachowicki
D143: starachowicki | E143: Pawłów | F143: gmina Pawłów | G143: =VLOOKUP($F143,'DANE - TERC'!$D$6:$P$119,10,0) -> 2611042 | H143: =VLOOKUP($F143,'DANE - TERC'!$D$6:$P$119,12,0) -> GW | I143: =VLOOKUP($F143,'DANE - K1 lit.A'!$D$6:$M$119,4,0) -> TAK | J143: =VLOOKUP($F143,'DANE - K1 lit.A'!$D$6:$M$119,5,0) -> TAK | K143: =VLOOKUP($F143,'DANE - K1 lit.A'!$D$6:$M$119,6,0) -> NIE | L143: =IF($E143="","",VLOOKUP($F143,'DANE - K4 lit.B'!$D$6:$E$107,2,0)) -> NIE | M143: =IF($E143="","",VLOOKUP($F143,'DANE - K2 lit.C'!$B$14:$I$114,8,0)) -> w przedziale od 30 do 50 minut | O143: 0.8 | P143: =IF($D143=Buski[[#Headers],[Buski]],VLOOKUP($E143,Buski[Buski],1,0),IF($D143=Jędrzejowski[[#Headers],[Jędrzejowski]],VLOOKUP($E143,Jędrzejowski[Jędrzejowski],1,0),IF($D143=Kazimierski[[#Headers],[Kazimierski]],VLOOKUP($E143,Kazimierski[Kazimierski],1,0),IF($D143=Kielecki[[#Headers],[Kielecki]],VLOOKUP($E143,Kielecki[Kielecki],1,0),IF($D143=Konecki[[#Headers],[Konecki]],VLOOKUP($E143,Konecki[Konecki],1,0),IF($D143=Opatowski[[#Headers],[Opatowski]],VLOOKUP($E143,Opatowski[Opatowski],1,0),IF($D143=Ostrowiecki[[#Headers],[Ostrowiecki]],VLOOKUP($E143,Ostrowiecki[Ostrowiecki],1,0),IF($D143=Pińczowski[[#Headers],[Pińczowski]],VLOOKUP($E143,Pińczowski[Pińczowski],1,0),IF($D143=Sandomierski[[#Headers],[Sandomierski]],VLOOKUP($E143,Sandomierski[Sandomierski],1,0),IF($D143=Skarżyski[[#Headers],[Skarżyski]],VLOOKUP($E143,Skarżyski[Skarżyski],1,0),IF($D143=Starachowicki[[#Headers],[Starachowicki]],VLOOKUP($E143,Starachowicki[Starachowicki],1,0),IF($D143=Staszowski[[#Headers],[Staszowski]],VLOOKUP($E143,Staszowski[Staszowski],1,0),IF($D143=Włoszczowski[[#Headers],[Włoszczowski]],VLOOKUP($E143,Włoszczowski[Włoszczowski],1,0),""))))))))))))) -> Pawłów | Q143: starachowicki
D144: starachowicki | E144: Starachowice | F144: gmina Starachowice | G144: =VLOOKUP($F144,'DANE - TERC'!$D$6:$P$119,10,0) -> 2611011 | H144: =VLOOKUP($F144,'DANE - TERC'!$D$6:$P$119,12,0) -> GM | I144: =VLOOKUP($F144,'DANE - K1 lit.A'!$D$6:$M$119,4,0) -> TAK | J144: =VLOOKUP($F144,'DANE - K1 lit.A'!$D$6:$M$119,5,0) -> TAK | K144: =VLOOKUP($F144,'DANE - K1 lit.A'!$D$6:$M$119,6,0) -> TAK | L144: =IF($E144="","",VLOOKUP($F144,'DANE - K4 lit.B'!$D$6:$E$107,2,0)) -> TAK | M144: =IF($E144="","",VLOOKUP($F144,'DANE - K2 lit.C'!$B$14:$I$114,8,0)) -> w przedziale od 30 do 50 minut | O144: 0.8 | P144: =IF($D144=Buski[[#Headers],[Buski]],VLOOKUP($E144,Buski[Buski],1,0),IF($D144=Jędrzejowski[[#Headers],[Jędrzejowski]],VLOOKUP($E144,Jędrzejowski[Jędrzejowski],1,0),IF($D144=Kazimierski[[#Headers],[Kazimierski]],VLOOKUP($E144,Kazimierski[Kazimierski],1,0),IF($D144=Kielecki[[#Headers],[Kielecki]],VLOOKUP($E144,Kielecki[Kielecki],1,0),IF($D144=Konecki[[#Headers],[Konecki]],VLOOKUP($E144,Konecki[Konecki],1,0),IF($D144=Opatowski[[#Headers],[Opatowski]],VLOOKUP($E144,Opatowski[Opatowski],1,0),IF($D144=Ostrowiecki[[#Headers],[Ostrowiecki]],VLOOKUP($E144,Ostrowiecki[Ostrowiecki],1,0),IF($D144=Pińczowski[[#Headers],[Pińczowski]],VLOOKUP($E144,Pińczowski[Pińczowski],1,0),IF($D144=Sandomierski[[#Headers],[Sandomierski]],VLOOKUP($E144,Sandomierski[Sandomierski],1,0),IF($D144=Skarżyski[[#Headers],[Skarżyski]],VLOOKUP($E144,Skarżyski[Skarżyski],1,0),IF($D144=Starachowicki[[#Headers],[Starachowicki]],VLOOKUP($E144,Starachowicki[Starachowicki],1,0),IF($D144=Staszowski[[#Headers],[Staszowski]],VLOOKUP($E144,Staszowski[Staszowski],1,0),IF($D144=Włoszczowski[[#Headers],[Włoszczowski]],VLOOKUP($E144,Włoszczowski[Włoszczowski],1,0),""))))))))))))) -> Starachowice | Q144: starachowicki
D145: starachowicki | E145: Wąchock | F145: gmina Wąchock | G145: =VLOOKUP($F145,'DANE - TERC'!$D$6:$P$119,10,0) -> 2611053 | H145: =VLOOKUP($F145,'DANE - TERC'!$D$6:$P$119,12,0) -> GM-W | I145: =VLOOKUP($F145,'DANE - K1 lit.A'!$D$6:$M$119,4,0) -> NIE | J145: =VLOOKUP($F145,'DANE - K1 lit.A'!$D$6:$M$119,5,0) -> NIE | K145: =VLOOKUP($F145,'DANE - K1 lit.A'!$D$6:$M$119,6,0) -> NIE | L145: =IF($E145="","",VLOOKUP($F145,'DANE - K4 lit.B'!$D$6:$E$107,2,0)) -> NIE | M145: =IF($E145="","",VLOOKUP($F145,'DANE - K2 lit.C'!$B$14:$I$114,8,0)) -> w przedziale od 30 do 50 minut | O145: 0.8 | P145: =IF($D145=Buski[[#Headers],[Buski]],VLOOKUP($E145,Buski[Buski],1,0),IF($D145=Jędrzejowski[[#Headers],[Jędrzejowski]],VLOOKUP($E145,Jędrzejowski[Jędrzejowski],1,0),IF($D145=Kazimierski[[#Headers],[Kazimierski]],VLOOKUP($E145,Kazimierski[Kazimierski],1,0),IF($D145=Kielecki[[#Headers],[Kielecki]],VLOOKUP($E145,Kielecki[Kielecki],1,0),IF($D145=Konecki[[#Headers],[Konecki]],VLOOKUP($E145,Konecki[Konecki],1,0),IF($D145=Opatowski[[#Headers],[Opatowski]],VLOOKUP($E145,Opatowski[Opatowski],1,0),IF($D145=Ostrowiecki[[#Headers],[Ostrowiecki]],VLOOKUP($E145,Ostrowiecki[Ostrowiecki],1,0),IF($D145=Pińczowski[[#Headers],[Pińczowski]],VLOOKUP($E145,Pińczowski[Pińczowski],1,0),IF($D145=Sandomierski[[#Headers],[Sandomierski]],VLOOKUP($E145,Sandomierski[Sandomierski],1,0),IF($D145=Skarżyski[[#Headers],[Skarżyski]],VLOOKUP($E145,Skarżyski[Skarżyski],1,0),IF($D145=Starachowicki[[#Headers],[Starachowicki]],VLOOKUP($E145,Starachowicki[Starachowicki],1,0),IF($D145=Staszowski[[#Headers],[Staszowski]],VLOOKUP($E145,Staszowski[Staszowski],1,0),IF($D145=Włoszczowski[[#Headers],[Włoszczowski]],VLOOKUP($E145,Włoszczowski[Włoszczowski],1,0),""))))))))))))) -> Wąchock | Q145: starachowicki
D146: staszowski | E146: Bogoria | F146: gmina Bogoria | G146: =VLOOKUP($F146,'DANE - TERC'!$D$6:$P$119,10,0) -> 2612013 | H146: =VLOOKUP($F146,'DANE - TERC'!$D$6:$P$119,12,0) -> GM-W | I146: =VLOOKUP($F146,'DANE - K1 lit.A'!$D$6:$M$119,4,0) -> NIE | J146: =VLOOKUP($F146,'DANE - K1 lit.A'!$D$6:$M$119,5,0) -> TAK | K146: =VLOOKUP($F146,'DANE - K1 lit.A'!$D$6:$M$119,6,0) -> NIE | L146: =IF($E146="","",VLOOKUP($F146,'DANE - K4 lit.B'!$D$6:$E$107,2,0)) -> NIE | M146: =IF($E146="","",VLOOKUP($F146,'DANE - K2 lit.C'!$B$14:$I$114,8,0)) -> w przedziale od 30 do 50 minut | O146: 0.7 | P146: =IF($D146=Buski[[#Headers],[Buski]],VLOOKUP($E146,Buski[Buski],1,0),IF($D146=Jędrzejowski[[#Headers],[Jędrzejowski]],VLOOKUP($E146,Jędrzejowski[Jędrzejowski],1,0),IF($D146=Kazimierski[[#Headers],[Kazimierski]],VLOOKUP($E146,Kazimierski[Kazimierski],1,0),IF($D146=Kielecki[[#Headers],[Kielecki]],VLOOKUP($E146,Kielecki[Kielecki],1,0),IF($D146=Konecki[[#Headers],[Konecki]],VLOOKUP($E146,Konecki[Konecki],1,0),IF($D146=Opatowski[[#Headers],[Opatowski]],VLOOKUP($E146,Opatowski[Opatowski],1,0),IF($D146=Ostrowiecki[[#Headers],[Ostrowiecki]],VLOOKUP($E146,Ostrowiecki[Ostrowiecki],1,0),IF($D146=Pińczowski[[#Headers],[Pińczowski]],VLOOKUP($E146,Pińczowski[Pińczowski],1,0),IF($D146=Sandomierski[[#Headers],[Sandomierski]],VLOOKUP($E146,Sandomierski[Sandomierski],1,0),IF($D146=Skarżyski[[#Headers],[Skarżyski]],VLOOKUP($E146,Skarżyski[Skarżyski],1,0),IF($D146=Starachowicki[[#Headers],[Starachowicki]],VLOOKUP($E146,Starachowicki[Starachowicki],1,0),IF($D146=Staszowski[[#Headers],[Staszowski]],VLOOKUP($E146,Staszowski[Staszowski],1,0),IF($D146=Włoszczowski[[#Headers],[Włoszczowski]],VLOOKUP($E146,Włoszczowski[Włoszczowski],1,0),""))))))))))))) -> Bogoria | Q146: staszowski
D147: staszowski | E147: Łubnice | F147: gmina Łubnice | G147: =VLOOKUP($F147,'DANE - TERC'!$D$6:$P$119,10,0) -> 2612022 | H147: =VLOOKUP($F147,'DANE - TERC'!$D$6:$P$119,12,0) -> GW | I147: =VLOOKUP($F147,'DANE - K1 lit.A'!$D$6:$M$119,4,0) -> NIE | J147: =VLOOKUP($F147,'DANE - K1 lit.A'!$D$6:$M$119,5,0) -> NIE | K147: =VLOOKUP($F147,'DANE - K1 lit.A'!$D$6:$M$119,6,0) -> NIE | L147: =IF($E147="","",VLOOKUP($F147,'DANE - K4 lit.B'!$D$6:$E$107,2,0)) -> NIE | M147: =IF($E147="","",VLOOKUP($F147,'DANE - K2 lit.C'!$B$14:$I$114,8,0)) -> większy niż 50 minut | O147: 0.8 | P147: =IF($D147=Buski[[#Headers],[Buski]],VLOOKUP($E147,Buski[Buski],1,0),IF($D147=Jędrzejowski[[#Headers],[Jędrzejowski]],VLOOKUP($E147,Jędrzejowski[Jędrzejowski],1,0),IF($D147=Kazimierski[[#Headers],[Kazimierski]],VLOOKUP($E147,Kazimierski[Kazimierski],1,0),IF($D147=Kielecki[[#Headers],[Kielecki]],VLOOKUP($E147,Kielecki[Kielecki],1,0),IF($D147=Konecki[[#Headers],[Konecki]],VLOOKUP($E147,Konecki[Konecki],1,0),IF($D147=Opatowski[[#Headers],[Opatowski]],VLOOKUP($E147,Opatowski[Opatowski],1,0),IF($D147=Ostrowiecki[[#Headers],[Ostrowiecki]],VLOOKUP($E147,Ostrowiecki[Ostrowiecki],1,0),IF($D147=Pińczowski[[#Headers],[Pińczowski]],VLOOKUP($E147,Pińczowski[Pińczowski],1,0),IF($D147=Sandomierski[[#Headers],[Sandomierski]],VLOOKUP($E147,Sandomierski[Sandomierski],1,0),IF($D147=Skarżyski[[#Headers],[Skarżyski]],VLOOKUP($E147,Skarżyski[Skarżyski],1,0),IF($D147=Starachowicki[[#Headers],[Starachowicki]],VLOOKUP($E147,Starachowicki[Starachowicki],1,0),IF($D147=Staszowski[[#Headers],[Staszowski]],VLOOKUP($E147,Staszowski[Staszowski],1,0),IF($D147=Włoszczowski[[#Headers],[Włoszczowski]],VLOOKUP($E147,Włoszczowski[Włoszczowski],1,0),""))))))))))))) -> Łubnice | Q147: staszowski
D148: staszowski | E148: Oleśnica | F148: gmina Oleśnica | G148: =VLOOKUP($F148,'DANE - TERC'!$D$6:$P$119,10,0) -> 2612033 | H148: =VLOOKUP($F148,'DANE - TERC'!$D$6:$P$119,12,0) -> GM-W | I148: =VLOOKUP($F148,'DANE - K1 lit.A'!$D$6:$M$119,4,0) -> NIE | J148: =VLOOKUP($F148,'DANE - K1 lit.A'!$D$6:$M$119,5,0) -> TAK | K148: =VLOOKUP($F148,'DANE - K1 lit.A'!$D$6:$M$119,6,0) -> NIE | L148: =IF($E148="","",VLOOKUP($F148,'DANE - K4 lit.B'!$D$6:$E$107,2,0)) -> NIE | M148: =IF($E148="","",VLOOKUP($F148,'DANE - K2 lit.C'!$B$14:$I$114,8,0)) -> większy niż 50 minut | O148: 0.8 | P148: =IF($D148=Buski[[#Headers],[Buski]],VLOOKUP($E148,Buski[Buski],1,0),IF($D148=Jędrzejowski[[#Headers],[Jędrzejowski]],VLOOKUP($E148,Jędrzejowski[Jędrzejowski],1,0),IF($D148=Kazimierski[[#Headers],[Kazimierski]],VLOOKUP($E148,Kazimierski[Kazimierski],1,0),IF($D148=Kielecki[[#Headers],[Kielecki]],VLOOKUP($E148,Kielecki[Kielecki],1,0),IF($D148=Konecki[[#Headers],[Konecki]],VLOOKUP($E148,Konecki[Konecki],1,0),IF($D148=Opatowski[[#Headers],[Opatowski]],VLOOKUP($E148,Opatowski[Opatowski],1,0),IF($D148=Ostrowiecki[[#Headers],[Ostrowiecki]],VLOOKUP($E148,Ostrowiecki[Ostrowiecki],1,0),IF($D148=Pińczowski[[#Headers],[Pińczowski]],VLOOKUP($E148,Pińczowski[Pińczowski],1,0),IF($D148=Sandomierski[[#Headers],[Sandomierski]],VLOOKUP($E148,Sandomierski[Sandomierski],1,0),IF($D148=Skarżyski[[#Headers],[Skarżyski]],VLOOKUP($E148,Skarżyski[Skarżyski],1,0),IF($D148=Starachowicki[[#Headers],[Starachowicki]],VLOOKUP($E148,Starachowicki[Starachowicki],1,0),IF($D148=Staszowski[[#Headers],[Staszowski]],VLOOKUP($E148,Staszowski[Staszowski],1,0),IF($D148=Włoszczowski[[#Headers],[Włoszczowski]],VLOOKUP($E148,Włoszczowski[Włoszczowski],1,0),""))))))))))))) -> Oleśnica | Q148: staszowski
D149: staszowski | E149: Osiek | F149: gmina Osiek | G149: =VLOOKUP($F149,'DANE - TERC'!$D$6:$P$119,10,0) -> 2612043 | H149: =VLOOKUP($F149,'DANE - TERC'!$D$6:$P$119,12,0) -> GM-W | I149: =VLOOKUP($F149,'DANE - K1 lit.A'!$D$6:$M$119,4,0) -> TAK | J149: =VLOOKUP($F149,'DANE - K1 lit.A'!$D$6:$M$119,5,0) -> TAK | K149: =VLOOKUP($F149,'DANE - K1 lit.A'!$D$6:$M$119,6,0) -> TAK | L149: =IF($E149="","",VLOOKUP($F149,'DANE - K4 lit.B'!$D$6:$E$107,2,0)) -> NIE | M149: =IF($E149="","",VLOOKUP($F149,'DANE - K2 lit.C'!$B$14:$I$114,8,0)) -> w przedziale od 30 do 50 minut | O149: 0.8 | P149: =IF($D149=Buski[[#Headers],[Buski]],VLOOKUP($E149,Buski[Buski],1,0),IF($D149=Jędrzejowski[[#Headers],[Jędrzejowski]],VLOOKUP($E149,Jędrzejowski[Jędrzejowski],1,0),IF($D149=Kazimierski[[#Headers],[Kazimierski]],VLOOKUP($E149,Kazimierski[Kazimierski],1,0),IF($D149=Kielecki[[#Headers],[Kielecki]],VLOOKUP($E149,Kielecki[Kielecki],1,0),IF($D149=Konecki[[#Headers],[Konecki]],VLOOKUP($E149,Konecki[Konecki],1,0),IF($D149=Opatowski[[#Headers],[Opatowski]],VLOOKUP($E149,Opatowski[Opatowski],1,0),IF($D149=Ostrowiecki[[#Headers],[Ostrowiecki]],VLOOKUP($E149,Ostrowiecki[Ostrowiecki],1,0),IF($D149=Pińczowski[[#Headers],[Pińczowski]],VLOOKUP($E149,Pińczowski[Pińczowski],1,0),IF($D149=Sandomierski[[#Headers],[Sandomierski]],VLOOKUP($E149,Sandomierski[Sandomierski],1,0),IF($D149=Skarżyski[[#Headers],[Skarżyski]],VLOOKUP($E149,Skarżyski[Skarżyski],1,0),IF($D149=Starachowicki[[#Headers],[Starachowicki]],VLOOKUP($E149,Starachowicki[Starachowicki],1,0),IF($D149=Staszowski[[#Headers],[Staszowski]],VLOOKUP($E149,Staszowski[Staszowski],1,0),IF($D149=Włoszczowski[[#Headers],[Włoszczowski]],VLOOKUP($E149,Włoszczowski[Włoszczowski],1,0),""))))))))))))) -> Osiek | Q149: staszowski
D150: staszowski | E150: Połaniec | F150: gmina Połaniec | G150: =VLOOKUP($F150,'DANE - TERC'!$D$6:$P$119,10,0) -> 2612053 | H150: =VLOOKUP($F150,'DANE - TERC'!$D$6:$P$119,12,0) -> GM-W | I150: =VLOOKUP($F150,'DANE - K1 lit.A'!$D$6:$M$119,4,0) -> NIE | J150: =VLOOKUP($F150,'DANE - K1 lit.A'!$D$6:$M$119,5,0) -> NIE | K150: =VLOOKUP($F150,'DANE - K1 lit.A'!$D$6:$M$119,6,0) -> NIE | L150: =IF($E150="","",VLOOKUP($F150,'DANE - K4 lit.B'!$D$6:$E$107,2,0)) -> NIE | M150: =IF($E150="","",VLOOKUP($F150,'DANE - K2 lit.C'!$B$14:$I$114,8,0)) -> większy niż 50 minut | O150: 0.6 | P150: =IF($D150=Buski[[#Headers],[Buski]],VLOOKUP($E150,Buski[Buski],1,0),IF($D150=Jędrzejowski[[#Headers],[Jędrzejowski]],VLOOKUP($E150,Jędrzejowski[Jędrzejowski],1,0),IF($D150=Kazimierski[[#Headers],[Kazimierski]],VLOOKUP($E150,Kazimierski[Kazimierski],1,0),IF($D150=Kielecki[[#Headers],[Kielecki]],VLOOKUP($E150,Kielecki[Kielecki],1,0),IF($D150=Konecki[[#Headers],[Konecki]],VLOOKUP($E150,Konecki[Konecki],1,0),IF($D150=Opatowski[[#Headers],[Opatowski]],VLOOKUP($E150,Opatowski[Opatowski],1,0),IF($D150=Ostrowiecki[[#Headers],[Ostrowiecki]],VLOOKUP($E150,Ostrowiecki[Ostrowiecki],1,0),IF($D150=Pińczowski[[#Headers],[Pińczowski]],VLOOKUP($E150,Pińczowski[Pińczowski],1,0),IF($D150=Sandomierski[[#Headers],[Sandomierski]],VLOOKUP($E150,Sandomierski[Sandomierski],1,0),IF($D150=Skarżyski[[#Headers],[Skarżyski]],VLOOKUP($E150,Skarżyski[Skarżyski],1,0),IF($D150=Starachowicki[[#Headers],[Starachowicki]],VLOOKUP($E150,Starachowicki[Starachowicki],1,0),IF($D150=Staszowski[[#Headers],[Staszowski]],VLOOKUP($E150,Staszowski[Staszowski],1,0),IF($D150=Włoszczowski[[#Headers],[Włoszczowski]],VLOOKUP($E150,Włoszczowski[Włoszczowski],1,0),""))))))))))))) -> Połaniec | Q150: staszowski
D151: staszowski | E151: Rytwiany | F151: gmina Rytwiany | G151: =VLOOKUP($F151,'DANE - TERC'!$D$6:$P$119,10,0) -> 2612062 | H151: =VLOOKUP($F151,'DANE - TERC'!$D$6:$P$119,12,0) -> GW | I151: =VLOOKUP($F151,'DANE - K1 lit.A'!$D$6:$M$119,4,0) -> NIE | J151: =VLOOKUP($F151,'DANE - K1 lit.A'!$D$6:$M$119,5,0) -> NIE | K151: =VLOOKUP($F151,'DANE - K1 lit.A'!$D$6:$M$119,6,0) -> NIE | L151: =IF($E151="","",VLOOKUP($F151,'DANE - K4 lit.B'!$D$6:$E$107,2,0)) -> NIE | M151: =IF($E151="","",VLOOKUP($F151,'DANE - K2 lit.C'!$B$14:$I$114,8,0)) -> w przedziale od 30 do 50 minut | O151: 0.8 | P151: =IF($D151=Buski[[#Headers],[Buski]],VLOOKUP($E151,Buski[Buski],1,0),IF($D151=Jędrzejowski[[#Headers],[Jędrzejowski]],VLOOKUP($E151,Jędrzejowski[Jędrzejowski],1,0),IF($D151=Kazimierski[[#Headers],[Kazimierski]],VLOOKUP($E151,Kazimierski[Kazimierski],1,0),IF($D151=Kielecki[[#Headers],[Kielecki]],VLOOKUP($E151,Kielecki[Kielecki],1,0),IF($D151=Konecki[[#Headers],[Konecki]],VLOOKUP($E151,Konecki[Konecki],1,0),IF($D151=Opatowski[[#Headers],[Opatowski]],VLOOKUP($E151,Opatowski[Opatowski],1,0),IF($D151=Ostrowiecki[[#Headers],[Ostrowiecki]],VLOOKUP($E151,Ostrowiecki[Ostrowiecki],1,0),IF($D151=Pińczowski[[#Headers],[Pińczowski]],VLOOKUP($E151,Pińczowski[Pińczowski],1,0),IF($D151=Sandomierski[[#Headers],[Sandomierski]],VLOOKUP($E151,Sandomierski[Sandomierski],1,0),IF($D151=Skarżyski[[#Headers],[Skarżyski]],VLOOKUP($E151,Skarżyski[Skarżyski],1,0),IF($D151=Starachowicki[[#Headers],[Starachowicki]],VLOOKUP($E151,Starachowicki[Starachowicki],1,0),IF($D151=Staszowski[[#Headers],[Staszowski]],VLOOKUP($E151,Staszowski[Staszowski],1,0),IF($D151=Włoszczowski[[#Headers],[Włoszczowski]],VLOOKUP($E151,Włoszczowski[Włoszczowski],1,0),""))))))))))))) -> Rytwiany | Q151: staszowski
D152: staszowski | E152: Staszów | F152: gmina Staszów | G152: =VLOOKUP($F152,'DANE - TERC'!$D$6:$P$119,10,0) -> 2612073 | H152: =VLOOKUP($F152,'DANE - TERC'!$D$6:$P$119,12,0) -> GM-W | I152: =VLOOKUP($F152,'DANE - K1 lit.A'!$D$6:$M$119,4,0) -> TAK | J152: =VLOOKUP($F152,'DANE - K1 lit.A'!$D$6:$M$119,5,0) -> TAK | K152: =VLOOKUP($F152,'DANE - K1 lit.A'!$D$6:$M$119,6,0) -> TAK | L152: =IF($E152="","",VLOOKUP($F152,'DANE - K4 lit.B'!$D$6:$E$107,2,0)) -> TAK | M152: =IF($E152="","",VLOOKUP($F152,'DANE - K2 lit.C'!$B$14:$I$114,8,0)) -> w przedziale od 30 do 50 minut | O152: 0.8 | P152: =IF($D152=Buski[[#Headers],[Buski]],VLOOKUP($E152,Buski[Buski],1,0),IF($D152=Jędrzejowski[[#Headers],[Jędrzejowski]],VLOOKUP($E152,Jędrzejowski[Jędrzejowski],1,0),IF($D152=Kazimierski[[#Headers],[Kazimierski]],VLOOKUP($E152,Kazimierski[Kazimierski],1,0),IF($D152=Kielecki[[#Headers],[Kielecki]],VLOOKUP($E152,Kielecki[Kielecki],1,0),IF($D152=Konecki[[#Headers],[Konecki]],VLOOKUP($E152,Konecki[Konecki],1,0),IF($D152=Opatowski[[#Headers],[Opatowski]],VLOOKUP($E152,Opatowski[Opatowski],1,0),IF($D152=Ostrowiecki[[#Headers],[Ostrowiecki]],VLOOKUP($E152,Ostrowiecki[Ostrowiecki],1,0),IF($D152=Pińczowski[[#Headers],[Pińczowski]],VLOOKUP($E152,Pińczowski[Pińczowski],1,0),IF($D152=Sandomierski[[#Headers],[Sandomierski]],VLOOKUP($E152,Sandomierski[Sandomierski],1,0),IF($D152=Skarżyski[[#Headers],[Skarżyski]],VLOOKUP($E152,Skarżyski[Skarżyski],1,0),IF($D152=Starachowicki[[#Headers],[Starachowicki]],VLOOKUP($E152,Starachowicki[Starachowicki],1,0),IF($D152=Staszowski[[#Headers],[Staszowski]],VLOOKUP($E152,Staszowski[Staszowski],1,0),IF($D152=Włoszczowski[[#Headers],[Włoszczowski]],VLOOKUP($E152,Włoszczowski[Włoszczowski],1,0),""))))))))))))) -> Staszów | Q152: staszowski
D153: staszowski | E153: Szydłów | F153: gmina Szydłów | G153: =VLOOKUP($F153,'DANE - TERC'!$D$6:$P$119,10,0) -> 2612083 | H153: =VLOOKUP($F153,'DANE - TERC'!$D$6:$P$119,12,0) -> GM-W | I153: =VLOOKUP($F153,'DANE - K1 lit.A'!$D$6:$M$119,4,0) -> NIE | J153: =VLOOKUP($F153,'DANE - K1 lit.A'!$D$6:$M$119,5,0) -> TAK | K153: =VLOOKUP($F153,'DANE - K1 lit.A'!$D$6:$M$119,6,0) -> NIE | L153: =IF($E153="","",VLOOKUP($F153,'DANE - K4 lit.B'!$D$6:$E$107,2,0)) -> NIE | M153: =IF($E153="","",VLOOKUP($F153,'DANE - K2 lit.C'!$B$14:$I$114,8,0)) -> w przedziale od 30 do 50 minut | O153: 0.8 | P153: =IF($D153=Buski[[#Headers],[Buski]],VLOOKUP($E153,Buski[Buski],1,0),IF($D153=Jędrzejowski[[#Headers],[Jędrzejowski]],VLOOKUP($E153,Jędrzejowski[Jędrzejowski],1,0),IF($D153=Kazimierski[[#Headers],[Kazimierski]],VLOOKUP($E153,Kazimierski[Kazimierski],1,0),IF($D153=Kielecki[[#Headers],[Kielecki]],VLOOKUP($E153,Kielecki[Kielecki],1,0),IF($D153=Konecki[[#Headers],[Konecki]],VLOOKUP($E153,Konecki[Konecki],1,0),IF($D153=Opatowski[[#Headers],[Opatowski]],VLOOKUP($E153,Opatowski[Opatowski],1,0),IF($D153=Ostrowiecki[[#Headers],[Ostrowiecki]],VLOOKUP($E153,Ostrowiecki[Ostrowiecki],1,0),IF($D153=Pińczowski[[#Headers],[Pińczowski]],VLOOKUP($E153,Pińczowski[Pińczowski],1,0),IF($D153=Sandomierski[[#Headers],[Sandomierski]],VLOOKUP($E153,Sandomierski[Sandomierski],1,0),IF($D153=Skarżyski[[#Headers],[Skarżyski]],VLOOKUP($E153,Skarżyski[Skarżyski],1,0),IF($D153=Starachowicki[[#Headers],[Starachowicki]],VLOOKUP($E153,Starachowicki[Starachowicki],1,0),IF($D153=Staszowski[[#Headers],[Staszowski]],VLOOKUP($E153,Staszowski[Staszowski],1,0),IF($D153=Włoszczowski[[#Headers],[Włoszczowski]],VLOOKUP($E153,Włoszczowski[Włoszczowski],1,0),""))))))))))))) -> Szydłów | Q153: staszowski
D154: włoszczowski | E154: Kluczewsko | F154: gmina Kluczewsko | G154: =VLOOKUP($F154,'DANE - TERC'!$D$6:$P$119,10,0) -> 2613012 | H154: =VLOOKUP($F154,'DANE - TERC'!$D$6:$P$119,12,0) -> GW | I154: =VLOOKUP($F154,'DANE - K1 lit.A'!$D$6:$M$119,4,0) -> NIE | J154: =VLOOKUP($F154,'DANE - K1 lit.A'!$D$6:$M$119,5,0) -> NIE | K154: =VLOOKUP($F154,'DANE - K1 lit.A'!$D$6:$M$119,6,0) -> NIE | L154: =IF($E154="","",VLOOKUP($F154,'DANE - K4 lit.B'!$D$6:$E$107,2,0)) -> NIE | M154: =IF($E154="","",VLOOKUP($F154,'DANE - K2 lit.C'!$B$14:$I$114,8,0)) -> w przedziale od 30 do 50 minut | O154: 0.8 | P154: =IF($D154=Buski[[#Headers],[Buski]],VLOOKUP($E154,Buski[Buski],1,0),IF($D154=Jędrzejowski[[#Headers],[Jędrzejowski]],VLOOKUP($E154,Jędrzejowski[Jędrzejowski],1,0),IF($D154=Kazimierski[[#Headers],[Kazimierski]],VLOOKUP($E154,Kazimierski[Kazimierski],1,0),IF($D154=Kielecki[[#Headers],[Kielecki]],VLOOKUP($E154,Kielecki[Kielecki],1,0),IF($D154=Konecki[[#Headers],[Konecki]],VLOOKUP($E154,Konecki[Konecki],1,0),IF($D154=Opatowski[[#Headers],[Opatowski]],VLOOKUP($E154,Opatowski[Opatowski],1,0),IF($D154=Ostrowiecki[[#Headers],[Ostrowiecki]],VLOOKUP($E154,Ostrowiecki[Ostrowiecki],1,0),IF($D154=Pińczowski[[#Headers],[Pińczowski]],VLOOKUP($E154,Pińczowski[Pińczowski],1,0),IF($D154=Sandomierski[[#Headers],[Sandomierski]],VLOOKUP($E154,Sandomierski[Sandomierski],1,0),IF($D154=Skarżyski[[#Headers],[Skarżyski]],VLOOKUP($E154,Skarżyski[Skarżyski],1,0),IF($D154=Starachowicki[[#Headers],[Starachowicki]],VLOOKUP($E154,Starachowicki[Starachowicki],1,0),IF($D154=Staszowski[[#Headers],[Staszowski]],VLOOKUP($E154,Staszowski[Staszowski],1,0),IF($D154=Włoszczowski[[#Headers],[Włoszczowski]],VLOOKUP($E154,Włoszczowski[Włoszczowski],1,0),""))))))))))))) -> Kluczewsko | Q154: włoszczowski
D155: włoszczowski | E155: Krasocin | F155: gmina Krasocin | G155: =VLOOKUP($F155,'DANE - TERC'!$D$6:$P$119,10,0) -> 2613022 | H155: =VLOOKUP($F155,'DANE - TERC'!$D$6:$P$119,12,0) -> GW | I155: =VLOOKUP($F155,'DANE - K1 lit.A'!$D$6:$M$119,4,0) -> NIE | J155: =VLOOKUP($F155,'DANE - K1 lit.A'!$D$6:$M$119,5,0) -> NIE | K155: =VLOOKUP($F155,'DANE - K1 lit.A'!$D$6:$M$119,6,0) -> NIE | L155: =IF($E155="","",VLOOKUP($F155,'DANE - K4 lit.B'!$D$6:$E$107,2,0)) -> NIE | M155: =IF($E155="","",VLOOKUP($F155,'DANE - K2 lit.C'!$B$14:$I$114,8,0)) -> w przedziale od 30 do 50 minut | O155: 0.7 | P155: =IF($D155=Buski[[#Headers],[Buski]],VLOOKUP($E155,Buski[Buski],1,0),IF($D155=Jędrzejowski[[#Headers],[Jędrzejowski]],VLOOKUP($E155,Jędrzejowski[Jędrzejowski],1,0),IF($D155=Kazimierski[[#Headers],[Kazimierski]],VLOOKUP($E155,Kazimierski[Kazimierski],1,0),IF($D155=Kielecki[[#Headers],[Kielecki]],VLOOKUP($E155,Kielecki[Kielecki],1,0),IF($D155=Konecki[[#Headers],[Konecki]],VLOOKUP($E155,Konecki[Konecki],1,0),IF($D155=Opatowski[[#Headers],[Opatowski]],VLOOKUP($E155,Opatowski[Opatowski],1,0),IF($D155=Ostrowiecki[[#Headers],[Ostrowiecki]],VLOOKUP($E155,Ostrowiecki[Ostrowiecki],1,0),IF($D155=Pińczowski[[#Headers],[Pińczowski]],VLOOKUP($E155,Pińczowski[Pińczowski],1,0),IF($D155=Sandomierski[[#Headers],[Sandomierski]],VLOOKUP($E155,Sandomierski[Sandomierski],1,0),IF($D155=Skarżyski[[#Headers],[Skarżyski]],VLOOKUP($E155,Skarżyski[Skarżyski],1,0),IF($D155=Starachowicki[[#Headers],[Starachowicki]],VLOOKUP($E155,Starachowicki[Starachowicki],1,0),IF($D155=Staszowski[[#Headers],[Staszowski]],VLOOKUP($E155,Staszowski[Staszowski],1,0),IF($D155=Włoszczowski[[#Headers],[Włoszczowski]],VLOOKUP($E155,Włoszczowski[Włoszczowski],1,0),""))))))))))))) -> Krasocin | Q155: włoszczowski
D156: włoszczowski | E156: Moskorzew | F156: gmina Moskorzew | G156: =VLOOKUP($F156,'DANE - TERC'!$D$6:$P$119,10,0) -> 2613032 | H156: =VLOOKUP($F156,'DANE - TERC'!$D$6:$P$119,12,0) -> GW | I156: =VLOOKUP($F156,'DANE - K1 lit.A'!$D$6:$M$119,4,0) -> TAK | J156: =VLOOKUP($F156,'DANE - K1 lit.A'!$D$6:$M$119,5,0) -> TAK | K156: =VLOOKUP($F156,'DANE - K1 lit.A'!$D$6:$M$119,6,0) -> TAK | L156: =IF($E156="","",VLOOKUP($F156,'DANE - K4 lit.B'!$D$6:$E$107,2,0)) -> NIE | M156: =IF($E156="","",VLOOKUP($F156,'DANE - K2 lit.C'!$B$14:$I$114,8,0)) -> większy niż 50 minut | O156: 0.8 | P156: =IF($D156=Buski[[#Headers],[Buski]],VLOOKUP($E156,Buski[Buski],1,0),IF($D156=Jędrzejowski[[#Headers],[Jędrzejowski]],VLOOKUP($E156,Jędrzejowski[Jędrzejowski],1,0),IF($D156=Kazimierski[[#Headers],[Kazimierski]],VLOOKUP($E156,Kazimierski[Kazimierski],1,0),IF($D156=Kielecki[[#Headers],[Kielecki]],VLOOKUP($E156,Kielecki[Kielecki],1,0),IF($D156=Konecki[[#Headers],[Konecki]],VLOOKUP($E156,Konecki[Konecki],1,0),IF($D156=Opatowski[[#Headers],[Opatowski]],VLOOKUP($E156,Opatowski[Opatowski],1,0),IF($D156=Ostrowiecki[[#Headers],[Ostrowiecki]],VLOOKUP($E156,Ostrowiecki[Ostrowiecki],1,0),IF($D156=Pińczowski[[#Headers],[Pińczowski]],VLOOKUP($E156,Pińczowski[Pińczowski],1,0),IF($D156=Sandomierski[[#Headers],[Sandomierski]],VLOOKUP($E156,Sandomierski[Sandomierski],1,0),IF($D156=Skarżyski[[#Headers],[Skarżyski]],VLOOKUP($E156,Skarżyski[Skarżyski],1,0),IF($D156=Starachowicki[[#Headers],[Starachowicki]],VLOOKUP($E156,Starachowicki[Starachowicki],1,0),IF($D156=Staszowski[[#Headers],[Staszowski]],VLOOKUP($E156,Staszowski[Staszowski],1,0),IF($D156=Włoszczowski[[#Headers],[Włoszczowski]],VLOOKUP($E156,Włoszczowski[Włoszczowski],1,0),""))))))))))))) -> Moskorzew | Q156: włoszczowski
D157: włoszczowski | E157: Radków | F157: gmina Radków | G157: =VLOOKUP($F157,'DANE - TERC'!$D$6:$P$119,10,0) -> 2613042 | H157: =VLOOKUP($F157,'DANE - TERC'!$D$6:$P$119,12,0) -> GW | I157: =VLOOKUP($F157,'DANE - K1 lit.A'!$D$6:$M$119,4,0) -> NIE | J157: =VLOOKUP($F157,'DANE - K1 lit.A'!$D$6:$M$119,5,0) -> NIE | K157: =VLOOKUP($F157,'DANE - K1 lit.A'!$D$6:$M$119,6,0) -> NIE | L157: =IF($E157="","",VLOOKUP($F157,'DANE - K4 lit.B'!$D$6:$E$107,2,0)) -> NIE | M157: =IF($E157="","",VLOOKUP($F157,'DANE - K2 lit.C'!$B$14:$I$114,8,0)) -> w przedziale od 30 do 50 minut | O157: 0.7 | P157: =IF($D157=Buski[[#Headers],[Buski]],VLOOKUP($E157,Buski[Buski],1,0),IF($D157=Jędrzejowski[[#Headers],[Jędrzejowski]],VLOOKUP($E157,Jędrzejowski[Jędrzejowski],1,0),IF($D157=Kazimierski[[#Headers],[Kazimierski]],VLOOKUP($E157,Kazimierski[Kazimierski],1,0),IF($D157=Kielecki[[#Headers],[Kielecki]],VLOOKUP($E157,Kielecki[Kielecki],1,0),IF($D157=Konecki[[#Headers],[Konecki]],VLOOKUP($E157,Konecki[Konecki],1,0),IF($D157=Opatowski[[#Headers],[Opatowski]],VLOOKUP($E157,Opatowski[Opatowski],1,0),IF($D157=Ostrowiecki[[#Headers],[Ostrowiecki]],VLOOKUP($E157,Ostrowiecki[Ostrowiecki],1,0),IF($D157=Pińczowski[[#Headers],[Pińczowski]],VLOOKUP($E157,Pińczowski[Pińczowski],1,0),IF($D157=Sandomierski[[#Headers],[Sandomierski]],VLOOKUP($E157,Sandomierski[Sandomierski],1,0),IF($D157=Skarżyski[[#Headers],[Skarżyski]],VLOOKUP($E157,Skarżyski[Skarżyski],1,0),IF($D157=Starachowicki[[#Headers],[Starachowicki]],VLOOKUP($E157,Starachowicki[Starachowicki],1,0),IF($D157=Staszowski[[#Headers],[Staszowski]],VLOOKUP($E157,Staszowski[Staszowski],1,0),IF($D157=Włoszczowski[[#Headers],[Włoszczowski]],VLOOKUP($E157,Włoszczowski[Włoszczowski],1,0),""))))))))))))) -> Radków | Q157: włoszczowski
